Workbook

Sheet Notes
A1: MadH.xlsm; Traders Tip spreadsheet created for the November 2021 Issue
A2: Coded beginning 2021-September-11 by Ronald McAllister (rpmac_xltt@sprynet.com)
A4: This Workbook demonstrates an EXCEL version of the ideas presented
A5: by John Ehlers in an article titled "The MAD Indicatorm Enhanced", which originally appeared in the November 2021 issue of
A6: "Technical Analysis of Stocks and Commodities" magazine.
A8: * * * * * * * * * * * * * * * *
A9: To create Figure 1 from this article:
A10: Use symbol ^GSPC and chart dates 11/6/2019 thru 7/1/2021
A12: New for May 2021
A13: Upgraded the data download logic to do a better job of catching the common data download errors and provide a more graceful resolution.
A14: This includes better user notification of the nature of the error and some user control over how the error should be handled.
A15: User notification comes in the form of a MSGbox display that includes the (sometimes cryptic) description of the error and offers the user three options.
A17: Abort - If I could customize the title, I would rename this button to "Debug"
A18: This choice places you in Debug mode at the failing VBA statement.
A19: Unless you are feeling good about your VBA (and Network) debugging skills, this is probably not for you.
A21: Retry
A22: Lets the code retry the failed download request.
A23: This is a reasonable option if the download request timed out (similar to video buffering) or your network connection has dropped out..
A24: Probably a good idea to make sure your internet connection is alive and well before you select Retry.
A26: Ignore
A27: Lets the code fall thru to a (hopefully) graceful error completion with the error indicated at the top of the InputPriceData tab
A29: New for August 2020
A30: Restructured my Symbol-Not-Found detection and now stop further processing in the not found case
A32: New with the May 2020 version of my T-Tips template: VBA to implement a "Perpetual" U.S. Markets Closed Holiday Calendar.
A34: Why we need one: The Yahoo Finance recently has begun having occasional filtration problems where bars for U.S. Market Closed Holidays
A35: make their way onto the Historical Data web page and into the Historical Data download.
A37: While testing this May 2020 spreadsheet with different symbols, I found that I sometimes had bars with the text "null" in the price fields.
A38: My code always translates the "null" text price values to zeros.
A39: The resulting zeros cause real problems with indicator computations and the amount of blank space below price candles on the price chart.
A41: "null" price bars can be valid for very lightly traded penny sheet symbols which may not trade every day the markets are open.
A42: But is definitely not normal for symbols on the big boards.
A44: A closer look determined that these "bars" were for holiday dates when the US markets are normally closed.
A45: I found it interesting that some times the next download for the same symbol would not contain any of these "holiday" bars. Weird!
A47: My approach here was to write code to determine if the DATE on a null price values bar falls on one of the 9 market closed U.S. Holidays.
A48: If the bar date corresponds to one of these market closed holidays, I drop the bar before it reaches the InputPriceData tab.
A49: If the date is not a holiday, I let the bar through with the resulting zero values.
A51: No messy tables to update over the years as there are good solid rules that can be used in VBA or any other programming language to determine
A52: the dates for U.S. Market Closed Holidays for any given calendar year.
A54: This workbook contains and uses VBA macros and may take advantage of user defined VBA Class structures.
A55: Input Data:
A56: The data in this workbook is sorted date-descending (most recent date at the top). All cell formulas and
A57: VBA routines are built assuming this date sequence.
A59: ERROR 9 (already fixed in this spreadsheet)
A60: On or about Jan 29, 2020 Yahoo Finance changed the format of the split factor expression used their historical data downloads.
A61: The Split expression went from using "/" as in "New Share Number/Old Share Number",
A62: to using ":" as in "New Share Number:Old Share Number".
A63: This caused the then current version of my VBA code to fail with a "Runtime Error '9': subscript out of range".
A65: Fix for this ERROR 9
A66: For T-Tip spreadsheets from September 2018 up to present:
A67: Selecting the Debug option takes one into the VBA at the code line which causes the failure:
A68: CellArray(C_A_RowNdx, C_A_ColNdx + 1) = SplitFactors(1)
A69: Two lines above the failing VBA line is a line that reads:
A70: SplitFactors = Split(CsvColumns(CsvColNdx), "/")
A71: Change the / to a :
A72: The corrected line should now read
A73: SplitFactors = Split(CsvColumns(CsvColNdx), ":")
A75: If you are fixing several spreadsheets and do not want to use the failure to find the fix location,
A76: you can use VBA’s FIND dialog (Ctrl F) to look for the substring
A77: SplitFactors =
A78: Do include one space and the equal sign in your FIND string
A79: Select the "Current Project" option
A80: There should only be one instance.
A82: T-Tip spreadsheets prior to the September 2018 spreadsheet do not hard fail.
A84: They just get weird results in the split columns of the Input Price Data tab (soft fail).
A85: These older spreadsheets used different data retrieval and formatting logic.
A87: To fix these older spreadsheets:
A88: In the VBA editor, use find (CTRL-F).
A89: Select the "Current Project" option, and search for the following:
A90: OtherChar:="/"
A91: You are looking for a hit in a line reading:
A92: Other:=True, OtherChar:="/", _
A93: This line is part of a multiline block of code starting with a line that reads:
A94: SplitRange.Offset(0, 1).Resize(SpRows, 1).TextToColumns
A95: Change the / to a : so that the line reads
A96: Other:=True, OtherChar:=":", _
A99: 2019-04-04 Finally came up with a mechanism to align the left location and overall length of the cursor scroll bar so that the left most and right most
A100: scroll bar thumb positions visually align reasonably well with the left and right ends of the price chart horizontal axis.
A101: Makes it a little easier to visually align the Thumb and thus the cursor with points of interest on the charts.
A103: Older:
B104: My sincere apologies to our Macintosh based readers: Neither MSXML nor WinHttpRequest are supported in your environment. So as it stands this version of the spreadsheet will not work for you.
B105: See "Why this approach does not work for Macintosh" below.
B106: I am investigating cURL as a non-Querytable based approach for the Macintosh environment.
A108: The new Yahoo Finance history download interface has changed rather radically. The biggest hurdle being a pseudo-security requirement of adding a
B109: crumb character string to any URL requesting any type of history download. That crumb must match up (by way of some sort of hash algorithm) with
B110: the Yahoo Finance cookie that must also be sent with any request to the new Yahoo History down load interface.
B112: A crumb value is returned, buried in the HTML for any of what I call the "entry level" Yahoo Finance web pages (no crumb security requirement for entry level pages).
B113: A crumb may come with other Yahoo Finance pages. A crumb may even accompany some of the secured pages as well. I have not checked.
B115: Entry level pages are the top level pages of the various Yahoo Finance dialogs and include: Quote Lookup, Stock Summary Quote, and any of the pages
B116: with links in the horizontal row with the "Summary" link on the quote summary page such as Options, Historical Data, and the rest.
B118: To date I have found no way to get at this crumb value using any native EXCEL capabilities.
B120: So this crumb requirement effectively shuts out any solution that attempts to exclusively use built-in facilities of EXCEL, which is to say a purely Querytables solution.
B122: The approach built for this Traders Tip spreadsheet uses WINHTTP calls to Load the InputPriceData worksheet.
B124: First I call to get the HTML text for the Yahoo Summary Quote page using the requested symbol. From this HTML text I extract the full company name,
B125: the market it trades, the market status and time stamp, and finally the associated crumb string. There is a bunch of other useful bits buried in this HTML
B126: text that do not necessarily appear on the web page your browser presents. Perhaps some day I will go after and build a worksheet with these other bits.
B128: Next I add the freshly extracted crumb string to the URLs I use in three separate WINHTTP calls to retrieve Price history, Split history, and Dividend history respectively.
B130: From there VBA code proceeds as in the past to fill in the cell formulas and formatting that make the "prettied up" InputPriceData sheet.
A132: Why this approach works for Windows:
B133: WINHTTP maintains a temporary computer memory cache where cookies are maintained for as long as the WINHTTP object is instantiated.
B134: WINHTTP updates this cache any time a "set cookie" header accompanies a web response.
B135: Subsequent WINHTTP calls automatically search this cache for cookies and add any "appropriate" cookies to the headers
B136: of any web requests that get sent out.
B137: This cookie handling automation means that even if the response to our WINHTTP call for the Summary web page includes a new version of
B138: the Yahoo Finance cookie, the imbedded Crumb value will always match the cookie newly installed in the cache!
A141: Why this approach does not work for Macintosh:
B142: For what it is worth, the Macintosh version of the MS Office suite of products do in fact maintain a special, shared amongst themselves only, cookie cache.
B143: They automate cookie handling into and from this cache JUST for the Office products and any Querytable activity they might originate.
B145: This cache is not tied to, nor shared with, any browser that might be installed on the MAC. And I have not found anything with HTTP capabilities similar to
B146: MSXML that can work with that Office product cookie cache.
B148: When working in the MAC EXCEL environment, I have not yet become conversant with a Mac based WINHTTP like capability.
B149: So l currently have no mechanism to replicate the non-Querytable data retrieval process I am using in Windows environments.
B150: A software product called CURL has been suggested as providing this capability in the MAC environment.
B151: A version of CURL is available for the Windows So some day I may explore its capabilities and how to access those capabilities from VBA.
A153: Calculation and Chart Worksheet Usage Comments:
C154: In General, Items in Bolded BLUE are items you may freely change to play what-if games.
C155: Be sure to have a backup copy of the spreadsheet before you alter anything else.
A157: Features carried forward from the June 2016 version of my T-Tips Template
A158: Added a pair of buttons near cell F12 that will allow the user to step the charting window forward or backward one bar for each click.
A159: I find this to be a good way to test my understanding of the author's ideas as I step through the evolution of the price behavior and the indicators.
B161: First: In the "Help! I would like to plot data" area.
B162: Added button to resolve #NA problems by locating the bar in the input data with a slightly more recent date than what the user actually requested.
B163: I find this particularly useful when I have a general idea of where I want to be date wise. Now I can pick a set of dates "out of the air".
B164: If either (or both) of my date specifications fall between dates that are available in the price history,
B165: this button will resolve them to the dates of the nearest, slightly more recent input bars.
B166: I can then refine my data interval search as necessary from there.
B167: Really great when working with Weekly or Monthly studies!
C168: 2016Jun11 - added logic to the "I would like to chart.." button to detect #N/A values and terminate
C169: gracefully with a message instead of blowing up in the charting logic.
B171: Second: In the "Price Chart Windowing Controls" area. (A11 and A12)
B172: When retrieving data for a new symbol or when changing from daily to weekly or monthly data, there was the possibility that the
B173: residual settings in A11 and A12 would fall outside of the number bars available on the input data tab after the new data retrieval.
B174: In certain combinations, this could create a serious error in the chart sizing logic and crash the spreadsheet.
B175: I have taken this opportunity to update the validity checking logic used in the chart sizing macros
B176: to adjust these values as necessary so that they fall within the boundaries of the newly retrieved input data.
A177: Features carried forward from the October 2015 Traders Tips Template
B178: Improved automation: changes to any of the following will automatically initiate calculations appropriate to reflect a change.
C179: Changing either of cells A11 (pan) or A12 (zoom) will automatically initiate the same chart sizing macros that the manual
C180: "Set Chart" button uses.

Sheet InputPriceData
A1: S&P 500 (^GSPC) -SNP (Daily)
M2: To retrieve data for symbols traded on non US Exchanges, | II2: 241.79
A3: Request Online Yahoo History for: | F3: Market State == > | G3: At close: | H3: 16:56:00 | I3: EDT | M3: you will need to append the dot-suffix for the exchange to the symbol.
A4: Symbol | B4: ^GSPC | D4: Valid | I4: =OFFSET(I4,-2,0,1,1) -> 0 | M4: The following links provide a description of how to use the exchange suffix
A5: From | B5: 1950-10-01 | D5: Data | M5: along with a list of suffixes for the major world exchanges. | AD5: Trailing 12 Div return (Cur Close)
A6: To | B6: =NOW() -> 2021-09-14T16:34:47.250 | D6: Types | E6: =VLOOKUP(B7,D7:E10,2,FALSE) -> d | M6: https://help.yahoo.com/kb/finance/SLN2310.html
A7: Data Type | B7: Daily | D7: Daily | E7: d | M7: And
A8: Crumb | B8: jFHWQBs8Ytf | D8: Weekly | E8: w | M8: https://www.stockmarketeye.com/users-guide/ticker-symbols-and-data-providers/data-providers.html
A9: Available Data | D9: Monthly | E9: m
A10: Bar Count: | B10: 17852 | M10: You may search on “exchange suffixes” for additional discussions | AD10: =OFFSET(AC15,1,0,1,1)/OFFSET(N15,1,0,1,1) -> 0
A11: From: | B11: =IF(B10<=0,"",OFFSET(B15,B10,IF(HistReqDataType="v",1,0),1,1)) -> 1950-10-02 | W11: Trailing 12 Month Dividend Returns
A12: To: | B12: =IF(B10<=0,"",IF(HistReqDataType="v",OFFSET(B15,2,1,1,1),OFFSET(B15,1,0,1,1))) -> 2021-09-10 | W12: Raw Close price on Dividend date | X12: Div Year and Month | Y12: Looking for year ago Div Year and Month | Z12: Year ago Div Date we found | AA12: row offset to year ago div Date | AB12: Same month flag | AC12: Trailing 12 Div Total | AD12: Trailing 12 Div return
Q13: Split History | S13: 0 | T13: Running | U13: Dividend History
B14: Raw Data Values | H14: Adjusted | I14: Price Adjust | J14: Vol Adjust | K14: Adjusted Values | P14: Last | Q14: Effective | R14: Shares | T14: Vol Adjust | V14: 0
A15: RelRow | B15: Date | C15: Open | D15: High | E15: Low | F15: Close | G15: Volume | H15: Close | I15: Factor | J15: Factor | K15: Open | L15: High | M15: Low | N15: Close | O15: Volume | P15: Trade | Q15: 44452 | R15: New | S15: Old | T15: 1 | U15: Date | V15: $ / Share
A16: 1 | B16: 2021-09-10 | C16: 4506.919922 | D16: 4520.470215 | E16: 4457.660156 | F16: 4458.580078 | G16: 2851140000 | H16: 4458.580078 | I16: =IF(F16=0,1,H16/F16) -> 1 | J16: =INDEX(OFFSET($T$15,0,0,$S$13+1,1),MATCH(B16,OFFSET($Q$15,0,0,$S$13+1,1),-1)) -> 1 | K16: =ROUND($I16*C16,2) -> 4506.92 | L16: =ROUND($I16*D16,2) -> 4520.47 | M16: 4457.66 | N16: 4458.58 | O16: =G16*J16 -> 2851140000
A17: 2 | B17: 2021-09-09 | C17: 4513.02002 | D17: 4529.899902 | E17: 4492.069824 | F17: 4493.279785 | G17: 3035300000 | H17: 4493.279785 | I17: =IF(F17=0,1,H17/F17) -> 1 | J17: =INDEX(OFFSET($T$15,0,0,$S$13+1,1),MATCH(B17,OFFSET($Q$15,0,0,$S$13+1,1),-1)) -> 1 | K17: =ROUND($I17*C17,2) -> 4513.02 | L17: =ROUND($I17*D17,2) -> 4529.9 | M17: =ROUND($I17*E17,2) -> 4492.07 | N17: =ROUND($I17*F17,2) -> 4493.28 | O17: =G17*J17 -> 3035300000
A18: 3 | B18: 2021-09-08 | C18: 4518.089844 | D18: 4521.790039 | E18: 4493.950195 | F18: 4514.069824 | G18: 2808480000 | H18: 4514.069824 | I18: 1 | J18: 1 | K18: 4518.09 | L18: 4521.79 | M18: 4493.95 | N18: 4514.07 | O18: 2808480000
A19: 4 | B19: 2021-09-07 | C19: 4535.379883 | D19: 4535.379883 | E19: 4513 | F19: 4520.029785 | G19: 3098870000 | H19: 4520.029785 | I19: 1 | J19: 1 | K19: 4535.38 | L19: 4535.38 | M19: 4513 | N19: 4520.03 | O19: 3098870000
A20: 5 | B20: 2021-09-03 | C20: 4532.419922 | D20: 4541.450195 | E20: 4521.299805 | F20: 4535.430176 | G20: 2609660000 | H20: 4535.430176 | I20: 1 | J20: 1 | K20: 4532.42 | L20: 4541.45 | M20: 4521.3 | N20: 4535.43 | O20: 2609660000
A21: 6 | B21: 2021-09-02 | C21: 4534.47998 | D21: 4545.850098 | E21: 4524.660156 | F21: 4536.950195 | G21: 2897010000 | H21: 4536.950195 | I21: 1 | J21: 1 | K21: 4534.48 | L21: 4545.85 | M21: 4524.66 | N21: 4536.95 | O21: 2897010000
A22: 7 | B22: 2021-09-01 | C22: 4528.799805 | D22: 4537.109863 | E22: 4522.02002 | F22: 4524.089844 | G22: 3101830000 | H22: 4524.089844 | I22: 1 | J22: 1 | K22: 4528.8 | L22: 4537.11 | M22: 4522.02 | N22: 4524.09 | O22: 3101830000
A23: 8 | B23: 2021-08-31 | C23: 4529.75 | D23: 4531.390137 | E23: 4515.799805 | F23: 4522.680176 | G23: 3090380000 | H23: 4522.680176 | I23: 1 | J23: 1 | K23: 4529.75 | L23: 4531.39 | M23: 4515.8 | N23: 4522.68 | O23: 3090380000
A24: 9 | B24: 2021-08-30 | C24: 4513.759766 | D24: 4537.359863 | E24: 4513.759766 | F24: 4528.790039 | G24: 2557300000 | H24: 4528.790039 | I24: 1 | J24: 1 | K24: 4513.76 | L24: 4537.36 | M24: 4513.76 | N24: 4528.79 | O24: 2557300000
A25: 10 | B25: 2021-08-27 | C25: 4474.100098 | D25: 4513.330078 | E25: 4474.100098 | F25: 4509.370117 | G25: 2862360000 | H25: 4509.370117 | I25: 1 | J25: 1 | K25: 4474.1 | L25: 4513.33 | M25: 4474.1 | N25: 4509.37 | O25: 2862360000
A26: 11 | B26: 2021-08-26 | C26: 4493.75 | D26: 4495.899902 | E26: 4468.990234 | F26: 4470 | G26: 2704600000 | H26: 4470 | I26: 1 | J26: 1 | K26: 4493.75 | L26: 4495.9 | M26: 4468.99 | N26: 4470 | O26: 2704600000
A27: 12 | B27: 2021-08-25 | C27: 4490.450195 | D27: 4501.709961 | E27: 4485.660156 | F27: 4496.189941 | G27: 2554680000 | H27: 4496.189941 | I27: 1 | J27: 1 | K27: 4490.45 | L27: 4501.71 | M27: 4485.66 | N27: 4496.19 | O27: 2554680000
A28: 13 | B28: 2021-08-24 | C28: 4484.399902 | D28: 4492.810059 | E28: 4482.279785 | F28: 4486.22998 | G28: 3037770000 | H28: 4486.22998 | I28: 1 | J28: 1 | K28: 4484.4 | L28: 4492.81 | M28: 4482.28 | N28: 4486.23 | O28: 3037770000
A29: 14 | B29: 2021-08-23 | C29: 4450.290039 | D29: 4489.879883 | E29: 4450.290039 | F29: 4479.529785 | G29: 2965520000 | H29: 4479.529785 | I29: 1 | J29: 1 | K29: 4450.29 | L29: 4489.88 | M29: 4450.29 | N29: 4479.53 | O29: 2965520000
A30: 15 | B30: 2021-08-20 | C30: 4410.560059 | D30: 4444.350098 | E30: 4406.799805 | F30: 4441.669922 | G30: 2867770000 | H30: 4441.669922 | I30: 1 | J30: 1 | K30: 4410.56 | L30: 4444.35 | M30: 4406.8 | N30: 4441.67 | O30: 2867770000
A31: 16 | B31: 2021-08-19 | C31: 4382.439941 | D31: 4418.609863 | E31: 4367.72998 | F31: 4405.799805 | G31: 3120840000 | H31: 4405.799805 | I31: 1 | J31: 1 | K31: 4382.44 | L31: 4418.61 | M31: 4367.73 | N31: 4405.8 | O31: 3120840000
A32: 17 | B32: 2021-08-18 | C32: 4440.939941 | D32: 4454.319824 | E32: 4397.589844 | F32: 4400.27002 | G32: 2965210000 | H32: 4400.27002 | I32: 1 | J32: 1 | K32: 4440.94 | L32: 4454.32 | M32: 4397.59 | N32: 4400.27 | O32: 2965210000
A33: 18 | B33: 2021-08-17 | C33: 4462.120117 | D33: 4462.120117 | E33: 4417.830078 | F33: 4448.080078 | G33: 2884000000 | H33: 4448.080078 | I33: 1 | J33: 1 | K33: 4462.12 | L33: 4462.12 | M33: 4417.83 | N33: 4448.08 | O33: 2884000000
A34: 19 | B34: 2021-08-16 | C34: 4461.649902 | D34: 4473.259766 | E34: 4437.660156 | F34: 4472.939941 | G34: 2707170000 | H34: 4472.939941 | I34: 1 | J34: 1 | K34: 4461.65 | L34: 4473.26 | M34: 4437.66 | N34: 4472.94 | O34: 2707170000
A35: 20 | B35: 2021-08-13 | C35: 4464.839844 | D35: 4468.370117 | E35: 4460.819824 | F35: 4468 | G35: 2371630000 | H35: 4468 | I35: 1 | J35: 1 | K35: 4464.84 | L35: 4468.37 | M35: 4460.82 | N35: 4468 | O35: 2371630000
A36: 21 | B36: 2021-08-12 | C36: 4446.080078 | D36: 4461.77002 | E36: 4435.959961 | F36: 4460.830078 | G36: 2543860000 | H36: 4460.830078 | I36: 1 | J36: 1 | K36: 4446.08 | L36: 4461.77 | M36: 4435.96 | N36: 4460.83 | O36: 2543860000
A37: 22 | B37: 2021-08-11 | C37: 4442.180176 | D37: 4449.439941 | E37: 4436.419922 | F37: 4442.410156 | G37: 2803060000 | H37: 4442.410156 | I37: 1 | J37: 1 | K37: 4442.18 | L37: 4449.44 | M37: 4436.42 | N37: 4442.41 | O37: 2803060000
A38: 23 | B38: 2021-08-10 | C38: 4435.790039 | D38: 4445.209961 | E38: 4430.029785 | F38: 4436.75 | G38: 3219840000 | H38: 4436.75 | I38: 1 | J38: 1 | K38: 4435.79 | L38: 4445.21 | M38: 4430.03 | N38: 4436.75 | O38: 3219840000
A39: 24 | B39: 2021-08-09 | C39: 4437.77002 | D39: 4439.390137 | E39: 4424.740234 | F39: 4432.350098 | G39: 2779880000 | H39: 4432.350098 | I39: 1 | J39: 1 | K39: 4437.77 | L39: 4439.39 | M39: 4424.74 | N39: 4432.35 | O39: 2779880000
A40: 25 | B40: 2021-08-06 | C40: 4429.069824 | D40: 4440.819824 | E40: 4429.069824 | F40: 4436.52002 | G40: 2839970000 | H40: 4436.52002 | I40: 1 | J40: 1 | K40: 4429.07 | L40: 4440.82 | M40: 4429.07 | N40: 4436.52 | O40: 2839970000
A41: 26 | B41: 2021-08-05 | C41: 4408.859863 | D41: 4429.759766 | E41: 4408.859863 | F41: 4429.100098 | G41: 2734220000 | H41: 4429.100098 | I41: 1 | J41: 1 | K41: 4408.86 | L41: 4429.76 | M41: 4408.86 | N41: 4429.1 | O41: 2734220000
A42: 27 | B42: 2021-08-04 | C42: 4415.950195 | D42: 4416.169922 | E42: 4400.22998 | F42: 4402.660156 | G42: 3382620000 | H42: 4402.660156 | I42: 1 | J42: 1 | K42: 4415.95 | L42: 4416.17 | M42: 4400.23 | N42: 4402.66 | O42: 3382620000
A43: 28 | B43: 2021-08-03 | C43: 4392.740234 | D43: 4423.790039 | E43: 4373 | F43: 4423.149902 | G43: 3305340000 | H43: 4423.149902 | I43: 1 | J43: 1 | K43: 4392.74 | L43: 4423.79 | M43: 4373 | N43: 4423.15 | O43: 3305340000
A44: 29 | B44: 2021-08-02 | C44: 4406.859863 | D44: 4422.180176 | E44: 4384.810059 | F44: 4387.160156 | G44: 2919940000 | H44: 4387.160156 | I44: 1 | J44: 1 | K44: 4406.86 | L44: 4422.18 | M44: 4384.81 | N44: 4387.16 | O44: 2919940000
A45: 30 | B45: 2021-07-30 | C45: 4395.120117 | D45: 4412.25 | E45: 4389.649902 | F45: 4395.259766 | G45: 2861600000 | H45: 4395.259766 | I45: 1 | J45: 1 | K45: 4395.12 | L45: 4412.25 | M45: 4389.65 | N45: 4395.26 | O45: 2861600000
A46: 31 | B46: 2021-07-29 | C46: 4403.589844 | D46: 4429.970215 | E46: 4403.589844 | F46: 4419.149902 | G46: 2815510000 | H46: 4419.149902 | I46: 1 | J46: 1 | K46: 4403.59 | L46: 4429.97 | M46: 4403.59 | N46: 4419.15 | O46: 2815510000
A47: 32 | B47: 2021-07-28 | C47: 4402.950195 | D47: 4415.470215 | E47: 4387.009766 | F47: 4400.640137 | G47: 3215130000 | H47: 4400.640137 | I47: 1 | J47: 1 | K47: 4402.95 | L47: 4415.47 | M47: 4387.01 | N47: 4400.64 | O47: 3215130000
A48: 33 | B48: 2021-07-27 | C48: 4416.379883 | D48: 4416.379883 | E48: 4372.509766 | F48: 4401.459961 | G48: 3381080000 | H48: 4401.459961 | I48: 1 | J48: 1 | K48: 4416.38 | L48: 4416.38 | M48: 4372.51 | N48: 4401.46 | O48: 3381080000
A49: 34 | B49: 2021-07-26 | C49: 4409.580078 | D49: 4422.72998 | E49: 4405.450195 | F49: 4422.299805 | G49: 2679110000 | H49: 4422.299805 | I49: 1 | J49: 1 | K49: 4409.58 | L49: 4422.73 | M49: 4405.45 | N49: 4422.3 | O49: 2679110000
A50: 35 | B50: 2021-07-23 | C50: 4381.200195 | D50: 4415.180176 | E50: 4381.200195 | F50: 4411.790039 | G50: 3490730000 | H50: 4411.790039 | I50: 1 | J50: 1 | K50: 4381.2 | L50: 4415.18 | M50: 4381.2 | N50: 4411.79 | O50: 3490730000
A51: 36 | B51: 2021-07-22 | C51: 4361.27002 | D51: 4369.870117 | E51: 4350.060059 | F51: 4367.47998 | G51: 2907910000 | H51: 4367.47998 | I51: 1 | J51: 1 | K51: 4361.27 | L51: 4369.87 | M51: 4350.06 | N51: 4367.48 | O51: 2907910000
A52: 37 | B52: 2021-07-21 | C52: 4331.129883 | D52: 4359.700195 | E52: 4331.129883 | F52: 4358.689941 | G52: 3078550000 | H52: 4358.689941 | I52: 1 | J52: 1 | K52: 4331.13 | L52: 4359.7 | M52: 4331.13 | N52: 4358.69 | O52: 3078550000
A53: 38 | B53: 2021-07-20 | C53: 4265.109863 | D53: 4336.839844 | E53: 4262.049805 | F53: 4323.060059 | G53: 3634190000 | H53: 4323.060059 | I53: 1 | J53: 1 | K53: 4265.11 | L53: 4336.84 | M53: 4262.05 | N53: 4323.06 | O53: 3634190000
A54: 39 | B54: 2021-07-19 | C54: 4296.399902 | D54: 4296.399902 | E54: 4233.129883 | F54: 4258.490234 | G54: 4155790000 | H54: 4258.490234 | I54: 1 | J54: 1 | K54: 4296.4 | L54: 4296.4 | M54: 4233.13 | N54: 4258.49 | O54: 4155790000
A55: 40 | B55: 2021-07-16 | C55: 4367.430176 | D55: 4375.089844 | E55: 4322.529785 | F55: 4327.160156 | G55: 3165160000 | H55: 4327.160156 | I55: 1 | J55: 1 | K55: 4367.43 | L55: 4375.09 | M55: 4322.53 | N55: 4327.16 | O55: 3165160000
A56: 41 | B56: 2021-07-15 | C56: 4369.02002 | D56: 4369.02002 | E56: 4340.700195 | F56: 4360.029785 | G56: 3226930000 | H56: 4360.029785 | I56: 1 | J56: 1 | K56: 4369.02 | L56: 4369.02 | M56: 4340.7 | N56: 4360.03 | O56: 3226930000
A57: 42 | B57: 2021-07-14 | C57: 4380.109863 | D57: 4393.680176 | E57: 4362.359863 | F57: 4374.299805 | G57: 3213870000 | H57: 4374.299805 | I57: 1 | J57: 1 | K57: 4380.11 | L57: 4393.68 | M57: 4362.36 | N57: 4374.3 | O57: 3213870000
A58: 43 | B58: 2021-07-13 | C58: 4381.069824 | D58: 4392.370117 | E58: 4366.919922 | F58: 4369.209961 | G58: 3166900000 | H58: 4369.209961 | I58: 1 | J58: 1 | K58: 4381.07 | L58: 4392.37 | M58: 4366.92 | N58: 4369.21 | O58: 3166900000
A59: 44 | B59: 2021-07-12 | C59: 4372.410156 | D59: 4386.680176 | E59: 4364.029785 | F59: 4384.629883 | G59: 2983980000 | H59: 4384.629883 | I59: 1 | J59: 1 | K59: 4372.41 | L59: 4386.68 | M59: 4364.03 | N59: 4384.63 | O59: 2983980000
A60: 45 | B60: 2021-07-09 | C60: 4329.379883 | D60: 4371.600098 | E60: 4329.379883 | F60: 4369.549805 | G60: 2738280000 | H60: 4369.549805 | I60: 1 | J60: 1 | K60: 4329.38 | L60: 4371.6 | M60: 4329.38 | N60: 4369.55 | O60: 2738280000
A61: 46 | B61: 2021-07-08 | C61: 4321.069824 | D61: 4330.879883 | E61: 4289.370117 | F61: 4320.819824 | G61: 3393780000 | H61: 4320.819824 | I61: 1 | J61: 1 | K61: 4321.07 | L61: 4330.88 | M61: 4289.37 | N61: 4320.82 | O61: 3393780000
A62: 47 | B62: 2021-07-07 | C62: 4351.009766 | D62: 4361.879883 | E62: 4329.790039 | F62: 4358.129883 | G62: 3243900000 | H62: 4358.129883 | I62: 1 | J62: 1 | K62: 4351.01 | L62: 4361.88 | M62: 4329.79 | N62: 4358.13 | O62: 3243900000
A63: 48 | B63: 2021-07-06 | C63: 4356.459961 | D63: 4356.459961 | E63: 4314.370117 | F63: 4343.540039 | G63: 3437900000 | H63: 4343.540039 | I63: 1 | J63: 1 | K63: 4356.46 | L63: 4356.46 | M63: 4314.37 | N63: 4343.54 | O63: 3437900000
A64: 49 | B64: 2021-07-02 | C64: 4326.600098 | D64: 4355.430176 | E64: 4326.600098 | F64: 4352.339844 | G64: 2628550000 | H64: 4352.339844 | I64: 1 | J64: 1 | K64: 4326.6 | L64: 4355.43 | M64: 4326.6 | N64: 4352.34 | O64: 2628550000
A65: 50 | B65: 2021-07-01 | C65: 4300.72998 | D65: 4320.660156 | E65: 4300.72998 | F65: 4319.939941 | G65: 3077580000 | H65: 4319.939941 | I65: 1 | J65: 1 | K65: 4300.73 | L65: 4320.66 | M65: 4300.73 | N65: 4319.94 | O65: 3077580000
A66: 51 | B66: 2021-06-30 | C66: 4290.649902 | D66: 4302.430176 | E66: 4287.959961 | F66: 4297.5 | G66: 3687880000 | H66: 4297.5 | I66: 1 | J66: 1 | K66: 4290.65 | L66: 4302.43 | M66: 4287.96 | N66: 4297.5 | O66: 3687880000
A67: 52 | B67: 2021-06-29 | C67: 4293.209961 | D67: 4300.52002 | E67: 4287.040039 | F67: 4291.799805 | G67: 3049560000 | H67: 4291.799805 | I67: 1 | J67: 1 | K67: 4293.21 | L67: 4300.52 | M67: 4287.04 | N67: 4291.8 | O67: 3049560000
A68: 53 | B68: 2021-06-28 | C68: 4284.899902 | D68: 4292.140137 | E68: 4274.669922 | F68: 4290.609863 | G68: 3415610000 | H68: 4290.609863 | I68: 1 | J68: 1 | K68: 4284.9 | L68: 4292.14 | M68: 4274.67 | N68: 4290.61 | O68: 3415610000
A69: 54 | B69: 2021-06-25 | C69: 4274.450195 | D69: 4286.120117 | E69: 4271.160156 | F69: 4280.700195 | G69: 6248390000 | H69: 4280.700195 | I69: 1 | J69: 1 | K69: 4274.45 | L69: 4286.12 | M69: 4271.16 | N69: 4280.7 | O69: 6248390000
A70: 55 | B70: 2021-06-24 | C70: 4256.970215 | D70: 4271.279785 | E70: 4256.970215 | F70: 4266.490234 | G70: 3141680000 | H70: 4266.490234 | I70: 1 | J70: 1 | K70: 4256.97 | L70: 4271.28 | M70: 4256.97 | N70: 4266.49 | O70: 3141680000
A71: 56 | B71: 2021-06-23 | C71: 4249.27002 | D71: 4256.600098 | E71: 4241.430176 | F71: 4241.839844 | G71: 3172440000 | H71: 4241.839844 | I71: 1 | J71: 1 | K71: 4249.27 | L71: 4256.6 | M71: 4241.43 | N71: 4241.84 | O71: 3172440000
A72: 57 | B72: 2021-06-22 | C72: 4224.609863 | D72: 4255.839844 | E72: 4217.27002 | F72: 4246.439941 | G72: 3208760000 | H72: 4246.439941 | I72: 1 | J72: 1 | K72: 4224.61 | L72: 4255.84 | M72: 4217.27 | N72: 4246.44 | O72: 3208760000
A73: 58 | B73: 2021-06-21 | C73: 4173.399902 | D73: 4226.240234 | E73: 4173.399902 | F73: 4224.790039 | G73: 3391740000 | H73: 4224.790039 | I73: 1 | J73: 1 | K73: 4173.4 | L73: 4226.24 | M73: 4173.4 | N73: 4224.79 | O73: 3391740000
A74: 59 | B74: 2021-06-18 | C74: 4204.779785 | D74: 4204.779785 | E74: 4164.399902 | F74: 4166.450195 | G74: 6084980000 | H74: 4166.450195 | I74: 1 | J74: 1 | K74: 4204.78 | L74: 4204.78 | M74: 4164.4 | N74: 4166.45 | O74: 6084980000
A75: 60 | B75: 2021-06-17 | C75: 4220.370117 | D75: 4232.290039 | E75: 4196.049805 | F75: 4221.859863 | G75: 3952110000 | H75: 4221.859863 | I75: 1 | J75: 1 | K75: 4220.37 | L75: 4232.29 | M75: 4196.05 | N75: 4221.86 | O75: 3952110000
A76: 61 | B76: 2021-06-16 | C76: 4248.870117 | D76: 4251.890137 | E76: 4202.450195 | F76: 4223.700195 | G76: 3722050000 | H76: 4223.700195 | I76: 1 | J76: 1 | K76: 4248.87 | L76: 4251.89 | M76: 4202.45 | N76: 4223.7 | O76: 3722050000
A77: 62 | B77: 2021-06-15 | C77: 4255.279785 | D77: 4257.160156 | E77: 4238.350098 | F77: 4246.589844 | G77: 3578450000 | H77: 4246.589844 | I77: 1 | J77: 1 | K77: 4255.28 | L77: 4257.16 | M77: 4238.35 | N77: 4246.59 | O77: 3578450000
A78: 63 | B78: 2021-06-14 | C78: 4248.310059 | D78: 4255.589844 | E78: 4234.069824 | F78: 4255.149902 | G78: 3612050000 | H78: 4255.149902 | I78: 1 | J78: 1 | K78: 4248.31 | L78: 4255.59 | M78: 4234.07 | N78: 4255.15 | O78: 3612050000
A79: 64 | B79: 2021-06-11 | C79: 4242.899902 | D79: 4248.379883 | E79: 4232.25 | F79: 4247.439941 | G79: 3204280000 | H79: 4247.439941 | I79: 1 | J79: 1 | K79: 4242.9 | L79: 4248.38 | M79: 4232.25 | N79: 4247.44 | O79: 3204280000
A80: 65 | B80: 2021-06-10 | C80: 4228.560059 | D80: 4249.740234 | E80: 4220.339844 | F80: 4239.180176 | G80: 3502480000 | H80: 4239.180176 | I80: 1 | J80: 1 | K80: 4228.56 | L80: 4249.74 | M80: 4220.34 | N80: 4239.18 | O80: 3502480000
A81: 66 | B81: 2021-06-09 | C81: 4232.990234 | D81: 4237.089844 | E81: 4218.740234 | F81: 4219.549805 | G81: 3902870000 | H81: 4219.549805 | I81: =IF(F81=0,1,H81/F81) -> 1 | J81: =INDEX(OFFSET($T$15,0,0,$S$13+1,1),MATCH(B81,OFFSET($Q$15,0,0,$S$13+1,1),-1)) -> 1 | K81: =ROUND($I81*C81,2) -> 4232.99 | L81: =ROUND($I81*D81,2) -> 4237.09 | M81: =ROUND($I81*E81,2) -> 4218.74 | N81: =ROUND($I81*F81,2) -> 4219.55 | O81: =G81*J81 -> 3902870000
A82: 67 | B82: 2021-06-08 | C82: 4233.810059 | D82: 4236.740234 | E82: 4208.410156 | F82: 4227.259766 | G82: 3943870000 | H82: 4227.259766 | I82: 1 | J82: 1 | K82: 4233.81 | L82: 4236.74 | M82: 4208.41 | N82: 4227.26 | O82: 3943870000
A83: 68 | B83: 2021-06-07 | C83: 4229.339844 | D83: 4232.339844 | E83: 4215.660156 | F83: 4226.52002 | G83: 3835570000 | H83: 4226.52002 | I83: 1 | J83: 1 | K83: 4229.34 | L83: 4232.34 | M83: 4215.66 | N83: 4226.52 | O83: 3835570000
A84: 69 | B84: 2021-06-04 | C84: 4206.049805 | D84: 4233.450195 | E84: 4206.049805 | F84: 4229.890137 | G84: 3487070000 | H84: 4229.890137 | I84: 1 | J84: 1 | K84: 4206.05 | L84: 4233.45 | M84: 4206.05 | N84: 4229.89 | O84: 3487070000
A85: 70 | B85: 2021-06-03 | C85: 4191.430176 | D85: 4204.390137 | E85: 4167.930176 | F85: 4192.850098 | G85: 4579450000 | H85: 4192.850098 | I85: 1 | J85: 1 | K85: 4191.43 | L85: 4204.39 | M85: 4167.93 | N85: 4192.85 | O85: 4579450000
A86: 71 | B86: 2021-06-02 | C86: 4206.819824 | D86: 4217.370117 | E86: 4198.27002 | F86: 4208.120117 | G86: 4860930000 | H86: 4208.120117 | I86: 1 | J86: 1 | K86: 4206.82 | L86: 4217.37 | M86: 4198.27 | N86: 4208.12 | O86: 4860930000
A87: 72 | B87: 2021-06-01 | C87: 4216.52002 | D87: 4234.120117 | E87: 4197.589844 | F87: 4202.040039 | G87: 4122960000 | H87: 4202.040039 | I87: 1 | J87: 1 | K87: 4216.52 | L87: 4234.12 | M87: 4197.59 | N87: 4202.04 | O87: 4122960000
A88: 73 | B88: 2021-05-28 | C88: 4210.77002 | D88: 4218.359863 | E88: 4203.569824 | F88: 4204.109863 | G88: 4199270000 | H88: 4204.109863 | I88: 1 | J88: 1 | K88: 4210.77 | L88: 4218.36 | M88: 4203.57 | N88: 4204.11 | O88: 4199270000
A89: 74 | B89: 2021-05-27 | C89: 4201.939941 | D89: 4213.379883 | E89: 4197.779785 | F89: 4200.879883 | G89: 5201110000 | H89: 4200.879883 | I89: 1 | J89: 1 | K89: 4201.94 | L89: 4213.38 | M89: 4197.78 | N89: 4200.88 | O89: 5201110000
A90: 75 | B90: 2021-05-26 | C90: 4191.589844 | D90: 4202.609863 | E90: 4184.109863 | F90: 4195.990234 | G90: 3674490000 | H90: 4195.990234 | I90: 1 | J90: 1 | K90: 4191.59 | L90: 4202.61 | M90: 4184.11 | N90: 4195.99 | O90: 3674490000
A91: 76 | B91: 2021-05-25 | C91: 4205.939941 | D91: 4213.419922 | E91: 4182.52002 | F91: 4188.129883 | G91: 3420870000 | H91: 4188.129883 | I91: 1 | J91: 1 | K91: 4205.94 | L91: 4213.42 | M91: 4182.52 | N91: 4188.13 | O91: 3420870000
A92: 77 | B92: 2021-05-24 | C92: 4170.160156 | D92: 4209.52002 | E92: 4170.160156 | F92: 4197.049805 | G92: 2947400000 | H92: 4197.049805 | I92: 1 | J92: 1 | K92: 4170.16 | L92: 4209.52 | M92: 4170.16 | N92: 4197.05 | O92: 2947400000
A93: 78 | B93: 2021-05-21 | C93: 4168.609863 | D93: 4188.720215 | E93: 4151.720215 | F93: 4155.859863 | G93: 3344620000 | H93: 4155.859863 | I93: 1 | J93: 1 | K93: 4168.61 | L93: 4188.72 | M93: 4151.72 | N93: 4155.86 | O93: 3344620000
A94: 79 | B94: 2021-05-20 | C94: 4121.970215 | D94: 4172.799805 | E94: 4121.970215 | F94: 4159.120117 | G94: 3019060000 | H94: 4159.120117 | I94: 1 | J94: 1 | K94: 4121.97 | L94: 4172.8 | M94: 4121.97 | N94: 4159.12 | O94: 3019060000
A95: 80 | B95: 2021-05-19 | C95: 4098.450195 | D95: 4116.930176 | E95: 4061.409912 | F95: 4115.680176 | G95: 3485550000 | H95: 4115.680176 | I95: 1 | J95: 1 | K95: 4098.45 | L95: 4116.93 | M95: 4061.41 | N95: 4115.68 | O95: 3485550000
A96: 81 | B96: 2021-05-18 | C96: 4165.939941 | D96: 4169.149902 | E96: 4125.990234 | F96: 4127.830078 | G96: 3559790000 | H96: 4127.830078 | I96: 1 | J96: 1 | K96: 4165.94 | L96: 4169.15 | M96: 4125.99 | N96: 4127.83 | O96: 3559790000
A97: 82 | B97: 2021-05-17 | C97: 4169.919922 | D97: 4171.919922 | E97: 4142.689941 | F97: 4163.290039 | G97: 3307130000 | H97: 4163.290039 | I97: 1 | J97: 1 | K97: 4169.92 | L97: 4171.92 | M97: 4142.69 | N97: 4163.29 | O97: 3307130000
A98: 83 | B98: 2021-05-14 | C98: 4129.580078 | D98: 4183.129883 | E98: 4129.580078 | F98: 4173.850098 | G98: 3251920000 | H98: 4173.850098 | I98: 1 | J98: 1 | K98: 4129.58 | L98: 4183.13 | M98: 4129.58 | N98: 4173.85 | O98: 3251920000
A99: 84 | B99: 2021-05-13 | C99: 4074.98999 | D99: 4131.580078 | E99: 4074.98999 | F99: 4112.5 | G99: 3687780000 | H99: 4112.5 | I99: 1 | J99: 1 | K99: 4074.99 | L99: 4131.58 | M99: 4074.99 | N99: 4112.5 | O99: 3687780000
A100: 85 | B100: 2021-05-12 | C100: 4130.549805 | D100: 4134.72998 | E100: 4056.879883 | F100: 4063.040039 | G100: 3735080000 | H100: 4063.040039 | I100: 1 | J100: 1 | K100: 4130.55 | L100: 4134.73 | M100: 4056.88 | N100: 4063.04 | O100: 3735080000
A101: 86 | B101: 2021-05-11 | C101: 4150.339844 | D101: 4162.040039 | E101: 4111.529785 | F101: 4152.100098 | G101: 3593110000 | H101: 4152.100098 | I101: 1 | J101: 1 | K101: 4150.34 | L101: 4162.04 | M101: 4111.53 | N101: 4152.1 | O101: 3593110000
A102: 87 | B102: 2021-05-10 | C102: 4228.290039 | D102: 4236.390137 | E102: 4188.129883 | F102: 4188.430176 | G102: 3678970000 | H102: 4188.430176 | I102: 1 | J102: 1 | K102: 4228.29 | L102: 4236.39 | M102: 4188.13 | N102: 4188.43 | O102: 3678970000
A103: 88 | B103: 2021-05-07 | C103: 4210.339844 | D103: 4238.040039 | E103: 4201.640137 | F103: 4232.600098 | G103: 4013060000 | H103: 4232.600098 | I103: 1 | J103: 1 | K103: 4210.34 | L103: 4238.04 | M103: 4201.64 | N103: 4232.6 | O103: 4013060000
A104: 89 | B104: 2021-05-06 | C104: 4169.140137 | D104: 4202.700195 | E104: 4147.330078 | F104: 4201.620117 | G104: 4504860000 | H104: 4201.620117 | I104: 1 | J104: 1 | K104: 4169.14 | L104: 4202.7 | M104: 4147.33 | N104: 4201.62 | O104: 4504860000
A105: 90 | B105: 2021-05-05 | C105: 4177.060059 | D105: 4187.720215 | E105: 4160.939941 | F105: 4167.589844 | G105: 4029050000 | H105: 4167.589844 | I105: 1 | J105: 1 | K105: 4177.06 | L105: 4187.72 | M105: 4160.94 | N105: 4167.59 | O105: 4029050000
A106: 91 | B106: 2021-05-04 | C106: 4179.040039 | D106: 4179.040039 | E106: 4128.589844 | F106: 4164.660156 | G106: 4441080000 | H106: 4164.660156 | I106: 1 | J106: 1 | K106: 4179.04 | L106: 4179.04 | M106: 4128.59 | N106: 4164.66 | O106: 4441080000
A107: 92 | B107: 2021-05-03 | C107: 4191.97998 | D107: 4209.390137 | E107: 4188.029785 | F107: 4192.660156 | G107: 4061170000 | H107: 4192.660156 | I107: 1 | J107: 1 | K107: 4191.98 | L107: 4209.39 | M107: 4188.03 | N107: 4192.66 | O107: 4061170000
A108: 93 | B108: 2021-04-30 | C108: 4198.100098 | D108: 4198.100098 | E108: 4174.850098 | F108: 4181.169922 | G108: 4273680000 | H108: 4181.169922 | I108: 1 | J108: 1 | K108: 4198.1 | L108: 4198.1 | M108: 4174.85 | N108: 4181.17 | O108: 4273680000
A109: 94 | B109: 2021-04-29 | C109: 4206.140137 | D109: 4218.779785 | E109: 4176.810059 | F109: 4211.470215 | G109: 4288940000 | H109: 4211.470215 | I109: 1 | J109: 1 | K109: 4206.14 | L109: 4218.78 | M109: 4176.81 | N109: 4211.47 | O109: 4288940000
A110: 95 | B110: 2021-04-28 | C110: 4185.140137 | D110: 4201.529785 | E110: 4181.779785 | F110: 4183.180176 | G110: 3772390000 | H110: 4183.180176 | I110: 1 | J110: 1 | K110: 4185.14 | L110: 4201.53 | M110: 4181.78 | N110: 4183.18 | O110: 3772390000
A111: 96 | B111: 2021-04-27 | C111: 4188.25 | D111: 4193.350098 | E111: 4176.220215 | F111: 4186.720215 | G111: 3703240000 | H111: 4186.720215 | I111: 1 | J111: 1 | K111: 4188.25 | L111: 4193.35 | M111: 4176.22 | N111: 4186.72 | O111: 3703240000
A112: 97 | B112: 2021-04-26 | C112: 4185.029785 | D112: 4194.189941 | E112: 4182.359863 | F112: 4187.620117 | G112: 3738920000 | H112: 4187.620117 | I112: 1 | J112: 1 | K112: 4185.03 | L112: 4194.19 | M112: 4182.36 | N112: 4187.62 | O112: 3738920000
A113: 98 | B113: 2021-04-23 | C113: 4138.779785 | D113: 4194.169922 | E113: 4138.779785 | F113: 4180.169922 | G113: 3568080000 | H113: 4180.169922 | I113: 1 | J113: 1 | K113: 4138.78 | L113: 4194.17 | M113: 4138.78 | N113: 4180.17 | O113: 3568080000
A114: 99 | B114: 2021-04-22 | C114: 4170.459961 | D114: 4179.569824 | E114: 4123.689941 | F114: 4134.97998 | G114: 4235040000 | H114: 4134.97998 | I114: 1 | J114: 1 | K114: 4170.46 | L114: 4179.57 | M114: 4123.69 | N114: 4134.98 | O114: 4235040000
A115: 100 | B115: 2021-04-21 | C115: 4128.419922 | D115: 4175.02002 | E115: 4126.350098 | F115: 4173.419922 | G115: 3865820000 | H115: 4173.419922 | I115: 1 | J115: 1 | K115: 4128.42 | L115: 4175.02 | M115: 4126.35 | N115: 4173.42 | O115: 3865820000
A116: 101 | B116: 2021-04-20 | C116: 4159.180176 | D116: 4159.180176 | E116: 4118.379883 | F116: 4134.939941 | G116: 4338230000 | H116: 4134.939941 | I116: 1 | J116: 1 | K116: 4159.18 | L116: 4159.18 | M116: 4118.38 | N116: 4134.94 | O116: 4338230000
A117: 102 | B117: 2021-04-19 | C117: 4179.799805 | D117: 4180.810059 | E117: 4150.470215 | F117: 4163.259766 | G117: 3788020000 | H117: 4163.259766 | I117: 1 | J117: 1 | K117: 4179.8 | L117: 4180.81 | M117: 4150.47 | N117: 4163.26 | O117: 3788020000
A118: 103 | B118: 2021-04-16 | C118: 4174.140137 | D118: 4191.310059 | E118: 4170.75 | F118: 4185.470215 | G118: 4157430000 | H118: 4185.470215 | I118: 1 | J118: 1 | K118: 4174.14 | L118: 4191.31 | M118: 4170.75 | N118: 4185.47 | O118: 4157430000
A119: 104 | B119: 2021-04-15 | C119: 4139.759766 | D119: 4173.490234 | E119: 4139.759766 | F119: 4170.419922 | G119: 4027680000 | H119: 4170.419922 | I119: 1 | J119: 1 | K119: 4139.76 | L119: 4173.49 | M119: 4139.76 | N119: 4170.42 | O119: 4027680000
A120: 105 | B120: 2021-04-14 | C120: 4141.580078 | D120: 4151.689941 | E120: 4120.870117 | F120: 4124.660156 | G120: 3976540000 | H120: 4124.660156 | I120: 1 | J120: 1 | K120: 4141.58 | L120: 4151.69 | M120: 4120.87 | N120: 4124.66 | O120: 3976540000
A121: 106 | B121: 2021-04-13 | C121: 4130.100098 | D121: 4148 | E121: 4124.430176 | F121: 4141.589844 | G121: 3728440000 | H121: 4141.589844 | I121: 1 | J121: 1 | K121: 4130.1 | L121: 4148 | M121: 4124.43 | N121: 4141.59 | O121: 3728440000
A122: 107 | B122: 2021-04-12 | C122: 4124.709961 | D122: 4131.759766 | E122: 4114.819824 | F122: 4127.990234 | G122: 3578500000 | H122: 4127.990234 | I122: 1 | J122: 1 | K122: 4124.71 | L122: 4131.76 | M122: 4114.82 | N122: 4127.99 | O122: 3578500000
A123: 108 | B123: 2021-04-09 | C123: 4096.109863 | D123: 4129.47998 | E123: 4095.51001 | F123: 4128.799805 | G123: 3634910000 | H123: 4128.799805 | I123: 1 | J123: 1 | K123: 4096.11 | L123: 4129.48 | M123: 4095.51 | N123: 4128.8 | O123: 3634910000
A124: 109 | B124: 2021-04-08 | C124: 4089.949951 | D124: 4098.189941 | E124: 4082.540039 | F124: 4097.169922 | G124: 3901910000 | H124: 4097.169922 | I124: 1 | J124: 1 | K124: 4089.95 | L124: 4098.19 | M124: 4082.54 | N124: 4097.17 | O124: 3901910000
A125: 110 | B125: 2021-04-07 | C125: 4074.290039 | D125: 4083.129883 | E125: 4068.310059 | F125: 4079.949951 | G125: 4112640000 | H125: 4079.949951 | I125: 1 | J125: 1 | K125: 4074.29 | L125: 4083.13 | M125: 4068.31 | N125: 4079.95 | O125: 4112640000
A126: 111 | B126: 2021-04-06 | C126: 4075.570068 | D126: 4086.22998 | E126: 4068.139893 | F126: 4073.939941 | G126: 4027880000 | H126: 4073.939941 | I126: 1 | J126: 1 | K126: 4075.57 | L126: 4086.23 | M126: 4068.14 | N126: 4073.94 | O126: 4027880000
A127: 112 | B127: 2021-04-05 | C127: 4034.439941 | D127: 4083.419922 | E127: 4034.439941 | F127: 4077.909912 | G127: 3999760000 | H127: 4077.909912 | I127: 1 | J127: 1 | K127: 4034.44 | L127: 4083.42 | M127: 4034.44 | N127: 4077.91 | O127: 3999760000
A128: 113 | B128: 2021-04-01 | C128: 3992.780029 | D128: 4020.629883 | E128: 3992.780029 | F128: 4019.870117 | G128: 4151240000 | H128: 4019.870117 | I128: 1 | J128: 1 | K128: 3992.78 | L128: 4020.63 | M128: 3992.78 | N128: 4019.87 | O128: 4151240000
A129: 114 | B129: 2021-03-31 | C129: 3967.25 | D129: 3994.409912 | E129: 3966.97998 | F129: 3972.889893 | G129: 4564980000 | H129: 3972.889893 | I129: 1 | J129: 1 | K129: 3967.25 | L129: 3994.41 | M129: 3966.98 | N129: 3972.89 | O129: 4564980000
A130: 115 | B130: 2021-03-30 | C130: 3963.340088 | D130: 3968.01001 | E130: 3944.350098 | F130: 3958.550049 | G130: 4103570000 | H130: 3958.550049 | I130: 1 | J130: 1 | K130: 3963.34 | L130: 3968.01 | M130: 3944.35 | N130: 3958.55 | O130: 4103570000
A131: 116 | B131: 2021-03-29 | C131: 3969.310059 | D131: 3981.830078 | E131: 3943.25 | F131: 3971.090088 | G131: 4619840000 | H131: 3971.090088 | I131: 1 | J131: 1 | K131: 3969.31 | L131: 3981.83 | M131: 3943.25 | N131: 3971.09 | O131: 4619840000
A132: 117 | B132: 2021-03-26 | C132: 3917.120117 | D132: 3978.189941 | E132: 3917.120117 | F132: 3974.540039 | G132: 5467850000 | H132: 3974.540039 | I132: 1 | J132: 1 | K132: 3917.12 | L132: 3978.19 | M132: 3917.12 | N132: 3974.54 | O132: 5467850000
A133: 118 | B133: 2021-03-25 | C133: 3879.340088 | D133: 3919.540039 | E133: 3853.5 | F133: 3909.52002 | G133: 4940800000 | H133: 3909.52002 | I133: 1 | J133: 1 | K133: 3879.34 | L133: 3919.54 | M133: 3853.5 | N133: 3909.52 | O133: 4940800000
A134: 119 | B134: 2021-03-24 | C134: 3919.929932 | D134: 3942.080078 | E134: 3889.070068 | F134: 3889.139893 | G134: 4766990000 | H134: 3889.139893 | I134: 1 | J134: 1 | K134: 3919.93 | L134: 3942.08 | M134: 3889.07 | N134: 3889.14 | O134: 4766990000
A135: 120 | B135: 2021-03-23 | C135: 3937.600098 | D135: 3949.129883 | E135: 3901.570068 | F135: 3910.52002 | G135: 4645340000 | H135: 3910.52002 | I135: 1 | J135: 1 | K135: 3937.6 | L135: 3949.13 | M135: 3901.57 | N135: 3910.52 | O135: 4645340000
A136: 121 | B136: 2021-03-22 | C136: 3916.47998 | D136: 3955.310059 | E136: 3914.159912 | F136: 3940.590088 | G136: 4311380000 | H136: 3940.590088 | I136: 1 | J136: 1 | K136: 3916.48 | L136: 3955.31 | M136: 3914.16 | N136: 3940.59 | O136: 4311380000
A137: 122 | B137: 2021-03-19 | C137: 3913.139893 | D137: 3930.120117 | E137: 3886.75 | F137: 3913.100098 | G137: 7725050000 | H137: 3913.100098 | I137: 1 | J137: 1 | K137: 3913.14 | L137: 3930.12 | M137: 3886.75 | N137: 3913.1 | O137: 7725050000
A138: 123 | B138: 2021-03-18 | C138: 3953.5 | D138: 3969.620117 | E138: 3910.860107 | F138: 3915.459961 | G138: 4043170000 | H138: 3915.459961 | I138: 1 | J138: 1 | K138: 3953.5 | L138: 3969.62 | M138: 3910.86 | N138: 3915.46 | O138: 4043170000
A139: 124 | B139: 2021-03-17 | C139: 3949.570068 | D139: 3983.870117 | E139: 3935.73999 | F139: 3974.120117 | G139: 4541620000 | H139: 3974.120117 | I139: 1 | J139: 1 | K139: 3949.57 | L139: 3983.87 | M139: 3935.74 | N139: 3974.12 | O139: 4541620000
A140: 125 | B140: 2021-03-16 | C140: 3973.590088 | D140: 3981.040039 | E140: 3953.439941 | F140: 3962.709961 | G140: 4604870000 | H140: 3962.709961 | I140: 1 | J140: 1 | K140: 3973.59 | L140: 3981.04 | M140: 3953.44 | N140: 3962.71 | O140: 4604870000
A141: 126 | B141: 2021-03-15 | C141: 3942.959961 | D141: 3970.080078 | E141: 3923.540039 | F141: 3968.939941 | G141: 4882190000 | H141: 3968.939941 | I141: 1 | J141: 1 | K141: 3942.96 | L141: 3970.08 | M141: 3923.54 | N141: 3968.94 | O141: 4882190000
A142: 127 | B142: 2021-03-12 | C142: 3924.52002 | D142: 3944.98999 | E142: 3915.209961 | F142: 3943.340088 | G142: 4469240000 | H142: 3943.340088 | I142: 1 | J142: 1 | K142: 3924.52 | L142: 3944.99 | M142: 3915.21 | N142: 3943.34 | O142: 4469240000
A143: 128 | B143: 2021-03-11 | C143: 3915.540039 | D143: 3960.27002 | E143: 3915.540039 | F143: 3939.340088 | G143: 5300010000 | H143: 3939.340088 | I143: 1 | J143: 1 | K143: 3915.54 | L143: 3960.27 | M143: 3915.54 | N143: 3939.34 | O143: 5300010000
A144: 129 | B144: 2021-03-10 | C144: 3891.98999 | D144: 3917.350098 | E144: 3885.72998 | F144: 3898.810059 | G144: 5827250000 | H144: 3898.810059 | I144: 1 | J144: 1 | K144: 3891.99 | L144: 3917.35 | M144: 3885.73 | N144: 3898.81 | O144: 5827250000
A145: 130 | B145: 2021-03-09 | C145: 3851.929932 | D145: 3903.76001 | E145: 3851.929932 | F145: 3875.439941 | G145: 5496340000 | H145: 3875.439941 | I145: =IF(F145=0,1,H145/F145) -> 1 | J145: =INDEX(OFFSET($T$15,0,0,$S$13+1,1),MATCH(B145,OFFSET($Q$15,0,0,$S$13+1,1),-1)) -> 1 | K145: =ROUND($I145*C145,2) -> 3851.93 | L145: =ROUND($I145*D145,2) -> 3903.76 | M145: =ROUND($I145*E145,2) -> 3851.93 | N145: =ROUND($I145*F145,2) -> 3875.44 | O145: =G145*J145 -> 5496340000
A146: 131 | B146: 2021-03-08 | C146: 3844.389893 | D146: 3881.060059 | E146: 3819.25 | F146: 3821.350098 | G146: 5852240000 | H146: 3821.350098 | I146: 1 | J146: 1 | K146: 3844.39 | L146: 3881.06 | M146: 3819.25 | N146: 3821.35 | O146: 5852240000
A147: 132 | B147: 2021-03-05 | C147: 3793.580078 | D147: 3851.689941 | E147: 3730.189941 | F147: 3841.939941 | G147: 6842570000 | H147: 3841.939941 | I147: 1 | J147: 1 | K147: 3793.58 | L147: 3851.69 | M147: 3730.19 | N147: 3841.94 | O147: 6842570000
A148: 133 | B148: 2021-03-04 | C148: 3818.530029 | D148: 3843.669922 | E148: 3723.340088 | F148: 3768.469971 | G148: 7142240000 | H148: 3768.469971 | I148: 1 | J148: 1 | K148: 3818.53 | L148: 3843.67 | M148: 3723.34 | N148: 3768.47 | O148: 7142240000
A149: 134 | B149: 2021-03-03 | C149: 3863.98999 | D149: 3874.469971 | E149: 3818.860107 | F149: 3819.719971 | G149: 6150790000 | H149: 3819.719971 | I149: 1 | J149: 1 | K149: 3863.99 | L149: 3874.47 | M149: 3818.86 | N149: 3819.72 | O149: 6150790000
A150: 135 | B150: 2021-03-02 | C150: 3903.639893 | D150: 3906.409912 | E150: 3868.570068 | F150: 3870.290039 | G150: 5493690000 | H150: 3870.290039 | I150: 1 | J150: 1 | K150: 3903.64 | L150: 3906.41 | M150: 3868.57 | N150: 3870.29 | O150: 5493690000
A151: 136 | B151: 2021-03-01 | C151: 3842.51001 | D151: 3914.5 | E151: 3842.51001 | F151: 3901.820068 | G151: 5071540000 | H151: 3901.820068 | I151: 1 | J151: 1 | K151: 3842.51 | L151: 3914.5 | M151: 3842.51 | N151: 3901.82 | O151: 5071540000
A152: 137 | B152: 2021-02-26 | C152: 3839.659912 | D152: 3861.080078 | E152: 3789.540039 | F152: 3811.149902 | G152: 6512950000 | H152: 3811.149902 | I152: 1 | J152: 1 | K152: 3839.66 | L152: 3861.08 | M152: 3789.54 | N152: 3811.15 | O152: 6512950000
A153: 138 | B153: 2021-02-25 | C153: 3915.800049 | D153: 3925.02002 | E153: 3814.040039 | F153: 3829.340088 | G153: 6513060000 | H153: 3829.340088 | I153: 1 | J153: 1 | K153: 3915.8 | L153: 3925.02 | M153: 3814.04 | N153: 3829.34 | O153: 6513060000
A154: 139 | B154: 2021-02-24 | C154: 3873.709961 | D154: 3928.649902 | E154: 3859.600098 | F154: 3925.429932 | G154: 5942350000 | H154: 3925.429932 | I154: 1 | J154: 1 | K154: 3873.71 | L154: 3928.65 | M154: 3859.6 | N154: 3925.43 | O154: 5942350000
A155: 140 | B155: 2021-02-23 | C155: 3857.070068 | D155: 3895.97998 | E155: 3805.590088 | F155: 3881.370117 | G155: 6280650000 | H155: 3881.370117 | I155: 1 | J155: 1 | K155: 3857.07 | L155: 3895.98 | M155: 3805.59 | N155: 3881.37 | O155: 6280650000
A156: 141 | B156: 2021-02-22 | C156: 3885.550049 | D156: 3902.919922 | E156: 3874.709961 | F156: 3876.5 | G156: 5870190000 | H156: 3876.5 | I156: 1 | J156: 1 | K156: 3885.55 | L156: 3902.92 | M156: 3874.71 | N156: 3876.5 | O156: 5870190000
A157: 142 | B157: 2021-02-19 | C157: 3921.159912 | D157: 3930.409912 | E157: 3903.070068 | F157: 3906.709961 | G157: 4823940000 | H157: 3906.709961 | I157: 1 | J157: 1 | K157: 3921.16 | L157: 3930.41 | M157: 3903.07 | N157: 3906.71 | O157: 4823940000
A158: 143 | B158: 2021-02-18 | C158: 3915.860107 | D158: 3921.97998 | E158: 3885.030029 | F158: 3913.969971 | G158: 4773430000 | H158: 3913.969971 | I158: 1 | J158: 1 | K158: 3915.86 | L158: 3921.98 | M158: 3885.03 | N158: 3913.97 | O158: 4773430000
A159: 144 | B159: 2021-02-17 | C159: 3918.5 | D159: 3933.610107 | E159: 3900.429932 | F159: 3931.330078 | G159: 4718280000 | H159: 3931.330078 | I159: 1 | J159: 1 | K159: 3918.5 | L159: 3933.61 | M159: 3900.43 | N159: 3931.33 | O159: 4718280000
A160: 145 | B160: 2021-02-16 | C160: 3939.610107 | D160: 3950.429932 | E160: 3923.850098 | F160: 3932.590088 | G160: 5037360000 | H160: 3932.590088 | I160: 1 | J160: 1 | K160: 3939.61 | L160: 3950.43 | M160: 3923.85 | N160: 3932.59 | O160: 5037360000
A161: 146 | B161: 2021-02-12 | C161: 3911.649902 | D161: 3937.22998 | E161: 3905.780029 | F161: 3934.830078 | G161: 4119260000 | H161: 3934.830078 | I161: 1 | J161: 1 | K161: 3911.65 | L161: 3937.23 | M161: 3905.78 | N161: 3934.83 | O161: 4119260000
A162: 147 | B162: 2021-02-11 | C162: 3916.399902 | D162: 3925.98999 | E162: 3890.389893 | F162: 3916.379883 | G162: 4570080000 | H162: 3916.379883 | I162: 1 | J162: 1 | K162: 3916.4 | L162: 3925.99 | M162: 3890.39 | N162: 3916.38 | O162: 4570080000
A163: 148 | B163: 2021-02-10 | C163: 3920.780029 | D163: 3931.5 | E163: 3884.939941 | F163: 3909.879883 | G163: 4815380000 | H163: 3909.879883 | I163: 1 | J163: 1 | K163: 3920.78 | L163: 3931.5 | M163: 3884.94 | N163: 3909.88 | O163: 4815380000
A164: 149 | B164: 2021-02-09 | C164: 3910.48999 | D164: 3918.350098 | E164: 3902.639893 | F164: 3911.22998 | G164: 4554610000 | H164: 3911.22998 | I164: 1 | J164: 1 | K164: 3910.49 | L164: 3918.35 | M164: 3902.64 | N164: 3911.23 | O164: 4554610000
A165: 150 | B165: 2021-02-08 | C165: 3892.590088 | D165: 3915.77002 | E165: 3892.590088 | F165: 3915.590088 | G165: 4635030000 | H165: 3915.590088 | I165: 1 | J165: 1 | K165: 3892.59 | L165: 3915.77 | M165: 3892.59 | N165: 3915.59 | O165: 4635030000
A166: 151 | B166: 2021-02-05 | C166: 3878.300049 | D166: 3894.560059 | E166: 3874.929932 | F166: 3886.830078 | G166: 4838580000 | H166: 3886.830078 | I166: 1 | J166: 1 | K166: 3878.3 | L166: 3894.56 | M166: 3874.93 | N166: 3886.83 | O166: 4838580000
A167: 152 | B167: 2021-02-04 | C167: 3836.659912 | D167: 3872.419922 | E167: 3836.659912 | F167: 3871.73999 | G167: 4856670000 | H167: 3871.73999 | I167: 1 | J167: 1 | K167: 3836.66 | L167: 3872.42 | M167: 3836.66 | N167: 3871.74 | O167: 4856670000
A168: 153 | B168: 2021-02-03 | C168: 3840.27002 | D168: 3847.51001 | E168: 3816.679932 | F168: 3830.169922 | G168: 4846900000 | H168: 3830.169922 | I168: 1 | J168: 1 | K168: 3840.27 | L168: 3847.51 | M168: 3816.68 | N168: 3830.17 | O168: 4846900000
A169: 154 | B169: 2021-02-02 | C169: 3791.840088 | D169: 3843.090088 | E169: 3791.840088 | F169: 3826.310059 | G169: 5495370000 | H169: 3826.310059 | I169: 1 | J169: 1 | K169: 3791.84 | L169: 3843.09 | M169: 3791.84 | N169: 3826.31 | O169: 5495370000
A170: 155 | B170: 2021-02-01 | C170: 3731.169922 | D170: 3784.320068 | E170: 3725.620117 | F170: 3773.860107 | G170: 5392870000 | H170: 3773.860107 | I170: 1 | J170: 1 | K170: 3731.17 | L170: 3784.32 | M170: 3725.62 | N170: 3773.86 | O170: 5392870000
A171: 156 | B171: 2021-01-29 | C171: 3778.050049 | D171: 3778.050049 | E171: 3694.120117 | F171: 3714.23999 | G171: 6612570000 | H171: 3714.23999 | I171: 1 | J171: 1 | K171: 3778.05 | L171: 3778.05 | M171: 3694.12 | N171: 3714.24 | O171: 6612570000
A172: 157 | B172: 2021-01-28 | C172: 3755.75 | D172: 3830.5 | E172: 3755.75 | F172: 3787.379883 | G172: 6937960000 | H172: 3787.379883 | I172: 1 | J172: 1 | K172: 3755.75 | L172: 3830.5 | M172: 3755.75 | N172: 3787.38 | O172: 6937960000
A173: 158 | B173: 2021-01-27 | C173: 3836.830078 | D173: 3836.830078 | E173: 3732.47998 | F173: 3750.77002 | G173: 9878040000 | H173: 3750.77002 | I173: 1 | J173: 1 | K173: 3836.83 | L173: 3836.83 | M173: 3732.48 | N173: 3750.77 | O173: 9878040000
A174: 159 | B174: 2021-01-26 | C174: 3862.959961 | D174: 3870.899902 | E174: 3847.780029 | F174: 3849.620117 | G174: 6029090000 | H174: 3849.620117 | I174: 1 | J174: 1 | K174: 3862.96 | L174: 3870.9 | M174: 3847.78 | N174: 3849.62 | O174: 6029090000
A175: 160 | B175: 2021-01-25 | C175: 3851.679932 | D175: 3859.22998 | E175: 3797.159912 | F175: 3855.360107 | G175: 6955860000 | H175: 3855.360107 | I175: 1 | J175: 1 | K175: 3851.68 | L175: 3859.23 | M175: 3797.16 | N175: 3855.36 | O175: 6955860000
A176: 161 | B176: 2021-01-22 | C176: 3844.23999 | D176: 3852.310059 | E176: 3830.409912 | F176: 3841.469971 | G176: 5080430000 | H176: 3841.469971 | I176: 1 | J176: 1 | K176: 3844.24 | L176: 3852.31 | M176: 3830.41 | N176: 3841.47 | O176: 5080430000
A177: 162 | B177: 2021-01-21 | C177: 3857.459961 | D177: 3861.449951 | E177: 3845.050049 | F177: 3853.070068 | G177: 4484460000 | H177: 3853.070068 | I177: 1 | J177: 1 | K177: 3857.46 | L177: 3861.45 | M177: 3845.05 | N177: 3853.07 | O177: 4484460000
A178: 163 | B178: 2021-01-20 | C178: 3816.219971 | D178: 3859.75 | E178: 3816.219971 | F178: 3851.850098 | G178: 4551790000 | H178: 3851.850098 | I178: 1 | J178: 1 | K178: 3816.22 | L178: 3859.75 | M178: 3816.22 | N178: 3851.85 | O178: 4551790000
A179: 164 | B179: 2021-01-19 | C179: 3781.879883 | D179: 3804.530029 | E179: 3780.370117 | F179: 3798.909912 | G179: 4982940000 | H179: 3798.909912 | I179: 1 | J179: 1 | K179: 3781.88 | L179: 3804.53 | M179: 3780.37 | N179: 3798.91 | O179: 4982940000
A180: 165 | B180: 2021-01-15 | C180: 3788.72998 | D180: 3788.72998 | E180: 3749.620117 | F180: 3768.25 | G180: 5353060000 | H180: 3768.25 | I180: 1 | J180: 1 | K180: 3788.73 | L180: 3788.73 | M180: 3749.62 | N180: 3768.25 | O180: 5353060000
A181: 166 | B181: 2021-01-14 | C181: 3814.97998 | D181: 3823.600098 | E181: 3792.860107 | F181: 3795.540039 | G181: 5180140000 | H181: 3795.540039 | I181: 1 | J181: 1 | K181: 3814.98 | L181: 3823.6 | M181: 3792.86 | N181: 3795.54 | O181: 5180140000
A182: 167 | B182: 2021-01-13 | C182: 3802.22998 | D182: 3820.959961 | E182: 3791.5 | F182: 3809.840088 | G182: 4590420000 | H182: 3809.840088 | I182: 1 | J182: 1 | K182: 3802.23 | L182: 3820.96 | M182: 3791.5 | N182: 3809.84 | O182: 4590420000
A183: 168 | B183: 2021-01-12 | C183: 3801.620117 | D183: 3810.780029 | E183: 3776.51001 | F183: 3801.189941 | G183: 4977210000 | H183: 3801.189941 | I183: 1 | J183: 1 | K183: 3801.62 | L183: 3810.78 | M183: 3776.51 | N183: 3801.19 | O183: 4977210000
A184: 169 | B184: 2021-01-11 | C184: 3803.139893 | D184: 3817.860107 | E184: 3789.02002 | F184: 3799.610107 | G184: 4450500000 | H184: 3799.610107 | I184: 1 | J184: 1 | K184: 3803.14 | L184: 3817.86 | M184: 3789.02 | N184: 3799.61 | O184: 4450500000
A185: 170 | B185: 2021-01-08 | C185: 3815.050049 | D185: 3826.689941 | E185: 3783.600098 | F185: 3824.679932 | G185: 4764180000 | H185: 3824.679932 | I185: 1 | J185: 1 | K185: 3815.05 | L185: 3826.69 | M185: 3783.6 | N185: 3824.68 | O185: 4764180000
A186: 171 | B186: 2021-01-07 | C186: 3764.709961 | D186: 3811.550049 | E186: 3764.709961 | F186: 3803.790039 | G186: 5080870000 | H186: 3803.790039 | I186: 1 | J186: 1 | K186: 3764.71 | L186: 3811.55 | M186: 3764.71 | N186: 3803.79 | O186: 5080870000
A187: 172 | B187: 2021-01-06 | C187: 3712.199951 | D187: 3783.040039 | E187: 3705.340088 | F187: 3748.139893 | G187: 6049970000 | H187: 3748.139893 | I187: 1 | J187: 1 | K187: 3712.2 | L187: 3783.04 | M187: 3705.34 | N187: 3748.14 | O187: 6049970000
A188: 173 | B188: 2021-01-05 | C188: 3698.02002 | D188: 3737.830078 | E188: 3695.070068 | F188: 3726.860107 | G188: 4582620000 | H188: 3726.860107 | I188: 1 | J188: 1 | K188: 3698.02 | L188: 3737.83 | M188: 3695.07 | N188: 3726.86 | O188: 4582620000
A189: 174 | B189: 2021-01-04 | C189: 3764.610107 | D189: 3769.98999 | E189: 3662.709961 | F189: 3700.649902 | G189: 5006680000 | H189: 3700.649902 | I189: 1 | J189: 1 | K189: 3764.61 | L189: 3769.99 | M189: 3662.71 | N189: 3700.65 | O189: 5006680000
A190: 175 | B190: 2020-12-31 | C190: 3733.27002 | D190: 3760.199951 | E190: 3726.879883 | F190: 3756.070068 | G190: 3172510000 | H190: 3756.070068 | I190: 1 | J190: 1 | K190: 3733.27 | L190: 3760.2 | M190: 3726.88 | N190: 3756.07 | O190: 3172510000
A191: 176 | B191: 2020-12-30 | C191: 3736.189941 | D191: 3744.629883 | E191: 3730.209961 | F191: 3732.040039 | G191: 3145200000 | H191: 3732.040039 | I191: 1 | J191: 1 | K191: 3736.19 | L191: 3744.63 | M191: 3730.21 | N191: 3732.04 | O191: 3145200000
A192: 177 | B192: 2020-12-29 | C192: 3750.01001 | D192: 3756.120117 | E192: 3723.310059 | F192: 3727.040039 | G192: 3387030000 | H192: 3727.040039 | I192: 1 | J192: 1 | K192: 3750.01 | L192: 3756.12 | M192: 3723.31 | N192: 3727.04 | O192: 3387030000
A193: 178 | B193: 2020-12-28 | C193: 3723.030029 | D193: 3740.51001 | E193: 3723.030029 | F193: 3735.360107 | G193: 3527460000 | H193: 3735.360107 | I193: 1 | J193: 1 | K193: 3723.03 | L193: 3740.51 | M193: 3723.03 | N193: 3735.36 | O193: 3527460000
A194: 179 | B194: 2020-12-24 | C194: 3694.030029 | D194: 3703.820068 | E194: 3689.320068 | F194: 3703.060059 | G194: 1885090000 | H194: 3703.060059 | I194: 1 | J194: 1 | K194: 3694.03 | L194: 3703.82 | M194: 3689.32 | N194: 3703.06 | O194: 1885090000
A195: 180 | B195: 2020-12-23 | C195: 3693.419922 | D195: 3711.23999 | E195: 3689.280029 | F195: 3690.01001 | G195: 3772630000 | H195: 3690.01001 | I195: 1 | J195: 1 | K195: 3693.42 | L195: 3711.24 | M195: 3689.28 | N195: 3690.01 | O195: 3772630000
A196: 181 | B196: 2020-12-22 | C196: 3698.080078 | D196: 3698.26001 | E196: 3676.159912 | F196: 3687.26001 | G196: 4023940000 | H196: 3687.26001 | I196: 1 | J196: 1 | K196: 3698.08 | L196: 3698.26 | M196: 3676.16 | N196: 3687.26 | O196: 4023940000
A197: 182 | B197: 2020-12-21 | C197: 3684.280029 | D197: 3702.899902 | E197: 3636.47998 | F197: 3694.919922 | G197: 4732160000 | H197: 3694.919922 | I197: 1 | J197: 1 | K197: 3684.28 | L197: 3702.9 | M197: 3636.48 | N197: 3694.92 | O197: 4732160000
A198: 183 | B198: 2020-12-18 | C198: 3722.389893 | D198: 3726.699951 | E198: 3685.840088 | F198: 3709.409912 | G198: 7068340000 | H198: 3709.409912 | I198: 1 | J198: 1 | K198: 3722.39 | L198: 3726.7 | M198: 3685.84 | N198: 3709.41 | O198: 7068340000
A199: 184 | B199: 2020-12-17 | C199: 3713.649902 | D199: 3725.120117 | E199: 3710.870117 | F199: 3722.47998 | G199: 4184930000 | H199: 3722.47998 | I199: 1 | J199: 1 | K199: 3713.65 | L199: 3725.12 | M199: 3710.87 | N199: 3722.48 | O199: 4184930000
A200: 185 | B200: 2020-12-16 | C200: 3696.25 | D200: 3711.27002 | E200: 3688.570068 | F200: 3701.169922 | G200: 4056950000 | H200: 3701.169922 | I200: 1 | J200: 1 | K200: 3696.25 | L200: 3711.27 | M200: 3688.57 | N200: 3701.17 | O200: 4056950000
... 4300 more rows

Sheet CalculationsAndCharts
A1: MadH.xlsm
A2: =InputPriceData!A1 -> S&P 500 (^GSPC) -SNP (Daily)
A4: User Charting Controls | E4: Click to Shift Chart One Bar:
A5: Data Control | C5: TRUE
A6: =InputPriceData!$B$10 -> 17852 | B6: Available Input Data Rows | E6: Earliest: | F6: =OFFSET(InputPriceData!B15,CalculationsAndCharts!A6,0,1,1) -> 1950-10-02
A7: =MAX(A33:A56896) -> 2500 | B7: Available Calculation Rows | E7: Latest: | F7: =OFFSET(InputPriceData!B15,1,0,1,1) -> 2021-09-10
A8: =MIN(AvailableInputRows-DataPanRows,A7) -> 2500 | B8: Logically Available for Calc / Plot | E8: $ Change: | F8: =G33-G34 -> 22.44
W9: Trading Simulation Notes:
A10: Historical Price Windowing Specifications | F10: Click to Shift
A11: 49 | B11: Input Data Offset (Pan) | F11: Points to Plot | W11: ="Preliminary setup calculations used "&LogicallyAvailableRows-V30&" of the available " & LogicallyAvailableRows& " rows." -> Preliminary setup calculations used 23 of the available 2500 rows.
A12: 416 | B12: Data Points to Plot (Zoom) | W12: ="The remaining " & TEXT(V30,"#,##0") & " bars, dates: " & TEXT(OFFSET(B32,V30,0,1,1),"yyyy/mm/dd") & " to " & TEXT(B33,"YYYY/mm/dd") -> The remaining 2,477 bars, dates: 2011/08/29 to 2021/07/01
B13: First: | C13: =OFFSET(B32,A12,0,1,1) -> 2019-11-06 | W13: were used in this simulation.
B14: ="Last: " & IF(OFFSET(InputPriceData!P15,1+A11,0,1,1)="","",TEXT(OFFSET(InputPriceData!P15,1+A11,0,1,1),"H:MM AM/PM")) -> Last: | C14: =B33 -> 2021-07-01
A15: User Controls | W15: Logically speaking, the Buy now and Sell now actions
A16: MAD and MADH Indicator | C16: Calculated "Semi-Constants"for HANN filters | W16: can ONLY happen on the bar AFTER a cross up or
C17: Length / 6.28 | D17: Length + 1 | W17: the cross down signal.
A18: 8 | B18: Short Length | C18: =A18/6.28 -> 1.27388535 | D18: =A18+1 -> 9
W19: Buy and Sell transactions will use the Open Price
A20: 27 | B20: Dominant Cycle | W20: of this next bar after the crossing signal.
A21: Calculated | C21: Length / 6.28 | D21: Length + 1
A22: =INT(A18+A20/2) -> 21 | B22: Long Length | C22: =A22/6.28 -> 3.343949045 | D22: =A22+1 -> 22 | W22: If a Long or Short transaction is active in row 33
W23: the running balance will be "Marked to Market"
W24: using the Close Price in row 33.
A25: Help! I would like to plot data
A26: From | B26: 2019-11-06 | C26: =OFFSET(InputPriceData!$A$15,MATCH(B26,OFFSET(InputPriceData!B15,1,0,InputPriceData!$B$10,1),0),0,1,1)-C27 -> 416 | E26: 382 | W26: See the "Transaction Summary" tab for further analysis.
A27: To | B27: 2021-07-01 | C27: =OFFSET(InputPriceData!$A$15,MATCH(B27,OFFSET(InputPriceData!$B$15,1,0,InputPriceData!$B$10,1),0),0,1,1)-1 -> 49 | E27: =$A$12-$E$26+1 -> 35
H28: Value @ Cursor => | I28: =OFFSET(A32,$E$27,0,1,1)&"(RR)" -> 35(RR) | J28: =OFFSET($B$32,E27,0,1,1) -> 2021-05-13 | L28: =TEXT(OFFSET(E32,$E$27,0,1,1),"#,##0.00")&"(h)" -> 4,131.58(h) | M28: =TEXT(OFFSET(F32,$E$27,0,1,1),"#,##0.00")&"(l)" -> 4,074.99(l) | N28: =TEXT(OFFSET(G32,$E$27,0,1,1),"#,##0.00")&"(c)" -> 4,112.50(c) | O28: =TEXT(OFFSET(C32,$E$27,0,1,1),"#,##0.00,,""M""")&"(v)" -> 3,687.78M(v) | T28: Trading Simulation Calculations
E29: Cursor ==> | X29: Long Transactions using 1 share | AB29: Short Transactions using 1 share | AY29: Work Area For Chart Cursors
B30: =LogicallyAvailableRows -> 2500 | C30: <== Calculation Rel Row Limits ==> | H30: =LogicallyAvailableRows-$A$18+1 -> 2493 | I30: =LogicallyAvailableRows-$A$22+1 -> 2480 | J30: =LogicallyAvailableRows-MAX($A$18,$A$22)+1 -> 2480 | K30: =J30-1 -> 2479 | M30: =LogicallyAvailableRows-$A$18+1 -> 2493 | O30: =LogicallyAvailableRows-$A$22+1 -> 2480 | P30: =LogicallyAvailableRows-MAX($A$18,$A$22)+1 -> 2480 | Q30: =P30-1 -> 2479 | T30: =Q30-1 -> 2478 | V30: =T30-1 -> 2477
A31: Rel Row | H31: MAD Calcs | K31: ="MAD(" & A18&","&A22 & ") ROC" -> MAD(8,21) ROC | L31: MadH Calcs | Q31: ="MADH(" & A18&","&A22 & ") ROC" -> MADH(8,21) ROC | T31: ROC Crossover Signals | V31: Next day Open | Z31: Active Long | AA31: Running balance | AD31: Active Short | AE31: Running balance | AW31: Used To Color Vol Bars
B32: Date | C32: Volume | D32: Open | E32: High | F32: Low | G32: Close | H32: ="Short(" & A18 & ")" -> Short(8) | I32: ="Long(" & $A$22 & ")" -> Long(21) | J32: ="MAD(" & A18&","&A22 & ")" -> MAD(8,21) | L32: ="Hann("&$A$18&") Coefs" -> Hann(8) Coefs | M32: ="Hann("&$A$18&") Filt" -> Hann(8) Filt | N32: ="Hann("&$A$22&") Coefs" -> Hann(21) Coefs | O32: ="Hann("&$A$22&") Filt" -> Hann(21) Filt | P32: ="MADH(" & A18&","&A22 & ")" -> MADH(8,21) | T32: Cross Up | U32: Cross Dn | V32: Buy $ | W32: Sell $ | X32: Buy Now | Y32: Sell now | AB32: Sell now | AC32: Buy Now | AW32: Up Vol | AX32: Dn Vol | AY32: Volume Cursor | AZ32: =MAX(OFFSET(C33,0,0,A12,1)) -> 9878040000 | BA32: Price Chart Cursor | BC32: Indicator 01 Cursor | BE32: Indicator 02 Cursor | BG32: Indicator 03 Cursor | BI32: Indicator 04 Cursor
A33: 1 | B33: =IF(A33>$B$30,NA(),IF($A33>$A$8,"",OFFSET(InputPriceData!$B$15,$A33+$A$11,0,1,1))) -> 2021-07-01 | C33: =IF(A33>$B$30,NA(),IF($A33>$A$8,"",OFFSET(InputPriceData!$G$15,CalculationsAndCharts!$A33+$A$11,IF($C$5,8,0),1,1))) -> 3077580000 | D33: =IF(A33>$B$30,NA(),IF(A33>$A$8,"",OFFSET(InputPriceData!$C$15,CalculationsAndCharts!$A33+$A$11,IF($C$5,8,0),1,1))) -> 4300.73 | E33: =IF(A33>$B$30,NA(),IF(A33>$A$8,"",OFFSET(InputPriceData!$D$15,CalculationsAndCharts!$A33+$A$11,IF($C$5,8,0),1,1))) -> 4320.66 | F33: =IF(A33>$B$30,NA(),IF(A33>$A$8,"",OFFSET(InputPriceData!$E$15,CalculationsAndCharts!$A33+$A$11,IF($C$5,8,0),1,1))) -> 4300.73 | G33: =IF(A33>$B$30,NA(),IF(A33>$A$8,"",OFFSET(InputPriceData!$F$15,CalculationsAndCharts!$A33+$A$11,IF($C$5,8,0),1,1))) -> 4319.94 | H33: =IF($A33<=H$30,AVERAGE(OFFSET(G33,0,0,$A$18,1)),NA()) -> 4279.415 | I33: =IF($A33<=I$30,AVERAGE(OFFSET(G33,0,0,$A$22,1)),NA()) -> 4245.55 | J33: =IF($A33<=J$30,100*(H33-I33)/I33,NA()) -> 0.797658725 | K33: =IF($A33<=K$30,$C$22*(J33-J34),NA()) -> 0.5146974809 | L33: =IF($A33>$D$18+1,NA(),IF($A33=$D$18+1,SUM(OFFSET(L$33,0,0,$A$18,1)),IF($A33=$D$18,"-- Coef Sum--",1-COS(RADIANS(360*$A33/$D$18))))) -> 0.2339555569 | M33: =IF($A33<=M$30,SUMPRODUCT(OFFSET(L$33,0,0,$A$18,1),OFFSET($G33,0,0,$A$18,1))/OFFSET(L$33,$D$18,0,1,1),NA()) -> 4280.421459 | N33: =IF($A33>$D$22+1,NA(),IF($A33=$D$22+1,SUM(OFFSET(N$33,0,0,$A$22,1)),IF($A33=$D$22,"-- Coef Sum--",1-COS(RADIANS(360*$A33/$D$22))))) -> 0.04050702639 | O33: =IF($A33<=O$30,SUMPRODUCT(OFFSET(N$33,0,0,$A$22,1),OFFSET($G33,0,0,$A$22,1))/OFFSET(N$33,$D$22,0,1,1),NA()) -> 4235.979908 | P33: =IF($A33<=P$30,100*(M33-O33)/O33,NA()) -> 1.049144512 | Q33: =IF($A33<=Q$30,$C$22*(P33-P34),NA()) -> 0.642430581 | T33: =IF($A33<=T$30,IF(AND(Q33>=0,Q34<=0),TRUE,FALSE),NA()) -> FALSE | U33: =IF($A33<=T$30,IF(AND(Q33<=0,Q34>=0),TRUE,FALSE),NA()) -> FALSE | V33: =IF($A33<=$V$30,IF(T34,-$D33,0),NA()) -> 0 | W33: =IF($A33<=$V$30,IF(U34,$D33,0),NA()) -> 0 | X33: =IF($A33<=$V$30,T34,NA()) -> FALSE | Y33: =IF($A33<=$V$30,AND(U34,IF($A33=$V$30,FALSE,Z34)),NA()) -> FALSE | Z33: =IF($A33>$V$30,NA(),IF($A33=$V$30,FALSE,IF(AND(T34,NOT(Z34)),TRUE,IF(AND(Z34,U34),FALSE,Z34)))) -> TRUE | AA33: =IF($A33>$V$30,NA(),IF($A33=$V$30,0,AA34)+IF(X33,$V33,0)+IF(Y33,$W33,0)+IF(AND(Z33,$A33=1),$G33,0)) -> 1031.16 | AB33: =IF($A33<=$V$30,U34,NA()) -> FALSE | AC33: =IF($A33<=$V$30,AND(T34,IF($A33=$V$30,FALSE,AD34)),NA()) -> FALSE | AD33: =IF($A33>$V$30,NA(),IF($A33=$V$30,FALSE,IF(AND(U34,NOT(AD34)),TRUE,IF(AND(AD34,T34),FALSE,AD34)))) -> FALSE | AE33: =IF($A33>$V$30,NA(),IF($A33=$V$30,0,AE34)+IF(AB33,$W33,0)+IF(AC33,$V33,0)+IF(AND(AD33,$A33=1),$G33,0)) -> -2090.8 | AW33: =IF(G33>=D33,C33,NA()) -> 3077580000 | AX33: =IF(G33<D33,C33,NA()) ->  | AY33: =$E$27 -> 35 | AZ33: 0 | BA33: =$E$27 -> 35 | BB33: 2137.0635 | BC33: =$E$27 -> 35 | BD33: -13.24665872 | BE33: =$E$27 -> 35 | BG33: =$E$27 -> 35 | BH33: -14.09622778 | BI33: =$E$27 -> 35
A34: 2 | B34: =IF(A34>$B$30,NA(),IF($A34>$A$8,"",OFFSET(InputPriceData!$B$15,$A34+$A$11,0,1,1))) -> 2021-06-30 | C34: =IF(A34>$B$30,NA(),IF($A34>$A$8,"",OFFSET(InputPriceData!$G$15,CalculationsAndCharts!$A34+$A$11,IF($C$5,8,0),1,1))) -> 3687880000 | D34: =IF(A34>$B$30,NA(),IF(A34>$A$8,"",OFFSET(InputPriceData!$C$15,CalculationsAndCharts!$A34+$A$11,IF($C$5,8,0),1,1))) -> 4290.65 | E34: =IF(A34>$B$30,NA(),IF(A34>$A$8,"",OFFSET(InputPriceData!$D$15,CalculationsAndCharts!$A34+$A$11,IF($C$5,8,0),1,1))) -> 4302.43 | F34: =IF(A34>$B$30,NA(),IF(A34>$A$8,"",OFFSET(InputPriceData!$E$15,CalculationsAndCharts!$A34+$A$11,IF($C$5,8,0),1,1))) -> 4287.96 | G34: =IF(A34>$B$30,NA(),IF(A34>$A$8,"",OFFSET(InputPriceData!$F$15,CalculationsAndCharts!$A34+$A$11,IF($C$5,8,0),1,1))) -> 4297.5 | H34: 4267.52125 | I34: 4240.225238 | J34: 0.6437396688 | K34: =IF($A34<=K$30,$C$22*(J34-J35),NA()) -> 0.9320718339 | L34: 0.8263518223 | M34: 4269.669295 | N34: 0.1587464672 | O34: 4233.38801 | P34: 0.8570271765 | Q34: =IF($A34<=Q$30,$C$22*(P34-P35),NA()) -> 0.8727412287 | T34: FALSE | U34: FALSE | V34: 0 | W34: 0 | X34: FALSE | Y34: FALSE | Z34: TRUE | AA34: -3288.78 | AB34: FALSE | AC34: FALSE | AD34: FALSE | AE34: -2090.8 | AW34: 3687880000 | AY34: =$E$27 -> 35 | AZ34: =CEILING(AZ32,10^INT(LOG10(AZ32))/8) -> 10000000000 | BA34: =$E$27 -> 35 | BB34: 4428.6765 | BC34: =$E$27 -> 35 | BD34: 8.899018665 | BE34: =$E$27 -> 35 | BF34: 0 | BG34: =$E$27 -> 35 | BH34: 13.00429229 | BI34: =$E$27 -> 35 | BJ34: 0
A35: 3 | B35: =IF(A35>$B$30,NA(),IF($A35>$A$8,"",OFFSET(InputPriceData!$B$15,$A35+$A$11,0,1,1))) -> 2021-06-29 | C35: =IF(A35>$B$30,NA(),IF($A35>$A$8,"",OFFSET(InputPriceData!$G$15,CalculationsAndCharts!$A35+$A$11,IF($C$5,8,0),1,1))) -> 3049560000 | D35: =IF(A35>$B$30,NA(),IF(A35>$A$8,"",OFFSET(InputPriceData!$C$15,CalculationsAndCharts!$A35+$A$11,IF($C$5,8,0),1,1))) -> 4293.21 | E35: =IF(A35>$B$30,NA(),IF(A35>$A$8,"",OFFSET(InputPriceData!$D$15,CalculationsAndCharts!$A35+$A$11,IF($C$5,8,0),1,1))) -> 4300.52 | F35: =IF(A35>$B$30,NA(),IF(A35>$A$8,"",OFFSET(InputPriceData!$E$15,CalculationsAndCharts!$A35+$A$11,IF($C$5,8,0),1,1))) -> 4287.04 | G35: =IF(A35>$B$30,NA(),IF(A35>$A$8,"",OFFSET(InputPriceData!$F$15,CalculationsAndCharts!$A35+$A$11,IF($C$5,8,0),1,1))) -> 4291.8 | H35: 4251.14 | I35: 4235.679524 | J35: 0.3650058061 | K35: 0.3596861135 | L35: 1.5 | M35: 4256.647313 | N35: 0.3451392661 | O35: 4231.426488 | P35: 0.59603599 | Q35: 1.073919892 | T35: FALSE | U35: FALSE | V35: 0 | W35: 0 | X35: FALSE | Y35: FALSE | Z35: TRUE | AA35: -3288.78 | AB35: FALSE | AC35: FALSE | AD35: FALSE | AE35: -2090.8 | AX35: 3049560000
A36: 4 | B36: =IF(A36>$B$30,NA(),IF($A36>$A$8,"",OFFSET(InputPriceData!$B$15,$A36+$A$11,0,1,1))) -> 2021-06-28 | C36: =IF(A36>$B$30,NA(),IF($A36>$A$8,"",OFFSET(InputPriceData!$G$15,CalculationsAndCharts!$A36+$A$11,IF($C$5,8,0),1,1))) -> 3415610000 | D36: =IF(A36>$B$30,NA(),IF(A36>$A$8,"",OFFSET(InputPriceData!$C$15,CalculationsAndCharts!$A36+$A$11,IF($C$5,8,0),1,1))) -> 4284.9 | E36: =IF(A36>$B$30,NA(),IF(A36>$A$8,"",OFFSET(InputPriceData!$D$15,CalculationsAndCharts!$A36+$A$11,IF($C$5,8,0),1,1))) -> 4292.14 | F36: =IF(A36>$B$30,NA(),IF(A36>$A$8,"",OFFSET(InputPriceData!$E$15,CalculationsAndCharts!$A36+$A$11,IF($C$5,8,0),1,1))) -> 4274.67 | G36: =IF(A36>$B$30,NA(),IF(A36>$A$8,"",OFFSET(InputPriceData!$F$15,CalculationsAndCharts!$A36+$A$11,IF($C$5,8,0),1,1))) -> 4290.61 | H36: 4242.3975 | I36: 4231.50381 | J36: 0.2574425303 | K36: 0.3227397194 | L36: 1.939692621 | M36: 4241.492393 | N36: 0.584584987 | O36: 4229.865221 | P36: 0.2748828032 | Q36: 0.9929117517 | T36: FALSE | U36: FALSE | V36: 0 | W36: 0 | X36: FALSE | Y36: FALSE | Z36: TRUE | AA36: -3288.78 | AB36: FALSE | AC36: FALSE | AD36: FALSE | AE36: -2090.8 | AW36: 3415610000
A37: 5 | B37: =IF(A37>$B$30,NA(),IF($A37>$A$8,"",OFFSET(InputPriceData!$B$15,$A37+$A$11,0,1,1))) -> 2021-06-25 | C37: =IF(A37>$B$30,NA(),IF($A37>$A$8,"",OFFSET(InputPriceData!$G$15,CalculationsAndCharts!$A37+$A$11,IF($C$5,8,0),1,1))) -> 6248390000 | D37: =IF(A37>$B$30,NA(),IF(A37>$A$8,"",OFFSET(InputPriceData!$C$15,CalculationsAndCharts!$A37+$A$11,IF($C$5,8,0),1,1))) -> 4274.45 | E37: =IF(A37>$B$30,NA(),IF(A37>$A$8,"",OFFSET(InputPriceData!$D$15,CalculationsAndCharts!$A37+$A$11,IF($C$5,8,0),1,1))) -> 4286.12 | F37: =IF(A37>$B$30,NA(),IF(A37>$A$8,"",OFFSET(InputPriceData!$E$15,CalculationsAndCharts!$A37+$A$11,IF($C$5,8,0),1,1))) -> 4271.16 | G37: =IF(A37>$B$30,NA(),IF(A37>$A$8,"",OFFSET(InputPriceData!$F$15,CalculationsAndCharts!$A37+$A$11,IF($C$5,8,0),1,1))) -> 4280.7 | H37: 4234.03375 | I37: 4227.230952 | J37: 0.1609279856 | K37: 0.01769280169 | L37: 1.939692621 | M37: 4227.559161 | N37: 0.8576851617 | O37: 4228.491336 | P37: -0.02204509206 | Q37: 0.6083465824 | T37: FALSE | U37: FALSE | V37: -4274.45 | W37: 0 | X37: TRUE | Y37: FALSE | Z37: TRUE | AA37: -3288.78 | AB37: FALSE | AC37: TRUE | AD37: FALSE | AE37: -2090.8 | AW37: 6248390000
A38: 6 | B38: =IF(A38>$B$30,NA(),IF($A38>$A$8,"",OFFSET(InputPriceData!$B$15,$A38+$A$11,0,1,1))) -> 2021-06-24 | C38: =IF(A38>$B$30,NA(),IF($A38>$A$8,"",OFFSET(InputPriceData!$G$15,CalculationsAndCharts!$A38+$A$11,IF($C$5,8,0),1,1))) -> 3141680000 | D38: =IF(A38>$B$30,NA(),IF(A38>$A$8,"",OFFSET(InputPriceData!$C$15,CalculationsAndCharts!$A38+$A$11,IF($C$5,8,0),1,1))) -> 4256.97 | E38: =IF(A38>$B$30,NA(),IF(A38>$A$8,"",OFFSET(InputPriceData!$D$15,CalculationsAndCharts!$A38+$A$11,IF($C$5,8,0),1,1))) -> 4271.28 | F38: =IF(A38>$B$30,NA(),IF(A38>$A$8,"",OFFSET(InputPriceData!$E$15,CalculationsAndCharts!$A38+$A$11,IF($C$5,8,0),1,1))) -> 4256.97 | G38: =IF(A38>$B$30,NA(),IF(A38>$A$8,"",OFFSET(InputPriceData!$F$15,CalculationsAndCharts!$A38+$A$11,IF($C$5,8,0),1,1))) -> 4266.49 | H38: 4229.77 | I38: 4223.197143 | J38: 0.1556369954 | K38: -0.1838403175 | L38: 1.5 | M38: 4218.452565 | N38: 1.142314838 | O38: 4227.074516 | P38: -0.2039696891 | Q38: 0.01117236996 | T38: TRUE | U38: FALSE | V38: 0 | W38: 0 | X38: FALSE | Y38: FALSE | Z38: FALSE | AA38: 985.67 | AB38: FALSE | AC38: FALSE | AD38: TRUE | AE38: 2183.65 | AW38: 3141680000
A39: 7 | B39: =IF(A39>$B$30,NA(),IF($A39>$A$8,"",OFFSET(InputPriceData!$B$15,$A39+$A$11,0,1,1))) -> 2021-06-23 | C39: =IF(A39>$B$30,NA(),IF($A39>$A$8,"",OFFSET(InputPriceData!$G$15,CalculationsAndCharts!$A39+$A$11,IF($C$5,8,0),1,1))) -> 3172440000 | D39: =IF(A39>$B$30,NA(),IF(A39>$A$8,"",OFFSET(InputPriceData!$C$15,CalculationsAndCharts!$A39+$A$11,IF($C$5,8,0),1,1))) -> 4249.27 | E39: =IF(A39>$B$30,NA(),IF(A39>$A$8,"",OFFSET(InputPriceData!$D$15,CalculationsAndCharts!$A39+$A$11,IF($C$5,8,0),1,1))) -> 4256.6 | F39: =IF(A39>$B$30,NA(),IF(A39>$A$8,"",OFFSET(InputPriceData!$E$15,CalculationsAndCharts!$A39+$A$11,IF($C$5,8,0),1,1))) -> 4241.43 | G39: =IF(A39>$B$30,NA(),IF(A39>$A$8,"",OFFSET(InputPriceData!$F$15,CalculationsAndCharts!$A39+$A$11,IF($C$5,8,0),1,1))) -> 4241.84 | H39: 4228.3525 | I39: 4219.465714 | J39: 0.2106140046 | K39: -0.2249751584 | L39: 0.8263518223 | M39: 4216.625206 | N39: 1.415415013 | O39: 4225.384883 | P39: -0.2073107597 | Q39: -0.5753956529 | T39: FALSE | U39: FALSE | V39: 0 | W39: 0 | X39: FALSE | Y39: FALSE | Z39: FALSE | AA39: 985.67 | AB39: FALSE | AC39: FALSE | AD39: TRUE | AE39: 2183.65 | AX39: 3172440000
A40: 8 | B40: =IF(A40>$B$30,NA(),IF($A40>$A$8,"",OFFSET(InputPriceData!$B$15,$A40+$A$11,0,1,1))) -> 2021-06-22 | C40: =IF(A40>$B$30,NA(),IF($A40>$A$8,"",OFFSET(InputPriceData!$G$15,CalculationsAndCharts!$A40+$A$11,IF($C$5,8,0),1,1))) -> 3208760000 | D40: =IF(A40>$B$30,NA(),IF(A40>$A$8,"",OFFSET(InputPriceData!$C$15,CalculationsAndCharts!$A40+$A$11,IF($C$5,8,0),1,1))) -> 4224.61 | E40: =IF(A40>$B$30,NA(),IF(A40>$A$8,"",OFFSET(InputPriceData!$D$15,CalculationsAndCharts!$A40+$A$11,IF($C$5,8,0),1,1))) -> 4255.84 | F40: =IF(A40>$B$30,NA(),IF(A40>$A$8,"",OFFSET(InputPriceData!$E$15,CalculationsAndCharts!$A40+$A$11,IF($C$5,8,0),1,1))) -> 4217.27 | G40: =IF(A40>$B$30,NA(),IF(A40>$A$8,"",OFFSET(InputPriceData!$F$15,CalculationsAndCharts!$A40+$A$11,IF($C$5,8,0),1,1))) -> 4246.44 | H40: 4229.0525 | I40: 4217.332857 | J40: 0.2778922901 | K40: -0.2712784747 | L40: 0.2339555569 | M40: 4221.772745 | N40: 1.654860734 | O40: 4223.261025 | P40: -0.03524005972 | Q40: -0.9365505156 | T40: FALSE | U40: FALSE | V40: 0 | W40: 0 | X40: FALSE | Y40: FALSE | Z40: FALSE | AA40: 985.67 | AB40: FALSE | AC40: FALSE | AD40: TRUE | AE40: 2183.65 | AW40: 3208760000
A41: 9 | B41: =IF(A41>$B$30,NA(),IF($A41>$A$8,"",OFFSET(InputPriceData!$B$15,$A41+$A$11,0,1,1))) -> 2021-06-21 | C41: =IF(A41>$B$30,NA(),IF($A41>$A$8,"",OFFSET(InputPriceData!$G$15,CalculationsAndCharts!$A41+$A$11,IF($C$5,8,0),1,1))) -> 3391740000 | D41: =IF(A41>$B$30,NA(),IF(A41>$A$8,"",OFFSET(InputPriceData!$C$15,CalculationsAndCharts!$A41+$A$11,IF($C$5,8,0),1,1))) -> 4173.4 | E41: =IF(A41>$B$30,NA(),IF(A41>$A$8,"",OFFSET(InputPriceData!$D$15,CalculationsAndCharts!$A41+$A$11,IF($C$5,8,0),1,1))) -> 4226.24 | F41: =IF(A41>$B$30,NA(),IF(A41>$A$8,"",OFFSET(InputPriceData!$E$15,CalculationsAndCharts!$A41+$A$11,IF($C$5,8,0),1,1))) -> 4173.4 | G41: =IF(A41>$B$30,NA(),IF(A41>$A$8,"",OFFSET(InputPriceData!$F$15,CalculationsAndCharts!$A41+$A$11,IF($C$5,8,0),1,1))) -> 4224.79 | H41: 4228.145 | I41: 4213.019524 | J41: 0.359017472 | K41: -0.1972559266 | L41: -- Coef Sum-- | M41: 4230.92224 | N41: 1.841253533 | O41: 4220.58884 | P41: 0.2448331421 | Q41: -0.9065752689 | T41: FALSE | U41: FALSE | V41: 0 | W41: 0 | X41: FALSE | Y41: FALSE | Z41: FALSE | AA41: 985.67 | AB41: FALSE | AC41: FALSE | AD41: TRUE | AE41: 2183.65 | AW41: 3391740000
A42: 10 | B42: =IF(A42>$B$30,NA(),IF($A42>$A$8,"",OFFSET(InputPriceData!$B$15,$A42+$A$11,0,1,1))) -> 2021-06-18 | C42: =IF(A42>$B$30,NA(),IF($A42>$A$8,"",OFFSET(InputPriceData!$G$15,CalculationsAndCharts!$A42+$A$11,IF($C$5,8,0),1,1))) -> 6084980000 | D42: =IF(A42>$B$30,NA(),IF(A42>$A$8,"",OFFSET(InputPriceData!$C$15,CalculationsAndCharts!$A42+$A$11,IF($C$5,8,0),1,1))) -> 4204.78 | E42: =IF(A42>$B$30,NA(),IF(A42>$A$8,"",OFFSET(InputPriceData!$D$15,CalculationsAndCharts!$A42+$A$11,IF($C$5,8,0),1,1))) -> 4204.78 | F42: =IF(A42>$B$30,NA(),IF(A42>$A$8,"",OFFSET(InputPriceData!$E$15,CalculationsAndCharts!$A42+$A$11,IF($C$5,8,0),1,1))) -> 4164.4 | G42: =IF(A42>$B$30,NA(),IF(A42>$A$8,"",OFFSET(InputPriceData!$F$15,CalculationsAndCharts!$A42+$A$11,IF($C$5,8,0),1,1))) -> 4166.45 | H42: 4227.49 | I42: 4209.892381 | J42: 0.4180063872 | K42: -0.7970667149 | L42: 9 | M42: 4239.024385 | N42: 1.959492974 | O42: 4217.265726 | P42: 0.5159423177 | Q42: -0.5330689877 | T42: FALSE | U42: FALSE | V42: 0 | W42: 0 | X42: FALSE | Y42: FALSE | Z42: FALSE | AA42: 985.67 | AB42: FALSE | AC42: FALSE | AD42: TRUE | AE42: 2183.65 | AX42: 6084980000
A43: 11 | B43: =IF(A43>$B$30,NA(),IF($A43>$A$8,"",OFFSET(InputPriceData!$B$15,$A43+$A$11,0,1,1))) -> 2021-06-17 | C43: =IF(A43>$B$30,NA(),IF($A43>$A$8,"",OFFSET(InputPriceData!$G$15,CalculationsAndCharts!$A43+$A$11,IF($C$5,8,0),1,1))) -> 3952110000 | D43: =IF(A43>$B$30,NA(),IF(A43>$A$8,"",OFFSET(InputPriceData!$C$15,CalculationsAndCharts!$A43+$A$11,IF($C$5,8,0),1,1))) -> 4220.37 | E43: =IF(A43>$B$30,NA(),IF(A43>$A$8,"",OFFSET(InputPriceData!$D$15,CalculationsAndCharts!$A43+$A$11,IF($C$5,8,0),1,1))) -> 4232.29 | F43: =IF(A43>$B$30,NA(),IF(A43>$A$8,"",OFFSET(InputPriceData!$E$15,CalculationsAndCharts!$A43+$A$11,IF($C$5,8,0),1,1))) -> 4196.05 | G43: =IF(A43>$B$30,NA(),IF(A43>$A$8,"",OFFSET(InputPriceData!$F$15,CalculationsAndCharts!$A43+$A$11,IF($C$5,8,0),1,1))) -> 4221.86 | H43: 4235.09125 | I43: 4207.474762 | J43: 0.6563672905 | K43: -0.4049267009 | M43: 4241.653298 | N43: 2 | O43: 4213.199232 | P43: 0.6753553293 | Q43: -0.1856017913 | T43: FALSE | U43: FALSE | V43: 0 | W43: 0 | X43: FALSE | Y43: FALSE | Z43: FALSE | AA43: 985.67 | AB43: FALSE | AC43: FALSE | AD43: TRUE | AE43: 2183.65 | AW43: 3952110000
A44: 12 | B44: =IF(A44>$B$30,NA(),IF($A44>$A$8,"",OFFSET(InputPriceData!$B$15,$A44+$A$11,0,1,1))) -> 2021-06-16 | C44: =IF(A44>$B$30,NA(),IF($A44>$A$8,"",OFFSET(InputPriceData!$G$15,CalculationsAndCharts!$A44+$A$11,IF($C$5,8,0),1,1))) -> 3722050000 | D44: =IF(A44>$B$30,NA(),IF(A44>$A$8,"",OFFSET(InputPriceData!$C$15,CalculationsAndCharts!$A44+$A$11,IF($C$5,8,0),1,1))) -> 4248.87 | E44: =IF(A44>$B$30,NA(),IF(A44>$A$8,"",OFFSET(InputPriceData!$D$15,CalculationsAndCharts!$A44+$A$11,IF($C$5,8,0),1,1))) -> 4251.89 | F44: =IF(A44>$B$30,NA(),IF(A44>$A$8,"",OFFSET(InputPriceData!$E$15,CalculationsAndCharts!$A44+$A$11,IF($C$5,8,0),1,1))) -> 4202.45 | G44: =IF(A44>$B$30,NA(),IF(A44>$A$8,"",OFFSET(InputPriceData!$F$15,CalculationsAndCharts!$A44+$A$11,IF($C$5,8,0),1,1))) -> 4223.7 | H44: 4235.67375 | I44: 4202.997143 | J44: 0.7774596563 | K44: -0.2924105286 | M44: 4239.204612 | N44: 1.959492974 | O44: 4208.446795 | P44: 0.7308591031 | Q44: -0.05253158402 | T44: FALSE | U44: FALSE | V44: 0 | W44: 0 | X44: FALSE | Y44: FALSE | Z44: FALSE | AA44: 985.67 | AB44: FALSE | AC44: FALSE | AD44: TRUE | AE44: 2183.65 | AX44: 3722050000
A45: 13 | B45: =IF(A45>$B$30,NA(),IF($A45>$A$8,"",OFFSET(InputPriceData!$B$15,$A45+$A$11,0,1,1))) -> 2021-06-15 | C45: =IF(A45>$B$30,NA(),IF($A45>$A$8,"",OFFSET(InputPriceData!$G$15,CalculationsAndCharts!$A45+$A$11,IF($C$5,8,0),1,1))) -> 3578450000 | D45: =IF(A45>$B$30,NA(),IF(A45>$A$8,"",OFFSET(InputPriceData!$C$15,CalculationsAndCharts!$A45+$A$11,IF($C$5,8,0),1,1))) -> 4255.28 | E45: =IF(A45>$B$30,NA(),IF(A45>$A$8,"",OFFSET(InputPriceData!$D$15,CalculationsAndCharts!$A45+$A$11,IF($C$5,8,0),1,1))) -> 4257.16 | F45: =IF(A45>$B$30,NA(),IF(A45>$A$8,"",OFFSET(InputPriceData!$E$15,CalculationsAndCharts!$A45+$A$11,IF($C$5,8,0),1,1))) -> 4238.35 | G45: =IF(A45>$B$30,NA(),IF(A45>$A$8,"",OFFSET(InputPriceData!$F$15,CalculationsAndCharts!$A45+$A$11,IF($C$5,8,0),1,1))) -> 4246.59 | H45: 4236.4475 | I45: 4200.120476 | J45: 0.8649043287 | K45: 0.2568710251 | M45: 4234.594358 | N45: 1.841253533 | O45: 4203.214481 | P45: 0.7465685482 | Q45: -0.02557582194 | T45: FALSE | U45: FALSE | V45: 0 | W45: 0 | X45: FALSE | Y45: FALSE | Z45: FALSE | AA45: 985.67 | AB45: FALSE | AC45: FALSE | AD45: TRUE | AE45: 2183.65 | AX45: 3578450000
A46: 14 | B46: =IF(A46>$B$30,NA(),IF($A46>$A$8,"",OFFSET(InputPriceData!$B$15,$A46+$A$11,0,1,1))) -> 2021-06-14 | C46: =IF(A46>$B$30,NA(),IF($A46>$A$8,"",OFFSET(InputPriceData!$G$15,CalculationsAndCharts!$A46+$A$11,IF($C$5,8,0),1,1))) -> 3612050000 | D46: =IF(A46>$B$30,NA(),IF(A46>$A$8,"",OFFSET(InputPriceData!$C$15,CalculationsAndCharts!$A46+$A$11,IF($C$5,8,0),1,1))) -> 4248.31 | E46: =IF(A46>$B$30,NA(),IF(A46>$A$8,"",OFFSET(InputPriceData!$D$15,CalculationsAndCharts!$A46+$A$11,IF($C$5,8,0),1,1))) -> 4255.59 | F46: =IF(A46>$B$30,NA(),IF(A46>$A$8,"",OFFSET(InputPriceData!$E$15,CalculationsAndCharts!$A46+$A$11,IF($C$5,8,0),1,1))) -> 4234.07 | G46: =IF(A46>$B$30,NA(),IF(A46>$A$8,"",OFFSET(InputPriceData!$F$15,CalculationsAndCharts!$A46+$A$11,IF($C$5,8,0),1,1))) -> 4255.15 | H46: 4229.73 | I46: 4196.656667 | J46: 0.7880876603 | K46: -0.07722784594 | M46: 4229.386518 | N46: 1.654860734 | O46: 4197.726554 | P46: 0.7542169369 | Q46: -0.04064490019 | T46: FALSE | U46: FALSE | V46: 0 | W46: 0 | X46: FALSE | Y46: FALSE | Z46: FALSE | AA46: 985.67 | AB46: FALSE | AC46: FALSE | AD46: TRUE | AE46: 2183.65 | AW46: 3612050000
A47: 15 | B47: =IF(A47>$B$30,NA(),IF($A47>$A$8,"",OFFSET(InputPriceData!$B$15,$A47+$A$11,0,1,1))) -> 2021-06-11 | C47: =IF(A47>$B$30,NA(),IF($A47>$A$8,"",OFFSET(InputPriceData!$G$15,CalculationsAndCharts!$A47+$A$11,IF($C$5,8,0),1,1))) -> 3204280000 | D47: =IF(A47>$B$30,NA(),IF(A47>$A$8,"",OFFSET(InputPriceData!$C$15,CalculationsAndCharts!$A47+$A$11,IF($C$5,8,0),1,1))) -> 4242.9 | E47: =IF(A47>$B$30,NA(),IF(A47>$A$8,"",OFFSET(InputPriceData!$D$15,CalculationsAndCharts!$A47+$A$11,IF($C$5,8,0),1,1))) -> 4248.38 | F47: =IF(A47>$B$30,NA(),IF(A47>$A$8,"",OFFSET(InputPriceData!$E$15,CalculationsAndCharts!$A47+$A$11,IF($C$5,8,0),1,1))) -> 4232.25 | G47: =IF(A47>$B$30,NA(),IF(A47>$A$8,"",OFFSET(InputPriceData!$F$15,CalculationsAndCharts!$A47+$A$11,IF($C$5,8,0),1,1))) -> 4247.44 | H47: 4223.85125 | I47: 4189.86381 | J47: 0.8111824637 | K47: -0.2541048535 | M47: 4224.215921 | N47: 1.415415013 | O47: 4192.088938 | P47: 0.7663716975 | Q47: -0.07045828855 | T47: FALSE | U47: FALSE | V47: 0 | W47: 0 | X47: FALSE | Y47: FALSE | Z47: FALSE | AA47: 985.67 | AB47: FALSE | AC47: FALSE | AD47: TRUE | AE47: 2183.65 | AW47: 3204280000
A48: 16 | B48: =IF(A48>$B$30,NA(),IF($A48>$A$8,"",OFFSET(InputPriceData!$B$15,$A48+$A$11,0,1,1))) -> 2021-06-10 | C48: =IF(A48>$B$30,NA(),IF($A48>$A$8,"",OFFSET(InputPriceData!$G$15,CalculationsAndCharts!$A48+$A$11,IF($C$5,8,0),1,1))) -> 3502480000 | D48: =IF(A48>$B$30,NA(),IF(A48>$A$8,"",OFFSET(InputPriceData!$C$15,CalculationsAndCharts!$A48+$A$11,IF($C$5,8,0),1,1))) -> 4228.56 | E48: =IF(A48>$B$30,NA(),IF(A48>$A$8,"",OFFSET(InputPriceData!$D$15,CalculationsAndCharts!$A48+$A$11,IF($C$5,8,0),1,1))) -> 4249.74 | F48: =IF(A48>$B$30,NA(),IF(A48>$A$8,"",OFFSET(InputPriceData!$E$15,CalculationsAndCharts!$A48+$A$11,IF($C$5,8,0),1,1))) -> 4220.34 | G48: =IF(A48>$B$30,NA(),IF(A48>$A$8,"",OFFSET(InputPriceData!$F$15,CalculationsAndCharts!$A48+$A$11,IF($C$5,8,0),1,1))) -> 4239.18 | H48: 4218.17625 | I48: 4181.082857 | J48: 0.8871719151 | K48: 0.01603513078 | M48: 4219.121318 | N48: 1.142314838 | O48: 4186.15775 | P48: 0.7874420809 | Q48: -0.09449397147 | T48: FALSE | U48: FALSE | V48: 0 | W48: 0 | X48: FALSE | Y48: FALSE | Z48: FALSE | AA48: 985.67 | AB48: FALSE | AC48: FALSE | AD48: TRUE | AE48: 2183.65 | AW48: 3502480000
A49: 17 | B49: =IF(A49>$B$30,NA(),IF($A49>$A$8,"",OFFSET(InputPriceData!$B$15,$A49+$A$11,0,1,1))) -> 2021-06-09 | C49: =IF(A49>$B$30,NA(),IF($A49>$A$8,"",OFFSET(InputPriceData!$G$15,CalculationsAndCharts!$A49+$A$11,IF($C$5,8,0),1,1))) -> 3902870000 | D49: =IF(A49>$B$30,NA(),IF(A49>$A$8,"",OFFSET(InputPriceData!$C$15,CalculationsAndCharts!$A49+$A$11,IF($C$5,8,0),1,1))) -> 4232.99 | E49: =IF(A49>$B$30,NA(),IF(A49>$A$8,"",OFFSET(InputPriceData!$D$15,CalculationsAndCharts!$A49+$A$11,IF($C$5,8,0),1,1))) -> 4237.09 | F49: =IF(A49>$B$30,NA(),IF(A49>$A$8,"",OFFSET(InputPriceData!$E$15,CalculationsAndCharts!$A49+$A$11,IF($C$5,8,0),1,1))) -> 4218.74 | G49: =IF(A49>$B$30,NA(),IF(A49>$A$8,"",OFFSET(InputPriceData!$F$15,CalculationsAndCharts!$A49+$A$11,IF($C$5,8,0),1,1))) -> 4219.55 | H49: 4213.7925 | I49: 4176.93619 | J49: 0.8823766475 | K49: 0.06717356872 | M49: 4213.979567 | N49: 0.8576851617 | O49: 4179.88424 | P49: 0.8157002781 | Q49: -0.1220754706 | T49: FALSE | U49: FALSE | V49: 0 | W49: 0 | X49: FALSE | Y49: FALSE | Z49: FALSE | AA49: 985.67 | AB49: FALSE | AC49: FALSE | AD49: TRUE | AE49: 2183.65 | AX49: 3902870000
A50: 18 | B50: =IF(A50>$B$30,NA(),IF($A50>$A$8,"",OFFSET(InputPriceData!$B$15,$A50+$A$11,0,1,1))) -> 2021-06-08 | C50: =IF(A50>$B$30,NA(),IF($A50>$A$8,"",OFFSET(InputPriceData!$G$15,CalculationsAndCharts!$A50+$A$11,IF($C$5,8,0),1,1))) -> 3943870000 | D50: =IF(A50>$B$30,NA(),IF(A50>$A$8,"",OFFSET(InputPriceData!$C$15,CalculationsAndCharts!$A50+$A$11,IF($C$5,8,0),1,1))) -> 4233.81 | E50: =IF(A50>$B$30,NA(),IF(A50>$A$8,"",OFFSET(InputPriceData!$D$15,CalculationsAndCharts!$A50+$A$11,IF($C$5,8,0),1,1))) -> 4236.74 | F50: =IF(A50>$B$30,NA(),IF(A50>$A$8,"",OFFSET(InputPriceData!$E$15,CalculationsAndCharts!$A50+$A$11,IF($C$5,8,0),1,1))) -> 4208.41 | G50: =IF(A50>$B$30,NA(),IF(A50>$A$8,"",OFFSET(InputPriceData!$F$15,CalculationsAndCharts!$A50+$A$11,IF($C$5,8,0),1,1))) -> 4227.26 | H50: 4211.45875 | I50: 4175.454286 | J50: 0.8622885517 | K50: 0.3335556412 | M50: 4209.074574 | N50: 0.584584987 | O50: 4173.507664 | P50: 0.8522066569 | Q50: -0.1687176412 | T50: FALSE | U50: FALSE | V50: 0 | W50: 0 | X50: FALSE | Y50: FALSE | Z50: FALSE | AA50: 985.67 | AB50: FALSE | AC50: FALSE | AD50: TRUE | AE50: 2183.65 | AX50: 3943870000
A51: 19 | B51: =IF(A51>$B$30,NA(),IF($A51>$A$8,"",OFFSET(InputPriceData!$B$15,$A51+$A$11,0,1,1))) -> 2021-06-07 | C51: =IF(A51>$B$30,NA(),IF($A51>$A$8,"",OFFSET(InputPriceData!$G$15,CalculationsAndCharts!$A51+$A$11,IF($C$5,8,0),1,1))) -> 3835570000 | D51: =IF(A51>$B$30,NA(),IF(A51>$A$8,"",OFFSET(InputPriceData!$C$15,CalculationsAndCharts!$A51+$A$11,IF($C$5,8,0),1,1))) -> 4229.34 | E51: =IF(A51>$B$30,NA(),IF(A51>$A$8,"",OFFSET(InputPriceData!$D$15,CalculationsAndCharts!$A51+$A$11,IF($C$5,8,0),1,1))) -> 4232.34 | F51: =IF(A51>$B$30,NA(),IF(A51>$A$8,"",OFFSET(InputPriceData!$E$15,CalculationsAndCharts!$A51+$A$11,IF($C$5,8,0),1,1))) -> 4215.66 | G51: =IF(A51>$B$30,NA(),IF(A51>$A$8,"",OFFSET(InputPriceData!$F$15,CalculationsAndCharts!$A51+$A$11,IF($C$5,8,0),1,1))) -> 4226.52 | H51: 4207.55 | I51: 4175.708571 | J51: 0.7625395314 | K51: 0.2886934217 | M51: 4205.093385 | N51: 0.3451392661 | O51: 4167.4752 | P51: 0.9026612658 | Q51: -0.1964944392 | T51: FALSE | U51: FALSE | V51: 0 | W51: 4229.34 | X51: FALSE | Y51: TRUE | Z51: FALSE | AA51: 985.67 | AB51: TRUE | AC51: FALSE | AD51: TRUE | AE51: 2183.65 | AX51: 3835570000
A52: 20 | B52: =IF(A52>$B$30,NA(),IF($A52>$A$8,"",OFFSET(InputPriceData!$B$15,$A52+$A$11,0,1,1))) -> 2021-06-04 | C52: =IF(A52>$B$30,NA(),IF($A52>$A$8,"",OFFSET(InputPriceData!$G$15,CalculationsAndCharts!$A52+$A$11,IF($C$5,8,0),1,1))) -> 3487070000 | D52: =IF(A52>$B$30,NA(),IF(A52>$A$8,"",OFFSET(InputPriceData!$C$15,CalculationsAndCharts!$A52+$A$11,IF($C$5,8,0),1,1))) -> 4206.05 | E52: =IF(A52>$B$30,NA(),IF(A52>$A$8,"",OFFSET(InputPriceData!$D$15,CalculationsAndCharts!$A52+$A$11,IF($C$5,8,0),1,1))) -> 4233.45 | F52: =IF(A52>$B$30,NA(),IF(A52>$A$8,"",OFFSET(InputPriceData!$E$15,CalculationsAndCharts!$A52+$A$11,IF($C$5,8,0),1,1))) -> 4206.05 | G52: =IF(A52>$B$30,NA(),IF(A52>$A$8,"",OFFSET(InputPriceData!$F$15,CalculationsAndCharts!$A52+$A$11,IF($C$5,8,0),1,1))) -> 4229.89 | H52: 4202.75125 | I52: 4174.522857 | J52: 0.676206451 | K52: 0.08964152051 | M52: 4202.269211 | N52: 0.1587464672 | O52: 4162.252382 | P52: 0.96142246 | Q52: -0.1653970331 | T52: FALSE | U52: TRUE | V52: 0 | W52: 0 | X52: FALSE | Y52: FALSE | Z52: TRUE | AA52: -3243.67 | AB52: FALSE | AC52: FALSE | AD52: FALSE | AE52: -2045.69 | AW52: 3487070000
A53: 21 | B53: =IF(A53>$B$30,NA(),IF($A53>$A$8,"",OFFSET(InputPriceData!$B$15,$A53+$A$11,0,1,1))) -> 2021-06-03 | C53: =IF(A53>$B$30,NA(),IF($A53>$A$8,"",OFFSET(InputPriceData!$G$15,CalculationsAndCharts!$A53+$A$11,IF($C$5,8,0),1,1))) -> 4579450000 | D53: =IF(A53>$B$30,NA(),IF(A53>$A$8,"",OFFSET(InputPriceData!$C$15,CalculationsAndCharts!$A53+$A$11,IF($C$5,8,0),1,1))) -> 4191.43 | E53: =IF(A53>$B$30,NA(),IF(A53>$A$8,"",OFFSET(InputPriceData!$D$15,CalculationsAndCharts!$A53+$A$11,IF($C$5,8,0),1,1))) -> 4204.39 | F53: =IF(A53>$B$30,NA(),IF(A53>$A$8,"",OFFSET(InputPriceData!$E$15,CalculationsAndCharts!$A53+$A$11,IF($C$5,8,0),1,1))) -> 4167.93 | G53: =IF(A53>$B$30,NA(),IF(A53>$A$8,"",OFFSET(InputPriceData!$F$15,CalculationsAndCharts!$A53+$A$11,IF($C$5,8,0),1,1))) -> 4192.85 | H53: 4198.64625 | I53: 4171.55619 | J53: 0.6493993677 | K53: 0.2624225233 | M53: 4200.140255 | N53: 0.04050702639 | O53: 4158.106619 | P53: 1.010884049 | Q53: 0.01099949275 | T53: FALSE | U53: FALSE | V53: 0 | W53: 0 | X53: FALSE | Y53: FALSE | Z53: TRUE | AA53: -3243.67 | AB53: FALSE | AC53: FALSE | AD53: FALSE | AE53: -2045.69 | AW53: 4579450000
A54: 22 | B54: =IF(A54>$B$30,NA(),IF($A54>$A$8,"",OFFSET(InputPriceData!$B$15,$A54+$A$11,0,1,1))) -> 2021-06-02 | C54: =IF(A54>$B$30,NA(),IF($A54>$A$8,"",OFFSET(InputPriceData!$G$15,CalculationsAndCharts!$A54+$A$11,IF($C$5,8,0),1,1))) -> 4860930000 | D54: =IF(A54>$B$30,NA(),IF(A54>$A$8,"",OFFSET(InputPriceData!$C$15,CalculationsAndCharts!$A54+$A$11,IF($C$5,8,0),1,1))) -> 4206.82 | E54: =IF(A54>$B$30,NA(),IF(A54>$A$8,"",OFFSET(InputPriceData!$D$15,CalculationsAndCharts!$A54+$A$11,IF($C$5,8,0),1,1))) -> 4217.37 | F54: =IF(A54>$B$30,NA(),IF(A54>$A$8,"",OFFSET(InputPriceData!$E$15,CalculationsAndCharts!$A54+$A$11,IF($C$5,8,0),1,1))) -> 4198.27 | G54: =IF(A54>$B$30,NA(),IF(A54>$A$8,"",OFFSET(InputPriceData!$F$15,CalculationsAndCharts!$A54+$A$11,IF($C$5,8,0),1,1))) -> 4208.12 | H54: 4194.0225 | I54: 4170.21381 | J54: 0.5709225369 | K54: 0.4318490523 | M54: 4197.012189 | N54: -- Coef Sum-- | O54: 4155.145168 | P54: 1.007594677 | Q54: 0.3051606652 | T54: FALSE | U54: FALSE | V54: 0 | W54: 0 | X54: FALSE | Y54: FALSE | Z54: TRUE | AA54: -3243.67 | AB54: FALSE | AC54: FALSE | AD54: FALSE | AE54: -2045.69 | AW54: 4860930000
A55: 23 | B55: =IF(A55>$B$30,NA(),IF($A55>$A$8,"",OFFSET(InputPriceData!$B$15,$A55+$A$11,0,1,1))) -> 2021-06-01 | C55: =IF(A55>$B$30,NA(),IF($A55>$A$8,"",OFFSET(InputPriceData!$G$15,CalculationsAndCharts!$A55+$A$11,IF($C$5,8,0),1,1))) -> 4122960000 | D55: =IF(A55>$B$30,NA(),IF(A55>$A$8,"",OFFSET(InputPriceData!$C$15,CalculationsAndCharts!$A55+$A$11,IF($C$5,8,0),1,1))) -> 4216.52 | E55: =IF(A55>$B$30,NA(),IF(A55>$A$8,"",OFFSET(InputPriceData!$D$15,CalculationsAndCharts!$A55+$A$11,IF($C$5,8,0),1,1))) -> 4234.12 | F55: =IF(A55>$B$30,NA(),IF(A55>$A$8,"",OFFSET(InputPriceData!$E$15,CalculationsAndCharts!$A55+$A$11,IF($C$5,8,0),1,1))) -> 4197.59 | G55: =IF(A55>$B$30,NA(),IF(A55>$A$8,"",OFFSET(InputPriceData!$F$15,CalculationsAndCharts!$A55+$A$11,IF($C$5,8,0),1,1))) -> 4202.04 | H55: 4187.8975 | I55: 4169.477619 | J55: 0.441779106 | K55: 0.7858972617 | M55: 4191.547443 | N55: 22 | O55: 4153.487496 | P55: 0.9163371065 | Q55: 0.6644205085 | T55: FALSE | U55: FALSE | V55: 0 | W55: 0 | X55: FALSE | Y55: FALSE | Z55: TRUE | AA55: -3243.67 | AB55: FALSE | AC55: FALSE | AD55: FALSE | AE55: -2045.69 | AX55: 4122960000
A56: 24 | B56: =IF(A56>$B$30,NA(),IF($A56>$A$8,"",OFFSET(InputPriceData!$B$15,$A56+$A$11,0,1,1))) -> 2021-05-28 | C56: =IF(A56>$B$30,NA(),IF($A56>$A$8,"",OFFSET(InputPriceData!$G$15,CalculationsAndCharts!$A56+$A$11,IF($C$5,8,0),1,1))) -> 4199270000 | D56: =IF(A56>$B$30,NA(),IF(A56>$A$8,"",OFFSET(InputPriceData!$C$15,CalculationsAndCharts!$A56+$A$11,IF($C$5,8,0),1,1))) -> 4210.77 | E56: =IF(A56>$B$30,NA(),IF(A56>$A$8,"",OFFSET(InputPriceData!$D$15,CalculationsAndCharts!$A56+$A$11,IF($C$5,8,0),1,1))) -> 4218.36 | F56: =IF(A56>$B$30,NA(),IF(A56>$A$8,"",OFFSET(InputPriceData!$E$15,CalculationsAndCharts!$A56+$A$11,IF($C$5,8,0),1,1))) -> 4203.57 | G56: =IF(A56>$B$30,NA(),IF(A56>$A$8,"",OFFSET(InputPriceData!$F$15,CalculationsAndCharts!$A56+$A$11,IF($C$5,8,0),1,1))) -> 4204.11 | H56: 4177.1025 | I56: 4168.48381 | J56: 0.2067584011 | K56: 0.7930023012 | M56: 4183.023234 | O56: 4153.217926 | P56: 0.7176437354 | Q56: 1.049891951 | T56: FALSE | U56: FALSE | V56: 0 | W56: 0 | X56: FALSE | Y56: FALSE | Z56: TRUE | AA56: -3243.67 | AB56: FALSE | AC56: FALSE | AD56: FALSE | AE56: -2045.69 | AX56: 4199270000
A57: 25 | B57: =IF(A57>$B$30,NA(),IF($A57>$A$8,"",OFFSET(InputPriceData!$B$15,$A57+$A$11,0,1,1))) -> 2021-05-27 | C57: =IF(A57>$B$30,NA(),IF($A57>$A$8,"",OFFSET(InputPriceData!$G$15,CalculationsAndCharts!$A57+$A$11,IF($C$5,8,0),1,1))) -> 5201110000 | D57: =IF(A57>$B$30,NA(),IF(A57>$A$8,"",OFFSET(InputPriceData!$C$15,CalculationsAndCharts!$A57+$A$11,IF($C$5,8,0),1,1))) -> 4201.94 | E57: =IF(A57>$B$30,NA(),IF(A57>$A$8,"",OFFSET(InputPriceData!$D$15,CalculationsAndCharts!$A57+$A$11,IF($C$5,8,0),1,1))) -> 4213.38 | F57: =IF(A57>$B$30,NA(),IF(A57>$A$8,"",OFFSET(InputPriceData!$E$15,CalculationsAndCharts!$A57+$A$11,IF($C$5,8,0),1,1))) -> 4197.78 | G57: =IF(A57>$B$30,NA(),IF(A57>$A$8,"",OFFSET(InputPriceData!$F$15,CalculationsAndCharts!$A57+$A$11,IF($C$5,8,0),1,1))) -> 4200.88 | H57: 4167.5675 | I57: 4168.834286 | J57: -0.03038704893 | K57: 0.3093760126 | M57: 4171.096058 | O57: 4154.326039 | P57: 0.4036760471 | Q57: 1.216677914 | T57: FALSE | U57: FALSE | V57: 0 | W57: 0 | X57: FALSE | Y57: FALSE | Z57: TRUE | AA57: -3243.67 | AB57: FALSE | AC57: FALSE | AD57: FALSE | AE57: -2045.69 | AX57: 5201110000
A58: 26 | B58: =IF(A58>$B$30,NA(),IF($A58>$A$8,"",OFFSET(InputPriceData!$B$15,$A58+$A$11,0,1,1))) -> 2021-05-26 | C58: =IF(A58>$B$30,NA(),IF($A58>$A$8,"",OFFSET(InputPriceData!$G$15,CalculationsAndCharts!$A58+$A$11,IF($C$5,8,0),1,1))) -> 3674490000 | D58: =IF(A58>$B$30,NA(),IF(A58>$A$8,"",OFFSET(InputPriceData!$C$15,CalculationsAndCharts!$A58+$A$11,IF($C$5,8,0),1,1))) -> 4191.59 | E58: =IF(A58>$B$30,NA(),IF(A58>$A$8,"",OFFSET(InputPriceData!$D$15,CalculationsAndCharts!$A58+$A$11,IF($C$5,8,0),1,1))) -> 4202.61 | F58: =IF(A58>$B$30,NA(),IF(A58>$A$8,"",OFFSET(InputPriceData!$E$15,CalculationsAndCharts!$A58+$A$11,IF($C$5,8,0),1,1))) -> 4184.11 | G58: =IF(A58>$B$30,NA(),IF(A58>$A$8,"",OFFSET(InputPriceData!$F$15,CalculationsAndCharts!$A58+$A$11,IF($C$5,8,0),1,1))) -> 4195.99 | H58: 4162.86875 | I58: 4167.991429 | J58: -0.1229052089 | K58: 0.1866823086 | M58: 4158.356562 | O58: 4156.700889 | P58: 0.03983141377 | Q58: 1.02410835 | T58: FALSE | U58: FALSE | V58: 0 | W58: 0 | X58: FALSE | Y58: FALSE | Z58: TRUE | AA58: -3243.67 | AB58: FALSE | AC58: FALSE | AD58: FALSE | AE58: -2045.69 | AW58: 3674490000
A59: 27 | B59: =IF(A59>$B$30,NA(),IF($A59>$A$8,"",OFFSET(InputPriceData!$B$15,$A59+$A$11,0,1,1))) -> 2021-05-25 | C59: =IF(A59>$B$30,NA(),IF($A59>$A$8,"",OFFSET(InputPriceData!$G$15,CalculationsAndCharts!$A59+$A$11,IF($C$5,8,0),1,1))) -> 3420870000 | D59: =IF(A59>$B$30,NA(),IF(A59>$A$8,"",OFFSET(InputPriceData!$C$15,CalculationsAndCharts!$A59+$A$11,IF($C$5,8,0),1,1))) -> 4205.94 | E59: =IF(A59>$B$30,NA(),IF(A59>$A$8,"",OFFSET(InputPriceData!$D$15,CalculationsAndCharts!$A59+$A$11,IF($C$5,8,0),1,1))) -> 4213.42 | F59: =IF(A59>$B$30,NA(),IF(A59>$A$8,"",OFFSET(InputPriceData!$E$15,CalculationsAndCharts!$A59+$A$11,IF($C$5,8,0),1,1))) -> 4182.52 | G59: =IF(A59>$B$30,NA(),IF(A59>$A$8,"",OFFSET(InputPriceData!$F$15,CalculationsAndCharts!$A59+$A$11,IF($C$5,8,0),1,1))) -> 4188.13 | H59: 4160.10125 | I59: 4167.55 | J59: -0.1787321088 | K59: 0.756607047 | M59: 4149.001931 | O59: 4160.08547 | P59: -0.2664257498 | Q59: 0.6852550771 | T59: FALSE | U59: FALSE | V59: 0 | W59: 0 | X59: FALSE | Y59: FALSE | Z59: TRUE | AA59: -3243.67 | AB59: FALSE | AC59: FALSE | AD59: FALSE | AE59: -2045.69 | AX59: 3420870000
A60: 28 | B60: =IF(A60>$B$30,NA(),IF($A60>$A$8,"",OFFSET(InputPriceData!$B$15,$A60+$A$11,0,1,1))) -> 2021-05-24 | C60: =IF(A60>$B$30,NA(),IF($A60>$A$8,"",OFFSET(InputPriceData!$G$15,CalculationsAndCharts!$A60+$A$11,IF($C$5,8,0),1,1))) -> 2947400000 | D60: =IF(A60>$B$30,NA(),IF(A60>$A$8,"",OFFSET(InputPriceData!$C$15,CalculationsAndCharts!$A60+$A$11,IF($C$5,8,0),1,1))) -> 4170.16 | E60: =IF(A60>$B$30,NA(),IF(A60>$A$8,"",OFFSET(InputPriceData!$D$15,CalculationsAndCharts!$A60+$A$11,IF($C$5,8,0),1,1))) -> 4209.52 | F60: =IF(A60>$B$30,NA(),IF(A60>$A$8,"",OFFSET(InputPriceData!$E$15,CalculationsAndCharts!$A60+$A$11,IF($C$5,8,0),1,1))) -> 4170.16 | G60: =IF(A60>$B$30,NA(),IF(A60>$A$8,"",OFFSET(InputPriceData!$F$15,CalculationsAndCharts!$A60+$A$11,IF($C$5,8,0),1,1))) -> 4197.05 | H60: 4150.6475 | I60: 4167.525714 | J60: -0.4049936447 | K60: 1.280102569 | M60: 4144.536328 | O60: 4164.164101 | P60: -0.4713496491 | Q60: 0.5856324393 | T60: FALSE | U60: FALSE | V60: 0 | W60: 0 | X60: FALSE | Y60: FALSE | Z60: TRUE | AA60: -3243.67 | AB60: FALSE | AC60: FALSE | AD60: FALSE | AE60: -2045.69 | AW60: 2947400000
A61: 29 | B61: =IF(A61>$B$30,NA(),IF($A61>$A$8,"",OFFSET(InputPriceData!$B$15,$A61+$A$11,0,1,1))) -> 2021-05-21 | C61: =IF(A61>$B$30,NA(),IF($A61>$A$8,"",OFFSET(InputPriceData!$G$15,CalculationsAndCharts!$A61+$A$11,IF($C$5,8,0),1,1))) -> 3344620000 | D61: =IF(A61>$B$30,NA(),IF(A61>$A$8,"",OFFSET(InputPriceData!$C$15,CalculationsAndCharts!$A61+$A$11,IF($C$5,8,0),1,1))) -> 4168.61 | E61: =IF(A61>$B$30,NA(),IF(A61>$A$8,"",OFFSET(InputPriceData!$D$15,CalculationsAndCharts!$A61+$A$11,IF($C$5,8,0),1,1))) -> 4188.72 | F61: =IF(A61>$B$30,NA(),IF(A61>$A$8,"",OFFSET(InputPriceData!$E$15,CalculationsAndCharts!$A61+$A$11,IF($C$5,8,0),1,1))) -> 4151.72 | G61: =IF(A61>$B$30,NA(),IF(A61>$A$8,"",OFFSET(InputPriceData!$F$15,CalculationsAndCharts!$A61+$A$11,IF($C$5,8,0),1,1))) -> 4155.86 | H61: 4133.89625 | I61: 4166.721905 | J61: -0.7878052702 | K61: -0.04145713788 | M61: 4141.627208 | O61: 4168.576288 | P61: -0.6464816357 | Q61: 0.6926522346 | T61: FALSE | U61: FALSE | V61: 0 | W61: 0 | X61: FALSE | Y61: FALSE | Z61: TRUE | AA61: -3243.67 | AB61: FALSE | AC61: FALSE | AD61: FALSE | AE61: -2045.69 | AX61: 3344620000
A62: 30 | B62: =IF(A62>$B$30,NA(),IF($A62>$A$8,"",OFFSET(InputPriceData!$B$15,$A62+$A$11,0,1,1))) -> 2021-05-20 | C62: =IF(A62>$B$30,NA(),IF($A62>$A$8,"",OFFSET(InputPriceData!$G$15,CalculationsAndCharts!$A62+$A$11,IF($C$5,8,0),1,1))) -> 3019060000 | D62: =IF(A62>$B$30,NA(),IF(A62>$A$8,"",OFFSET(InputPriceData!$C$15,CalculationsAndCharts!$A62+$A$11,IF($C$5,8,0),1,1))) -> 4121.97 | E62: =IF(A62>$B$30,NA(),IF(A62>$A$8,"",OFFSET(InputPriceData!$D$15,CalculationsAndCharts!$A62+$A$11,IF($C$5,8,0),1,1))) -> 4172.8 | F62: =IF(A62>$B$30,NA(),IF(A62>$A$8,"",OFFSET(InputPriceData!$E$15,CalculationsAndCharts!$A62+$A$11,IF($C$5,8,0),1,1))) -> 4121.97 | G62: =IF(A62>$B$30,NA(),IF(A62>$A$8,"",OFFSET(InputPriceData!$F$15,CalculationsAndCharts!$A62+$A$11,IF($C$5,8,0),1,1))) -> 4159.12 | H62: 4133.42625 | I62: 4165.727619 | J62: -0.7754076119 | K62: -0.239822371 | M62: 4137.21558 | O62: 4172.835641 | P62: -0.8536176373 | Q62: 0.6260959684 | T62: FALSE | U62: FALSE | V62: -4121.97 | W62: 0 | X62: TRUE | Y62: FALSE | Z62: TRUE | AA62: -3243.67 | AB62: FALSE | AC62: TRUE | AD62: FALSE | AE62: -2045.69 | AW62: 3019060000
A63: 31 | B63: =IF(A63>$B$30,NA(),IF($A63>$A$8,"",OFFSET(InputPriceData!$B$15,$A63+$A$11,0,1,1))) -> 2021-05-19 | C63: =IF(A63>$B$30,NA(),IF($A63>$A$8,"",OFFSET(InputPriceData!$G$15,CalculationsAndCharts!$A63+$A$11,IF($C$5,8,0),1,1))) -> 3485550000 | D63: =IF(A63>$B$30,NA(),IF(A63>$A$8,"",OFFSET(InputPriceData!$C$15,CalculationsAndCharts!$A63+$A$11,IF($C$5,8,0),1,1))) -> 4098.45 | E63: =IF(A63>$B$30,NA(),IF(A63>$A$8,"",OFFSET(InputPriceData!$D$15,CalculationsAndCharts!$A63+$A$11,IF($C$5,8,0),1,1))) -> 4116.93 | F63: =IF(A63>$B$30,NA(),IF(A63>$A$8,"",OFFSET(InputPriceData!$E$15,CalculationsAndCharts!$A63+$A$11,IF($C$5,8,0),1,1))) -> 4061.41 | G63: =IF(A63>$B$30,NA(),IF(A63>$A$8,"",OFFSET(InputPriceData!$F$15,CalculationsAndCharts!$A63+$A$11,IF($C$5,8,0),1,1))) -> 4115.68 | H63: 4137.09 | I63: 4166.408571 | J63: -0.7036893028 | K63: -1.099662487 | M63: 4133.043875 | O63: 4176.515139 | P63: -1.040850146 | Q63: 0.1586918678 | T63: TRUE | U63: FALSE | V63: 0 | W63: 0 | X63: FALSE | Y63: FALSE | Z63: FALSE | AA63: 878.3 | AB63: FALSE | AC63: FALSE | AD63: TRUE | AE63: 2076.28 | AW63: 3485550000
A64: 32 | B64: =IF(A64>$B$30,NA(),IF($A64>$A$8,"",OFFSET(InputPriceData!$B$15,$A64+$A$11,0,1,1))) -> 2021-05-18 | C64: =IF(A64>$B$30,NA(),IF($A64>$A$8,"",OFFSET(InputPriceData!$G$15,CalculationsAndCharts!$A64+$A$11,IF($C$5,8,0),1,1))) -> 3559790000 | D64: =IF(A64>$B$30,NA(),IF(A64>$A$8,"",OFFSET(InputPriceData!$C$15,CalculationsAndCharts!$A64+$A$11,IF($C$5,8,0),1,1))) -> 4165.94 | E64: =IF(A64>$B$30,NA(),IF(A64>$A$8,"",OFFSET(InputPriceData!$D$15,CalculationsAndCharts!$A64+$A$11,IF($C$5,8,0),1,1))) -> 4169.15 | F64: =IF(A64>$B$30,NA(),IF(A64>$A$8,"",OFFSET(InputPriceData!$E$15,CalculationsAndCharts!$A64+$A$11,IF($C$5,8,0),1,1))) -> 4125.99 | G64: =IF(A64>$B$30,NA(),IF(A64>$A$8,"",OFFSET(InputPriceData!$F$15,CalculationsAndCharts!$A64+$A$11,IF($C$5,8,0),1,1))) -> 4127.83 | H64: 4151.705 | I64: 4167.325714 | J64: -0.3748378542 | K64: -0.6050155857 | M64: 4133.820856 | O64: 4179.304502 | P64: -1.088306571 | Q64: -0.624524838 | T64: FALSE | U64: FALSE | V64: 0 | W64: 0 | X64: FALSE | Y64: FALSE | Z64: FALSE | AA64: 878.3 | AB64: FALSE | AC64: FALSE | AD64: TRUE | AE64: 2076.28 | AX64: 3559790000
A65: 33 | B65: =IF(A65>$B$30,NA(),IF($A65>$A$8,"",OFFSET(InputPriceData!$B$15,$A65+$A$11,0,1,1))) -> 2021-05-17 | C65: =IF(A65>$B$30,NA(),IF($A65>$A$8,"",OFFSET(InputPriceData!$G$15,CalculationsAndCharts!$A65+$A$11,IF($C$5,8,0),1,1))) -> 3307130000 | D65: =IF(A65>$B$30,NA(),IF(A65>$A$8,"",OFFSET(InputPriceData!$C$15,CalculationsAndCharts!$A65+$A$11,IF($C$5,8,0),1,1))) -> 4169.92 | E65: =IF(A65>$B$30,NA(),IF(A65>$A$8,"",OFFSET(InputPriceData!$D$15,CalculationsAndCharts!$A65+$A$11,IF($C$5,8,0),1,1))) -> 4171.92 | F65: =IF(A65>$B$30,NA(),IF(A65>$A$8,"",OFFSET(InputPriceData!$E$15,CalculationsAndCharts!$A65+$A$11,IF($C$5,8,0),1,1))) -> 4142.69 | G65: =IF(A65>$B$30,NA(),IF(A65>$A$8,"",OFFSET(InputPriceData!$F$15,CalculationsAndCharts!$A65+$A$11,IF($C$5,8,0),1,1))) -> 4163.29 | H65: 4160.92875 | I65: 4169.012857 | J65: -0.1939093838 | K65: 0.04142919265 | M65: 4143.327099 | O65: 4181.020838 | P65: -0.9015439054 | Q65: -1.308506329 | T65: FALSE | U65: FALSE | V65: 0 | W65: 0 | X65: FALSE | Y65: FALSE | Z65: FALSE | AA65: 878.3 | AB65: FALSE | AC65: FALSE | AD65: TRUE | AE65: 2076.28 | AX65: 3307130000
A66: 34 | B66: =IF(A66>$B$30,NA(),IF($A66>$A$8,"",OFFSET(InputPriceData!$B$15,$A66+$A$11,0,1,1))) -> 2021-05-14 | C66: =IF(A66>$B$30,NA(),IF($A66>$A$8,"",OFFSET(InputPriceData!$G$15,CalculationsAndCharts!$A66+$A$11,IF($C$5,8,0),1,1))) -> 3251920000 | D66: =IF(A66>$B$30,NA(),IF(A66>$A$8,"",OFFSET(InputPriceData!$C$15,CalculationsAndCharts!$A66+$A$11,IF($C$5,8,0),1,1))) -> 4129.58 | E66: =IF(A66>$B$30,NA(),IF(A66>$A$8,"",OFFSET(InputPriceData!$D$15,CalculationsAndCharts!$A66+$A$11,IF($C$5,8,0),1,1))) -> 4183.13 | F66: =IF(A66>$B$30,NA(),IF(A66>$A$8,"",OFFSET(InputPriceData!$E$15,CalculationsAndCharts!$A66+$A$11,IF($C$5,8,0),1,1))) -> 4129.58 | G66: =IF(A66>$B$30,NA(),IF(A66>$A$8,"",OFFSET(InputPriceData!$F$15,CalculationsAndCharts!$A66+$A$11,IF($C$5,8,0),1,1))) -> 4173.85 | H66: 4161.46625 | I66: 4170.069048 | J66: -0.2062986852 | K66: 0.07904998591 | M66: 4160.382105 | O66: 4181.718832 | P66: -0.5102382032 | Q66: -1.43539974 | T66: FALSE | U66: FALSE | V66: 0 | W66: 0 | X66: FALSE | Y66: FALSE | Z66: FALSE | AA66: 878.3 | AB66: FALSE | AC66: FALSE | AD66: TRUE | AE66: 2076.28 | AW66: 3251920000
A67: 35 | B67: =IF(A67>$B$30,NA(),IF($A67>$A$8,"",OFFSET(InputPriceData!$B$15,$A67+$A$11,0,1,1))) -> 2021-05-13 | C67: =IF(A67>$B$30,NA(),IF($A67>$A$8,"",OFFSET(InputPriceData!$G$15,CalculationsAndCharts!$A67+$A$11,IF($C$5,8,0),1,1))) -> 3687780000 | D67: =IF(A67>$B$30,NA(),IF(A67>$A$8,"",OFFSET(InputPriceData!$C$15,CalculationsAndCharts!$A67+$A$11,IF($C$5,8,0),1,1))) -> 4074.99 | E67: =IF(A67>$B$30,NA(),IF(A67>$A$8,"",OFFSET(InputPriceData!$D$15,CalculationsAndCharts!$A67+$A$11,IF($C$5,8,0),1,1))) -> 4131.58 | F67: =IF(A67>$B$30,NA(),IF(A67>$A$8,"",OFFSET(InputPriceData!$E$15,CalculationsAndCharts!$A67+$A$11,IF($C$5,8,0),1,1))) -> 4074.99 | G67: =IF(A67>$B$30,NA(),IF(A67>$A$8,"",OFFSET(InputPriceData!$F$15,CalculationsAndCharts!$A67+$A$11,IF($C$5,8,0),1,1))) -> 4112.5 | H67: 4160.3175 | I67: 4169.905714 | J67: -0.2299383953 | K67: -0.7570946259 | M67: 4178.074825 | O67: 4181.461195 | P67: -0.08098532868 | Q67: -0.947558495 | T67: FALSE | U67: FALSE | V67: 0 | W67: 4074.99 | X67: FALSE | Y67: TRUE | Z67: FALSE | AA67: 878.3 | AB67: TRUE | AC67: FALSE | AD67: TRUE | AE67: 2076.28 | AW67: 3687780000
A68: 36 | B68: =IF(A68>$B$30,NA(),IF($A68>$A$8,"",OFFSET(InputPriceData!$B$15,$A68+$A$11,0,1,1))) -> 2021-05-12 | C68: =IF(A68>$B$30,NA(),IF($A68>$A$8,"",OFFSET(InputPriceData!$G$15,CalculationsAndCharts!$A68+$A$11,IF($C$5,8,0),1,1))) -> 3735080000 | D68: =IF(A68>$B$30,NA(),IF(A68>$A$8,"",OFFSET(InputPriceData!$C$15,CalculationsAndCharts!$A68+$A$11,IF($C$5,8,0),1,1))) -> 4130.55 | E68: =IF(A68>$B$30,NA(),IF(A68>$A$8,"",OFFSET(InputPriceData!$D$15,CalculationsAndCharts!$A68+$A$11,IF($C$5,8,0),1,1))) -> 4134.73 | F68: =IF(A68>$B$30,NA(),IF(A68>$A$8,"",OFFSET(InputPriceData!$E$15,CalculationsAndCharts!$A68+$A$11,IF($C$5,8,0),1,1))) -> 4056.88 | G68: =IF(A68>$B$30,NA(),IF(A68>$A$8,"",OFFSET(InputPriceData!$F$15,CalculationsAndCharts!$A68+$A$11,IF($C$5,8,0),1,1))) -> 4063.04 | H68: 4170.3375 | I68: 4170.484762 | J68: -0.003531050062 | K68: -0.8832792999 | M68: 4188.651219 | O68: 4180.191357 | P68: 0.2023797832 | Q68: -0.2405898852 | T68: FALSE | U68: TRUE | V68: -4130.55 | W68: 0 | X68: TRUE | Y68: FALSE | Z68: TRUE | AA68: -3196.69 | AB68: FALSE | AC68: TRUE | AD68: FALSE | AE68: -1998.71 | AX68: 3735080000
A69: 37 | B69: =IF(A69>$B$30,NA(),IF($A69>$A$8,"",OFFSET(InputPriceData!$B$15,$A69+$A$11,0,1,1))) -> 2021-05-11 | C69: =IF(A69>$B$30,NA(),IF($A69>$A$8,"",OFFSET(InputPriceData!$G$15,CalculationsAndCharts!$A69+$A$11,IF($C$5,8,0),1,1))) -> 3593110000 | D69: =IF(A69>$B$30,NA(),IF(A69>$A$8,"",OFFSET(InputPriceData!$C$15,CalculationsAndCharts!$A69+$A$11,IF($C$5,8,0),1,1))) -> 4150.34 | E69: =IF(A69>$B$30,NA(),IF(A69>$A$8,"",OFFSET(InputPriceData!$D$15,CalculationsAndCharts!$A69+$A$11,IF($C$5,8,0),1,1))) -> 4162.04 | F69: =IF(A69>$B$30,NA(),IF(A69>$A$8,"",OFFSET(InputPriceData!$E$15,CalculationsAndCharts!$A69+$A$11,IF($C$5,8,0),1,1))) -> 4111.53 | G69: =IF(A69>$B$30,NA(),IF(A69>$A$8,"",OFFSET(InputPriceData!$F$15,CalculationsAndCharts!$A69+$A$11,IF($C$5,8,0),1,1))) -> 4152.1 | H69: 4185.10375 | I69: 4174.225238 | J69: 0.2606115215 | K69: -0.6869141922 | M69: 4189.436522 | O69: 4177.975182 | P69: 0.2743276155 | Q69: 0.07305808525 | T69: TRUE | U69: FALSE | V69: 0 | W69: 0 | X69: FALSE | Y69: FALSE | Z69: FALSE | AA69: 933.86 | AB69: FALSE | AC69: FALSE | AD69: TRUE | AE69: 2131.84 | AW69: 3593110000
A70: 38 | B70: =IF(A70>$B$30,NA(),IF($A70>$A$8,"",OFFSET(InputPriceData!$B$15,$A70+$A$11,0,1,1))) -> 2021-05-10 | C70: =IF(A70>$B$30,NA(),IF($A70>$A$8,"",OFFSET(InputPriceData!$G$15,CalculationsAndCharts!$A70+$A$11,IF($C$5,8,0),1,1))) -> 3678970000 | D70: =IF(A70>$B$30,NA(),IF(A70>$A$8,"",OFFSET(InputPriceData!$C$15,CalculationsAndCharts!$A70+$A$11,IF($C$5,8,0),1,1))) -> 4228.29 | E70: =IF(A70>$B$30,NA(),IF(A70>$A$8,"",OFFSET(InputPriceData!$D$15,CalculationsAndCharts!$A70+$A$11,IF($C$5,8,0),1,1))) -> 4236.39 | F70: =IF(A70>$B$30,NA(),IF(A70>$A$8,"",OFFSET(InputPriceData!$E$15,CalculationsAndCharts!$A70+$A$11,IF($C$5,8,0),1,1))) -> 4188.13 | G70: =IF(A70>$B$30,NA(),IF(A70>$A$8,"",OFFSET(InputPriceData!$F$15,CalculationsAndCharts!$A70+$A$11,IF($C$5,8,0),1,1))) -> 4188.43 | H70: 4192.525 | I70: 4173.077143 | J70: 0.4660315752 | K70: -0.1761292228 | M70: 4185.70681 | O70: 4175.165363 | P70: 0.2524797691 | Q70: -0.1020953085 | T70: FALSE | U70: FALSE | V70: 0 | W70: 0 | X70: FALSE | Y70: FALSE | Z70: FALSE | AA70: 933.86 | AB70: FALSE | AC70: FALSE | AD70: TRUE | AE70: 2131.84 | AX70: 3678970000
A71: 39 | B71: =IF(A71>$B$30,NA(),IF($A71>$A$8,"",OFFSET(InputPriceData!$B$15,$A71+$A$11,0,1,1))) -> 2021-05-07 | C71: =IF(A71>$B$30,NA(),IF($A71>$A$8,"",OFFSET(InputPriceData!$G$15,CalculationsAndCharts!$A71+$A$11,IF($C$5,8,0),1,1))) -> 4013060000 | D71: =IF(A71>$B$30,NA(),IF(A71>$A$8,"",OFFSET(InputPriceData!$C$15,CalculationsAndCharts!$A71+$A$11,IF($C$5,8,0),1,1))) -> 4210.34 | E71: =IF(A71>$B$30,NA(),IF(A71>$A$8,"",OFFSET(InputPriceData!$D$15,CalculationsAndCharts!$A71+$A$11,IF($C$5,8,0),1,1))) -> 4238.04 | F71: =IF(A71>$B$30,NA(),IF(A71>$A$8,"",OFFSET(InputPriceData!$E$15,CalculationsAndCharts!$A71+$A$11,IF($C$5,8,0),1,1))) -> 4201.64 | G71: =IF(A71>$B$30,NA(),IF(A71>$A$8,"",OFFSET(InputPriceData!$F$15,CalculationsAndCharts!$A71+$A$11,IF($C$5,8,0),1,1))) -> 4232.6 | H71: 4191.86875 | I71: 4170.237619 | J71: 0.5187025999 | K71: -0.0600318319 | M71: 4183.873631 | O71: 4172.06622 | P71: 0.283011128 | Q71: -0.4044769536 | T71: FALSE | U71: FALSE | V71: 0 | W71: 0 | X71: FALSE | Y71: FALSE | Z71: FALSE | AA71: 933.86 | AB71: FALSE | AC71: FALSE | AD71: TRUE | AE71: 2131.84 | AW71: 4013060000
A72: 40 | B72: =IF(A72>$B$30,NA(),IF($A72>$A$8,"",OFFSET(InputPriceData!$B$15,$A72+$A$11,0,1,1))) -> 2021-05-06 | C72: =IF(A72>$B$30,NA(),IF($A72>$A$8,"",OFFSET(InputPriceData!$G$15,CalculationsAndCharts!$A72+$A$11,IF($C$5,8,0),1,1))) -> 4504860000 | D72: =IF(A72>$B$30,NA(),IF(A72>$A$8,"",OFFSET(InputPriceData!$C$15,CalculationsAndCharts!$A72+$A$11,IF($C$5,8,0),1,1))) -> 4169.14 | E72: =IF(A72>$B$30,NA(),IF(A72>$A$8,"",OFFSET(InputPriceData!$D$15,CalculationsAndCharts!$A72+$A$11,IF($C$5,8,0),1,1))) -> 4202.7 | F72: =IF(A72>$B$30,NA(),IF(A72>$A$8,"",OFFSET(InputPriceData!$E$15,CalculationsAndCharts!$A72+$A$11,IF($C$5,8,0),1,1))) -> 4147.33 | G72: =IF(A72>$B$30,NA(),IF(A72>$A$8,"",OFFSET(InputPriceData!$F$15,CalculationsAndCharts!$A72+$A$11,IF($C$5,8,0),1,1))) -> 4201.62 | H72: 4186.13375 | I72: 4163.788571 | J72: 0.5366549763 | K72: -0.3277124288 | M72: 4185.558225 | O72: 4168.717897 | P72: 0.4039689979 | Q72: -0.561293671 | T72: FALSE | U72: FALSE | V72: 0 | W72: 0 | X72: FALSE | Y72: FALSE | Z72: FALSE | AA72: 933.86 | AB72: FALSE | AC72: FALSE | AD72: TRUE | AE72: 2131.84 | AW72: 4504860000
A73: 41 | B73: =IF(A73>$B$30,NA(),IF($A73>$A$8,"",OFFSET(InputPriceData!$B$15,$A73+$A$11,0,1,1))) -> 2021-05-05 | C73: =IF(A73>$B$30,NA(),IF($A73>$A$8,"",OFFSET(InputPriceData!$G$15,CalculationsAndCharts!$A73+$A$11,IF($C$5,8,0),1,1))) -> 4029050000 | D73: =IF(A73>$B$30,NA(),IF(A73>$A$8,"",OFFSET(InputPriceData!$C$15,CalculationsAndCharts!$A73+$A$11,IF($C$5,8,0),1,1))) -> 4177.06 | E73: =IF(A73>$B$30,NA(),IF(A73>$A$8,"",OFFSET(InputPriceData!$D$15,CalculationsAndCharts!$A73+$A$11,IF($C$5,8,0),1,1))) -> 4187.72 | F73: =IF(A73>$B$30,NA(),IF(A73>$A$8,"",OFFSET(InputPriceData!$E$15,CalculationsAndCharts!$A73+$A$11,IF($C$5,8,0),1,1))) -> 4160.94 | G73: =IF(A73>$B$30,NA(),IF(A73>$A$8,"",OFFSET(InputPriceData!$F$15,CalculationsAndCharts!$A73+$A$11,IF($C$5,8,0),1,1))) -> 4167.59 | H73: 4184.38375 | I73: 4157.994762 | J73: 0.6346565979 | K73: -0.4879078123 | M73: 4188.758641 | O73: 4164.942561 | P73: 0.5718225338 | Q73: -0.4765930744 | T73: FALSE | U73: FALSE | V73: 0 | W73: 0 | X73: FALSE | Y73: FALSE | Z73: FALSE | AA73: 933.86 | AB73: FALSE | AC73: FALSE | AD73: TRUE | AE73: 2131.84 | AX73: 4029050000
A74: 42 | B74: =IF(A74>$B$30,NA(),IF($A74>$A$8,"",OFFSET(InputPriceData!$B$15,$A74+$A$11,0,1,1))) -> 2021-05-04 | C74: =IF(A74>$B$30,NA(),IF($A74>$A$8,"",OFFSET(InputPriceData!$G$15,CalculationsAndCharts!$A74+$A$11,IF($C$5,8,0),1,1))) -> 4441080000 | D74: =IF(A74>$B$30,NA(),IF(A74>$A$8,"",OFFSET(InputPriceData!$C$15,CalculationsAndCharts!$A74+$A$11,IF($C$5,8,0),1,1))) -> 4179.04 | E74: =IF(A74>$B$30,NA(),IF(A74>$A$8,"",OFFSET(InputPriceData!$D$15,CalculationsAndCharts!$A74+$A$11,IF($C$5,8,0),1,1))) -> 4179.04 | F74: =IF(A74>$B$30,NA(),IF(A74>$A$8,"",OFFSET(InputPriceData!$E$15,CalculationsAndCharts!$A74+$A$11,IF($C$5,8,0),1,1))) -> 4128.59 | G74: =IF(A74>$B$30,NA(),IF(A74>$A$8,"",OFFSET(InputPriceData!$F$15,CalculationsAndCharts!$A74+$A$11,IF($C$5,8,0),1,1))) -> 4164.66 | H74: 4185.95625 | I74: 4153.535238 | J74: 0.7805642675 | K74: -0.03652254563 | M74: 4190.250518 | O74: 4160.529915 | P74: 0.714346558 | Q74: -0.2260477613 | T74: FALSE | U74: FALSE | V74: 0 | W74: 4179.04 | X74: FALSE | Y74: TRUE | Z74: FALSE | AA74: 933.86 | AB74: TRUE | AC74: FALSE | AD74: TRUE | AE74: 2131.84 | AX74: 4441080000
A75: 43 | B75: =IF(A75>$B$30,NA(),IF($A75>$A$8,"",OFFSET(InputPriceData!$B$15,$A75+$A$11,0,1,1))) -> 2021-05-03 | C75: =IF(A75>$B$30,NA(),IF($A75>$A$8,"",OFFSET(InputPriceData!$G$15,CalculationsAndCharts!$A75+$A$11,IF($C$5,8,0),1,1))) -> 4061170000 | D75: =IF(A75>$B$30,NA(),IF(A75>$A$8,"",OFFSET(InputPriceData!$C$15,CalculationsAndCharts!$A75+$A$11,IF($C$5,8,0),1,1))) -> 4191.98 | E75: =IF(A75>$B$30,NA(),IF(A75>$A$8,"",OFFSET(InputPriceData!$D$15,CalculationsAndCharts!$A75+$A$11,IF($C$5,8,0),1,1))) -> 4209.39 | F75: =IF(A75>$B$30,NA(),IF(A75>$A$8,"",OFFSET(InputPriceData!$E$15,CalculationsAndCharts!$A75+$A$11,IF($C$5,8,0),1,1))) -> 4188.03 | G75: =IF(A75>$B$30,NA(),IF(A75>$A$8,"",OFFSET(InputPriceData!$F$15,CalculationsAndCharts!$A75+$A$11,IF($C$5,8,0),1,1))) -> 4192.66 | H75: 4182.24625 | I75: 4149.404286 | J75: 0.7914862478 | K75: -0.47546651 | M75: 4187.930496 | O75: 4155.437238 | P75: 0.7819456028 | Q75: -0.01376340702 | T75: FALSE | U75: TRUE | V75: 0 | W75: 0 | X75: FALSE | Y75: FALSE | Z75: TRUE | AA75: -3245.18 | AB75: FALSE | AC75: FALSE | AD75: FALSE | AE75: -2047.2 | AW75: 4061170000
A76: 44 | B76: =IF(A76>$B$30,NA(),IF($A76>$A$8,"",OFFSET(InputPriceData!$B$15,$A76+$A$11,0,1,1))) -> 2021-04-30 | C76: =IF(A76>$B$30,NA(),IF($A76>$A$8,"",OFFSET(InputPriceData!$G$15,CalculationsAndCharts!$A76+$A$11,IF($C$5,8,0),1,1))) -> 4273680000 | D76: =IF(A76>$B$30,NA(),IF(A76>$A$8,"",OFFSET(InputPriceData!$C$15,CalculationsAndCharts!$A76+$A$11,IF($C$5,8,0),1,1))) -> 4198.1 | E76: =IF(A76>$B$30,NA(),IF(A76>$A$8,"",OFFSET(InputPriceData!$D$15,CalculationsAndCharts!$A76+$A$11,IF($C$5,8,0),1,1))) -> 4198.1 | F76: =IF(A76>$B$30,NA(),IF(A76>$A$8,"",OFFSET(InputPriceData!$E$15,CalculationsAndCharts!$A76+$A$11,IF($C$5,8,0),1,1))) -> 4174.85 | G76: =IF(A76>$B$30,NA(),IF(A76>$A$8,"",OFFSET(InputPriceData!$F$15,CalculationsAndCharts!$A76+$A$11,IF($C$5,8,0),1,1))) -> 4181.17 | H76: 4179.84125 | I76: 4141.17619 | J76: 0.9336733755 | K76: -0.3425449985 | M76: 4182.264158 | O76: 4149.645393 | P76: 0.7860615169 | Q76: 0.07170564631 | T76: FALSE | U76: FALSE | V76: -4198.1 | W76: 0 | X76: TRUE | Y76: FALSE | Z76: TRUE | AA76: -3245.18 | AB76: FALSE | AC76: TRUE | AD76: FALSE | AE76: -2047.2 | AX76: 4273680000
A77: 45 | B77: =IF(A77>$B$30,NA(),IF($A77>$A$8,"",OFFSET(InputPriceData!$B$15,$A77+$A$11,0,1,1))) -> 2021-04-29 | C77: =IF(A77>$B$30,NA(),IF($A77>$A$8,"",OFFSET(InputPriceData!$G$15,CalculationsAndCharts!$A77+$A$11,IF($C$5,8,0),1,1))) -> 4288940000 | D77: =IF(A77>$B$30,NA(),IF(A77>$A$8,"",OFFSET(InputPriceData!$C$15,CalculationsAndCharts!$A77+$A$11,IF($C$5,8,0),1,1))) -> 4206.14 | E77: =IF(A77>$B$30,NA(),IF(A77>$A$8,"",OFFSET(InputPriceData!$D$15,CalculationsAndCharts!$A77+$A$11,IF($C$5,8,0),1,1))) -> 4218.78 | F77: =IF(A77>$B$30,NA(),IF(A77>$A$8,"",OFFSET(InputPriceData!$E$15,CalculationsAndCharts!$A77+$A$11,IF($C$5,8,0),1,1))) -> 4176.81 | G77: =IF(A77>$B$30,NA(),IF(A77>$A$8,"",OFFSET(InputPriceData!$F$15,CalculationsAndCharts!$A77+$A$11,IF($C$5,8,0),1,1))) -> 4211.47 | H77: 4174.0625 | I77: 4131.258095 | J77: 1.036110642 | K77: -0.4986313653 | M77: 4174.630128 | O77: 4142.952364 | P77: 0.7646181141 | Q77: 0.005580497865 | T77: TRUE | U77: FALSE | V77: 0 | W77: 0 | X77: FALSE | Y77: FALSE | Z77: FALSE | AA77: 952.92 | AB77: FALSE | AC77: FALSE | AD77: TRUE | AE77: 2150.9 | AW77: 4288940000
A78: 46 | B78: =IF(A78>$B$30,NA(),IF($A78>$A$8,"",OFFSET(InputPriceData!$B$15,$A78+$A$11,0,1,1))) -> 2021-04-28 | C78: =IF(A78>$B$30,NA(),IF($A78>$A$8,"",OFFSET(InputPriceData!$G$15,CalculationsAndCharts!$A78+$A$11,IF($C$5,8,0),1,1))) -> 3772390000 | D78: =IF(A78>$B$30,NA(),IF(A78>$A$8,"",OFFSET(InputPriceData!$C$15,CalculationsAndCharts!$A78+$A$11,IF($C$5,8,0),1,1))) -> 4185.14 | E78: =IF(A78>$B$30,NA(),IF(A78>$A$8,"",OFFSET(InputPriceData!$D$15,CalculationsAndCharts!$A78+$A$11,IF($C$5,8,0),1,1))) -> 4201.53 | F78: =IF(A78>$B$30,NA(),IF(A78>$A$8,"",OFFSET(InputPriceData!$E$15,CalculationsAndCharts!$A78+$A$11,IF($C$5,8,0),1,1))) -> 4181.78 | G78: =IF(A78>$B$30,NA(),IF(A78>$A$8,"",OFFSET(InputPriceData!$F$15,CalculationsAndCharts!$A78+$A$11,IF($C$5,8,0),1,1))) -> 4183.18 | H78: 4168.03625 | I78: 4119.214286 | J78: 1.185225164 | K78: -0.8549232172 | M78: 4166.634447 | O78: 4135.085839 | P78: 0.7629492795 | Q78: -0.2892087915 | T78: FALSE | U78: FALSE | V78: 0 | W78: 0 | X78: FALSE | Y78: FALSE | Z78: FALSE | AA78: 952.92 | AB78: FALSE | AC78: FALSE | AD78: TRUE | AE78: 2150.9 | AX78: 3772390000
A79: 47 | B79: =IF(A79>$B$30,NA(),IF($A79>$A$8,"",OFFSET(InputPriceData!$B$15,$A79+$A$11,0,1,1))) -> 2021-04-27 | C79: =IF(A79>$B$30,NA(),IF($A79>$A$8,"",OFFSET(InputPriceData!$G$15,CalculationsAndCharts!$A79+$A$11,IF($C$5,8,0),1,1))) -> 3703240000 | D79: =IF(A79>$B$30,NA(),IF(A79>$A$8,"",OFFSET(InputPriceData!$C$15,CalculationsAndCharts!$A79+$A$11,IF($C$5,8,0),1,1))) -> 4188.25 | E79: =IF(A79>$B$30,NA(),IF(A79>$A$8,"",OFFSET(InputPriceData!$D$15,CalculationsAndCharts!$A79+$A$11,IF($C$5,8,0),1,1))) -> 4193.35 | F79: =IF(A79>$B$30,NA(),IF(A79>$A$8,"",OFFSET(InputPriceData!$E$15,CalculationsAndCharts!$A79+$A$11,IF($C$5,8,0),1,1))) -> 4176.22 | G79: =IF(A79>$B$30,NA(),IF(A79>$A$8,"",OFFSET(InputPriceData!$F$15,CalculationsAndCharts!$A79+$A$11,IF($C$5,8,0),1,1))) -> 4186.72 | H79: 4168.3225 | I79: 4109.114762 | J79: 1.440887917 | K79: -0.669921494 | M79: 4160.876939 | O79: 4125.830628 | P79: 0.84943648 | Q79: -0.7296366019 | T79: FALSE | U79: FALSE | V79: 0 | W79: 0 | X79: FALSE | Y79: FALSE | Z79: FALSE | AA79: 952.92 | AB79: FALSE | AC79: FALSE | AD79: TRUE | AE79: 2150.9 | AX79: 3703240000
A80: 48 | B80: =IF(A80>$B$30,NA(),IF($A80>$A$8,"",OFFSET(InputPriceData!$B$15,$A80+$A$11,0,1,1))) -> 2021-04-26 | C80: =IF(A80>$B$30,NA(),IF($A80>$A$8,"",OFFSET(InputPriceData!$G$15,CalculationsAndCharts!$A80+$A$11,IF($C$5,8,0),1,1))) -> 3738920000 | D80: =IF(A80>$B$30,NA(),IF(A80>$A$8,"",OFFSET(InputPriceData!$C$15,CalculationsAndCharts!$A80+$A$11,IF($C$5,8,0),1,1))) -> 4185.03 | E80: =IF(A80>$B$30,NA(),IF(A80>$A$8,"",OFFSET(InputPriceData!$D$15,CalculationsAndCharts!$A80+$A$11,IF($C$5,8,0),1,1))) -> 4194.19 | F80: =IF(A80>$B$30,NA(),IF(A80>$A$8,"",OFFSET(InputPriceData!$E$15,CalculationsAndCharts!$A80+$A$11,IF($C$5,8,0),1,1))) -> 4182.36 | G80: =IF(A80>$B$30,NA(),IF(A80>$A$8,"",OFFSET(InputPriceData!$F$15,CalculationsAndCharts!$A80+$A$11,IF($C$5,8,0),1,1))) -> 4187.62 | H80: 4166.285 | I80: 4099.010952 | J80: 1.641226345 | K80: -0.4575235684 | M80: 4159.044038 | O80: 4115.109786 | P80: 1.067632569 | Q80: -1.087829649 | T80: FALSE | U80: FALSE | V80: 0 | W80: 0 | X80: FALSE | Y80: FALSE | Z80: FALSE | AA80: 952.92 | AB80: FALSE | AC80: FALSE | AD80: TRUE | AE80: 2150.9 | AW80: 3738920000
A81: 49 | B81: =IF(A81>$B$30,NA(),IF($A81>$A$8,"",OFFSET(InputPriceData!$B$15,$A81+$A$11,0,1,1))) -> 2021-04-23 | C81: =IF(A81>$B$30,NA(),IF($A81>$A$8,"",OFFSET(InputPriceData!$G$15,CalculationsAndCharts!$A81+$A$11,IF($C$5,8,0),1,1))) -> 3568080000 | D81: =IF(A81>$B$30,NA(),IF(A81>$A$8,"",OFFSET(InputPriceData!$C$15,CalculationsAndCharts!$A81+$A$11,IF($C$5,8,0),1,1))) -> 4138.78 | E81: =IF(A81>$B$30,NA(),IF(A81>$A$8,"",OFFSET(InputPriceData!$D$15,CalculationsAndCharts!$A81+$A$11,IF($C$5,8,0),1,1))) -> 4194.17 | F81: =IF(A81>$B$30,NA(),IF(A81>$A$8,"",OFFSET(InputPriceData!$E$15,CalculationsAndCharts!$A81+$A$11,IF($C$5,8,0),1,1))) -> 4138.78 | G81: =IF(A81>$B$30,NA(),IF(A81>$A$8,"",OFFSET(InputPriceData!$F$15,CalculationsAndCharts!$A81+$A$11,IF($C$5,8,0),1,1))) -> 4180.17 | H81: 4158.415 | I81: 4085.768095 | J81: 1.778047678 | K81: -0.7622996394 | M81: 4160.048429 | O81: 4102.897308 | P81: 1.392945435 | Q81: -1.188090431 | T81: FALSE | U81: FALSE | V81: 0 | W81: 0 | X81: FALSE | Y81: FALSE | Z81: FALSE | AA81: 952.92 | AB81: FALSE | AC81: FALSE | AD81: TRUE | AE81: 2150.9 | AW81: 3568080000
A82: 50 | B82: =IF(A82>$B$30,NA(),IF($A82>$A$8,"",OFFSET(InputPriceData!$B$15,$A82+$A$11,0,1,1))) -> 2021-04-22 | C82: =IF(A82>$B$30,NA(),IF($A82>$A$8,"",OFFSET(InputPriceData!$G$15,CalculationsAndCharts!$A82+$A$11,IF($C$5,8,0),1,1))) -> 4235040000 | D82: =IF(A82>$B$30,NA(),IF(A82>$A$8,"",OFFSET(InputPriceData!$C$15,CalculationsAndCharts!$A82+$A$11,IF($C$5,8,0),1,1))) -> 4170.46 | E82: =IF(A82>$B$30,NA(),IF(A82>$A$8,"",OFFSET(InputPriceData!$D$15,CalculationsAndCharts!$A82+$A$11,IF($C$5,8,0),1,1))) -> 4179.57 | F82: =IF(A82>$B$30,NA(),IF(A82>$A$8,"",OFFSET(InputPriceData!$E$15,CalculationsAndCharts!$A82+$A$11,IF($C$5,8,0),1,1))) -> 4123.69 | G82: =IF(A82>$B$30,NA(),IF(A82>$A$8,"",OFFSET(InputPriceData!$F$15,CalculationsAndCharts!$A82+$A$11,IF($C$5,8,0),1,1))) -> 4134.98 | H82: 4153.5925 | I82: 4071.909524 | J82: 2.006011571 | K82: -0.8257923554 | M82: 4160.610339 | O82: 4089.122618 | P82: 1.748241049 | Q82: -1.0537383 | T82: FALSE | U82: FALSE | V82: 0 | W82: 0 | X82: FALSE | Y82: FALSE | Z82: FALSE | AA82: 952.92 | AB82: FALSE | AC82: FALSE | AD82: TRUE | AE82: 2150.9 | AX82: 4235040000
A83: 51 | B83: =IF(A83>$B$30,NA(),IF($A83>$A$8,"",OFFSET(InputPriceData!$B$15,$A83+$A$11,0,1,1))) -> 2021-04-21 | C83: =IF(A83>$B$30,NA(),IF($A83>$A$8,"",OFFSET(InputPriceData!$G$15,CalculationsAndCharts!$A83+$A$11,IF($C$5,8,0),1,1))) -> 3865820000 | D83: =IF(A83>$B$30,NA(),IF(A83>$A$8,"",OFFSET(InputPriceData!$C$15,CalculationsAndCharts!$A83+$A$11,IF($C$5,8,0),1,1))) -> 4128.42 | E83: =IF(A83>$B$30,NA(),IF(A83>$A$8,"",OFFSET(InputPriceData!$D$15,CalculationsAndCharts!$A83+$A$11,IF($C$5,8,0),1,1))) -> 4175.02 | F83: =IF(A83>$B$30,NA(),IF(A83>$A$8,"",OFFSET(InputPriceData!$E$15,CalculationsAndCharts!$A83+$A$11,IF($C$5,8,0),1,1))) -> 4126.35 | G83: =IF(A83>$B$30,NA(),IF(A83>$A$8,"",OFFSET(InputPriceData!$F$15,CalculationsAndCharts!$A83+$A$11,IF($C$5,8,0),1,1))) -> 4173.42 | H83: 4152.71875 | I83: 4061.220952 | J83: 2.252962808 | K83: -0.4755212605 | M83: 4157.913869 | O83: 4073.855604 | P83: 2.063358979 | Q83: -0.8657311093 | T83: FALSE | U83: FALSE | V83: 0 | W83: 0 | X83: FALSE | Y83: FALSE | Z83: FALSE | AA83: 952.92 | AB83: FALSE | AC83: FALSE | AD83: TRUE | AE83: 2150.9 | AW83: 3865820000
A84: 52 | B84: =IF(A84>$B$30,NA(),IF($A84>$A$8,"",OFFSET(InputPriceData!$B$15,$A84+$A$11,0,1,1))) -> 2021-04-20 | C84: =IF(A84>$B$30,NA(),IF($A84>$A$8,"",OFFSET(InputPriceData!$G$15,CalculationsAndCharts!$A84+$A$11,IF($C$5,8,0),1,1))) -> 4338230000 | D84: =IF(A84>$B$30,NA(),IF(A84>$A$8,"",OFFSET(InputPriceData!$C$15,CalculationsAndCharts!$A84+$A$11,IF($C$5,8,0),1,1))) -> 4159.18 | E84: =IF(A84>$B$30,NA(),IF(A84>$A$8,"",OFFSET(InputPriceData!$D$15,CalculationsAndCharts!$A84+$A$11,IF($C$5,8,0),1,1))) -> 4159.18 | F84: =IF(A84>$B$30,NA(),IF(A84>$A$8,"",OFFSET(InputPriceData!$E$15,CalculationsAndCharts!$A84+$A$11,IF($C$5,8,0),1,1))) -> 4118.38 | G84: =IF(A84>$B$30,NA(),IF(A84>$A$8,"",OFFSET(InputPriceData!$F$15,CalculationsAndCharts!$A84+$A$11,IF($C$5,8,0),1,1))) -> 4134.94 | H84: 4147.14125 | I84: 4050.13381 | J84: 2.395166309 | K84: -0.5045910833 | M84: 4151.703656 | O84: 4057.478703 | P84: 2.322253806 | Q84: -0.6977651655 | T84: FALSE | U84: FALSE | V84: 0 | W84: 0 | X84: FALSE | Y84: FALSE | Z84: FALSE | AA84: 952.92 | AB84: FALSE | AC84: FALSE | AD84: TRUE | AE84: 2150.9 | AX84: 4338230000
A85: 53 | B85: =IF(A85>$B$30,NA(),IF($A85>$A$8,"",OFFSET(InputPriceData!$B$15,$A85+$A$11,0,1,1))) -> 2021-04-19 | C85: =IF(A85>$B$30,NA(),IF($A85>$A$8,"",OFFSET(InputPriceData!$G$15,CalculationsAndCharts!$A85+$A$11,IF($C$5,8,0),1,1))) -> 3788020000 | D85: =IF(A85>$B$30,NA(),IF(A85>$A$8,"",OFFSET(InputPriceData!$C$15,CalculationsAndCharts!$A85+$A$11,IF($C$5,8,0),1,1))) -> 4179.8 | E85: =IF(A85>$B$30,NA(),IF(A85>$A$8,"",OFFSET(InputPriceData!$D$15,CalculationsAndCharts!$A85+$A$11,IF($C$5,8,0),1,1))) -> 4180.81 | F85: =IF(A85>$B$30,NA(),IF(A85>$A$8,"",OFFSET(InputPriceData!$E$15,CalculationsAndCharts!$A85+$A$11,IF($C$5,8,0),1,1))) -> 4150.47 | G85: =IF(A85>$B$30,NA(),IF(A85>$A$8,"",OFFSET(InputPriceData!$F$15,CalculationsAndCharts!$A85+$A$11,IF($C$5,8,0),1,1))) -> 4163.26 | H85: 4142.42 | I85: 4039.57 | J85: 2.546063071 | K85: -0.1400325782 | M85: 4142.742755 | O85: 4040.481449 | P85: 2.530918817 | Q85: -0.5508031629 | T85: FALSE | U85: FALSE | V85: 0 | W85: 0 | X85: FALSE | Y85: FALSE | Z85: FALSE | AA85: 952.92 | AB85: FALSE | AC85: FALSE | AD85: TRUE | AE85: 2150.9 | AX85: 3788020000
A86: 54 | B86: =IF(A86>$B$30,NA(),IF($A86>$A$8,"",OFFSET(InputPriceData!$B$15,$A86+$A$11,0,1,1))) -> 2021-04-16 | C86: =IF(A86>$B$30,NA(),IF($A86>$A$8,"",OFFSET(InputPriceData!$G$15,CalculationsAndCharts!$A86+$A$11,IF($C$5,8,0),1,1))) -> 4157430000 | D86: =IF(A86>$B$30,NA(),IF(A86>$A$8,"",OFFSET(InputPriceData!$C$15,CalculationsAndCharts!$A86+$A$11,IF($C$5,8,0),1,1))) -> 4174.14 | E86: =IF(A86>$B$30,NA(),IF(A86>$A$8,"",OFFSET(InputPriceData!$D$15,CalculationsAndCharts!$A86+$A$11,IF($C$5,8,0),1,1))) -> 4191.31 | F86: =IF(A86>$B$30,NA(),IF(A86>$A$8,"",OFFSET(InputPriceData!$E$15,CalculationsAndCharts!$A86+$A$11,IF($C$5,8,0),1,1))) -> 4170.75 | G86: =IF(A86>$B$30,NA(),IF(A86>$A$8,"",OFFSET(InputPriceData!$F$15,CalculationsAndCharts!$A86+$A$11,IF($C$5,8,0),1,1))) -> 4185.47 | H86: 4132.00625 | I86: 4027.77 | J86: 2.58793948 | K86: 0.3010029818 | M86: 4131.812478 | O86: 4023.357439 | P86: 2.695635192 | Q86: -0.4612849182 | T86: FALSE | U86: FALSE | V86: 0 | W86: 0 | X86: FALSE | Y86: FALSE | Z86: FALSE | AA86: 952.92 | AB86: FALSE | AC86: FALSE | AD86: TRUE | AE86: 2150.9 | AW86: 4157430000
A87: 55 | B87: =IF(A87>$B$30,NA(),IF($A87>$A$8,"",OFFSET(InputPriceData!$B$15,$A87+$A$11,0,1,1))) -> 2021-04-15 | C87: =IF(A87>$B$30,NA(),IF($A87>$A$8,"",OFFSET(InputPriceData!$G$15,CalculationsAndCharts!$A87+$A$11,IF($C$5,8,0),1,1))) -> 4027680000 | D87: =IF(A87>$B$30,NA(),IF(A87>$A$8,"",OFFSET(InputPriceData!$C$15,CalculationsAndCharts!$A87+$A$11,IF($C$5,8,0),1,1))) -> 4139.76 | E87: =IF(A87>$B$30,NA(),IF(A87>$A$8,"",OFFSET(InputPriceData!$D$15,CalculationsAndCharts!$A87+$A$11,IF($C$5,8,0),1,1))) -> 4173.49 | F87: =IF(A87>$B$30,NA(),IF(A87>$A$8,"",OFFSET(InputPriceData!$E$15,CalculationsAndCharts!$A87+$A$11,IF($C$5,8,0),1,1))) -> 4139.76 | G87: =IF(A87>$B$30,NA(),IF(A87>$A$8,"",OFFSET(InputPriceData!$F$15,CalculationsAndCharts!$A87+$A$11,IF($C$5,8,0),1,1))) -> 4170.42 | H87: 4118.065 | I87: 4017.705714 | J87: 2.497925255 | K87: 0.1189567254 | M87: 4120.275877 | O87: 4006.741595 | P87: 2.833581348 | Q87: -0.3432577314 | T87: FALSE | U87: FALSE | V87: 0 | W87: 4139.76 | X87: FALSE | Y87: TRUE | Z87: FALSE | AA87: 952.92 | AB87: TRUE | AC87: FALSE | AD87: TRUE | AE87: 2150.9 | AW87: 4027680000
A88: 56 | B88: =IF(A88>$B$30,NA(),IF($A88>$A$8,"",OFFSET(InputPriceData!$B$15,$A88+$A$11,0,1,1))) -> 2021-04-14 | C88: =IF(A88>$B$30,NA(),IF($A88>$A$8,"",OFFSET(InputPriceData!$G$15,CalculationsAndCharts!$A88+$A$11,IF($C$5,8,0),1,1))) -> 3976540000 | D88: =IF(A88>$B$30,NA(),IF(A88>$A$8,"",OFFSET(InputPriceData!$C$15,CalculationsAndCharts!$A88+$A$11,IF($C$5,8,0),1,1))) -> 4141.58 | E88: =IF(A88>$B$30,NA(),IF(A88>$A$8,"",OFFSET(InputPriceData!$D$15,CalculationsAndCharts!$A88+$A$11,IF($C$5,8,0),1,1))) -> 4151.69 | F88: =IF(A88>$B$30,NA(),IF(A88>$A$8,"",OFFSET(InputPriceData!$E$15,CalculationsAndCharts!$A88+$A$11,IF($C$5,8,0),1,1))) -> 4120.87 | G88: =IF(A88>$B$30,NA(),IF(A88>$A$8,"",OFFSET(InputPriceData!$F$15,CalculationsAndCharts!$A88+$A$11,IF($C$5,8,0),1,1))) -> 4124.66 | H88: 4106.50125 | I88: 4007.814762 | J88: 2.46235153 | K88: 0.4598242005 | M88: 4108.413147 | O88: 3991.22163 | P88: 2.936231756 | Q88: -0.08488963812 | T88: FALSE | U88: TRUE | V88: 0 | W88: 0 | X88: FALSE | Y88: FALSE | Z88: TRUE | AA88: -3186.84 | AB88: FALSE | AC88: FALSE | AD88: FALSE | AE88: -1988.86 | AX88: 3976540000
A89: 57 | B89: =IF(A89>$B$30,NA(),IF($A89>$A$8,"",OFFSET(InputPriceData!$B$15,$A89+$A$11,0,1,1))) -> 2021-04-13 | C89: =IF(A89>$B$30,NA(),IF($A89>$A$8,"",OFFSET(InputPriceData!$G$15,CalculationsAndCharts!$A89+$A$11,IF($C$5,8,0),1,1))) -> 3728440000 | D89: =IF(A89>$B$30,NA(),IF(A89>$A$8,"",OFFSET(InputPriceData!$C$15,CalculationsAndCharts!$A89+$A$11,IF($C$5,8,0),1,1))) -> 4130.1 | E89: =IF(A89>$B$30,NA(),IF(A89>$A$8,"",OFFSET(InputPriceData!$D$15,CalculationsAndCharts!$A89+$A$11,IF($C$5,8,0),1,1))) -> 4148 | F89: =IF(A89>$B$30,NA(),IF(A89>$A$8,"",OFFSET(InputPriceData!$E$15,CalculationsAndCharts!$A89+$A$11,IF($C$5,8,0),1,1))) -> 4124.43 | G89: =IF(A89>$B$30,NA(),IF(A89>$A$8,"",OFFSET(InputPriceData!$F$15,CalculationsAndCharts!$A89+$A$11,IF($C$5,8,0),1,1))) -> 4141.59 | H89: 4093.4025 | I89: 4000.399524 | J89: 2.324842197 | K89: 0.9574925862 | M89: 4095.065407 | O89: 3977.273759 | P89: 2.9616178 | Q89: 0.3492487869 | T89: FALSE | U89: FALSE | V89: 0 | W89: 0 | X89: FALSE | Y89: FALSE | Z89: TRUE | AA89: -3186.84 | AB89: FALSE | AC89: FALSE | AD89: FALSE | AE89: -1988.86 | AW89: 3728440000
A90: 58 | B90: =IF(A90>$B$30,NA(),IF($A90>$A$8,"",OFFSET(InputPriceData!$B$15,$A90+$A$11,0,1,1))) -> 2021-04-12 | C90: =IF(A90>$B$30,NA(),IF($A90>$A$8,"",OFFSET(InputPriceData!$G$15,CalculationsAndCharts!$A90+$A$11,IF($C$5,8,0),1,1))) -> 3578500000 | D90: =IF(A90>$B$30,NA(),IF(A90>$A$8,"",OFFSET(InputPriceData!$C$15,CalculationsAndCharts!$A90+$A$11,IF($C$5,8,0),1,1))) -> 4124.71 | E90: =IF(A90>$B$30,NA(),IF(A90>$A$8,"",OFFSET(InputPriceData!$D$15,CalculationsAndCharts!$A90+$A$11,IF($C$5,8,0),1,1))) -> 4131.76 | F90: =IF(A90>$B$30,NA(),IF(A90>$A$8,"",OFFSET(InputPriceData!$E$15,CalculationsAndCharts!$A90+$A$11,IF($C$5,8,0),1,1))) -> 4114.82 | G90: =IF(A90>$B$30,NA(),IF(A90>$A$8,"",OFFSET(InputPriceData!$F$15,CalculationsAndCharts!$A90+$A$11,IF($C$5,8,0),1,1))) -> 4127.99 | H90: 4072.315 | I90: 3990.959048 | J90: 2.038506319 | K90: 1.008862719 | M90: 4078.619384 | O90: 3965.323132 | P90: 2.857175782 | Q90: 0.89473999 | T90: FALSE | U90: FALSE | V90: 0 | W90: 0 | X90: FALSE | Y90: FALSE | Z90: TRUE | AA90: -3186.84 | AB90: FALSE | AC90: FALSE | AD90: FALSE | AE90: -1988.86 | AW90: 3578500000
A91: 59 | B91: =IF(A91>$B$30,NA(),IF($A91>$A$8,"",OFFSET(InputPriceData!$B$15,$A91+$A$11,0,1,1))) -> 2021-04-09 | C91: =IF(A91>$B$30,NA(),IF($A91>$A$8,"",OFFSET(InputPriceData!$G$15,CalculationsAndCharts!$A91+$A$11,IF($C$5,8,0),1,1))) -> 3634910000 | D91: =IF(A91>$B$30,NA(),IF(A91>$A$8,"",OFFSET(InputPriceData!$C$15,CalculationsAndCharts!$A91+$A$11,IF($C$5,8,0),1,1))) -> 4096.11 | E91: =IF(A91>$B$30,NA(),IF(A91>$A$8,"",OFFSET(InputPriceData!$D$15,CalculationsAndCharts!$A91+$A$11,IF($C$5,8,0),1,1))) -> 4129.48 | F91: =IF(A91>$B$30,NA(),IF(A91>$A$8,"",OFFSET(InputPriceData!$E$15,CalculationsAndCharts!$A91+$A$11,IF($C$5,8,0),1,1))) -> 4095.51 | G91: =IF(A91>$B$30,NA(),IF(A91>$A$8,"",OFFSET(InputPriceData!$F$15,CalculationsAndCharts!$A91+$A$11,IF($C$5,8,0),1,1))) -> 4128.8 | H91: 4051.135 | I91: 3981.975714 | J91: 1.736808325 | K91: 0.7218062853 | M91: 4058.06695 | O91: 3955.631678 | P91: 2.589605918 | Q91: 1.375856202 | T91: FALSE | U91: FALSE | V91: 0 | W91: 0 | X91: FALSE | Y91: FALSE | Z91: TRUE | AA91: -3186.84 | AB91: FALSE | AC91: FALSE | AD91: FALSE | AE91: -1988.86 | AW91: 3634910000
A92: 60 | B92: =IF(A92>$B$30,NA(),IF($A92>$A$8,"",OFFSET(InputPriceData!$B$15,$A92+$A$11,0,1,1))) -> 2021-04-08 | C92: =IF(A92>$B$30,NA(),IF($A92>$A$8,"",OFFSET(InputPriceData!$G$15,CalculationsAndCharts!$A92+$A$11,IF($C$5,8,0),1,1))) -> 3901910000 | D92: =IF(A92>$B$30,NA(),IF(A92>$A$8,"",OFFSET(InputPriceData!$C$15,CalculationsAndCharts!$A92+$A$11,IF($C$5,8,0),1,1))) -> 4089.95 | E92: =IF(A92>$B$30,NA(),IF(A92>$A$8,"",OFFSET(InputPriceData!$D$15,CalculationsAndCharts!$A92+$A$11,IF($C$5,8,0),1,1))) -> 4098.19 | F92: =IF(A92>$B$30,NA(),IF(A92>$A$8,"",OFFSET(InputPriceData!$E$15,CalculationsAndCharts!$A92+$A$11,IF($C$5,8,0),1,1))) -> 4082.54 | G92: =IF(A92>$B$30,NA(),IF(A92>$A$8,"",OFFSET(InputPriceData!$F$15,CalculationsAndCharts!$A92+$A$11,IF($C$5,8,0),1,1))) -> 4097.17 | H92: 4031.42125 | I92: 3971.02381 | J92: 1.520953874 | K92: 0.3892024049 | M92: 4034.188055 | O92: 3948.19018 | P92: 2.178159397 | Q92: 1.571111851 | T92: FALSE | U92: FALSE | V92: 0 | W92: 0 | X92: FALSE | Y92: FALSE | Z92: TRUE | AA92: -3186.84 | AB92: FALSE | AC92: FALSE | AD92: FALSE | AE92: -1988.86 | AW92: 3901910000
A93: 61 | B93: =IF(A93>$B$30,NA(),IF($A93>$A$8,"",OFFSET(InputPriceData!$B$15,$A93+$A$11,0,1,1))) -> 2021-04-07 | C93: =IF(A93>$B$30,NA(),IF($A93>$A$8,"",OFFSET(InputPriceData!$G$15,CalculationsAndCharts!$A93+$A$11,IF($C$5,8,0),1,1))) -> 4112640000 | D93: =IF(A93>$B$30,NA(),IF(A93>$A$8,"",OFFSET(InputPriceData!$C$15,CalculationsAndCharts!$A93+$A$11,IF($C$5,8,0),1,1))) -> 4074.29 | E93: =IF(A93>$B$30,NA(),IF(A93>$A$8,"",OFFSET(InputPriceData!$D$15,CalculationsAndCharts!$A93+$A$11,IF($C$5,8,0),1,1))) -> 4083.13 | F93: =IF(A93>$B$30,NA(),IF(A93>$A$8,"",OFFSET(InputPriceData!$E$15,CalculationsAndCharts!$A93+$A$11,IF($C$5,8,0),1,1))) -> 4068.31 | G93: =IF(A93>$B$30,NA(),IF(A93>$A$8,"",OFFSET(InputPriceData!$F$15,CalculationsAndCharts!$A93+$A$11,IF($C$5,8,0),1,1))) -> 4079.95 | H93: 4016.0925 | I93: 3960.465238 | J93: 1.404563822 | K93: 0.7467276389 | M93: 4010.067276 | O93: 3942.713037 | P93: 1.708322138 | Q93: 1.51562417 | T93: FALSE | U93: FALSE | V93: 0 | W93: 0 | X93: FALSE | Y93: FALSE | Z93: TRUE | AA93: -3186.84 | AB93: FALSE | AC93: FALSE | AD93: FALSE | AE93: -1988.86 | AW93: 4112640000
A94: 62 | B94: =IF(A94>$B$30,NA(),IF($A94>$A$8,"",OFFSET(InputPriceData!$B$15,$A94+$A$11,0,1,1))) -> 2021-04-06 | C94: =IF(A94>$B$30,NA(),IF($A94>$A$8,"",OFFSET(InputPriceData!$G$15,CalculationsAndCharts!$A94+$A$11,IF($C$5,8,0),1,1))) -> 4027880000 | D94: =IF(A94>$B$30,NA(),IF(A94>$A$8,"",OFFSET(InputPriceData!$C$15,CalculationsAndCharts!$A94+$A$11,IF($C$5,8,0),1,1))) -> 4075.57 | E94: =IF(A94>$B$30,NA(),IF(A94>$A$8,"",OFFSET(InputPriceData!$D$15,CalculationsAndCharts!$A94+$A$11,IF($C$5,8,0),1,1))) -> 4086.23 | F94: =IF(A94>$B$30,NA(),IF(A94>$A$8,"",OFFSET(InputPriceData!$E$15,CalculationsAndCharts!$A94+$A$11,IF($C$5,8,0),1,1))) -> 4068.14 | G94: =IF(A94>$B$30,NA(),IF(A94>$A$8,"",OFFSET(InputPriceData!$F$15,CalculationsAndCharts!$A94+$A$11,IF($C$5,8,0),1,1))) -> 4073.94 | H94: 3994.78875 | I94: 3948.150952 | J94: 1.181256699 | K94: 1.012575911 | M94: 3988.103022 | O94: 3938.669633 | P94: 1.255078339 | Q94: 1.36800313 | T94: FALSE | U94: FALSE | V94: 0 | W94: 0 | X94: FALSE | Y94: FALSE | Z94: TRUE | AA94: -3186.84 | AB94: FALSE | AC94: FALSE | AD94: FALSE | AE94: -1988.86 | AX94: 4027880000
A95: 63 | B95: =IF(A95>$B$30,NA(),IF($A95>$A$8,"",OFFSET(InputPriceData!$B$15,$A95+$A$11,0,1,1))) -> 2021-04-05 | C95: =IF(A95>$B$30,NA(),IF($A95>$A$8,"",OFFSET(InputPriceData!$G$15,CalculationsAndCharts!$A95+$A$11,IF($C$5,8,0),1,1))) -> 3999760000 | D95: =IF(A95>$B$30,NA(),IF(A95>$A$8,"",OFFSET(InputPriceData!$C$15,CalculationsAndCharts!$A95+$A$11,IF($C$5,8,0),1,1))) -> 4034.44 | E95: =IF(A95>$B$30,NA(),IF(A95>$A$8,"",OFFSET(InputPriceData!$D$15,CalculationsAndCharts!$A95+$A$11,IF($C$5,8,0),1,1))) -> 4083.42 | F95: =IF(A95>$B$30,NA(),IF(A95>$A$8,"",OFFSET(InputPriceData!$E$15,CalculationsAndCharts!$A95+$A$11,IF($C$5,8,0),1,1))) -> 4034.44 | G95: =IF(A95>$B$30,NA(),IF(A95>$A$8,"",OFFSET(InputPriceData!$F$15,CalculationsAndCharts!$A95+$A$11,IF($C$5,8,0),1,1))) -> 4077.91 | H95: 3971.68875 | I95: 3937.103333 | J95: 0.8784482839 | K95: 0.5165558759 | M95: 3968.734521 | O95: 3935.441463 | P95: 0.84598026 | Q95: 1.168382398 | T95: FALSE | U95: FALSE | V95: 0 | W95: 0 | X95: FALSE | Y95: FALSE | Z95: TRUE | AA95: -3186.84 | AB95: FALSE | AC95: FALSE | AD95: FALSE | AE95: -1988.86 | AW95: 3999760000
A96: 64 | B96: =IF(A96>$B$30,NA(),IF($A96>$A$8,"",OFFSET(InputPriceData!$B$15,$A96+$A$11,0,1,1))) -> 2021-04-01 | C96: =IF(A96>$B$30,NA(),IF($A96>$A$8,"",OFFSET(InputPriceData!$G$15,CalculationsAndCharts!$A96+$A$11,IF($C$5,8,0),1,1))) -> 4151240000 | D96: =IF(A96>$B$30,NA(),IF(A96>$A$8,"",OFFSET(InputPriceData!$C$15,CalculationsAndCharts!$A96+$A$11,IF($C$5,8,0),1,1))) -> 3992.78 | E96: =IF(A96>$B$30,NA(),IF(A96>$A$8,"",OFFSET(InputPriceData!$D$15,CalculationsAndCharts!$A96+$A$11,IF($C$5,8,0),1,1))) -> 4020.63 | F96: =IF(A96>$B$30,NA(),IF(A96>$A$8,"",OFFSET(InputPriceData!$E$15,CalculationsAndCharts!$A96+$A$11,IF($C$5,8,0),1,1))) -> 3992.78 | G96: =IF(A96>$B$30,NA(),IF(A96>$A$8,"",OFFSET(InputPriceData!$F$15,CalculationsAndCharts!$A96+$A$11,IF($C$5,8,0),1,1))) -> 4019.87 | H96: 3950.765 | I96: 3922.368095 | J96: 0.7239734791 | K96: 0.02649684001 | M96: 3951.816278 | O96: 3932.289383 | P96: 0.4965782858 | Q96: 0.8930880713 | T96: FALSE | U96: FALSE | V96: 0 | W96: 0 | X96: FALSE | Y96: FALSE | Z96: TRUE | AA96: -3186.84 | AB96: FALSE | AC96: FALSE | AD96: FALSE | AE96: -1988.86 | AW96: 4151240000
A97: 65 | B97: =IF(A97>$B$30,NA(),IF($A97>$A$8,"",OFFSET(InputPriceData!$B$15,$A97+$A$11,0,1,1))) -> 2021-03-31 | C97: =IF(A97>$B$30,NA(),IF($A97>$A$8,"",OFFSET(InputPriceData!$G$15,CalculationsAndCharts!$A97+$A$11,IF($C$5,8,0),1,1))) -> 4564980000 | D97: =IF(A97>$B$30,NA(),IF(A97>$A$8,"",OFFSET(InputPriceData!$C$15,CalculationsAndCharts!$A97+$A$11,IF($C$5,8,0),1,1))) -> 3967.25 | E97: =IF(A97>$B$30,NA(),IF(A97>$A$8,"",OFFSET(InputPriceData!$D$15,CalculationsAndCharts!$A97+$A$11,IF($C$5,8,0),1,1))) -> 3994.41 | F97: =IF(A97>$B$30,NA(),IF(A97>$A$8,"",OFFSET(InputPriceData!$E$15,CalculationsAndCharts!$A97+$A$11,IF($C$5,8,0),1,1))) -> 3966.98 | G97: =IF(A97>$B$30,NA(),IF(A97>$A$8,"",OFFSET(InputPriceData!$F$15,CalculationsAndCharts!$A97+$A$11,IF($C$5,8,0),1,1))) -> 3972.89 | H97: =IF($A97<=H$30,AVERAGE(OFFSET(G97,0,0,$A$18,1)),NA()) -> 3940.855 | I97: =IF($A97<=I$30,AVERAGE(OFFSET(G97,0,0,$A$22,1)),NA()) -> 3912.837143 | J97: =IF($A97<=J$30,100*(H97-I97)/I97,NA()) -> 0.7160496622 | K97: 0.2184590706 | L97: =IF($A97>$D$18+1,NA(),IF($A97=$D$18+1,SUM(OFFSET(L$33,0,0,$A$18,1)),IF($A97=$D$18,"-- Coef Sum--",1-COS(RADIANS(360*$A97/$D$18))))) ->  | M97: =IF($A97<=M$30,SUMPRODUCT(OFFSET(L$33,0,0,$A$18,1),OFFSET($G97,0,0,$A$18,1))/OFFSET(L$33,$D$18,0,1,1),NA()) -> 3937.446773 | N97: =IF($A97>$D$22+1,NA(),IF($A97=$D$22+1,SUM(OFFSET(N$33,0,0,$A$22,1)),IF($A97=$D$22,"-- Coef Sum--",1-COS(RADIANS(360*$A97/$D$22))))) ->  | O97: =IF($A97<=O$30,SUMPRODUCT(OFFSET(N$33,0,0,$A$22,1),OFFSET($G97,0,0,$A$22,1))/OFFSET(N$33,$D$22,0,1,1),NA()) -> 3928.430929 | P97: =IF($A97<=P$30,100*(M97-O97)/O97,NA()) -> 0.2295024244 | Q97: 0.5478374695 | T97: =IF($A97<=T$30,IF(AND(Q97>=0,Q98<=0),TRUE,FALSE),NA()) -> FALSE | U97: =IF($A97<=T$30,IF(AND(Q97<=0,Q98>=0),TRUE,FALSE),NA()) -> FALSE | V97: =IF($A97<=$V$30,IF(T98,-$D97,0),NA()) -> -3967.25 | W97: =IF($A97<=$V$30,IF(U98,$D97,0),NA()) -> 0 | X97: =IF($A97<=$V$30,T98,NA()) -> TRUE | Y97: =IF($A97<=$V$30,AND(U98,IF($A97=$V$30,FALSE,Z98)),NA()) -> FALSE | Z97: =IF($A97>$V$30,NA(),IF($A97=$V$30,FALSE,IF(AND(T98,NOT(Z98)),TRUE,IF(AND(Z98,U98),FALSE,Z98)))) -> TRUE | AA97: =IF($A97>$V$30,NA(),IF($A97=$V$30,0,AA98)+IF(X97,$V97,0)+IF(Y97,$W97,0)+IF(AND(Z97,$A97=1),$G97,0)) -> -3186.84 | AB97: =IF($A97<=$V$30,U98,NA()) -> FALSE | AC97: =IF($A97<=$V$30,AND(T98,IF($A97=$V$30,FALSE,AD98)),NA()) -> TRUE | AD97: =IF($A97>$V$30,NA(),IF($A97=$V$30,FALSE,IF(AND(U98,NOT(AD98)),TRUE,IF(AND(AD98,T98),FALSE,AD98)))) -> FALSE | AE97: =IF($A97>$V$30,NA(),IF($A97=$V$30,0,AE98)+IF(AB97,$W97,0)+IF(AC97,$V97,0)+IF(AND(AD97,$A97=1),$G97,0)) -> -1988.86 | AW97: =IF(G97>=D97,C97,NA()) -> 4564980000 | AX97: =IF(G97<D97,C97,NA()) -> 
A98: 66 | B98: =IF(A98>$B$30,NA(),IF($A98>$A$8,"",OFFSET(InputPriceData!$B$15,$A98+$A$11,0,1,1))) -> 2021-03-30 | C98: =IF(A98>$B$30,NA(),IF($A98>$A$8,"",OFFSET(InputPriceData!$G$15,CalculationsAndCharts!$A98+$A$11,IF($C$5,8,0),1,1))) -> 4103570000 | D98: =IF(A98>$B$30,NA(),IF(A98>$A$8,"",OFFSET(InputPriceData!$C$15,CalculationsAndCharts!$A98+$A$11,IF($C$5,8,0),1,1))) -> 3963.34 | E98: =IF(A98>$B$30,NA(),IF(A98>$A$8,"",OFFSET(InputPriceData!$D$15,CalculationsAndCharts!$A98+$A$11,IF($C$5,8,0),1,1))) -> 3968.01 | F98: =IF(A98>$B$30,NA(),IF(A98>$A$8,"",OFFSET(InputPriceData!$E$15,CalculationsAndCharts!$A98+$A$11,IF($C$5,8,0),1,1))) -> 3944.35 | G98: =IF(A98>$B$30,NA(),IF(A98>$A$8,"",OFFSET(InputPriceData!$F$15,CalculationsAndCharts!$A98+$A$11,IF($C$5,8,0),1,1))) -> 3958.55 | H98: 3933.38125 | I98: 3907.951429 | J98: 0.6507199973 | K98: =IF($A98<=K$30,$C$22*(J98-J99),NA()) -> 0.2283880329 | M98: 3926.004522 | O98: 3923.427892 | P98: 0.06567293356 | Q98: =IF($A98<=Q$30,$C$22*(P98-P99),NA()) -> 0.1089946447 | T98: TRUE | U98: FALSE | V98: 0 | W98: 0 | X98: FALSE | Y98: FALSE | Z98: FALSE | AA98: 780.41 | AB98: FALSE | AC98: FALSE | AD98: TRUE | AE98: 1978.39 | AX98: 4103570000
A99: 67 | B99: =IF(A99>$B$30,NA(),IF($A99>$A$8,"",OFFSET(InputPriceData!$B$15,$A99+$A$11,0,1,1))) -> 2021-03-29 | C99: =IF(A99>$B$30,NA(),IF($A99>$A$8,"",OFFSET(InputPriceData!$G$15,CalculationsAndCharts!$A99+$A$11,IF($C$5,8,0),1,1))) -> 4619840000 | D99: =IF(A99>$B$30,NA(),IF(A99>$A$8,"",OFFSET(InputPriceData!$C$15,CalculationsAndCharts!$A99+$A$11,IF($C$5,8,0),1,1))) -> 3969.31 | E99: =IF(A99>$B$30,NA(),IF(A99>$A$8,"",OFFSET(InputPriceData!$D$15,CalculationsAndCharts!$A99+$A$11,IF($C$5,8,0),1,1))) -> 3981.83 | F99: =IF(A99>$B$30,NA(),IF(A99>$A$8,"",OFFSET(InputPriceData!$E$15,CalculationsAndCharts!$A99+$A$11,IF($C$5,8,0),1,1))) -> 3943.25 | G99: =IF(A99>$B$30,NA(),IF(A99>$A$8,"",OFFSET(InputPriceData!$F$15,CalculationsAndCharts!$A99+$A$11,IF($C$5,8,0),1,1))) -> 3971.09 | H99: 3927.995 | I99: 3905.25 | J99: 0.5824210998 | K99: -0.6897263 | M99: 3918.575092 | O99: 3917.279321 | P99: 0.03307834456 | Q99: -0.5278514229 | T99: FALSE | U99: FALSE | V99: 0 | W99: 0 | X99: FALSE | Y99: FALSE | Z99: FALSE | AA99: 780.41 | AB99: FALSE | AC99: FALSE | AD99: TRUE | AE99: 1978.39 | AW99: 4619840000
A100: 68 | B100: =IF(A100>$B$30,NA(),IF($A100>$A$8,"",OFFSET(InputPriceData!$B$15,$A100+$A$11,0,1,1))) -> 2021-03-26 | C100: =IF(A100>$B$30,NA(),IF($A100>$A$8,"",OFFSET(InputPriceData!$G$15,CalculationsAndCharts!$A100+$A$11,IF($C$5,8,0),1,1))) -> 5467850000 | D100: =IF(A100>$B$30,NA(),IF(A100>$A$8,"",OFFSET(InputPriceData!$C$15,CalculationsAndCharts!$A100+$A$11,IF($C$5,8,0),1,1))) -> 3917.12 | E100: =IF(A100>$B$30,NA(),IF(A100>$A$8,"",OFFSET(InputPriceData!$D$15,CalculationsAndCharts!$A100+$A$11,IF($C$5,8,0),1,1))) -> 3978.19 | F100: =IF(A100>$B$30,NA(),IF(A100>$A$8,"",OFFSET(InputPriceData!$E$15,CalculationsAndCharts!$A100+$A$11,IF($C$5,8,0),1,1))) -> 3917.12 | G100: =IF(A100>$B$30,NA(),IF(A100>$A$8,"",OFFSET(InputPriceData!$F$15,CalculationsAndCharts!$A100+$A$11,IF($C$5,8,0),1,1))) -> 3974.54 | H100: 3928.37375 | I100: 3897.63381 | J100: 0.7886821076 | K100: -0.4718537455 | M100: 3917.546643 | O100: 3910.081084 | P100: 0.1909310558 | Q100: -1.221532913 | T100: FALSE | U100: FALSE | V100: 0 | W100: 0 | X100: FALSE | Y100: FALSE | Z100: FALSE | AA100: 780.41 | AB100: FALSE | AC100: FALSE | AD100: TRUE | AE100: 1978.39 | AW100: 5467850000
A101: 69 | B101: =IF(A101>$B$30,NA(),IF($A101>$A$8,"",OFFSET(InputPriceData!$B$15,$A101+$A$11,0,1,1))) -> 2021-03-25 | C101: =IF(A101>$B$30,NA(),IF($A101>$A$8,"",OFFSET(InputPriceData!$G$15,CalculationsAndCharts!$A101+$A$11,IF($C$5,8,0),1,1))) -> 4940800000 | D101: =IF(A101>$B$30,NA(),IF(A101>$A$8,"",OFFSET(InputPriceData!$C$15,CalculationsAndCharts!$A101+$A$11,IF($C$5,8,0),1,1))) -> 3879.34 | E101: =IF(A101>$B$30,NA(),IF(A101>$A$8,"",OFFSET(InputPriceData!$D$15,CalculationsAndCharts!$A101+$A$11,IF($C$5,8,0),1,1))) -> 3919.54 | F101: =IF(A101>$B$30,NA(),IF(A101>$A$8,"",OFFSET(InputPriceData!$E$15,CalculationsAndCharts!$A101+$A$11,IF($C$5,8,0),1,1))) -> 3853.5 | G101: =IF(A101>$B$30,NA(),IF(A101>$A$8,"",OFFSET(InputPriceData!$F$15,CalculationsAndCharts!$A101+$A$11,IF($C$5,8,0),1,1))) -> 3909.52 | H101: 3926.895 | I101: 3890.719524 | J101: 0.9297888467 | K101: -0.5725380256 | M101: 3923.587303 | O101: 3901.883948 | P101: 0.5562275649 | Q101: -1.619375152 | T101: FALSE | U101: FALSE | V101: 0 | W101: 0 | X101: FALSE | Y101: FALSE | Z101: FALSE | AA101: 780.41 | AB101: FALSE | AC101: FALSE | AD101: TRUE | AE101: 1978.39 | AW101: 4940800000
A102: 70 | B102: =IF(A102>$B$30,NA(),IF($A102>$A$8,"",OFFSET(InputPriceData!$B$15,$A102+$A$11,0,1,1))) -> 2021-03-24 | C102: =IF(A102>$B$30,NA(),IF($A102>$A$8,"",OFFSET(InputPriceData!$G$15,CalculationsAndCharts!$A102+$A$11,IF($C$5,8,0),1,1))) -> 4766990000 | D102: =IF(A102>$B$30,NA(),IF(A102>$A$8,"",OFFSET(InputPriceData!$C$15,CalculationsAndCharts!$A102+$A$11,IF($C$5,8,0),1,1))) -> 3919.93 | E102: =IF(A102>$B$30,NA(),IF(A102>$A$8,"",OFFSET(InputPriceData!$D$15,CalculationsAndCharts!$A102+$A$11,IF($C$5,8,0),1,1))) -> 3942.08 | F102: =IF(A102>$B$30,NA(),IF(A102>$A$8,"",OFFSET(InputPriceData!$E$15,CalculationsAndCharts!$A102+$A$11,IF($C$5,8,0),1,1))) -> 3889.07 | G102: =IF(A102>$B$30,NA(),IF(A102>$A$8,"",OFFSET(InputPriceData!$F$15,CalculationsAndCharts!$A102+$A$11,IF($C$5,8,0),1,1))) -> 3889.14 | H102: 3934.3225 | I102: 3891.477143 | J102: 1.10100498 | K102: -0.6143788221 | M102: 3933.507167 | O102: 3893.00058 | P102: 1.040497848 | Q102: -1.633811416 | T102: FALSE | U102: FALSE | V102: 0 | W102: 0 | X102: FALSE | Y102: FALSE | Z102: FALSE | AA102: 780.41 | AB102: FALSE | AC102: FALSE | AD102: TRUE | AE102: 1978.39 | AX102: 4766990000
A103: 71 | B103: =IF(A103>$B$30,NA(),IF($A103>$A$8,"",OFFSET(InputPriceData!$B$15,$A103+$A$11,0,1,1))) -> 2021-03-23 | C103: =IF(A103>$B$30,NA(),IF($A103>$A$8,"",OFFSET(InputPriceData!$G$15,CalculationsAndCharts!$A103+$A$11,IF($C$5,8,0),1,1))) -> 4645340000 | D103: =IF(A103>$B$30,NA(),IF(A103>$A$8,"",OFFSET(InputPriceData!$C$15,CalculationsAndCharts!$A103+$A$11,IF($C$5,8,0),1,1))) -> 3937.6 | E103: =IF(A103>$B$30,NA(),IF(A103>$A$8,"",OFFSET(InputPriceData!$D$15,CalculationsAndCharts!$A103+$A$11,IF($C$5,8,0),1,1))) -> 3949.13 | F103: =IF(A103>$B$30,NA(),IF(A103>$A$8,"",OFFSET(InputPriceData!$E$15,CalculationsAndCharts!$A103+$A$11,IF($C$5,8,0),1,1))) -> 3901.57 | G103: =IF(A103>$B$30,NA(),IF(A103>$A$8,"",OFFSET(InputPriceData!$F$15,CalculationsAndCharts!$A103+$A$11,IF($C$5,8,0),1,1))) -> 3910.52 | H103: 3941.0975 | I103: 3891.107143 | J103: 1.284733504 | K103: -0.4507887491 | M103: 3943.398203 | O103: 3884.008403 | P103: 1.529085262 | Q103: -1.380092158 | T103: FALSE | U103: FALSE | V103: 0 | W103: 0 | X103: FALSE | Y103: FALSE | Z103: FALSE | AA103: 780.41 | AB103: FALSE | AC103: FALSE | AD103: TRUE | AE103: 1978.39 | AX103: 4645340000
A104: 72 | B104: =IF(A104>$B$30,NA(),IF($A104>$A$8,"",OFFSET(InputPriceData!$B$15,$A104+$A$11,0,1,1))) -> 2021-03-22 | C104: =IF(A104>$B$30,NA(),IF($A104>$A$8,"",OFFSET(InputPriceData!$G$15,CalculationsAndCharts!$A104+$A$11,IF($C$5,8,0),1,1))) -> 4311380000 | D104: =IF(A104>$B$30,NA(),IF(A104>$A$8,"",OFFSET(InputPriceData!$C$15,CalculationsAndCharts!$A104+$A$11,IF($C$5,8,0),1,1))) -> 3916.48 | E104: =IF(A104>$B$30,NA(),IF(A104>$A$8,"",OFFSET(InputPriceData!$D$15,CalculationsAndCharts!$A104+$A$11,IF($C$5,8,0),1,1))) -> 3955.31 | F104: =IF(A104>$B$30,NA(),IF(A104>$A$8,"",OFFSET(InputPriceData!$E$15,CalculationsAndCharts!$A104+$A$11,IF($C$5,8,0),1,1))) -> 3914.16 | G104: =IF(A104>$B$30,NA(),IF(A104>$A$8,"",OFFSET(InputPriceData!$F$15,CalculationsAndCharts!$A104+$A$11,IF($C$5,8,0),1,1))) -> 3940.59 | H104: 3944.7 | I104: 3889.487143 | J104: 1.419540806 | K104: 0.3084535956 | M104: 3950.81639 | O104: 3875.560807 | P104: 1.941798536 | Q104: -0.8527354957 | T104: FALSE | U104: FALSE | V104: 0 | W104: 3916.48 | X104: FALSE | Y104: TRUE | Z104: FALSE | AA104: 780.41 | AB104: TRUE | AC104: FALSE | AD104: TRUE | AE104: 1978.39 | AW104: 4311380000
A105: 73 | B105: =IF(A105>$B$30,NA(),IF($A105>$A$8,"",OFFSET(InputPriceData!$B$15,$A105+$A$11,0,1,1))) -> 2021-03-19 | C105: =IF(A105>$B$30,NA(),IF($A105>$A$8,"",OFFSET(InputPriceData!$G$15,CalculationsAndCharts!$A105+$A$11,IF($C$5,8,0),1,1))) -> 7725050000 | D105: =IF(A105>$B$30,NA(),IF(A105>$A$8,"",OFFSET(InputPriceData!$C$15,CalculationsAndCharts!$A105+$A$11,IF($C$5,8,0),1,1))) -> 3913.14 | E105: =IF(A105>$B$30,NA(),IF(A105>$A$8,"",OFFSET(InputPriceData!$D$15,CalculationsAndCharts!$A105+$A$11,IF($C$5,8,0),1,1))) -> 3930.12 | F105: =IF(A105>$B$30,NA(),IF(A105>$A$8,"",OFFSET(InputPriceData!$E$15,CalculationsAndCharts!$A105+$A$11,IF($C$5,8,0),1,1))) -> 3886.75 | G105: =IF(A105>$B$30,NA(),IF(A105>$A$8,"",OFFSET(InputPriceData!$F$15,CalculationsAndCharts!$A105+$A$11,IF($C$5,8,0),1,1))) -> 3913.1 | H105: 3939.4775 | I105: 3887.87381 | J105: 1.327298493 | K105: 0.4084969183 | M105: 3953.291225 | O105: 3868.311877 | P105: 2.196807056 | Q105: -0.001365169268 | T105: FALSE | U105: TRUE | V105: 0 | W105: 0 | X105: FALSE | Y105: FALSE | Z105: TRUE | AA105: -3136.07 | AB105: FALSE | AC105: FALSE | AD105: FALSE | AE105: -1938.09 | AX105: 7725050000
A106: 74 | B106: =IF(A106>$B$30,NA(),IF($A106>$A$8,"",OFFSET(InputPriceData!$B$15,$A106+$A$11,0,1,1))) -> 2021-03-18 | C106: =IF(A106>$B$30,NA(),IF($A106>$A$8,"",OFFSET(InputPriceData!$G$15,CalculationsAndCharts!$A106+$A$11,IF($C$5,8,0),1,1))) -> 4043170000 | D106: =IF(A106>$B$30,NA(),IF(A106>$A$8,"",OFFSET(InputPriceData!$C$15,CalculationsAndCharts!$A106+$A$11,IF($C$5,8,0),1,1))) -> 3953.5 | E106: =IF(A106>$B$30,NA(),IF(A106>$A$8,"",OFFSET(InputPriceData!$D$15,CalculationsAndCharts!$A106+$A$11,IF($C$5,8,0),1,1))) -> 3969.62 | F106: =IF(A106>$B$30,NA(),IF(A106>$A$8,"",OFFSET(InputPriceData!$E$15,CalculationsAndCharts!$A106+$A$11,IF($C$5,8,0),1,1))) -> 3910.86 | G106: =IF(A106>$B$30,NA(),IF(A106>$A$8,"",OFFSET(InputPriceData!$F$15,CalculationsAndCharts!$A106+$A$11,IF($C$5,8,0),1,1))) -> 3915.46 | H106: 3934.77 | I106: 3887.915238 | J106: 1.205138462 | K106: 1.077357942 | M106: 3947.666726 | O106: 3862.79285 | P106: 2.197215307 | Q106: 1.017148511 | T106: FALSE | U106: FALSE | V106: 0 | W106: 0 | X106: FALSE | Y106: FALSE | Z106: TRUE | AA106: -3136.07 | AB106: FALSE | AC106: FALSE | AD106: FALSE | AE106: -1938.09 | AX106: 4043170000
A107: 75 | B107: =IF(A107>$B$30,NA(),IF($A107>$A$8,"",OFFSET(InputPriceData!$B$15,$A107+$A$11,0,1,1))) -> 2021-03-17 | C107: =IF(A107>$B$30,NA(),IF($A107>$A$8,"",OFFSET(InputPriceData!$G$15,CalculationsAndCharts!$A107+$A$11,IF($C$5,8,0),1,1))) -> 4541620000 | D107: =IF(A107>$B$30,NA(),IF(A107>$A$8,"",OFFSET(InputPriceData!$C$15,CalculationsAndCharts!$A107+$A$11,IF($C$5,8,0),1,1))) -> 3949.57 | E107: =IF(A107>$B$30,NA(),IF(A107>$A$8,"",OFFSET(InputPriceData!$D$15,CalculationsAndCharts!$A107+$A$11,IF($C$5,8,0),1,1))) -> 3983.87 | F107: =IF(A107>$B$30,NA(),IF(A107>$A$8,"",OFFSET(InputPriceData!$E$15,CalculationsAndCharts!$A107+$A$11,IF($C$5,8,0),1,1))) -> 3935.74 | G107: =IF(A107>$B$30,NA(),IF(A107>$A$8,"",OFFSET(InputPriceData!$F$15,CalculationsAndCharts!$A107+$A$11,IF($C$5,8,0),1,1))) -> 3974.12 | H107: 3923.00625 | I107: 3888.670952 | J107: 0.8829571347 | K107: 1.249878654 | M107: 3932.496032 | O107: 3859.435397 | P107: 1.893039466 | Q107: 1.823343431 | T107: FALSE | U107: FALSE | V107: 0 | W107: 0 | X107: FALSE | Y107: FALSE | Z107: TRUE | AA107: -3136.07 | AB107: FALSE | AC107: FALSE | AD107: FALSE | AE107: -1938.09 | AW107: 4541620000
A108: 76 | B108: =IF(A108>$B$30,NA(),IF($A108>$A$8,"",OFFSET(InputPriceData!$B$15,$A108+$A$11,0,1,1))) -> 2021-03-16 | C108: =IF(A108>$B$30,NA(),IF($A108>$A$8,"",OFFSET(InputPriceData!$G$15,CalculationsAndCharts!$A108+$A$11,IF($C$5,8,0),1,1))) -> 4604870000 | D108: =IF(A108>$B$30,NA(),IF(A108>$A$8,"",OFFSET(InputPriceData!$C$15,CalculationsAndCharts!$A108+$A$11,IF($C$5,8,0),1,1))) -> 3973.59 | E108: =IF(A108>$B$30,NA(),IF(A108>$A$8,"",OFFSET(InputPriceData!$D$15,CalculationsAndCharts!$A108+$A$11,IF($C$5,8,0),1,1))) -> 3981.04 | F108: =IF(A108>$B$30,NA(),IF(A108>$A$8,"",OFFSET(InputPriceData!$E$15,CalculationsAndCharts!$A108+$A$11,IF($C$5,8,0),1,1))) -> 3953.44 | G108: =IF(A108>$B$30,NA(),IF(A108>$A$8,"",OFFSET(InputPriceData!$F$15,CalculationsAndCharts!$A108+$A$11,IF($C$5,8,0),1,1))) -> 3962.71 | H108: 3906.48375 | I108: 3886.693333 | J108: 0.5091838993 | K108: 1.974820206 | M108: 3910.581477 | O108: 3858.576625 | P108: 1.347772954 | Q108: 2.369424042 | T108: FALSE | U108: FALSE | V108: 0 | W108: 0 | X108: FALSE | Y108: FALSE | Z108: TRUE | AA108: -3136.07 | AB108: FALSE | AC108: FALSE | AD108: FALSE | AE108: -1938.09 | AX108: 4604870000
A109: 77 | B109: =IF(A109>$B$30,NA(),IF($A109>$A$8,"",OFFSET(InputPriceData!$B$15,$A109+$A$11,0,1,1))) -> 2021-03-15 | C109: =IF(A109>$B$30,NA(),IF($A109>$A$8,"",OFFSET(InputPriceData!$G$15,CalculationsAndCharts!$A109+$A$11,IF($C$5,8,0),1,1))) -> 4882190000 | D109: =IF(A109>$B$30,NA(),IF(A109>$A$8,"",OFFSET(InputPriceData!$C$15,CalculationsAndCharts!$A109+$A$11,IF($C$5,8,0),1,1))) -> 3942.96 | E109: =IF(A109>$B$30,NA(),IF(A109>$A$8,"",OFFSET(InputPriceData!$D$15,CalculationsAndCharts!$A109+$A$11,IF($C$5,8,0),1,1))) -> 3970.08 | F109: =IF(A109>$B$30,NA(),IF(A109>$A$8,"",OFFSET(InputPriceData!$E$15,CalculationsAndCharts!$A109+$A$11,IF($C$5,8,0),1,1))) -> 3923.54 | G109: =IF(A109>$B$30,NA(),IF(A109>$A$8,"",OFFSET(InputPriceData!$F$15,CalculationsAndCharts!$A109+$A$11,IF($C$5,8,0),1,1))) -> 3968.94 | H109: 3882.20375 | I109: 3885.365714 | J109: -0.08138138127 | K109: 1.390994118 | M109: 3884.920082 | O109: 3860.245304 | P109: 0.6392023361 | Q109: 2.630069603 | T109: FALSE | U109: FALSE | V109: 0 | W109: 0 | X109: FALSE | Y109: FALSE | Z109: TRUE | AA109: -3136.07 | AB109: FALSE | AC109: FALSE | AD109: FALSE | AE109: -1938.09 | AW109: 4882190000
A110: 78 | B110: =IF(A110>$B$30,NA(),IF($A110>$A$8,"",OFFSET(InputPriceData!$B$15,$A110+$A$11,0,1,1))) -> 2021-03-12 | C110: =IF(A110>$B$30,NA(),IF($A110>$A$8,"",OFFSET(InputPriceData!$G$15,CalculationsAndCharts!$A110+$A$11,IF($C$5,8,0),1,1))) -> 4469240000 | D110: =IF(A110>$B$30,NA(),IF(A110>$A$8,"",OFFSET(InputPriceData!$C$15,CalculationsAndCharts!$A110+$A$11,IF($C$5,8,0),1,1))) -> 3924.52 | E110: =IF(A110>$B$30,NA(),IF(A110>$A$8,"",OFFSET(InputPriceData!$D$15,CalculationsAndCharts!$A110+$A$11,IF($C$5,8,0),1,1))) -> 3944.99 | F110: =IF(A110>$B$30,NA(),IF(A110>$A$8,"",OFFSET(InputPriceData!$E$15,CalculationsAndCharts!$A110+$A$11,IF($C$5,8,0),1,1))) -> 3915.21 | G110: =IF(A110>$B$30,NA(),IF(A110>$A$8,"",OFFSET(InputPriceData!$F$15,CalculationsAndCharts!$A110+$A$11,IF($C$5,8,0),1,1))) -> 3943.34 | H110: 3863.55125 | I110: 3882.862857 | J110: -0.4973548604 | K110: 0.6501199743 | M110: 3858.456181 | O110: 3864.148602 | P110: -0.1473137165 | Q110: 2.314497217 | T110: FALSE | U110: FALSE | V110: 0 | W110: 0 | X110: FALSE | Y110: FALSE | Z110: TRUE | AA110: -3136.07 | AB110: FALSE | AC110: FALSE | AD110: FALSE | AE110: -1938.09 | AW110: 4469240000
A111: 79 | B111: =IF(A111>$B$30,NA(),IF($A111>$A$8,"",OFFSET(InputPriceData!$B$15,$A111+$A$11,0,1,1))) -> 2021-03-11 | C111: =IF(A111>$B$30,NA(),IF($A111>$A$8,"",OFFSET(InputPriceData!$G$15,CalculationsAndCharts!$A111+$A$11,IF($C$5,8,0),1,1))) -> 5300010000 | D111: =IF(A111>$B$30,NA(),IF(A111>$A$8,"",OFFSET(InputPriceData!$C$15,CalculationsAndCharts!$A111+$A$11,IF($C$5,8,0),1,1))) -> 3915.54 | E111: =IF(A111>$B$30,NA(),IF(A111>$A$8,"",OFFSET(InputPriceData!$D$15,CalculationsAndCharts!$A111+$A$11,IF($C$5,8,0),1,1))) -> 3960.27 | F111: =IF(A111>$B$30,NA(),IF(A111>$A$8,"",OFFSET(InputPriceData!$E$15,CalculationsAndCharts!$A111+$A$11,IF($C$5,8,0),1,1))) -> 3915.54 | G111: =IF(A111>$B$30,NA(),IF(A111>$A$8,"",OFFSET(InputPriceData!$F$15,CalculationsAndCharts!$A111+$A$11,IF($C$5,8,0),1,1))) -> 3939.34 | H111: 3854.42 | I111: 3881.269524 | J111: -0.6917716908 | K111: 0.2896435787 | M111: 3837.291081 | O111: 3869.776251 | P111: -0.8394585987 | Q111: 1.404204779 | T111: FALSE | U111: FALSE | V111: -3915.54 | W111: 0 | X111: TRUE | Y111: FALSE | Z111: TRUE | AA111: -3136.07 | AB111: FALSE | AC111: TRUE | AD111: FALSE | AE111: -1938.09 | AW111: 5300010000
A112: 80 | B112: =IF(A112>$B$30,NA(),IF($A112>$A$8,"",OFFSET(InputPriceData!$B$15,$A112+$A$11,0,1,1))) -> 2021-03-10 | C112: =IF(A112>$B$30,NA(),IF($A112>$A$8,"",OFFSET(InputPriceData!$G$15,CalculationsAndCharts!$A112+$A$11,IF($C$5,8,0),1,1))) -> 5827250000 | D112: =IF(A112>$B$30,NA(),IF(A112>$A$8,"",OFFSET(InputPriceData!$C$15,CalculationsAndCharts!$A112+$A$11,IF($C$5,8,0),1,1))) -> 3891.99 | E112: =IF(A112>$B$30,NA(),IF(A112>$A$8,"",OFFSET(InputPriceData!$D$15,CalculationsAndCharts!$A112+$A$11,IF($C$5,8,0),1,1))) -> 3917.35 | F112: =IF(A112>$B$30,NA(),IF(A112>$A$8,"",OFFSET(InputPriceData!$E$15,CalculationsAndCharts!$A112+$A$11,IF($C$5,8,0),1,1))) -> 3885.73 | G112: =IF(A112>$B$30,NA(),IF(A112>$A$8,"",OFFSET(InputPriceData!$F$15,CalculationsAndCharts!$A112+$A$11,IF($C$5,8,0),1,1))) -> 3898.81 | H112: 3849.73 | I112: 3879.930952 | J112: -0.7783889134 | K112: 1.012502746 | M112: 3827.684439 | O112: 3876.504466 | P112: -1.259382695 | Q112: 0.4352624025 | T112: TRUE | U112: FALSE | V112: 0 | W112: 0 | X112: FALSE | Y112: FALSE | Z112: FALSE | AA112: 779.47 | AB112: FALSE | AC112: FALSE | AD112: TRUE | AE112: 1977.45 | AW112: 5827250000
A113: 81 | B113: =IF(A113>$B$30,NA(),IF($A113>$A$8,"",OFFSET(InputPriceData!$B$15,$A113+$A$11,0,1,1))) -> 2021-03-09 | C113: =IF(A113>$B$30,NA(),IF($A113>$A$8,"",OFFSET(InputPriceData!$G$15,CalculationsAndCharts!$A113+$A$11,IF($C$5,8,0),1,1))) -> 5496340000 | D113: =IF(A113>$B$30,NA(),IF(A113>$A$8,"",OFFSET(InputPriceData!$C$15,CalculationsAndCharts!$A113+$A$11,IF($C$5,8,0),1,1))) -> 3851.93 | E113: =IF(A113>$B$30,NA(),IF(A113>$A$8,"",OFFSET(InputPriceData!$D$15,CalculationsAndCharts!$A113+$A$11,IF($C$5,8,0),1,1))) -> 3903.76 | F113: =IF(A113>$B$30,NA(),IF(A113>$A$8,"",OFFSET(InputPriceData!$E$15,CalculationsAndCharts!$A113+$A$11,IF($C$5,8,0),1,1))) -> 3851.93 | G113: =IF(A113>$B$30,NA(),IF(A113>$A$8,"",OFFSET(InputPriceData!$F$15,CalculationsAndCharts!$A113+$A$11,IF($C$5,8,0),1,1))) -> 3875.44 | H113: 3838.7725 | I113: 3880.73 | J113: -1.081175449 | K113: 0.5426980988 | M113: 3829.719688 | O113: 3883.685317 | P113: -1.38954688 | Q113: -0.05997131411 | T113: FALSE | U113: FALSE | V113: 0 | W113: 0 | X113: FALSE | Y113: FALSE | Z113: FALSE | AA113: 779.47 | AB113: FALSE | AC113: FALSE | AD113: TRUE | AE113: 1977.45 | AW113: 5496340000
A114: 82 | B114: =IF(A114>$B$30,NA(),IF($A114>$A$8,"",OFFSET(InputPriceData!$B$15,$A114+$A$11,0,1,1))) -> 2021-03-08 | C114: =IF(A114>$B$30,NA(),IF($A114>$A$8,"",OFFSET(InputPriceData!$G$15,CalculationsAndCharts!$A114+$A$11,IF($C$5,8,0),1,1))) -> 5852240000 | D114: =IF(A114>$B$30,NA(),IF(A114>$A$8,"",OFFSET(InputPriceData!$C$15,CalculationsAndCharts!$A114+$A$11,IF($C$5,8,0),1,1))) -> 3844.39 | E114: =IF(A114>$B$30,NA(),IF(A114>$A$8,"",OFFSET(InputPriceData!$D$15,CalculationsAndCharts!$A114+$A$11,IF($C$5,8,0),1,1))) -> 3881.06 | F114: =IF(A114>$B$30,NA(),IF(A114>$A$8,"",OFFSET(InputPriceData!$E$15,CalculationsAndCharts!$A114+$A$11,IF($C$5,8,0),1,1))) -> 3819.25 | G114: =IF(A114>$B$30,NA(),IF(A114>$A$8,"",OFFSET(InputPriceData!$F$15,CalculationsAndCharts!$A114+$A$11,IF($C$5,8,0),1,1))) -> 3821.35 | H114: 3833.01 | I114: 3881.272381 | J114: -1.243468023 | K114: -0.9161604544 | M114: 3837.306329 | O114: 3890.671266 | P114: -1.371612601 | Q114: -0.2549060405 | T114: FALSE | U114: FALSE | V114: 0 | W114: 0 | X114: FALSE | Y114: FALSE | Z114: FALSE | AA114: 779.47 | AB114: FALSE | AC114: FALSE | AD114: TRUE | AE114: 1977.45 | AX114: 5852240000
A115: 83 | B115: =IF(A115>$B$30,NA(),IF($A115>$A$8,"",OFFSET(InputPriceData!$B$15,$A115+$A$11,0,1,1))) -> 2021-03-05 | C115: =IF(A115>$B$30,NA(),IF($A115>$A$8,"",OFFSET(InputPriceData!$G$15,CalculationsAndCharts!$A115+$A$11,IF($C$5,8,0),1,1))) -> 6842570000 | D115: =IF(A115>$B$30,NA(),IF(A115>$A$8,"",OFFSET(InputPriceData!$C$15,CalculationsAndCharts!$A115+$A$11,IF($C$5,8,0),1,1))) -> 3793.58 | E115: =IF(A115>$B$30,NA(),IF(A115>$A$8,"",OFFSET(InputPriceData!$D$15,CalculationsAndCharts!$A115+$A$11,IF($C$5,8,0),1,1))) -> 3851.69 | F115: =IF(A115>$B$30,NA(),IF(A115>$A$8,"",OFFSET(InputPriceData!$E$15,CalculationsAndCharts!$A115+$A$11,IF($C$5,8,0),1,1))) -> 3730.19 | G115: =IF(A115>$B$30,NA(),IF(A115>$A$8,"",OFFSET(InputPriceData!$F$15,CalculationsAndCharts!$A115+$A$11,IF($C$5,8,0),1,1))) -> 3841.94 | H115: 3846.02 | I115: 3883.671905 | J115: -0.9694924207 | K115: -0.4722378626 | M115: 3846.388103 | O115: 3896.867484 | P115: -1.295383556 | Q115: -0.3716845746 | T115: FALSE | U115: FALSE | V115: 0 | W115: 0 | X115: FALSE | Y115: FALSE | Z115: FALSE | AA115: 779.47 | AB115: FALSE | AC115: FALSE | AD115: TRUE | AE115: 1977.45 | AW115: 6842570000
A116: 84 | B116: =IF(A116>$B$30,NA(),IF($A116>$A$8,"",OFFSET(InputPriceData!$B$15,$A116+$A$11,0,1,1))) -> 2021-03-04 | C116: =IF(A116>$B$30,NA(),IF($A116>$A$8,"",OFFSET(InputPriceData!$G$15,CalculationsAndCharts!$A116+$A$11,IF($C$5,8,0),1,1))) -> 7142240000 | D116: =IF(A116>$B$30,NA(),IF(A116>$A$8,"",OFFSET(InputPriceData!$C$15,CalculationsAndCharts!$A116+$A$11,IF($C$5,8,0),1,1))) -> 3818.53 | E116: =IF(A116>$B$30,NA(),IF(A116>$A$8,"",OFFSET(InputPriceData!$D$15,CalculationsAndCharts!$A116+$A$11,IF($C$5,8,0),1,1))) -> 3843.67 | F116: =IF(A116>$B$30,NA(),IF(A116>$A$8,"",OFFSET(InputPriceData!$E$15,CalculationsAndCharts!$A116+$A$11,IF($C$5,8,0),1,1))) -> 3723.34 | G116: =IF(A116>$B$30,NA(),IF(A116>$A$8,"",OFFSET(InputPriceData!$F$15,CalculationsAndCharts!$A116+$A$11,IF($C$5,8,0),1,1))) -> 3768.47 | H116: 3850.94875 | I116: 3883.111429 | J116: -0.8282708123 | K116: -0.9269992532 | M116: 3855.575265 | O116: 3901.781416 | P116: -1.184232169 | Q116: -0.3656095465 | T116: FALSE | U116: FALSE | V116: 0 | W116: 0 | X116: FALSE | Y116: FALSE | Z116: FALSE | AA116: 779.47 | AB116: FALSE | AC116: FALSE | AD116: TRUE | AE116: 1977.45 | AX116: 7142240000
A117: 85 | B117: =IF(A117>$B$30,NA(),IF($A117>$A$8,"",OFFSET(InputPriceData!$B$15,$A117+$A$11,0,1,1))) -> 2021-03-03 | C117: =IF(A117>$B$30,NA(),IF($A117>$A$8,"",OFFSET(InputPriceData!$G$15,CalculationsAndCharts!$A117+$A$11,IF($C$5,8,0),1,1))) -> 6150790000 | D117: =IF(A117>$B$30,NA(),IF(A117>$A$8,"",OFFSET(InputPriceData!$C$15,CalculationsAndCharts!$A117+$A$11,IF($C$5,8,0),1,1))) -> 3863.99 | E117: =IF(A117>$B$30,NA(),IF(A117>$A$8,"",OFFSET(InputPriceData!$D$15,CalculationsAndCharts!$A117+$A$11,IF($C$5,8,0),1,1))) -> 3874.47 | F117: =IF(A117>$B$30,NA(),IF(A117>$A$8,"",OFFSET(InputPriceData!$E$15,CalculationsAndCharts!$A117+$A$11,IF($C$5,8,0),1,1))) -> 3818.86 | G117: =IF(A117>$B$30,NA(),IF(A117>$A$8,"",OFFSET(InputPriceData!$F$15,CalculationsAndCharts!$A117+$A$11,IF($C$5,8,0),1,1))) -> 3819.72 | H117: 3864.4525 | I117: 3885.865714 | J117: -0.5510538928 | K117: -1.12325298 | M117: 3863.027653 | O117: 3905.002426 | P117: -1.074897505 | Q117: -0.4697694373 | T117: FALSE | U117: FALSE | V117: 0 | W117: 0 | X117: FALSE | Y117: FALSE | Z117: FALSE | AA117: 779.47 | AB117: FALSE | AC117: FALSE | AD117: TRUE | AE117: 1977.45 | AX117: 6150790000
A118: 86 | B118: =IF(A118>$B$30,NA(),IF($A118>$A$8,"",OFFSET(InputPriceData!$B$15,$A118+$A$11,0,1,1))) -> 2021-03-02 | C118: =IF(A118>$B$30,NA(),IF($A118>$A$8,"",OFFSET(InputPriceData!$G$15,CalculationsAndCharts!$A118+$A$11,IF($C$5,8,0),1,1))) -> 5493690000 | D118: =IF(A118>$B$30,NA(),IF(A118>$A$8,"",OFFSET(InputPriceData!$C$15,CalculationsAndCharts!$A118+$A$11,IF($C$5,8,0),1,1))) -> 3903.64 | E118: =IF(A118>$B$30,NA(),IF(A118>$A$8,"",OFFSET(InputPriceData!$D$15,CalculationsAndCharts!$A118+$A$11,IF($C$5,8,0),1,1))) -> 3906.41 | F118: =IF(A118>$B$30,NA(),IF(A118>$A$8,"",OFFSET(InputPriceData!$E$15,CalculationsAndCharts!$A118+$A$11,IF($C$5,8,0),1,1))) -> 3868.57 | G118: =IF(A118>$B$30,NA(),IF(A118>$A$8,"",OFFSET(InputPriceData!$F$15,CalculationsAndCharts!$A118+$A$11,IF($C$5,8,0),1,1))) -> 3870.29 | H118: 3875.32625 | I118: 3883.681905 | J118: -0.2151477636 | K118: -1.110692444 | M118: 3869.750157 | O118: 3906.250714 | P118: -0.9344140733 | Q118: -0.8469470084 | T118: FALSE | U118: FALSE | V118: 0 | W118: 0 | X118: FALSE | Y118: FALSE | Z118: FALSE | AA118: 779.47 | AB118: FALSE | AC118: FALSE | AD118: TRUE | AE118: 1977.45 | AX118: 5493690000
A119: 87 | B119: =IF(A119>$B$30,NA(),IF($A119>$A$8,"",OFFSET(InputPriceData!$B$15,$A119+$A$11,0,1,1))) -> 2021-03-01 | C119: =IF(A119>$B$30,NA(),IF($A119>$A$8,"",OFFSET(InputPriceData!$G$15,CalculationsAndCharts!$A119+$A$11,IF($C$5,8,0),1,1))) -> 5071540000 | D119: =IF(A119>$B$30,NA(),IF(A119>$A$8,"",OFFSET(InputPriceData!$C$15,CalculationsAndCharts!$A119+$A$11,IF($C$5,8,0),1,1))) -> 3842.51 | E119: =IF(A119>$B$30,NA(),IF(A119>$A$8,"",OFFSET(InputPriceData!$D$15,CalculationsAndCharts!$A119+$A$11,IF($C$5,8,0),1,1))) -> 3914.5 | F119: =IF(A119>$B$30,NA(),IF(A119>$A$8,"",OFFSET(InputPriceData!$E$15,CalculationsAndCharts!$A119+$A$11,IF($C$5,8,0),1,1))) -> 3842.51 | G119: =IF(A119>$B$30,NA(),IF(A119>$A$8,"",OFFSET(InputPriceData!$F$15,CalculationsAndCharts!$A119+$A$11,IF($C$5,8,0),1,1))) -> 3901.82 | H119: 3880.78625 | I119: 3876.250952 | J119: 0.1170021672 | K119: -0.7899977243 | M119: 3878.640837 | O119: 3905.240861 | P119: -0.681136587 | Q119: -1.237967825 | T119: FALSE | U119: FALSE | V119: 0 | W119: 0 | X119: FALSE | Y119: FALSE | Z119: FALSE | AA119: 779.47 | AB119: FALSE | AC119: FALSE | AD119: TRUE | AE119: 1977.45 | AW119: 5071540000
A120: 88 | B120: =IF(A120>$B$30,NA(),IF($A120>$A$8,"",OFFSET(InputPriceData!$B$15,$A120+$A$11,0,1,1))) -> 2021-02-26 | C120: =IF(A120>$B$30,NA(),IF($A120>$A$8,"",OFFSET(InputPriceData!$G$15,CalculationsAndCharts!$A120+$A$11,IF($C$5,8,0),1,1))) -> 6512950000 | D120: =IF(A120>$B$30,NA(),IF(A120>$A$8,"",OFFSET(InputPriceData!$C$15,CalculationsAndCharts!$A120+$A$11,IF($C$5,8,0),1,1))) -> 3839.66 | E120: =IF(A120>$B$30,NA(),IF(A120>$A$8,"",OFFSET(InputPriceData!$D$15,CalculationsAndCharts!$A120+$A$11,IF($C$5,8,0),1,1))) -> 3861.08 | F120: =IF(A120>$B$30,NA(),IF(A120>$A$8,"",OFFSET(InputPriceData!$E$15,CalculationsAndCharts!$A120+$A$11,IF($C$5,8,0),1,1))) -> 3789.54 | G120: =IF(A120>$B$30,NA(),IF(A120>$A$8,"",OFFSET(InputPriceData!$F$15,CalculationsAndCharts!$A120+$A$11,IF($C$5,8,0),1,1))) -> 3811.15 | H120: 3884.475 | I120: 3870.801429 | J120: 0.3532491057 | K120: -1.561812632 | M120: 3889.576416 | O120: 3901.707811 | P120: -0.3109252565 | Q120: -1.410518292 | T120: FALSE | U120: FALSE | V120: 0 | W120: 0 | X120: FALSE | Y120: FALSE | Z120: FALSE | AA120: 779.47 | AB120: FALSE | AC120: FALSE | AD120: TRUE | AE120: 1977.45 | AX120: 6512950000
A121: 89 | B121: =IF(A121>$B$30,NA(),IF($A121>$A$8,"",OFFSET(InputPriceData!$B$15,$A121+$A$11,0,1,1))) -> 2021-02-25 | C121: =IF(A121>$B$30,NA(),IF($A121>$A$8,"",OFFSET(InputPriceData!$G$15,CalculationsAndCharts!$A121+$A$11,IF($C$5,8,0),1,1))) -> 6513060000 | D121: =IF(A121>$B$30,NA(),IF(A121>$A$8,"",OFFSET(InputPriceData!$C$15,CalculationsAndCharts!$A121+$A$11,IF($C$5,8,0),1,1))) -> 3915.8 | E121: =IF(A121>$B$30,NA(),IF(A121>$A$8,"",OFFSET(InputPriceData!$D$15,CalculationsAndCharts!$A121+$A$11,IF($C$5,8,0),1,1))) -> 3925.02 | F121: =IF(A121>$B$30,NA(),IF(A121>$A$8,"",OFFSET(InputPriceData!$E$15,CalculationsAndCharts!$A121+$A$11,IF($C$5,8,0),1,1))) -> 3814.04 | G121: =IF(A121>$B$30,NA(),IF(A121>$A$8,"",OFFSET(InputPriceData!$F$15,CalculationsAndCharts!$A121+$A$11,IF($C$5,8,0),1,1))) -> 3829.34 | H121: 3899.655 | I121: 3867.92619 | J121: 0.8203054547 | K121: -1.055556981 | M121: 3899.826622 | O121: 3895.507016 | P121: 0.1108868802 | Q121: -1.494054631 | T121: FALSE | U121: FALSE | V121: 0 | W121: 0 | X121: FALSE | Y121: FALSE | Z121: FALSE | AA121: 779.47 | AB121: FALSE | AC121: FALSE | AD121: TRUE | AE121: 1977.45 | AX121: 6513060000
A122: 90 | B122: =IF(A122>$B$30,NA(),IF($A122>$A$8,"",OFFSET(InputPriceData!$B$15,$A122+$A$11,0,1,1))) -> 2021-02-24 | C122: =IF(A122>$B$30,NA(),IF($A122>$A$8,"",OFFSET(InputPriceData!$G$15,CalculationsAndCharts!$A122+$A$11,IF($C$5,8,0),1,1))) -> 5942350000 | D122: =IF(A122>$B$30,NA(),IF(A122>$A$8,"",OFFSET(InputPriceData!$C$15,CalculationsAndCharts!$A122+$A$11,IF($C$5,8,0),1,1))) -> 3873.71 | E122: =IF(A122>$B$30,NA(),IF(A122>$A$8,"",OFFSET(InputPriceData!$D$15,CalculationsAndCharts!$A122+$A$11,IF($C$5,8,0),1,1))) -> 3928.65 | F122: =IF(A122>$B$30,NA(),IF(A122>$A$8,"",OFFSET(InputPriceData!$E$15,CalculationsAndCharts!$A122+$A$11,IF($C$5,8,0),1,1))) -> 3859.6 | G122: =IF(A122>$B$30,NA(),IF(A122>$A$8,"",OFFSET(InputPriceData!$F$15,CalculationsAndCharts!$A122+$A$11,IF($C$5,8,0),1,1))) -> 3925.43 | H122: 3912.84125 | I122: 3868.891905 | J122: 1.135967257 | K122: -0.1940613358 | M122: 3908.610209 | O122: 3886.933544 | P122: 0.5576803604 | Q122: -1.627988681 | T122: FALSE | U122: FALSE | V122: 0 | W122: 0 | X122: FALSE | Y122: FALSE | Z122: FALSE | AA122: 779.47 | AB122: FALSE | AC122: FALSE | AD122: TRUE | AE122: 1977.45 | AW122: 5942350000
A123: 91 | B123: =IF(A123>$B$30,NA(),IF($A123>$A$8,"",OFFSET(InputPriceData!$B$15,$A123+$A$11,0,1,1))) -> 2021-02-23 | C123: =IF(A123>$B$30,NA(),IF($A123>$A$8,"",OFFSET(InputPriceData!$G$15,CalculationsAndCharts!$A123+$A$11,IF($C$5,8,0),1,1))) -> 6280650000 | D123: =IF(A123>$B$30,NA(),IF(A123>$A$8,"",OFFSET(InputPriceData!$C$15,CalculationsAndCharts!$A123+$A$11,IF($C$5,8,0),1,1))) -> 3857.07 | E123: =IF(A123>$B$30,NA(),IF(A123>$A$8,"",OFFSET(InputPriceData!$D$15,CalculationsAndCharts!$A123+$A$11,IF($C$5,8,0),1,1))) -> 3895.98 | F123: =IF(A123>$B$30,NA(),IF(A123>$A$8,"",OFFSET(InputPriceData!$E$15,CalculationsAndCharts!$A123+$A$11,IF($C$5,8,0),1,1))) -> 3805.59 | G123: =IF(A123>$B$30,NA(),IF(A123>$A$8,"",OFFSET(InputPriceData!$F$15,CalculationsAndCharts!$A123+$A$11,IF($C$5,8,0),1,1))) -> 3881.37 | H123: 3911.71 | I123: 3865.555238 | J123: 1.194000837 | K123: -0.474844709 | M123: 3917.294916 | O123: 3876.800705 | P123: 1.044526499 | Q123: -1.511436961 | T123: FALSE | U123: FALSE | V123: 0 | W123: 0 | X123: FALSE | Y123: FALSE | Z123: FALSE | AA123: 779.47 | AB123: FALSE | AC123: FALSE | AD123: TRUE | AE123: 1977.45 | AW123: 6280650000
A124: 92 | B124: =IF(A124>$B$30,NA(),IF($A124>$A$8,"",OFFSET(InputPriceData!$B$15,$A124+$A$11,0,1,1))) -> 2021-02-22 | C124: =IF(A124>$B$30,NA(),IF($A124>$A$8,"",OFFSET(InputPriceData!$G$15,CalculationsAndCharts!$A124+$A$11,IF($C$5,8,0),1,1))) -> 5870190000 | D124: =IF(A124>$B$30,NA(),IF(A124>$A$8,"",OFFSET(InputPriceData!$C$15,CalculationsAndCharts!$A124+$A$11,IF($C$5,8,0),1,1))) -> 3885.55 | E124: =IF(A124>$B$30,NA(),IF(A124>$A$8,"",OFFSET(InputPriceData!$D$15,CalculationsAndCharts!$A124+$A$11,IF($C$5,8,0),1,1))) -> 3902.92 | F124: =IF(A124>$B$30,NA(),IF(A124>$A$8,"",OFFSET(InputPriceData!$E$15,CalculationsAndCharts!$A124+$A$11,IF($C$5,8,0),1,1))) -> 3874.71 | G124: =IF(A124>$B$30,NA(),IF(A124>$A$8,"",OFFSET(InputPriceData!$F$15,CalculationsAndCharts!$A124+$A$11,IF($C$5,8,0),1,1))) -> 3876.5 | H124: 3915.27375 | I124: 3863.655238 | J124: 1.336002017 | K124: -0.4737208561 | M124: 3923.67546 | O124: 3865.822722 | P124: 1.496518124 | Q124: -1.107802776 | T124: FALSE | U124: FALSE | V124: 0 | W124: 0 | X124: FALSE | Y124: FALSE | Z124: FALSE | AA124: 779.47 | AB124: FALSE | AC124: FALSE | AD124: TRUE | AE124: 1977.45 | AX124: 5870190000
A125: 93 | B125: =IF(A125>$B$30,NA(),IF($A125>$A$8,"",OFFSET(InputPriceData!$B$15,$A125+$A$11,0,1,1))) -> 2021-02-19 | C125: =IF(A125>$B$30,NA(),IF($A125>$A$8,"",OFFSET(InputPriceData!$G$15,CalculationsAndCharts!$A125+$A$11,IF($C$5,8,0),1,1))) -> 4823940000 | D125: =IF(A125>$B$30,NA(),IF(A125>$A$8,"",OFFSET(InputPriceData!$C$15,CalculationsAndCharts!$A125+$A$11,IF($C$5,8,0),1,1))) -> 3921.16 | E125: =IF(A125>$B$30,NA(),IF(A125>$A$8,"",OFFSET(InputPriceData!$D$15,CalculationsAndCharts!$A125+$A$11,IF($C$5,8,0),1,1))) -> 3930.41 | F125: =IF(A125>$B$30,NA(),IF(A125>$A$8,"",OFFSET(InputPriceData!$E$15,CalculationsAndCharts!$A125+$A$11,IF($C$5,8,0),1,1))) -> 3903.07 | G125: =IF(A125>$B$30,NA(),IF(A125>$A$8,"",OFFSET(InputPriceData!$F$15,CalculationsAndCharts!$A125+$A$11,IF($C$5,8,0),1,1))) -> 3906.71 | H125: 3919.615 | I125: 3862.539524 | J125: 1.477667111 | K125: -0.3258231534 | M125: 3925.138303 | O125: 3854.68227 | P125: 1.827803906 | Q125: -0.7257155133 | T125: FALSE | U125: FALSE | V125: 0 | W125: 0 | X125: FALSE | Y125: FALSE | Z125: FALSE | AA125: 779.47 | AB125: FALSE | AC125: FALSE | AD125: TRUE | AE125: 1977.45 | AX125: 4823940000
A126: 94 | B126: =IF(A126>$B$30,NA(),IF($A126>$A$8,"",OFFSET(InputPriceData!$B$15,$A126+$A$11,0,1,1))) -> 2021-02-18 | C126: =IF(A126>$B$30,NA(),IF($A126>$A$8,"",OFFSET(InputPriceData!$G$15,CalculationsAndCharts!$A126+$A$11,IF($C$5,8,0),1,1))) -> 4773430000 | D126: =IF(A126>$B$30,NA(),IF(A126>$A$8,"",OFFSET(InputPriceData!$C$15,CalculationsAndCharts!$A126+$A$11,IF($C$5,8,0),1,1))) -> 3915.86 | E126: =IF(A126>$B$30,NA(),IF(A126>$A$8,"",OFFSET(InputPriceData!$D$15,CalculationsAndCharts!$A126+$A$11,IF($C$5,8,0),1,1))) -> 3921.98 | F126: =IF(A126>$B$30,NA(),IF(A126>$A$8,"",OFFSET(InputPriceData!$E$15,CalculationsAndCharts!$A126+$A$11,IF($C$5,8,0),1,1))) -> 3885.03 | G126: =IF(A126>$B$30,NA(),IF(A126>$A$8,"",OFFSET(InputPriceData!$F$15,CalculationsAndCharts!$A126+$A$11,IF($C$5,8,0),1,1))) -> 3913.97 | H126: 3920.725 | I126: 3859.927143 | J126: 1.575103749 | K126: -0.1885067286 | M126: 3922.791324 | O126: 3844.184389 | P126: 2.044827403 | Q126: -0.4253964694 | T126: FALSE | U126: FALSE | V126: 0 | W126: 3915.86 | X126: FALSE | Y126: TRUE | Z126: FALSE | AA126: 779.47 | AB126: TRUE | AC126: FALSE | AD126: TRUE | AE126: 1977.45 | AX126: 4773430000
A127: 95 | B127: =IF(A127>$B$30,NA(),IF($A127>$A$8,"",OFFSET(InputPriceData!$B$15,$A127+$A$11,0,1,1))) -> 2021-02-17 | C127: =IF(A127>$B$30,NA(),IF($A127>$A$8,"",OFFSET(InputPriceData!$G$15,CalculationsAndCharts!$A127+$A$11,IF($C$5,8,0),1,1))) -> 4718280000 | D127: =IF(A127>$B$30,NA(),IF(A127>$A$8,"",OFFSET(InputPriceData!$C$15,CalculationsAndCharts!$A127+$A$11,IF($C$5,8,0),1,1))) -> 3918.5 | E127: =IF(A127>$B$30,NA(),IF(A127>$A$8,"",OFFSET(InputPriceData!$D$15,CalculationsAndCharts!$A127+$A$11,IF($C$5,8,0),1,1))) -> 3933.61 | F127: =IF(A127>$B$30,NA(),IF(A127>$A$8,"",OFFSET(InputPriceData!$E$15,CalculationsAndCharts!$A127+$A$11,IF($C$5,8,0),1,1))) -> 3900.43 | G127: =IF(A127>$B$30,NA(),IF(A127>$A$8,"",OFFSET(InputPriceData!$F$15,CalculationsAndCharts!$A127+$A$11,IF($C$5,8,0),1,1))) -> 3931.33 | H127: 3917.3325 | I127: 3854.448095 | J127: 1.631476238 | K127: -0.03856769332 | M127: 3918.232066 | O127: 3834.935683 | P127: 2.172041204 | Q127: -0.1425834514 | T127: FALSE | U127: TRUE | V127: 0 | W127: 0 | X127: FALSE | Y127: FALSE | Z127: TRUE | AA127: -3136.39 | AB127: FALSE | AC127: FALSE | AD127: FALSE | AE127: -1938.41 | AW127: 4718280000
A128: 96 | B128: =IF(A128>$B$30,NA(),IF($A128>$A$8,"",OFFSET(InputPriceData!$B$15,$A128+$A$11,0,1,1))) -> 2021-02-16 | C128: =IF(A128>$B$30,NA(),IF($A128>$A$8,"",OFFSET(InputPriceData!$G$15,CalculationsAndCharts!$A128+$A$11,IF($C$5,8,0),1,1))) -> 5037360000 | D128: =IF(A128>$B$30,NA(),IF(A128>$A$8,"",OFFSET(InputPriceData!$C$15,CalculationsAndCharts!$A128+$A$11,IF($C$5,8,0),1,1))) -> 3939.61 | E128: =IF(A128>$B$30,NA(),IF(A128>$A$8,"",OFFSET(InputPriceData!$D$15,CalculationsAndCharts!$A128+$A$11,IF($C$5,8,0),1,1))) -> 3950.43 | F128: =IF(A128>$B$30,NA(),IF(A128>$A$8,"",OFFSET(InputPriceData!$E$15,CalculationsAndCharts!$A128+$A$11,IF($C$5,8,0),1,1))) -> 3923.85 | G128: =IF(A128>$B$30,NA(),IF(A128>$A$8,"",OFFSET(InputPriceData!$F$15,CalculationsAndCharts!$A128+$A$11,IF($C$5,8,0),1,1))) -> 3932.59 | H128: 3909.88375 | I128: 3846.682381 | J128: 1.643009814 | K128: 0.5371943249 | M128: 3911.979302 | O128: 3827.218639 | P128: 2.214680446 | Q128: 0.2218273484 | T128: FALSE | U128: FALSE | V128: 0 | W128: 0 | X128: FALSE | Y128: FALSE | Z128: TRUE | AA128: -3136.39 | AB128: FALSE | AC128: FALSE | AD128: FALSE | AE128: -1938.41 | AX128: 5037360000
A129: 97 | B129: =IF(A129>$B$30,NA(),IF($A129>$A$8,"",OFFSET(InputPriceData!$B$15,$A129+$A$11,0,1,1))) -> 2021-02-12 | C129: =IF(A129>$B$30,NA(),IF($A129>$A$8,"",OFFSET(InputPriceData!$G$15,CalculationsAndCharts!$A129+$A$11,IF($C$5,8,0),1,1))) -> 4119260000 | D129: =IF(A129>$B$30,NA(),IF(A129>$A$8,"",OFFSET(InputPriceData!$C$15,CalculationsAndCharts!$A129+$A$11,IF($C$5,8,0),1,1))) -> 3911.65 | E129: =IF(A129>$B$30,NA(),IF(A129>$A$8,"",OFFSET(InputPriceData!$D$15,CalculationsAndCharts!$A129+$A$11,IF($C$5,8,0),1,1))) -> 3937.23 | F129: =IF(A129>$B$30,NA(),IF(A129>$A$8,"",OFFSET(InputPriceData!$E$15,CalculationsAndCharts!$A129+$A$11,IF($C$5,8,0),1,1))) -> 3905.78 | G129: =IF(A129>$B$30,NA(),IF(A129>$A$8,"",OFFSET(InputPriceData!$F$15,CalculationsAndCharts!$A129+$A$11,IF($C$5,8,0),1,1))) -> 3934.83 | H129: 3897.08125 | I129: 3840.15619 | J129: 1.482363131 | K129: 0.6562709736 | M129: 3903.231339 | O129: 3821.140123 | P129: 2.148343505 | Q129: 0.7029824333 | T129: FALSE | U129: FALSE | V129: 0 | W129: 0 | X129: FALSE | Y129: FALSE | Z129: TRUE | AA129: -3136.39 | AB129: FALSE | AC129: FALSE | AD129: FALSE | AE129: -1938.41 | AW129: 4119260000
A130: 98 | B130: =IF(A130>$B$30,NA(),IF($A130>$A$8,"",OFFSET(InputPriceData!$B$15,$A130+$A$11,0,1,1))) -> 2021-02-11 | C130: =IF(A130>$B$30,NA(),IF($A130>$A$8,"",OFFSET(InputPriceData!$G$15,CalculationsAndCharts!$A130+$A$11,IF($C$5,8,0),1,1))) -> 4570080000 | D130: =IF(A130>$B$30,NA(),IF(A130>$A$8,"",OFFSET(InputPriceData!$C$15,CalculationsAndCharts!$A130+$A$11,IF($C$5,8,0),1,1))) -> 3916.4 | E130: =IF(A130>$B$30,NA(),IF(A130>$A$8,"",OFFSET(InputPriceData!$D$15,CalculationsAndCharts!$A130+$A$11,IF($C$5,8,0),1,1))) -> 3925.99 | F130: =IF(A130>$B$30,NA(),IF(A130>$A$8,"",OFFSET(InputPriceData!$E$15,CalculationsAndCharts!$A130+$A$11,IF($C$5,8,0),1,1))) -> 3890.39 | G130: =IF(A130>$B$30,NA(),IF(A130>$A$8,"",OFFSET(InputPriceData!$F$15,CalculationsAndCharts!$A130+$A$11,IF($C$5,8,0),1,1))) -> 3916.38 | H130: 3883.51625 | I130: 3834.204286 | J130: 1.286106858 | K130: 1.07070257 | M130: 3890.68903 | O130: 3816.716549 | P130: 1.938118282 | Q130: 1.269331291 | T130: FALSE | U130: FALSE | V130: 0 | W130: 0 | X130: FALSE | Y130: FALSE | Z130: TRUE | AA130: -3136.39 | AB130: FALSE | AC130: FALSE | AD130: FALSE | AE130: -1938.41 | AX130: 4570080000
A131: 99 | B131: =IF(A131>$B$30,NA(),IF($A131>$A$8,"",OFFSET(InputPriceData!$B$15,$A131+$A$11,0,1,1))) -> 2021-02-10 | C131: =IF(A131>$B$30,NA(),IF($A131>$A$8,"",OFFSET(InputPriceData!$G$15,CalculationsAndCharts!$A131+$A$11,IF($C$5,8,0),1,1))) -> 4815380000 | D131: =IF(A131>$B$30,NA(),IF(A131>$A$8,"",OFFSET(InputPriceData!$C$15,CalculationsAndCharts!$A131+$A$11,IF($C$5,8,0),1,1))) -> 3920.78 | E131: =IF(A131>$B$30,NA(),IF(A131>$A$8,"",OFFSET(InputPriceData!$D$15,CalculationsAndCharts!$A131+$A$11,IF($C$5,8,0),1,1))) -> 3931.5 | F131: =IF(A131>$B$30,NA(),IF(A131>$A$8,"",OFFSET(InputPriceData!$E$15,CalculationsAndCharts!$A131+$A$11,IF($C$5,8,0),1,1))) -> 3884.94 | G131: =IF(A131>$B$30,NA(),IF(A131>$A$8,"",OFFSET(InputPriceData!$F$15,CalculationsAndCharts!$A131+$A$11,IF($C$5,8,0),1,1))) -> 3909.88 | H131: 3865.70125 | I131: 3828.719048 | J131: 0.9659158042 | K131: 1.675121924 | M131: 3873.273881 | O131: 3813.834215 | P131: 1.558527782 | Q131: 1.928445376 | T131: FALSE | U131: FALSE | V131: 0 | W131: 0 | X131: FALSE | Y131: FALSE | Z131: TRUE | AA131: -3136.39 | AB131: FALSE | AC131: FALSE | AD131: FALSE | AE131: -1938.41 | AX131: 4815380000
A132: 100 | B132: =IF(A132>$B$30,NA(),IF($A132>$A$8,"",OFFSET(InputPriceData!$B$15,$A132+$A$11,0,1,1))) -> 2021-02-09 | C132: =IF(A132>$B$30,NA(),IF($A132>$A$8,"",OFFSET(InputPriceData!$G$15,CalculationsAndCharts!$A132+$A$11,IF($C$5,8,0),1,1))) -> 4554610000 | D132: =IF(A132>$B$30,NA(),IF(A132>$A$8,"",OFFSET(InputPriceData!$C$15,CalculationsAndCharts!$A132+$A$11,IF($C$5,8,0),1,1))) -> 3910.49 | E132: =IF(A132>$B$30,NA(),IF(A132>$A$8,"",OFFSET(InputPriceData!$D$15,CalculationsAndCharts!$A132+$A$11,IF($C$5,8,0),1,1))) -> 3918.35 | F132: =IF(A132>$B$30,NA(),IF(A132>$A$8,"",OFFSET(InputPriceData!$E$15,CalculationsAndCharts!$A132+$A$11,IF($C$5,8,0),1,1))) -> 3902.64 | G132: =IF(A132>$B$30,NA(),IF(A132>$A$8,"",OFFSET(InputPriceData!$F$15,CalculationsAndCharts!$A132+$A$11,IF($C$5,8,0),1,1))) -> 3911.23 | H132: 3841.24625 | I132: 3823.468095 | J132: 0.4649745812 | K132: 0.9929075634 | M132: 3849.695566 | O132: 3812.265569 | P132: 0.9818307839 | Q132: 2.337338215 | T132: FALSE | U132: FALSE | V132: 0 | W132: 0 | X132: FALSE | Y132: FALSE | Z132: TRUE | AA132: -3136.39 | AB132: FALSE | AC132: FALSE | AD132: FALSE | AE132: -1938.41 | AW132: 4554610000
A133: 101 | B133: =IF(A133>$B$30,NA(),IF($A133>$A$8,"",OFFSET(InputPriceData!$B$15,$A133+$A$11,0,1,1))) -> 2021-02-08 | C133: =IF(A133>$B$30,NA(),IF($A133>$A$8,"",OFFSET(InputPriceData!$G$15,CalculationsAndCharts!$A133+$A$11,IF($C$5,8,0),1,1))) -> 4635030000 | D133: =IF(A133>$B$30,NA(),IF(A133>$A$8,"",OFFSET(InputPriceData!$C$15,CalculationsAndCharts!$A133+$A$11,IF($C$5,8,0),1,1))) -> 3892.59 | E133: =IF(A133>$B$30,NA(),IF(A133>$A$8,"",OFFSET(InputPriceData!$D$15,CalculationsAndCharts!$A133+$A$11,IF($C$5,8,0),1,1))) -> 3915.77 | F133: =IF(A133>$B$30,NA(),IF(A133>$A$8,"",OFFSET(InputPriceData!$E$15,CalculationsAndCharts!$A133+$A$11,IF($C$5,8,0),1,1))) -> 3892.59 | G133: =IF(A133>$B$30,NA(),IF(A133>$A$8,"",OFFSET(InputPriceData!$F$15,CalculationsAndCharts!$A133+$A$11,IF($C$5,8,0),1,1))) -> 3915.59 | H133: 3825.765 | I133: 3819.346667 | J133: 0.1680479384 | K133: 1.338776602 | M133: 3822.547604 | O133: 3811.765821 | P133: 0.2828553557 | Q133: 2.24794265 | T133: FALSE | U133: FALSE | V133: 0 | W133: 0 | X133: FALSE | Y133: FALSE | Z133: TRUE | AA133: -3136.39 | AB133: FALSE | AC133: FALSE | AD133: FALSE | AE133: -1938.41 | AW133: 4635030000
A134: 102 | B134: =IF(A134>$B$30,NA(),IF($A134>$A$8,"",OFFSET(InputPriceData!$B$15,$A134+$A$11,0,1,1))) -> 2021-02-05 | C134: =IF(A134>$B$30,NA(),IF($A134>$A$8,"",OFFSET(InputPriceData!$G$15,CalculationsAndCharts!$A134+$A$11,IF($C$5,8,0),1,1))) -> 4838580000 | D134: =IF(A134>$B$30,NA(),IF(A134>$A$8,"",OFFSET(InputPriceData!$C$15,CalculationsAndCharts!$A134+$A$11,IF($C$5,8,0),1,1))) -> 3878.3 | E134: =IF(A134>$B$30,NA(),IF(A134>$A$8,"",OFFSET(InputPriceData!$D$15,CalculationsAndCharts!$A134+$A$11,IF($C$5,8,0),1,1))) -> 3894.56 | F134: =IF(A134>$B$30,NA(),IF(A134>$A$8,"",OFFSET(InputPriceData!$E$15,CalculationsAndCharts!$A134+$A$11,IF($C$5,8,0),1,1))) -> 3874.93 | G134: =IF(A134>$B$30,NA(),IF(A134>$A$8,"",OFFSET(InputPriceData!$F$15,CalculationsAndCharts!$A134+$A$11,IF($C$5,8,0),1,1))) -> 3886.83 | H134: 3805.1625 | I134: 3814.022857 | J134: -0.2323100169 | K134: -0.1701821727 | M134: 3797.177266 | O134: 3812.020762 | P134: -0.3893865414 | Q134: 1.586558735 | T134: FALSE | U134: FALSE | V134: -3878.3 | W134: 0 | X134: TRUE | Y134: FALSE | Z134: TRUE | AA134: -3136.39 | AB134: FALSE | AC134: TRUE | AD134: FALSE | AE134: -1938.41 | AW134: 4838580000
A135: 103 | B135: =IF(A135>$B$30,NA(),IF($A135>$A$8,"",OFFSET(InputPriceData!$B$15,$A135+$A$11,0,1,1))) -> 2021-02-04 | C135: =IF(A135>$B$30,NA(),IF($A135>$A$8,"",OFFSET(InputPriceData!$G$15,CalculationsAndCharts!$A135+$A$11,IF($C$5,8,0),1,1))) -> 4856670000 | D135: =IF(A135>$B$30,NA(),IF(A135>$A$8,"",OFFSET(InputPriceData!$C$15,CalculationsAndCharts!$A135+$A$11,IF($C$5,8,0),1,1))) -> 3836.66 | E135: =IF(A135>$B$30,NA(),IF(A135>$A$8,"",OFFSET(InputPriceData!$D$15,CalculationsAndCharts!$A135+$A$11,IF($C$5,8,0),1,1))) -> 3872.42 | F135: =IF(A135>$B$30,NA(),IF(A135>$A$8,"",OFFSET(InputPriceData!$E$15,CalculationsAndCharts!$A135+$A$11,IF($C$5,8,0),1,1))) -> 3836.66 | G135: =IF(A135>$B$30,NA(),IF(A135>$A$8,"",OFFSET(InputPriceData!$F$15,CalculationsAndCharts!$A135+$A$11,IF($C$5,8,0),1,1))) -> 3871.74 | H135: 3800.51125 | I135: 3807.418571 | J135: -0.1814174433 | K135: -0.4257700771 | M135: 3779.569553 | O135: 3812.503604 | P135: -0.8638431536 | Q135: 0.3690228368 | T135: TRUE | U135: FALSE | V135: 0 | W135: 0 | X135: FALSE | Y135: FALSE | Z135: FALSE | AA135: 741.91 | AB135: FALSE | AC135: FALSE | AD135: TRUE | AE135: 1939.89 | AW135: 4856670000
A136: 104 | B136: =IF(A136>$B$30,NA(),IF($A136>$A$8,"",OFFSET(InputPriceData!$B$15,$A136+$A$11,0,1,1))) -> 2021-02-03 | C136: =IF(A136>$B$30,NA(),IF($A136>$A$8,"",OFFSET(InputPriceData!$G$15,CalculationsAndCharts!$A136+$A$11,IF($C$5,8,0),1,1))) -> 4846900000 | D136: =IF(A136>$B$30,NA(),IF(A136>$A$8,"",OFFSET(InputPriceData!$C$15,CalculationsAndCharts!$A136+$A$11,IF($C$5,8,0),1,1))) -> 3840.27 | E136: =IF(A136>$B$30,NA(),IF(A136>$A$8,"",OFFSET(InputPriceData!$D$15,CalculationsAndCharts!$A136+$A$11,IF($C$5,8,0),1,1))) -> 3847.51 | F136: =IF(A136>$B$30,NA(),IF(A136>$A$8,"",OFFSET(InputPriceData!$E$15,CalculationsAndCharts!$A136+$A$11,IF($C$5,8,0),1,1))) -> 3816.68 | G136: =IF(A136>$B$30,NA(),IF(A136>$A$8,"",OFFSET(InputPriceData!$F$15,CalculationsAndCharts!$A136+$A$11,IF($C$5,8,0),1,1))) -> 3830.17 | H136: 3798.46375 | I136: 3800.519524 | J136: -0.0540919155 | K136: -0.6677392202 | M136: 3775.43035 | O136: 3812.572375 | P136: -0.9741985544 | Q136: -0.931016522 | T136: FALSE | U136: FALSE | V136: 0 | W136: 0 | X136: FALSE | Y136: FALSE | Z136: FALSE | AA136: 741.91 | AB136: FALSE | AC136: FALSE | AD136: TRUE | AE136: 1939.89 | AX136: 4846900000
A137: 105 | B137: =IF(A137>$B$30,NA(),IF($A137>$A$8,"",OFFSET(InputPriceData!$B$15,$A137+$A$11,0,1,1))) -> 2021-02-02 | C137: =IF(A137>$B$30,NA(),IF($A137>$A$8,"",OFFSET(InputPriceData!$G$15,CalculationsAndCharts!$A137+$A$11,IF($C$5,8,0),1,1))) -> 5495370000 | D137: =IF(A137>$B$30,NA(),IF(A137>$A$8,"",OFFSET(InputPriceData!$C$15,CalculationsAndCharts!$A137+$A$11,IF($C$5,8,0),1,1))) -> 3791.84 | E137: =IF(A137>$B$30,NA(),IF(A137>$A$8,"",OFFSET(InputPriceData!$D$15,CalculationsAndCharts!$A137+$A$11,IF($C$5,8,0),1,1))) -> 3843.09 | F137: =IF(A137>$B$30,NA(),IF(A137>$A$8,"",OFFSET(InputPriceData!$E$15,CalculationsAndCharts!$A137+$A$11,IF($C$5,8,0),1,1))) -> 3791.84 | G137: =IF(A137>$B$30,NA(),IF(A137>$A$8,"",OFFSET(InputPriceData!$F$15,CalculationsAndCharts!$A137+$A$11,IF($C$5,8,0),1,1))) -> 3826.31 | H137: 3799.87625 | I137: 3794.351905 | J137: 0.1455939084 | K137: -0.590516091 | M137: 3785.091502 | O137: 3811.611946 | P137: -0.6957802802 | Q137: -1.85192913 | T137: FALSE | U137: FALSE | V137: 0 | W137: 0 | X137: FALSE | Y137: FALSE | Z137: FALSE | AA137: 741.91 | AB137: FALSE | AC137: FALSE | AD137: TRUE | AE137: 1939.89 | AW137: 5495370000
A138: 106 | B138: =IF(A138>$B$30,NA(),IF($A138>$A$8,"",OFFSET(InputPriceData!$B$15,$A138+$A$11,0,1,1))) -> 2021-02-01 | C138: =IF(A138>$B$30,NA(),IF($A138>$A$8,"",OFFSET(InputPriceData!$G$15,CalculationsAndCharts!$A138+$A$11,IF($C$5,8,0),1,1))) -> 5392870000 | D138: =IF(A138>$B$30,NA(),IF(A138>$A$8,"",OFFSET(InputPriceData!$C$15,CalculationsAndCharts!$A138+$A$11,IF($C$5,8,0),1,1))) -> 3731.17 | E138: =IF(A138>$B$30,NA(),IF(A138>$A$8,"",OFFSET(InputPriceData!$D$15,CalculationsAndCharts!$A138+$A$11,IF($C$5,8,0),1,1))) -> 3784.32 | F138: =IF(A138>$B$30,NA(),IF(A138>$A$8,"",OFFSET(InputPriceData!$E$15,CalculationsAndCharts!$A138+$A$11,IF($C$5,8,0),1,1))) -> 3725.62 | G138: =IF(A138>$B$30,NA(),IF(A138>$A$8,"",OFFSET(InputPriceData!$F$15,CalculationsAndCharts!$A138+$A$11,IF($C$5,8,0),1,1))) -> 3773.86 | H138: 3803.22125 | I138: 3791.007143 | J138: 0.3221863395 | K138: -1.036681213 | M138: 3803.840865 | O138: 3809.248675 | P138: -0.1419652832 | Q138: -2.12681941 | T138: FALSE | U138: FALSE | V138: 0 | W138: 0 | X138: FALSE | Y138: FALSE | Z138: FALSE | AA138: 741.91 | AB138: FALSE | AC138: FALSE | AD138: TRUE | AE138: 1939.89 | AW138: 5392870000
A139: 107 | B139: =IF(A139>$B$30,NA(),IF($A139>$A$8,"",OFFSET(InputPriceData!$B$15,$A139+$A$11,0,1,1))) -> 2021-01-29 | C139: =IF(A139>$B$30,NA(),IF($A139>$A$8,"",OFFSET(InputPriceData!$G$15,CalculationsAndCharts!$A139+$A$11,IF($C$5,8,0),1,1))) -> 6612570000 | D139: =IF(A139>$B$30,NA(),IF(A139>$A$8,"",OFFSET(InputPriceData!$C$15,CalculationsAndCharts!$A139+$A$11,IF($C$5,8,0),1,1))) -> 3778.05 | E139: =IF(A139>$B$30,NA(),IF(A139>$A$8,"",OFFSET(InputPriceData!$D$15,CalculationsAndCharts!$A139+$A$11,IF($C$5,8,0),1,1))) -> 3778.05 | F139: =IF(A139>$B$30,NA(),IF(A139>$A$8,"",OFFSET(InputPriceData!$E$15,CalculationsAndCharts!$A139+$A$11,IF($C$5,8,0),1,1))) -> 3694.12 | G139: =IF(A139>$B$30,NA(),IF(A139>$A$8,"",OFFSET(InputPriceData!$F$15,CalculationsAndCharts!$A139+$A$11,IF($C$5,8,0),1,1))) -> 3714.24 | H139: 3812.97 | I139: 3789.015714 | J139: 0.6322033879 | K139: -0.879781413 | M139: 3824.164603 | O139: 3805.364012 | P139: 0.4940549975 | Q139: -1.679102081 | T139: FALSE | U139: FALSE | V139: 0 | W139: 3778.05 | X139: FALSE | Y139: TRUE | Z139: FALSE | AA139: 741.91 | AB139: TRUE | AC139: FALSE | AD139: TRUE | AE139: 1939.89 | AX139: 6612570000
A140: 108 | B140: =IF(A140>$B$30,NA(),IF($A140>$A$8,"",OFFSET(InputPriceData!$B$15,$A140+$A$11,0,1,1))) -> 2021-01-28 | C140: =IF(A140>$B$30,NA(),IF($A140>$A$8,"",OFFSET(InputPriceData!$G$15,CalculationsAndCharts!$A140+$A$11,IF($C$5,8,0),1,1))) -> 6937960000 | D140: =IF(A140>$B$30,NA(),IF(A140>$A$8,"",OFFSET(InputPriceData!$C$15,CalculationsAndCharts!$A140+$A$11,IF($C$5,8,0),1,1))) -> 3755.75 | E140: =IF(A140>$B$30,NA(),IF(A140>$A$8,"",OFFSET(InputPriceData!$D$15,CalculationsAndCharts!$A140+$A$11,IF($C$5,8,0),1,1))) -> 3830.5 | F140: =IF(A140>$B$30,NA(),IF(A140>$A$8,"",OFFSET(InputPriceData!$E$15,CalculationsAndCharts!$A140+$A$11,IF($C$5,8,0),1,1))) -> 3755.75 | G140: =IF(A140>$B$30,NA(),IF(A140>$A$8,"",OFFSET(InputPriceData!$F$15,CalculationsAndCharts!$A140+$A$11,IF($C$5,8,0),1,1))) -> 3787.38 | H140: 3823.55375 | I140: 3789.625238 | J140: 0.8952999247 | K140: -0.009542351026 | M140: 3837.868105 | O140: 3800.012891 | P140: 0.9961864769 | Q140: -0.8128848674 | T140: FALSE | U140: TRUE | V140: 0 | W140: 0 | X140: FALSE | Y140: FALSE | Z140: TRUE | AA140: -3036.14 | AB140: FALSE | AC140: FALSE | AD140: FALSE | AE140: -1838.16 | AW140: 6937960000
A141: 109 | B141: =IF(A141>$B$30,NA(),IF($A141>$A$8,"",OFFSET(InputPriceData!$B$15,$A141+$A$11,0,1,1))) -> 2021-01-27 | C141: =IF(A141>$B$30,NA(),IF($A141>$A$8,"",OFFSET(InputPriceData!$G$15,CalculationsAndCharts!$A141+$A$11,IF($C$5,8,0),1,1))) -> 9878040000 | D141: =IF(A141>$B$30,NA(),IF(A141>$A$8,"",OFFSET(InputPriceData!$C$15,CalculationsAndCharts!$A141+$A$11,IF($C$5,8,0),1,1))) -> 3836.83 | E141: =IF(A141>$B$30,NA(),IF(A141>$A$8,"",OFFSET(InputPriceData!$D$15,CalculationsAndCharts!$A141+$A$11,IF($C$5,8,0),1,1))) -> 3836.83 | F141: =IF(A141>$B$30,NA(),IF(A141>$A$8,"",OFFSET(InputPriceData!$E$15,CalculationsAndCharts!$A141+$A$11,IF($C$5,8,0),1,1))) -> 3732.48 | G141: =IF(A141>$B$30,NA(),IF(A141>$A$8,"",OFFSET(InputPriceData!$F$15,CalculationsAndCharts!$A141+$A$11,IF($C$5,8,0),1,1))) -> 3750.77 | H141: 3821.1625 | I141: 3787.148095 | J141: 0.8981535421 | K141: -0.6969565502 | M141: 3840.594519 | O141: 3793.581507 | P141: 1.239277761 | Q141: 0.06316380278 | T141: FALSE | U141: FALSE | V141: 0 | W141: 0 | X141: FALSE | Y141: FALSE | Z141: TRUE | AA141: -3036.14 | AB141: FALSE | AC141: FALSE | AD141: FALSE | AE141: -1838.16 | AX141: 9878040000
A142: 110 | B142: =IF(A142>$B$30,NA(),IF($A142>$A$8,"",OFFSET(InputPriceData!$B$15,$A142+$A$11,0,1,1))) -> 2021-01-26 | C142: =IF(A142>$B$30,NA(),IF($A142>$A$8,"",OFFSET(InputPriceData!$G$15,CalculationsAndCharts!$A142+$A$11,IF($C$5,8,0),1,1))) -> 6029090000 | D142: =IF(A142>$B$30,NA(),IF(A142>$A$8,"",OFFSET(InputPriceData!$C$15,CalculationsAndCharts!$A142+$A$11,IF($C$5,8,0),1,1))) -> 3862.96 | E142: =IF(A142>$B$30,NA(),IF(A142>$A$8,"",OFFSET(InputPriceData!$D$15,CalculationsAndCharts!$A142+$A$11,IF($C$5,8,0),1,1))) -> 3870.9 | F142: =IF(A142>$B$30,NA(),IF(A142>$A$8,"",OFFSET(InputPriceData!$E$15,CalculationsAndCharts!$A142+$A$11,IF($C$5,8,0),1,1))) -> 3847.78 | G142: =IF(A142>$B$30,NA(),IF(A142>$A$8,"",OFFSET(InputPriceData!$F$15,CalculationsAndCharts!$A142+$A$11,IF($C$5,8,0),1,1))) -> 3849.62 | H142: 3826.75875 | I142: 3784.87619 | J142: 1.106576739 | K142: -0.240095305 | M142: 3832.684239 | O142: 3786.474529 | P142: 1.220388776 | Q142: 0.4895910118 | T142: FALSE | U142: FALSE | V142: -3862.96 | W142: 0 | X142: TRUE | Y142: FALSE | Z142: TRUE | AA142: -3036.14 | AB142: FALSE | AC142: TRUE | AD142: FALSE | AE142: -1838.16 | AX142: 6029090000
A143: 111 | B143: =IF(A143>$B$30,NA(),IF($A143>$A$8,"",OFFSET(InputPriceData!$B$15,$A143+$A$11,0,1,1))) -> 2021-01-25 | C143: =IF(A143>$B$30,NA(),IF($A143>$A$8,"",OFFSET(InputPriceData!$G$15,CalculationsAndCharts!$A143+$A$11,IF($C$5,8,0),1,1))) -> 6955860000 | D143: =IF(A143>$B$30,NA(),IF(A143>$A$8,"",OFFSET(InputPriceData!$C$15,CalculationsAndCharts!$A143+$A$11,IF($C$5,8,0),1,1))) -> 3851.68 | E143: =IF(A143>$B$30,NA(),IF(A143>$A$8,"",OFFSET(InputPriceData!$D$15,CalculationsAndCharts!$A143+$A$11,IF($C$5,8,0),1,1))) -> 3859.23 | F143: =IF(A143>$B$30,NA(),IF(A143>$A$8,"",OFFSET(InputPriceData!$E$15,CalculationsAndCharts!$A143+$A$11,IF($C$5,8,0),1,1))) -> 3797.16 | G143: =IF(A143>$B$30,NA(),IF(A143>$A$8,"",OFFSET(InputPriceData!$F$15,CalculationsAndCharts!$A143+$A$11,IF($C$5,8,0),1,1))) -> 3855.36 | H143: 3821.78625 | I143: 3777.275714 | J143: 1.178376668 | K143: -0.117800582 | M143: 3819.58622 | O143: 3779.000595 | P143: 1.07397775 | Q143: 0.3681573024 | T143: TRUE | U143: FALSE | V143: 0 | W143: 0 | X143: FALSE | Y143: FALSE | Z143: FALSE | AA143: 826.82 | AB143: FALSE | AC143: FALSE | AD143: TRUE | AE143: 2024.8 | AW143: 6955860000
A144: 112 | B144: =IF(A144>$B$30,NA(),IF($A144>$A$8,"",OFFSET(InputPriceData!$B$15,$A144+$A$11,0,1,1))) -> 2021-01-22 | C144: =IF(A144>$B$30,NA(),IF($A144>$A$8,"",OFFSET(InputPriceData!$G$15,CalculationsAndCharts!$A144+$A$11,IF($C$5,8,0),1,1))) -> 5080430000 | D144: =IF(A144>$B$30,NA(),IF(A144>$A$8,"",OFFSET(InputPriceData!$C$15,CalculationsAndCharts!$A144+$A$11,IF($C$5,8,0),1,1))) -> 3844.24 | E144: =IF(A144>$B$30,NA(),IF(A144>$A$8,"",OFFSET(InputPriceData!$D$15,CalculationsAndCharts!$A144+$A$11,IF($C$5,8,0),1,1))) -> 3852.31 | F144: =IF(A144>$B$30,NA(),IF(A144>$A$8,"",OFFSET(InputPriceData!$E$15,CalculationsAndCharts!$A144+$A$11,IF($C$5,8,0),1,1))) -> 3830.41 | G144: =IF(A144>$B$30,NA(),IF(A144>$A$8,"",OFFSET(InputPriceData!$F$15,CalculationsAndCharts!$A144+$A$11,IF($C$5,8,0),1,1))) -> 3841.47 | H144: 3815.015 | I144: 3769.270952 | J144: 1.213604652 | K144: -0.1627194246 | M144: 3807.705759 | O144: 3771.354384 | P144: 0.9638811852 | Q144: -0.005014320148 | T144: FALSE | U144: FALSE | V144: 0 | W144: 0 | X144: FALSE | Y144: FALSE | Z144: FALSE | AA144: 826.82 | AB144: FALSE | AC144: FALSE | AD144: TRUE | AE144: 2024.8 | AX144: 5080430000
A145: 113 | B145: =IF(A145>$B$30,NA(),IF($A145>$A$8,"",OFFSET(InputPriceData!$B$15,$A145+$A$11,0,1,1))) -> 2021-01-21 | C145: =IF(A145>$B$30,NA(),IF($A145>$A$8,"",OFFSET(InputPriceData!$G$15,CalculationsAndCharts!$A145+$A$11,IF($C$5,8,0),1,1))) -> 4484460000 | D145: =IF(A145>$B$30,NA(),IF(A145>$A$8,"",OFFSET(InputPriceData!$C$15,CalculationsAndCharts!$A145+$A$11,IF($C$5,8,0),1,1))) -> 3857.46 | E145: =IF(A145>$B$30,NA(),IF(A145>$A$8,"",OFFSET(InputPriceData!$D$15,CalculationsAndCharts!$A145+$A$11,IF($C$5,8,0),1,1))) -> 3861.45 | F145: =IF(A145>$B$30,NA(),IF(A145>$A$8,"",OFFSET(InputPriceData!$E$15,CalculationsAndCharts!$A145+$A$11,IF($C$5,8,0),1,1))) -> 3845.05 | G145: =IF(A145>$B$30,NA(),IF(A145>$A$8,"",OFFSET(InputPriceData!$F$15,CalculationsAndCharts!$A145+$A$11,IF($C$5,8,0),1,1))) -> 3853.07 | H145: 3809.7825 | I145: 3762.292381 | J145: 1.262265508 | K145: -0.3008349464 | M145: 3799.89369 | O145: 3763.560998 | P145: 0.9653807057 | Q145: -0.5297217365 | T145: FALSE | U145: FALSE | V145: 0 | W145: 0 | X145: FALSE | Y145: FALSE | Z145: FALSE | AA145: 826.82 | AB145: FALSE | AC145: FALSE | AD145: TRUE | AE145: 2024.8 | AX145: 4484460000
A146: 114 | B146: =IF(A146>$B$30,NA(),IF($A146>$A$8,"",OFFSET(InputPriceData!$B$15,$A146+$A$11,0,1,1))) -> 2021-01-20 | C146: =IF(A146>$B$30,NA(),IF($A146>$A$8,"",OFFSET(InputPriceData!$G$15,CalculationsAndCharts!$A146+$A$11,IF($C$5,8,0),1,1))) -> 4551790000 | D146: =IF(A146>$B$30,NA(),IF(A146>$A$8,"",OFFSET(InputPriceData!$C$15,CalculationsAndCharts!$A146+$A$11,IF($C$5,8,0),1,1))) -> 3816.22 | E146: =IF(A146>$B$30,NA(),IF(A146>$A$8,"",OFFSET(InputPriceData!$D$15,CalculationsAndCharts!$A146+$A$11,IF($C$5,8,0),1,1))) -> 3859.75 | F146: =IF(A146>$B$30,NA(),IF(A146>$A$8,"",OFFSET(InputPriceData!$E$15,CalculationsAndCharts!$A146+$A$11,IF($C$5,8,0),1,1))) -> 3816.22 | G146: =IF(A146>$B$30,NA(),IF(A146>$A$8,"",OFFSET(InputPriceData!$F$15,CalculationsAndCharts!$A146+$A$11,IF($C$5,8,0),1,1))) -> 3851.85 | H146: 3806.23375 | I146: 3755.451429 | J146: 1.352229483 | K146: -0.02107353566 | M146: 3797.919685 | O146: 3755.713252 | P146: 1.12379273 | Q146: -0.9731490462 | T146: FALSE | U146: FALSE | V146: 0 | W146: 0 | X146: FALSE | Y146: FALSE | Z146: FALSE | AA146: 826.82 | AB146: FALSE | AC146: FALSE | AD146: TRUE | AE146: 2024.8 | AW146: 4551790000
A147: 115 | B147: =IF(A147>$B$30,NA(),IF($A147>$A$8,"",OFFSET(InputPriceData!$B$15,$A147+$A$11,0,1,1))) -> 2021-01-19 | C147: =IF(A147>$B$30,NA(),IF($A147>$A$8,"",OFFSET(InputPriceData!$G$15,CalculationsAndCharts!$A147+$A$11,IF($C$5,8,0),1,1))) -> 4982940000 | D147: =IF(A147>$B$30,NA(),IF(A147>$A$8,"",OFFSET(InputPriceData!$C$15,CalculationsAndCharts!$A147+$A$11,IF($C$5,8,0),1,1))) -> 3781.88 | E147: =IF(A147>$B$30,NA(),IF(A147>$A$8,"",OFFSET(InputPriceData!$D$15,CalculationsAndCharts!$A147+$A$11,IF($C$5,8,0),1,1))) -> 3804.53 | F147: =IF(A147>$B$30,NA(),IF(A147>$A$8,"",OFFSET(InputPriceData!$E$15,CalculationsAndCharts!$A147+$A$11,IF($C$5,8,0),1,1))) -> 3780.37 | G147: =IF(A147>$B$30,NA(),IF(A147>$A$8,"",OFFSET(InputPriceData!$F$15,CalculationsAndCharts!$A147+$A$11,IF($C$5,8,0),1,1))) -> 3798.91 | H147: 3800.22625 | I147: 3749.290952 | J147: 1.358531473 | K147: 0.1454454773 | M147: 3800.989909 | O147: 3747.963325 | P147: 1.414810635 | Q147: -0.92526856 | T147: FALSE | U147: FALSE | V147: 0 | W147: 3781.88 | X147: FALSE | Y147: TRUE | Z147: FALSE | AA147: 826.82 | AB147: TRUE | AC147: FALSE | AD147: TRUE | AE147: 2024.8 | AW147: 4982940000
A148: 116 | B148: =IF(A148>$B$30,NA(),IF($A148>$A$8,"",OFFSET(InputPriceData!$B$15,$A148+$A$11,0,1,1))) -> 2021-01-15 | C148: =IF(A148>$B$30,NA(),IF($A148>$A$8,"",OFFSET(InputPriceData!$G$15,CalculationsAndCharts!$A148+$A$11,IF($C$5,8,0),1,1))) -> 5353060000 | D148: =IF(A148>$B$30,NA(),IF(A148>$A$8,"",OFFSET(InputPriceData!$C$15,CalculationsAndCharts!$A148+$A$11,IF($C$5,8,0),1,1))) -> 3788.73 | E148: =IF(A148>$B$30,NA(),IF(A148>$A$8,"",OFFSET(InputPriceData!$D$15,CalculationsAndCharts!$A148+$A$11,IF($C$5,8,0),1,1))) -> 3788.73 | F148: =IF(A148>$B$30,NA(),IF(A148>$A$8,"",OFFSET(InputPriceData!$E$15,CalculationsAndCharts!$A148+$A$11,IF($C$5,8,0),1,1))) -> 3749.62 | G148: =IF(A148>$B$30,NA(),IF(A148>$A$8,"",OFFSET(InputPriceData!$F$15,CalculationsAndCharts!$A148+$A$11,IF($C$5,8,0),1,1))) -> 3768.25 | H148: 3793.88 | I148: 3744.636667 | J148: 1.31503635 | K148: 0.1449308539 | M148: 3803.690786 | O148: 3740.421188 | P148: 1.691509995 | Q148: -0.3415690055 | T148: FALSE | U148: TRUE | V148: 0 | W148: 0 | X148: FALSE | Y148: FALSE | Z148: TRUE | AA148: -2955.06 | AB148: FALSE | AC148: FALSE | AD148: FALSE | AE148: -1757.08 | AX148: 5353060000
A149: 117 | B149: =IF(A149>$B$30,NA(),IF($A149>$A$8,"",OFFSET(InputPriceData!$B$15,$A149+$A$11,0,1,1))) -> 2021-01-14 | C149: =IF(A149>$B$30,NA(),IF($A149>$A$8,"",OFFSET(InputPriceData!$G$15,CalculationsAndCharts!$A149+$A$11,IF($C$5,8,0),1,1))) -> 5180140000 | D149: =IF(A149>$B$30,NA(),IF(A149>$A$8,"",OFFSET(InputPriceData!$C$15,CalculationsAndCharts!$A149+$A$11,IF($C$5,8,0),1,1))) -> 3814.98 | E149: =IF(A149>$B$30,NA(),IF(A149>$A$8,"",OFFSET(InputPriceData!$D$15,CalculationsAndCharts!$A149+$A$11,IF($C$5,8,0),1,1))) -> 3823.6 | F149: =IF(A149>$B$30,NA(),IF(A149>$A$8,"",OFFSET(InputPriceData!$E$15,CalculationsAndCharts!$A149+$A$11,IF($C$5,8,0),1,1))) -> 3792.86 | G149: =IF(A149>$B$30,NA(),IF(A149>$A$8,"",OFFSET(InputPriceData!$F$15,CalculationsAndCharts!$A149+$A$11,IF($C$5,8,0),1,1))) -> 3795.54 | H149: 3788.70625 | I149: 3741.130476 | J149: 1.271695123 | K149: 0.4228289894 | M149: 3800.189653 | O149: 3733.228401 | P149: 1.793655393 | Q149: 0.4397203312 | T149: FALSE | U149: FALSE | V149: 0 | W149: 0 | X149: FALSE | Y149: FALSE | Z149: TRUE | AA149: -2955.06 | AB149: FALSE | AC149: FALSE | AD149: FALSE | AE149: -1757.08 | AX149: 5180140000
A150: 118 | B150: =IF(A150>$B$30,NA(),IF($A150>$A$8,"",OFFSET(InputPriceData!$B$15,$A150+$A$11,0,1,1))) -> 2021-01-13 | C150: =IF(A150>$B$30,NA(),IF($A150>$A$8,"",OFFSET(InputPriceData!$G$15,CalculationsAndCharts!$A150+$A$11,IF($C$5,8,0),1,1))) -> 4590420000 | D150: =IF(A150>$B$30,NA(),IF(A150>$A$8,"",OFFSET(InputPriceData!$C$15,CalculationsAndCharts!$A150+$A$11,IF($C$5,8,0),1,1))) -> 3802.23 | E150: =IF(A150>$B$30,NA(),IF(A150>$A$8,"",OFFSET(InputPriceData!$D$15,CalculationsAndCharts!$A150+$A$11,IF($C$5,8,0),1,1))) -> 3820.96 | F150: =IF(A150>$B$30,NA(),IF(A150>$A$8,"",OFFSET(InputPriceData!$E$15,CalculationsAndCharts!$A150+$A$11,IF($C$5,8,0),1,1))) -> 3791.5 | G150: =IF(A150>$B$30,NA(),IF(A150>$A$8,"",OFFSET(InputPriceData!$F$15,CalculationsAndCharts!$A150+$A$11,IF($C$5,8,0),1,1))) -> 3809.84 | H150: 3776.845 | I150: 3734.080476 | J150: 1.14524912 | K150: -0.02952273613 | M150: 3788.494519 | O150: 3726.553312 | P150: 1.662158075 | Q150: 0.9901957645 | T150: FALSE | U150: FALSE | V150: 0 | W150: 0 | X150: FALSE | Y150: FALSE | Z150: TRUE | AA150: -2955.06 | AB150: FALSE | AC150: FALSE | AD150: FALSE | AE150: -1757.08 | AW150: 4590420000
A151: 119 | B151: =IF(A151>$B$30,NA(),IF($A151>$A$8,"",OFFSET(InputPriceData!$B$15,$A151+$A$11,0,1,1))) -> 2021-01-12 | C151: =IF(A151>$B$30,NA(),IF($A151>$A$8,"",OFFSET(InputPriceData!$G$15,CalculationsAndCharts!$A151+$A$11,IF($C$5,8,0),1,1))) -> 4977210000 | D151: =IF(A151>$B$30,NA(),IF(A151>$A$8,"",OFFSET(InputPriceData!$C$15,CalculationsAndCharts!$A151+$A$11,IF($C$5,8,0),1,1))) -> 3801.62 | E151: =IF(A151>$B$30,NA(),IF(A151>$A$8,"",OFFSET(InputPriceData!$D$15,CalculationsAndCharts!$A151+$A$11,IF($C$5,8,0),1,1))) -> 3810.78 | F151: =IF(A151>$B$30,NA(),IF(A151>$A$8,"",OFFSET(InputPriceData!$E$15,CalculationsAndCharts!$A151+$A$11,IF($C$5,8,0),1,1))) -> 3776.51 | G151: =IF(A151>$B$30,NA(),IF(A151>$A$8,"",OFFSET(InputPriceData!$F$15,CalculationsAndCharts!$A151+$A$11,IF($C$5,8,0),1,1))) -> 3801.19 | H151: 3770.12375 | I151: 3727.11 | J151: 1.154077824 | K151: 0.2006842576 | M151: 3771.294376 | O151: 3720.471163 | P151: 1.366042389 | Q151: 1.091826266 | T151: FALSE | U151: FALSE | V151: 0 | W151: 0 | X151: FALSE | Y151: FALSE | Z151: TRUE | AA151: -2955.06 | AB151: FALSE | AC151: FALSE | AD151: FALSE | AE151: -1757.08 | AX151: 4977210000
A152: 120 | B152: =IF(A152>$B$30,NA(),IF($A152>$A$8,"",OFFSET(InputPriceData!$B$15,$A152+$A$11,0,1,1))) -> 2021-01-11 | C152: =IF(A152>$B$30,NA(),IF($A152>$A$8,"",OFFSET(InputPriceData!$G$15,CalculationsAndCharts!$A152+$A$11,IF($C$5,8,0),1,1))) -> 4450500000 | D152: =IF(A152>$B$30,NA(),IF(A152>$A$8,"",OFFSET(InputPriceData!$C$15,CalculationsAndCharts!$A152+$A$11,IF($C$5,8,0),1,1))) -> 3803.14 | E152: =IF(A152>$B$30,NA(),IF(A152>$A$8,"",OFFSET(InputPriceData!$D$15,CalculationsAndCharts!$A152+$A$11,IF($C$5,8,0),1,1))) -> 3817.86 | F152: =IF(A152>$B$30,NA(),IF(A152>$A$8,"",OFFSET(InputPriceData!$E$15,CalculationsAndCharts!$A152+$A$11,IF($C$5,8,0),1,1))) -> 3789.02 | G152: =IF(A152>$B$30,NA(),IF(A152>$A$8,"",OFFSET(InputPriceData!$F$15,CalculationsAndCharts!$A152+$A$11,IF($C$5,8,0),1,1))) -> 3799.61 | H152: 3761.48 | I152: 3720.772381 | J152: 1.094063675 | K152: 0.2671367427 | M152: 3753.588921 | O152: 3714.970526 | P152: 1.039534343 | Q152: 0.7980082908 | T152: FALSE | U152: FALSE | V152: -3803.14 | W152: 0 | X152: TRUE | Y152: FALSE | Z152: TRUE | AA152: -2955.06 | AB152: FALSE | AC152: TRUE | AD152: FALSE | AE152: -1757.08 | AX152: 4450500000
A153: 121 | B153: =IF(A153>$B$30,NA(),IF($A153>$A$8,"",OFFSET(InputPriceData!$B$15,$A153+$A$11,0,1,1))) -> 2021-01-08 | C153: =IF(A153>$B$30,NA(),IF($A153>$A$8,"",OFFSET(InputPriceData!$G$15,CalculationsAndCharts!$A153+$A$11,IF($C$5,8,0),1,1))) -> 4764180000 | D153: =IF(A153>$B$30,NA(),IF(A153>$A$8,"",OFFSET(InputPriceData!$C$15,CalculationsAndCharts!$A153+$A$11,IF($C$5,8,0),1,1))) -> 3815.05 | E153: =IF(A153>$B$30,NA(),IF(A153>$A$8,"",OFFSET(InputPriceData!$D$15,CalculationsAndCharts!$A153+$A$11,IF($C$5,8,0),1,1))) -> 3826.69 | F153: =IF(A153>$B$30,NA(),IF(A153>$A$8,"",OFFSET(InputPriceData!$E$15,CalculationsAndCharts!$A153+$A$11,IF($C$5,8,0),1,1))) -> 3783.6 | G153: =IF(A153>$B$30,NA(),IF(A153>$A$8,"",OFFSET(InputPriceData!$F$15,CalculationsAndCharts!$A153+$A$11,IF($C$5,8,0),1,1))) -> 3824.68 | H153: 3752.40875 | I153: 3714.734762 | J153: 1.014177068 | K153: 0.4756728254 | M153: 3739.712783 | O153: 3709.999697 | P153: 0.8008918642 | Q153: 0.2402353969 | T153: TRUE | U153: FALSE | V153: 0 | W153: 0 | X153: FALSE | Y153: FALSE | Z153: FALSE | AA153: 848.08 | AB153: FALSE | AC153: FALSE | AD153: TRUE | AE153: 2046.06 | AW153: 4764180000
A154: 122 | B154: =IF(A154>$B$30,NA(),IF($A154>$A$8,"",OFFSET(InputPriceData!$B$15,$A154+$A$11,0,1,1))) -> 2021-01-07 | C154: =IF(A154>$B$30,NA(),IF($A154>$A$8,"",OFFSET(InputPriceData!$G$15,CalculationsAndCharts!$A154+$A$11,IF($C$5,8,0),1,1))) -> 5080870000 | D154: =IF(A154>$B$30,NA(),IF(A154>$A$8,"",OFFSET(InputPriceData!$C$15,CalculationsAndCharts!$A154+$A$11,IF($C$5,8,0),1,1))) -> 3764.71 | E154: =IF(A154>$B$30,NA(),IF(A154>$A$8,"",OFFSET(InputPriceData!$D$15,CalculationsAndCharts!$A154+$A$11,IF($C$5,8,0),1,1))) -> 3811.55 | F154: =IF(A154>$B$30,NA(),IF(A154>$A$8,"",OFFSET(InputPriceData!$E$15,CalculationsAndCharts!$A154+$A$11,IF($C$5,8,0),1,1))) -> 3764.71 | G154: =IF(A154>$B$30,NA(),IF(A154>$A$8,"",OFFSET(InputPriceData!$F$15,CalculationsAndCharts!$A154+$A$11,IF($C$5,8,0),1,1))) -> 3803.79 | H154: 3741.24375 | I154: 3708.904762 | J154: 0.8719282422 | K154: 0.6518533305 | M154: 3732.561046 | O154: 3705.545763 | P154: 0.7290500407 | Q154: -0.1911883774 | T154: FALSE | U154: FALSE | V154: 0 | W154: 3764.71 | X154: FALSE | Y154: TRUE | Z154: FALSE | AA154: 848.08 | AB154: TRUE | AC154: FALSE | AD154: TRUE | AE154: 2046.06 | AW154: 5080870000
A155: 123 | B155: =IF(A155>$B$30,NA(),IF($A155>$A$8,"",OFFSET(InputPriceData!$B$15,$A155+$A$11,0,1,1))) -> 2021-01-06 | C155: =IF(A155>$B$30,NA(),IF($A155>$A$8,"",OFFSET(InputPriceData!$G$15,CalculationsAndCharts!$A155+$A$11,IF($C$5,8,0),1,1))) -> 6049970000 | D155: =IF(A155>$B$30,NA(),IF(A155>$A$8,"",OFFSET(InputPriceData!$C$15,CalculationsAndCharts!$A155+$A$11,IF($C$5,8,0),1,1))) -> 3712.2 | E155: =IF(A155>$B$30,NA(),IF(A155>$A$8,"",OFFSET(InputPriceData!$D$15,CalculationsAndCharts!$A155+$A$11,IF($C$5,8,0),1,1))) -> 3783.04 | F155: =IF(A155>$B$30,NA(),IF(A155>$A$8,"",OFFSET(InputPriceData!$E$15,CalculationsAndCharts!$A155+$A$11,IF($C$5,8,0),1,1))) -> 3705.34 | G155: =IF(A155>$B$30,NA(),IF(A155>$A$8,"",OFFSET(InputPriceData!$F$15,CalculationsAndCharts!$A155+$A$11,IF($C$5,8,0),1,1))) -> 3748.14 | H155: 3728.6525 | I155: 3703.579524 | J155: 0.6769930558 | K155: 0.4441584369 | M155: 3730.648384 | O155: 3701.545924 | P155: 0.7862244697 | Q155: -0.1618389934 | T155: FALSE | U155: TRUE | V155: 0 | W155: 0 | X155: FALSE | Y155: FALSE | Z155: TRUE | AA155: -2916.63 | AB155: FALSE | AC155: FALSE | AD155: FALSE | AE155: -1718.65 | AW155: 6049970000
A156: 124 | B156: =IF(A156>$B$30,NA(),IF($A156>$A$8,"",OFFSET(InputPriceData!$B$15,$A156+$A$11,0,1,1))) -> 2021-01-05 | C156: =IF(A156>$B$30,NA(),IF($A156>$A$8,"",OFFSET(InputPriceData!$G$15,CalculationsAndCharts!$A156+$A$11,IF($C$5,8,0),1,1))) -> 4582620000 | D156: =IF(A156>$B$30,NA(),IF(A156>$A$8,"",OFFSET(InputPriceData!$C$15,CalculationsAndCharts!$A156+$A$11,IF($C$5,8,0),1,1))) -> 3698.02 | E156: =IF(A156>$B$30,NA(),IF(A156>$A$8,"",OFFSET(InputPriceData!$D$15,CalculationsAndCharts!$A156+$A$11,IF($C$5,8,0),1,1))) -> 3737.83 | F156: =IF(A156>$B$30,NA(),IF(A156>$A$8,"",OFFSET(InputPriceData!$E$15,CalculationsAndCharts!$A156+$A$11,IF($C$5,8,0),1,1))) -> 3695.07 | G156: =IF(A156>$B$30,NA(),IF(A156>$A$8,"",OFFSET(InputPriceData!$F$15,CalculationsAndCharts!$A156+$A$11,IF($C$5,8,0),1,1))) -> 3726.86 | H156: 3721.38625 | I156: 3701.245238 | J156: 0.5441685327 | K156: 0.1872171069 | M156: 3728.750515 | O156: 3697.887134 | P156: 0.8346220354 | Q156: 0.1939923028 | T156: FALSE | U156: FALSE | V156: 0 | W156: 0 | X156: FALSE | Y156: FALSE | Z156: TRUE | AA156: -2916.63 | AB156: FALSE | AC156: FALSE | AD156: FALSE | AE156: -1718.65 | AW156: 4582620000
A157: 125 | B157: =IF(A157>$B$30,NA(),IF($A157>$A$8,"",OFFSET(InputPriceData!$B$15,$A157+$A$11,0,1,1))) -> 2021-01-04 | C157: =IF(A157>$B$30,NA(),IF($A157>$A$8,"",OFFSET(InputPriceData!$G$15,CalculationsAndCharts!$A157+$A$11,IF($C$5,8,0),1,1))) -> 5006680000 | D157: =IF(A157>$B$30,NA(),IF(A157>$A$8,"",OFFSET(InputPriceData!$C$15,CalculationsAndCharts!$A157+$A$11,IF($C$5,8,0),1,1))) -> 3764.61 | E157: =IF(A157>$B$30,NA(),IF(A157>$A$8,"",OFFSET(InputPriceData!$D$15,CalculationsAndCharts!$A157+$A$11,IF($C$5,8,0),1,1))) -> 3769.99 | F157: =IF(A157>$B$30,NA(),IF(A157>$A$8,"",OFFSET(InputPriceData!$E$15,CalculationsAndCharts!$A157+$A$11,IF($C$5,8,0),1,1))) -> 3662.71 | G157: =IF(A157>$B$30,NA(),IF(A157>$A$8,"",OFFSET(InputPriceData!$F$15,CalculationsAndCharts!$A157+$A$11,IF($C$5,8,0),1,1))) -> 3700.65 | H157: 3716.43625 | I157: 3698.381429 | J157: 0.4881817027 | K157: -0.07216118696 | M157: 3723.215177 | O157: 3694.523173 | P157: 0.7766090991 | Q157: 0.5361668519 | T157: FALSE | U157: FALSE | V157: 0 | W157: 0 | X157: FALSE | Y157: FALSE | Z157: TRUE | AA157: -2916.63 | AB157: FALSE | AC157: FALSE | AD157: FALSE | AE157: -1718.65 | AX157: 5006680000
A158: 126 | B158: =IF(A158>$B$30,NA(),IF($A158>$A$8,"",OFFSET(InputPriceData!$B$15,$A158+$A$11,0,1,1))) -> 2020-12-31 | C158: =IF(A158>$B$30,NA(),IF($A158>$A$8,"",OFFSET(InputPriceData!$G$15,CalculationsAndCharts!$A158+$A$11,IF($C$5,8,0),1,1))) -> 3172510000 | D158: =IF(A158>$B$30,NA(),IF(A158>$A$8,"",OFFSET(InputPriceData!$C$15,CalculationsAndCharts!$A158+$A$11,IF($C$5,8,0),1,1))) -> 3733.27 | E158: =IF(A158>$B$30,NA(),IF(A158>$A$8,"",OFFSET(InputPriceData!$D$15,CalculationsAndCharts!$A158+$A$11,IF($C$5,8,0),1,1))) -> 3760.2 | F158: =IF(A158>$B$30,NA(),IF(A158>$A$8,"",OFFSET(InputPriceData!$E$15,CalculationsAndCharts!$A158+$A$11,IF($C$5,8,0),1,1))) -> 3726.88 | G158: =IF(A158>$B$30,NA(),IF(A158>$A$8,"",OFFSET(InputPriceData!$F$15,CalculationsAndCharts!$A158+$A$11,IF($C$5,8,0),1,1))) -> 3756.07 | H158: 3715.72 | I158: 3696.874762 | J158: 0.5097613338 | K158: 0.1224115937 | M158: 3714.219553 | O158: 3691.470142 | P158: 0.6162696786 | Q158: 0.5585256052 | T158: FALSE | U158: FALSE | V158: -3733.27 | W158: 0 | X158: TRUE | Y158: FALSE | Z158: TRUE | AA158: -2916.63 | AB158: FALSE | AC158: TRUE | AD158: FALSE | AE158: -1718.65 | AW158: 3172510000
A159: 127 | B159: =IF(A159>$B$30,NA(),IF($A159>$A$8,"",OFFSET(InputPriceData!$B$15,$A159+$A$11,0,1,1))) -> 2020-12-30 | C159: =IF(A159>$B$30,NA(),IF($A159>$A$8,"",OFFSET(InputPriceData!$G$15,CalculationsAndCharts!$A159+$A$11,IF($C$5,8,0),1,1))) -> 3145200000 | D159: =IF(A159>$B$30,NA(),IF(A159>$A$8,"",OFFSET(InputPriceData!$C$15,CalculationsAndCharts!$A159+$A$11,IF($C$5,8,0),1,1))) -> 3736.19 | E159: =IF(A159>$B$30,NA(),IF(A159>$A$8,"",OFFSET(InputPriceData!$D$15,CalculationsAndCharts!$A159+$A$11,IF($C$5,8,0),1,1))) -> 3744.63 | F159: =IF(A159>$B$30,NA(),IF(A159>$A$8,"",OFFSET(InputPriceData!$E$15,CalculationsAndCharts!$A159+$A$11,IF($C$5,8,0),1,1))) -> 3730.21 | G159: =IF(A159>$B$30,NA(),IF(A159>$A$8,"",OFFSET(InputPriceData!$F$15,CalculationsAndCharts!$A159+$A$11,IF($C$5,8,0),1,1))) -> 3732.04 | H159: 3709.8875 | I159: 3692.416667 | J159: 0.4731544382 | K159: -0.3707021363 | M159: 3705.37023 | O159: 3688.798527 | P159: 0.4492439262 | Q159: 0.2544793854 | T159: TRUE | U159: FALSE | V159: 0 | W159: 0 | X159: FALSE | Y159: FALSE | Z159: FALSE | AA159: 816.64 | AB159: FALSE | AC159: FALSE | AD159: TRUE | AE159: 2014.62 | AX159: 3145200000
A160: 128 | B160: =IF(A160>$B$30,NA(),IF($A160>$A$8,"",OFFSET(InputPriceData!$B$15,$A160+$A$11,0,1,1))) -> 2020-12-29 | C160: =IF(A160>$B$30,NA(),IF($A160>$A$8,"",OFFSET(InputPriceData!$G$15,CalculationsAndCharts!$A160+$A$11,IF($C$5,8,0),1,1))) -> 3387030000 | D160: =IF(A160>$B$30,NA(),IF(A160>$A$8,"",OFFSET(InputPriceData!$C$15,CalculationsAndCharts!$A160+$A$11,IF($C$5,8,0),1,1))) -> 3750.01 | E160: =IF(A160>$B$30,NA(),IF(A160>$A$8,"",OFFSET(InputPriceData!$D$15,CalculationsAndCharts!$A160+$A$11,IF($C$5,8,0),1,1))) -> 3756.12 | F160: =IF(A160>$B$30,NA(),IF(A160>$A$8,"",OFFSET(InputPriceData!$E$15,CalculationsAndCharts!$A160+$A$11,IF($C$5,8,0),1,1))) -> 3723.31 | G160: =IF(A160>$B$30,NA(),IF(A160>$A$8,"",OFFSET(InputPriceData!$F$15,CalculationsAndCharts!$A160+$A$11,IF($C$5,8,0),1,1))) -> 3727.04 | H160: 3708.6925 | I160: 3687.159048 | J160: 0.5840120294 | K160: -0.09208941602 | M160: 3700.162449 | O160: 3686.406899 | P160: 0.3731424719 | Q160: -0.1399227594 | T160: FALSE | U160: FALSE | V160: 0 | W160: 0 | X160: FALSE | Y160: FALSE | Z160: FALSE | AA160: 816.64 | AB160: FALSE | AC160: FALSE | AD160: TRUE | AE160: 2014.62 | AX160: 3387030000
A161: 129 | B161: =IF(A161>$B$30,NA(),IF($A161>$A$8,"",OFFSET(InputPriceData!$B$15,$A161+$A$11,0,1,1))) -> 2020-12-28 | C161: =IF(A161>$B$30,NA(),IF($A161>$A$8,"",OFFSET(InputPriceData!$G$15,CalculationsAndCharts!$A161+$A$11,IF($C$5,8,0),1,1))) -> 3527460000 | D161: =IF(A161>$B$30,NA(),IF(A161>$A$8,"",OFFSET(InputPriceData!$C$15,CalculationsAndCharts!$A161+$A$11,IF($C$5,8,0),1,1))) -> 3723.03 | E161: =IF(A161>$B$30,NA(),IF(A161>$A$8,"",OFFSET(InputPriceData!$D$15,CalculationsAndCharts!$A161+$A$11,IF($C$5,8,0),1,1))) -> 3740.51 | F161: =IF(A161>$B$30,NA(),IF(A161>$A$8,"",OFFSET(InputPriceData!$E$15,CalculationsAndCharts!$A161+$A$11,IF($C$5,8,0),1,1))) -> 3723.03 | G161: =IF(A161>$B$30,NA(),IF(A161>$A$8,"",OFFSET(InputPriceData!$F$15,CalculationsAndCharts!$A161+$A$11,IF($C$5,8,0),1,1))) -> 3735.36 | H161: =IF($A161<=H$30,AVERAGE(OFFSET(G161,0,0,$A$18,1)),NA()) -> 3705.45875 | I161: =IF($A161<=I$30,AVERAGE(OFFSET(G161,0,0,$A$22,1)),NA()) -> 3682.935714 | J161: =IF($A161<=J$30,100*(H161-I161)/I161,NA()) -> 0.61155115 | K161: 0.002537228198 | L161: =IF($A161>$D$18+1,NA(),IF($A161=$D$18+1,SUM(OFFSET(L$33,0,0,$A$18,1)),IF($A161=$D$18,"-- Coef Sum--",1-COS(RADIANS(360*$A161/$D$18))))) ->  | M161: =IF($A161<=M$30,SUMPRODUCT(OFFSET(L$33,0,0,$A$18,1),OFFSET($G161,0,0,$A$18,1))/OFFSET(L$33,$D$18,0,1,1),NA()) -> 3699.357344 | N161: =IF($A161>$D$22+1,NA(),IF($A161=$D$22+1,SUM(OFFSET(N$33,0,0,$A$22,1)),IF($A161=$D$22,"-- Coef Sum--",1-COS(RADIANS(360*$A161/$D$22))))) ->  | O161: =IF($A161<=O$30,SUMPRODUCT(OFFSET(N$33,0,0,$A$22,1),OFFSET($G161,0,0,$A$22,1))/OFFSET(N$33,$D$22,0,1,1),NA()) -> 3684.068972 | P161: =IF($A161<=P$30,100*(M161-O161)/O161,NA()) -> 0.41498604 | Q161: -0.4346905498 | T161: =IF($A161<=T$30,IF(AND(Q161>=0,Q162<=0),TRUE,FALSE),NA()) -> FALSE | U161: =IF($A161<=T$30,IF(AND(Q161<=0,Q162>=0),TRUE,FALSE),NA()) -> FALSE | V161: =IF($A161<=$V$30,IF(T162,-$D161,0),NA()) -> 0 | W161: =IF($A161<=$V$30,IF(U162,$D161,0),NA()) -> 3723.03 | X161: =IF($A161<=$V$30,T162,NA()) -> FALSE | Y161: =IF($A161<=$V$30,AND(U162,IF($A161=$V$30,FALSE,Z162)),NA()) -> TRUE | Z161: =IF($A161>$V$30,NA(),IF($A161=$V$30,FALSE,IF(AND(T162,NOT(Z162)),TRUE,IF(AND(Z162,U162),FALSE,Z162)))) -> FALSE | AA161: =IF($A161>$V$30,NA(),IF($A161=$V$30,0,AA162)+IF(X161,$V161,0)+IF(Y161,$W161,0)+IF(AND(Z161,$A161=1),$G161,0)) -> 816.64 | AB161: =IF($A161<=$V$30,U162,NA()) -> TRUE | AC161: =IF($A161<=$V$30,AND(T162,IF($A161=$V$30,FALSE,AD162)),NA()) -> FALSE | AD161: =IF($A161>$V$30,NA(),IF($A161=$V$30,FALSE,IF(AND(U162,NOT(AD162)),TRUE,IF(AND(AD162,T162),FALSE,AD162)))) -> TRUE | AE161: =IF($A161>$V$30,NA(),IF($A161=$V$30,0,AE162)+IF(AB161,$W161,0)+IF(AC161,$V161,0)+IF(AND(AD161,$A161=1),$G161,0)) -> 2014.62 | AW161: =IF(G161>=D161,C161,NA()) -> 3527460000 | AX161: =IF(G161<D161,C161,NA()) -> 
A162: 130 | B162: =IF(A162>$B$30,NA(),IF($A162>$A$8,"",OFFSET(InputPriceData!$B$15,$A162+$A$11,0,1,1))) -> 2020-12-24 | C162: =IF(A162>$B$30,NA(),IF($A162>$A$8,"",OFFSET(InputPriceData!$G$15,CalculationsAndCharts!$A162+$A$11,IF($C$5,8,0),1,1))) -> 1885090000 | D162: =IF(A162>$B$30,NA(),IF(A162>$A$8,"",OFFSET(InputPriceData!$C$15,CalculationsAndCharts!$A162+$A$11,IF($C$5,8,0),1,1))) -> 3694.03 | E162: =IF(A162>$B$30,NA(),IF(A162>$A$8,"",OFFSET(InputPriceData!$D$15,CalculationsAndCharts!$A162+$A$11,IF($C$5,8,0),1,1))) -> 3703.82 | F162: =IF(A162>$B$30,NA(),IF(A162>$A$8,"",OFFSET(InputPriceData!$E$15,CalculationsAndCharts!$A162+$A$11,IF($C$5,8,0),1,1))) -> 3689.32 | G162: =IF(A162>$B$30,NA(),IF(A162>$A$8,"",OFFSET(InputPriceData!$F$15,CalculationsAndCharts!$A162+$A$11,IF($C$5,8,0),1,1))) -> 3703.06 | H162: 3700.36625 | I162: 3677.901905 | J162: 0.6107923979 | K162: =IF($A162<=K$30,$C$22*(J162-J163),NA()) -> 0.3371671848 | M162: 3701.686408 | O162: 3681.622331 | P162: 0.5449792139 | Q162: =IF($A162<=Q$30,$C$22*(P162-P163),NA()) -> -0.3619276636 | T162: FALSE | U162: TRUE | V162: 0 | W162: 0 | X162: FALSE | Y162: FALSE | Z162: TRUE | AA162: -2906.39 | AB162: FALSE | AC162: FALSE | AD162: FALSE | AE162: -1708.41 | AW162: 1885090000
A163: 131 | B163: =IF(A163>$B$30,NA(),IF($A163>$A$8,"",OFFSET(InputPriceData!$B$15,$A163+$A$11,0,1,1))) -> 2020-12-23 | C163: =IF(A163>$B$30,NA(),IF($A163>$A$8,"",OFFSET(InputPriceData!$G$15,CalculationsAndCharts!$A163+$A$11,IF($C$5,8,0),1,1))) -> 3772630000 | D163: =IF(A163>$B$30,NA(),IF(A163>$A$8,"",OFFSET(InputPriceData!$C$15,CalculationsAndCharts!$A163+$A$11,IF($C$5,8,0),1,1))) -> 3693.42 | E163: =IF(A163>$B$30,NA(),IF(A163>$A$8,"",OFFSET(InputPriceData!$D$15,CalculationsAndCharts!$A163+$A$11,IF($C$5,8,0),1,1))) -> 3711.24 | F163: =IF(A163>$B$30,NA(),IF(A163>$A$8,"",OFFSET(InputPriceData!$E$15,CalculationsAndCharts!$A163+$A$11,IF($C$5,8,0),1,1))) -> 3689.28 | G163: =IF(A163>$B$30,NA(),IF(A163>$A$8,"",OFFSET(InputPriceData!$F$15,CalculationsAndCharts!$A163+$A$11,IF($C$5,8,0),1,1))) -> 3690.01 | H163: 3693.42 | I163: 3674.680476 | J163: 0.5099633541 | K163: -0.1879045575 | M163: 3702.932898 | O163: 3678.901839 | P163: 0.65321282 | Q163: 0.0475881342 | T163: FALSE | U163: FALSE | V163: 0 | W163: 0 | X163: FALSE | Y163: FALSE | Z163: TRUE | AA163: -2906.39 | AB163: FALSE | AC163: FALSE | AD163: FALSE | AE163: -1708.41 | AX163: 3772630000
A164: 132 | B164: =IF(A164>$B$30,NA(),IF($A164>$A$8,"",OFFSET(InputPriceData!$B$15,$A164+$A$11,0,1,1))) -> 2020-12-22 | C164: =IF(A164>$B$30,NA(),IF($A164>$A$8,"",OFFSET(InputPriceData!$G$15,CalculationsAndCharts!$A164+$A$11,IF($C$5,8,0),1,1))) -> 4023940000 | D164: =IF(A164>$B$30,NA(),IF(A164>$A$8,"",OFFSET(InputPriceData!$C$15,CalculationsAndCharts!$A164+$A$11,IF($C$5,8,0),1,1))) -> 3698.08 | E164: =IF(A164>$B$30,NA(),IF(A164>$A$8,"",OFFSET(InputPriceData!$D$15,CalculationsAndCharts!$A164+$A$11,IF($C$5,8,0),1,1))) -> 3698.26 | F164: =IF(A164>$B$30,NA(),IF(A164>$A$8,"",OFFSET(InputPriceData!$E$15,CalculationsAndCharts!$A164+$A$11,IF($C$5,8,0),1,1))) -> 3676.16 | G164: =IF(A164>$B$30,NA(),IF(A164>$A$8,"",OFFSET(InputPriceData!$F$15,CalculationsAndCharts!$A164+$A$11,IF($C$5,8,0),1,1))) -> 3687.26 | H164: 3690.10125 | I164: 3669.327143 | J164: 0.5661557646 | K164: -0.3484497882 | M164: 3699.199978 | O164: 3675.712845 | P164: 0.6389817018 | Q164: 0.4249139759 | T164: FALSE | U164: FALSE | V164: 0 | W164: 0 | X164: FALSE | Y164: FALSE | Z164: TRUE | AA164: -2906.39 | AB164: FALSE | AC164: FALSE | AD164: FALSE | AE164: -1708.41 | AX164: 4023940000
A165: 133 | B165: =IF(A165>$B$30,NA(),IF($A165>$A$8,"",OFFSET(InputPriceData!$B$15,$A165+$A$11,0,1,1))) -> 2020-12-21 | C165: =IF(A165>$B$30,NA(),IF($A165>$A$8,"",OFFSET(InputPriceData!$G$15,CalculationsAndCharts!$A165+$A$11,IF($C$5,8,0),1,1))) -> 4732160000 | D165: =IF(A165>$B$30,NA(),IF(A165>$A$8,"",OFFSET(InputPriceData!$C$15,CalculationsAndCharts!$A165+$A$11,IF($C$5,8,0),1,1))) -> 3684.28 | E165: =IF(A165>$B$30,NA(),IF(A165>$A$8,"",OFFSET(InputPriceData!$D$15,CalculationsAndCharts!$A165+$A$11,IF($C$5,8,0),1,1))) -> 3702.9 | F165: =IF(A165>$B$30,NA(),IF(A165>$A$8,"",OFFSET(InputPriceData!$E$15,CalculationsAndCharts!$A165+$A$11,IF($C$5,8,0),1,1))) -> 3636.48 | G165: =IF(A165>$B$30,NA(),IF(A165>$A$8,"",OFFSET(InputPriceData!$F$15,CalculationsAndCharts!$A165+$A$11,IF($C$5,8,0),1,1))) -> 3694.92 | H165: 3687.70625 | I165: 3663.15 | J165: 0.6703588442 | K165: -0.2428970789 | M165: 3690.635366 | O165: 3671.838776 | P165: 0.511912189 | Q165: 0.5130630678 | T165: FALSE | U165: FALSE | V165: -3684.28 | W165: 0 | X165: TRUE | Y165: FALSE | Z165: TRUE | AA165: -2906.39 | AB165: FALSE | AC165: TRUE | AD165: FALSE | AE165: -1708.41 | AW165: 4732160000
A166: 134 | B166: =IF(A166>$B$30,NA(),IF($A166>$A$8,"",OFFSET(InputPriceData!$B$15,$A166+$A$11,0,1,1))) -> 2020-12-18 | C166: =IF(A166>$B$30,NA(),IF($A166>$A$8,"",OFFSET(InputPriceData!$G$15,CalculationsAndCharts!$A166+$A$11,IF($C$5,8,0),1,1))) -> 7068340000 | D166: =IF(A166>$B$30,NA(),IF(A166>$A$8,"",OFFSET(InputPriceData!$C$15,CalculationsAndCharts!$A166+$A$11,IF($C$5,8,0),1,1))) -> 3722.39 | E166: =IF(A166>$B$30,NA(),IF(A166>$A$8,"",OFFSET(InputPriceData!$D$15,CalculationsAndCharts!$A166+$A$11,IF($C$5,8,0),1,1))) -> 3726.7 | F166: =IF(A166>$B$30,NA(),IF(A166>$A$8,"",OFFSET(InputPriceData!$E$15,CalculationsAndCharts!$A166+$A$11,IF($C$5,8,0),1,1))) -> 3685.84 | G166: =IF(A166>$B$30,NA(),IF(A166>$A$8,"",OFFSET(InputPriceData!$F$15,CalculationsAndCharts!$A166+$A$11,IF($C$5,8,0),1,1))) -> 3709.41 | H166: 3684.94375 | I166: 3657.766667 | J166: 0.7429966373 | K166: -0.5402780161 | M166: 3680.301619 | O166: 3667.15553 | P166: 0.3584819001 | Q166: 0.172734046 | T166: TRUE | U166: FALSE | V166: 0 | W166: 0 | X166: FALSE | Y166: FALSE | Z166: FALSE | AA166: 777.89 | AB166: FALSE | AC166: FALSE | AD166: TRUE | AE166: 1975.87 | AX166: 7068340000
A167: 135 | B167: =IF(A167>$B$30,NA(),IF($A167>$A$8,"",OFFSET(InputPriceData!$B$15,$A167+$A$11,0,1,1))) -> 2020-12-17 | C167: =IF(A167>$B$30,NA(),IF($A167>$A$8,"",OFFSET(InputPriceData!$G$15,CalculationsAndCharts!$A167+$A$11,IF($C$5,8,0),1,1))) -> 4184930000 | D167: =IF(A167>$B$30,NA(),IF(A167>$A$8,"",OFFSET(InputPriceData!$C$15,CalculationsAndCharts!$A167+$A$11,IF($C$5,8,0),1,1))) -> 3713.65 | E167: =IF(A167>$B$30,NA(),IF(A167>$A$8,"",OFFSET(InputPriceData!$D$15,CalculationsAndCharts!$A167+$A$11,IF($C$5,8,0),1,1))) -> 3725.12 | F167: =IF(A167>$B$30,NA(),IF(A167>$A$8,"",OFFSET(InputPriceData!$E$15,CalculationsAndCharts!$A167+$A$11,IF($C$5,8,0),1,1))) -> 3710.87 | G167: =IF(A167>$B$30,NA(),IF(A167>$A$8,"",OFFSET(InputPriceData!$F$15,CalculationsAndCharts!$A167+$A$11,IF($C$5,8,0),1,1))) -> 3722.48 | H167: 3684.04875 | I167: 3651.022857 | J167: 0.9045654916 | K167: -0.1478804545 | M167: 3672.849187 | O167: 3661.614395 | P167: 0.3068261949 | Q167: -0.4611246733 | T167: FALSE | U167: FALSE | V167: 0 | W167: 0 | X167: FALSE | Y167: FALSE | Z167: FALSE | AA167: 777.89 | AB167: FALSE | AC167: FALSE | AD167: TRUE | AE167: 1975.87 | AW167: 4184930000
A168: 136 | B168: =IF(A168>$B$30,NA(),IF($A168>$A$8,"",OFFSET(InputPriceData!$B$15,$A168+$A$11,0,1,1))) -> 2020-12-16 | C168: =IF(A168>$B$30,NA(),IF($A168>$A$8,"",OFFSET(InputPriceData!$G$15,CalculationsAndCharts!$A168+$A$11,IF($C$5,8,0),1,1))) -> 4056950000 | D168: =IF(A168>$B$30,NA(),IF(A168>$A$8,"",OFFSET(InputPriceData!$C$15,CalculationsAndCharts!$A168+$A$11,IF($C$5,8,0),1,1))) -> 3696.25 | E168: =IF(A168>$B$30,NA(),IF(A168>$A$8,"",OFFSET(InputPriceData!$D$15,CalculationsAndCharts!$A168+$A$11,IF($C$5,8,0),1,1))) -> 3711.27 | F168: =IF(A168>$B$30,NA(),IF(A168>$A$8,"",OFFSET(InputPriceData!$E$15,CalculationsAndCharts!$A168+$A$11,IF($C$5,8,0),1,1))) -> 3688.57 | G168: =IF(A168>$B$30,NA(),IF(A168>$A$8,"",OFFSET(InputPriceData!$F$15,CalculationsAndCharts!$A168+$A$11,IF($C$5,8,0),1,1))) -> 3701.17 | H168: 3680.23375 | I168: 3645.644286 | J168: 0.9487887894 | K168: -0.3042234414 | M168: 3671.502076 | O168: 3655.246302 | P168: 0.4447244306 | Q168: -1.044741037 | T168: FALSE | U168: FALSE | V168: 0 | W168: 0 | X168: FALSE | Y168: FALSE | Z168: FALSE | AA168: 777.89 | AB168: FALSE | AC168: FALSE | AD168: TRUE | AE168: 1975.87 | AW168: 4056950000
A169: 137 | B169: =IF(A169>$B$30,NA(),IF($A169>$A$8,"",OFFSET(InputPriceData!$B$15,$A169+$A$11,0,1,1))) -> 2020-12-15 | C169: =IF(A169>$B$30,NA(),IF($A169>$A$8,"",OFFSET(InputPriceData!$G$15,CalculationsAndCharts!$A169+$A$11,IF($C$5,8,0),1,1))) -> 4360280000 | D169: =IF(A169>$B$30,NA(),IF(A169>$A$8,"",OFFSET(InputPriceData!$C$15,CalculationsAndCharts!$A169+$A$11,IF($C$5,8,0),1,1))) -> 3666.41 | E169: =IF(A169>$B$30,NA(),IF(A169>$A$8,"",OFFSET(InputPriceData!$D$15,CalculationsAndCharts!$A169+$A$11,IF($C$5,8,0),1,1))) -> 3695.29 | F169: =IF(A169>$B$30,NA(),IF(A169>$A$8,"",OFFSET(InputPriceData!$E$15,CalculationsAndCharts!$A169+$A$11,IF($C$5,8,0),1,1))) -> 3659.62 | G169: =IF(A169>$B$30,NA(),IF(A169>$A$8,"",OFFSET(InputPriceData!$F$15,CalculationsAndCharts!$A169+$A$11,IF($C$5,8,0),1,1))) -> 3694.62 | H169: 3679.9775 | I169: 3642.108095 | J169: 1.039766085 | K169: -0.1636218011 | M169: 3675.829755 | O169: 3648.20729 | P169: 0.7571517501 | Q169: -1.291496962 | T169: FALSE | U169: FALSE | V169: 0 | W169: 0 | X169: FALSE | Y169: FALSE | Z169: FALSE | AA169: 777.89 | AB169: FALSE | AC169: FALSE | AD169: TRUE | AE169: 1975.87 | AW169: 4360280000
A170: 138 | B170: =IF(A170>$B$30,NA(),IF($A170>$A$8,"",OFFSET(InputPriceData!$B$15,$A170+$A$11,0,1,1))) -> 2020-12-14 | C170: =IF(A170>$B$30,NA(),IF($A170>$A$8,"",OFFSET(InputPriceData!$G$15,CalculationsAndCharts!$A170+$A$11,IF($C$5,8,0),1,1))) -> 4594920000 | D170: =IF(A170>$B$30,NA(),IF(A170>$A$8,"",OFFSET(InputPriceData!$C$15,CalculationsAndCharts!$A170+$A$11,IF($C$5,8,0),1,1))) -> 3675.27 | E170: =IF(A170>$B$30,NA(),IF(A170>$A$8,"",OFFSET(InputPriceData!$D$15,CalculationsAndCharts!$A170+$A$11,IF($C$5,8,0),1,1))) -> 3697.61 | F170: =IF(A170>$B$30,NA(),IF(A170>$A$8,"",OFFSET(InputPriceData!$E$15,CalculationsAndCharts!$A170+$A$11,IF($C$5,8,0),1,1))) -> 3645.84 | G170: =IF(A170>$B$30,NA(),IF(A170>$A$8,"",OFFSET(InputPriceData!$F$15,CalculationsAndCharts!$A170+$A$11,IF($C$5,8,0),1,1))) -> 3647.49 | H170: 3676.49 | I170: 3636.895238 | J170: 1.088696795 | K170: -0.7373844648 | M170: 3682.304481 | O170: 3640.67803 | P170: 1.143370842 | Q170: -1.10779404 | T170: FALSE | U170: FALSE | V170: 0 | W170: 0 | X170: FALSE | Y170: FALSE | Z170: FALSE | AA170: 777.89 | AB170: FALSE | AC170: FALSE | AD170: TRUE | AE170: 1975.87 | AX170: 4594920000
A171: 139 | B171: =IF(A171>$B$30,NA(),IF($A171>$A$8,"",OFFSET(InputPriceData!$B$15,$A171+$A$11,0,1,1))) -> 2020-12-11 | C171: =IF(A171>$B$30,NA(),IF($A171>$A$8,"",OFFSET(InputPriceData!$G$15,CalculationsAndCharts!$A171+$A$11,IF($C$5,8,0),1,1))) -> 4367150000 | D171: =IF(A171>$B$30,NA(),IF(A171>$A$8,"",OFFSET(InputPriceData!$C$15,CalculationsAndCharts!$A171+$A$11,IF($C$5,8,0),1,1))) -> 3656.08 | E171: =IF(A171>$B$30,NA(),IF(A171>$A$8,"",OFFSET(InputPriceData!$D$15,CalculationsAndCharts!$A171+$A$11,IF($C$5,8,0),1,1))) -> 3665.91 | F171: =IF(A171>$B$30,NA(),IF(A171>$A$8,"",OFFSET(InputPriceData!$E$15,CalculationsAndCharts!$A171+$A$11,IF($C$5,8,0),1,1))) -> 3633.4 | G171: =IF(A171>$B$30,NA(),IF(A171>$A$8,"",OFFSET(InputPriceData!$F$15,CalculationsAndCharts!$A171+$A$11,IF($C$5,8,0),1,1))) -> 3663.46 | H171: 3679.18 | I171: 3631.634286 | J171: 1.309209864 | K171: -0.3921836483 | M171: 3686.335394 | O171: 3632.764684 | P171: 1.474654012 | Q171: -0.703691162 | T171: FALSE | U171: FALSE | V171: 0 | W171: 3656.08 | X171: FALSE | Y171: TRUE | Z171: FALSE | AA171: 777.89 | AB171: TRUE | AC171: FALSE | AD171: TRUE | AE171: 1975.87 | AW171: 4367150000
A172: 140 | B172: =IF(A172>$B$30,NA(),IF($A172>$A$8,"",OFFSET(InputPriceData!$B$15,$A172+$A$11,0,1,1))) -> 2020-12-10 | C172: =IF(A172>$B$30,NA(),IF($A172>$A$8,"",OFFSET(InputPriceData!$G$15,CalculationsAndCharts!$A172+$A$11,IF($C$5,8,0),1,1))) -> 4618240000 | D172: =IF(A172>$B$30,NA(),IF(A172>$A$8,"",OFFSET(InputPriceData!$C$15,CalculationsAndCharts!$A172+$A$11,IF($C$5,8,0),1,1))) -> 3659.13 | E172: =IF(A172>$B$30,NA(),IF(A172>$A$8,"",OFFSET(InputPriceData!$D$15,CalculationsAndCharts!$A172+$A$11,IF($C$5,8,0),1,1))) -> 3678.49 | F172: =IF(A172>$B$30,NA(),IF(A172>$A$8,"",OFFSET(InputPriceData!$E$15,CalculationsAndCharts!$A172+$A$11,IF($C$5,8,0),1,1))) -> 3645.18 | G172: =IF(A172>$B$30,NA(),IF(A172>$A$8,"",OFFSET(InputPriceData!$F$15,CalculationsAndCharts!$A172+$A$11,IF($C$5,8,0),1,1))) -> 3668.1 | H172: 3679.05375 | I172: 3627.310476 | J172: 1.42649145 | K172: -0.01026564394 | M172: 3685.759538 | O172: 3624.680369 | P172: 1.685091178 | Q172: -0.2290780548 | T172: FALSE | U172: TRUE | V172: 0 | W172: 0 | X172: FALSE | Y172: FALSE | Z172: TRUE | AA172: -2878.19 | AB172: FALSE | AC172: FALSE | AD172: FALSE | AE172: -1680.21 | AW172: 4618240000
A173: 141 | B173: =IF(A173>$B$30,NA(),IF($A173>$A$8,"",OFFSET(InputPriceData!$B$15,$A173+$A$11,0,1,1))) -> 2020-12-09 | C173: =IF(A173>$B$30,NA(),IF($A173>$A$8,"",OFFSET(InputPriceData!$G$15,CalculationsAndCharts!$A173+$A$11,IF($C$5,8,0),1,1))) -> 5209940000 | D173: =IF(A173>$B$30,NA(),IF(A173>$A$8,"",OFFSET(InputPriceData!$C$15,CalculationsAndCharts!$A173+$A$11,IF($C$5,8,0),1,1))) -> 3705.98 | E173: =IF(A173>$B$30,NA(),IF(A173>$A$8,"",OFFSET(InputPriceData!$D$15,CalculationsAndCharts!$A173+$A$11,IF($C$5,8,0),1,1))) -> 3712.39 | F173: =IF(A173>$B$30,NA(),IF(A173>$A$8,"",OFFSET(InputPriceData!$E$15,CalculationsAndCharts!$A173+$A$11,IF($C$5,8,0),1,1))) -> 3660.54 | G173: =IF(A173>$B$30,NA(),IF(A173>$A$8,"",OFFSET(InputPriceData!$F$15,CalculationsAndCharts!$A173+$A$11,IF($C$5,8,0),1,1))) -> 3672.82 | H173: 3673.245 | I173: 3621.47381 | J173: 1.429561366 | K173: -0.1479101612 | M173: 3680.147875 | O173: 3616.725112 | P173: 1.753596425 | Q173: 0.1976770294 | T173: FALSE | U173: FALSE | V173: 0 | W173: 0 | X173: FALSE | Y173: FALSE | Z173: TRUE | AA173: -2878.19 | AB173: FALSE | AC173: FALSE | AD173: FALSE | AE173: -1680.21 | AX173: 5209940000
A174: 142 | B174: =IF(A174>$B$30,NA(),IF($A174>$A$8,"",OFFSET(InputPriceData!$B$15,$A174+$A$11,0,1,1))) -> 2020-12-08 | C174: =IF(A174>$B$30,NA(),IF($A174>$A$8,"",OFFSET(InputPriceData!$G$15,CalculationsAndCharts!$A174+$A$11,IF($C$5,8,0),1,1))) -> 4549670000 | D174: =IF(A174>$B$30,NA(),IF(A174>$A$8,"",OFFSET(InputPriceData!$C$15,CalculationsAndCharts!$A174+$A$11,IF($C$5,8,0),1,1))) -> 3683.05 | E174: =IF(A174>$B$30,NA(),IF(A174>$A$8,"",OFFSET(InputPriceData!$D$15,CalculationsAndCharts!$A174+$A$11,IF($C$5,8,0),1,1))) -> 3708.45 | F174: =IF(A174>$B$30,NA(),IF(A174>$A$8,"",OFFSET(InputPriceData!$E$15,CalculationsAndCharts!$A174+$A$11,IF($C$5,8,0),1,1))) -> 3678.83 | G174: =IF(A174>$B$30,NA(),IF(A174>$A$8,"",OFFSET(InputPriceData!$F$15,CalculationsAndCharts!$A174+$A$11,IF($C$5,8,0),1,1))) -> 3702.25 | H174: 3668.93625 | I174: 3615.649048 | J174: 1.473793548 | K174: -0.02241470823 | M174: 3670.265437 | O174: 3609.109737 | P174: 1.69448158 | Q174: 0.3831580313 | T174: FALSE | U174: FALSE | V174: 0 | W174: 0 | X174: FALSE | Y174: FALSE | Z174: TRUE | AA174: -2878.19 | AB174: FALSE | AC174: FALSE | AD174: FALSE | AE174: -1680.21 | AW174: 4549670000
A175: 143 | B175: =IF(A175>$B$30,NA(),IF($A175>$A$8,"",OFFSET(InputPriceData!$B$15,$A175+$A$11,0,1,1))) -> 2020-12-07 | C175: =IF(A175>$B$30,NA(),IF($A175>$A$8,"",OFFSET(InputPriceData!$G$15,CalculationsAndCharts!$A175+$A$11,IF($C$5,8,0),1,1))) -> 4788560000 | D175: =IF(A175>$B$30,NA(),IF(A175>$A$8,"",OFFSET(InputPriceData!$C$15,CalculationsAndCharts!$A175+$A$11,IF($C$5,8,0),1,1))) -> 3694.73 | E175: =IF(A175>$B$30,NA(),IF(A175>$A$8,"",OFFSET(InputPriceData!$D$15,CalculationsAndCharts!$A175+$A$11,IF($C$5,8,0),1,1))) -> 3697.41 | F175: =IF(A175>$B$30,NA(),IF(A175>$A$8,"",OFFSET(InputPriceData!$E$15,CalculationsAndCharts!$A175+$A$11,IF($C$5,8,0),1,1))) -> 3678.88 | G175: =IF(A175>$B$30,NA(),IF(A175>$A$8,"",OFFSET(InputPriceData!$F$15,CalculationsAndCharts!$A175+$A$11,IF($C$5,8,0),1,1))) -> 3691.96 | H175: 3659.86125 | I175: 3606.467619 | J175: 1.480496613 | K175: -0.1582409795 | M175: 3658.840768 | O175: 3601.933848 | P175: 1.579899083 | Q175: 0.3315267504 | T175: FALSE | U175: FALSE | V175: 0 | W175: 0 | X175: FALSE | Y175: FALSE | Z175: TRUE | AA175: -2878.19 | AB175: FALSE | AC175: FALSE | AD175: FALSE | AE175: -1680.21 | AX175: 4788560000
A176: 144 | B176: =IF(A176>$B$30,NA(),IF($A176>$A$8,"",OFFSET(InputPriceData!$B$15,$A176+$A$11,0,1,1))) -> 2020-12-04 | C176: =IF(A176>$B$30,NA(),IF($A176>$A$8,"",OFFSET(InputPriceData!$G$15,CalculationsAndCharts!$A176+$A$11,IF($C$5,8,0),1,1))) -> 5086370000 | D176: =IF(A176>$B$30,NA(),IF(A176>$A$8,"",OFFSET(InputPriceData!$C$15,CalculationsAndCharts!$A176+$A$11,IF($C$5,8,0),1,1))) -> 3670.94 | E176: =IF(A176>$B$30,NA(),IF(A176>$A$8,"",OFFSET(InputPriceData!$D$15,CalculationsAndCharts!$A176+$A$11,IF($C$5,8,0),1,1))) -> 3699.2 | F176: =IF(A176>$B$30,NA(),IF(A176>$A$8,"",OFFSET(InputPriceData!$E$15,CalculationsAndCharts!$A176+$A$11,IF($C$5,8,0),1,1))) -> 3670.94 | G176: =IF(A176>$B$30,NA(),IF(A176>$A$8,"",OFFSET(InputPriceData!$F$15,CalculationsAndCharts!$A176+$A$11,IF($C$5,8,0),1,1))) -> 3699.12 | H176: 3652.7925 | I176: 3597.824286 | J176: 1.527818201 | K176: 0.2639233131 | M176: 3648.35988 | O176: 3595.124825 | P176: 1.480756798 | Q176: 0.2369802933 | T176: FALSE | U176: FALSE | V176: 0 | W176: 0 | X176: FALSE | Y176: FALSE | Z176: TRUE | AA176: -2878.19 | AB176: FALSE | AC176: FALSE | AD176: FALSE | AE176: -1680.21 | AW176: 5086370000
A177: 145 | B177: =IF(A177>$B$30,NA(),IF($A177>$A$8,"",OFFSET(InputPriceData!$B$15,$A177+$A$11,0,1,1))) -> 2020-12-03 | C177: =IF(A177>$B$30,NA(),IF($A177>$A$8,"",OFFSET(InputPriceData!$G$15,CalculationsAndCharts!$A177+$A$11,IF($C$5,8,0),1,1))) -> 5091760000 | D177: =IF(A177>$B$30,NA(),IF(A177>$A$8,"",OFFSET(InputPriceData!$C$15,CalculationsAndCharts!$A177+$A$11,IF($C$5,8,0),1,1))) -> 3668.28 | E177: =IF(A177>$B$30,NA(),IF(A177>$A$8,"",OFFSET(InputPriceData!$D$15,CalculationsAndCharts!$A177+$A$11,IF($C$5,8,0),1,1))) -> 3682.73 | F177: =IF(A177>$B$30,NA(),IF(A177>$A$8,"",OFFSET(InputPriceData!$E$15,CalculationsAndCharts!$A177+$A$11,IF($C$5,8,0),1,1))) -> 3657.17 | G177: =IF(A177>$B$30,NA(),IF(A177>$A$8,"",OFFSET(InputPriceData!$F$15,CalculationsAndCharts!$A177+$A$11,IF($C$5,8,0),1,1))) -> 3666.72 | H177: 3637.60125 | I177: 3585.649048 | J177: 1.448892563 | K177: -0.06809888385 | M177: 3639.016332 | O177: 3588.423565 | P177: 1.409888405 | Q177: 0.3054819389 | T177: FALSE | U177: FALSE | V177: 0 | W177: 0 | X177: FALSE | Y177: FALSE | Z177: TRUE | AA177: -2878.19 | AB177: FALSE | AC177: FALSE | AD177: FALSE | AE177: -1680.21 | AX177: 5091760000
A178: 146 | B178: =IF(A178>$B$30,NA(),IF($A178>$A$8,"",OFFSET(InputPriceData!$B$15,$A178+$A$11,0,1,1))) -> 2020-12-02 | C178: =IF(A178>$B$30,NA(),IF($A178>$A$8,"",OFFSET(InputPriceData!$G$15,CalculationsAndCharts!$A178+$A$11,IF($C$5,8,0),1,1))) -> 5029620000 | D178: =IF(A178>$B$30,NA(),IF(A178>$A$8,"",OFFSET(InputPriceData!$C$15,CalculationsAndCharts!$A178+$A$11,IF($C$5,8,0),1,1))) -> 3653.78 | E178: =IF(A178>$B$30,NA(),IF(A178>$A$8,"",OFFSET(InputPriceData!$D$15,CalculationsAndCharts!$A178+$A$11,IF($C$5,8,0),1,1))) -> 3670.96 | F178: =IF(A178>$B$30,NA(),IF(A178>$A$8,"",OFFSET(InputPriceData!$E$15,CalculationsAndCharts!$A178+$A$11,IF($C$5,8,0),1,1))) -> 3644.84 | G178: =IF(A178>$B$30,NA(),IF(A178>$A$8,"",OFFSET(InputPriceData!$F$15,CalculationsAndCharts!$A178+$A$11,IF($C$5,8,0),1,1))) -> 3669.01 | H178: 3623.95375 | I178: 3571.479524 | J178: 1.469257372 | K178: -0.6061337089 | M178: 3628.528638 | O178: 3581.30785 | P178: 1.318534759 | Q178: 0.4009878525 | T178: FALSE | U178: FALSE | V178: -3653.78 | W178: 0 | X178: TRUE | Y178: FALSE | Z178: TRUE | AA178: -2878.19 | AB178: FALSE | AC178: TRUE | AD178: FALSE | AE178: -1680.21 | AW178: 5029620000
A179: 147 | B179: =IF(A179>$B$30,NA(),IF($A179>$A$8,"",OFFSET(InputPriceData!$B$15,$A179+$A$11,0,1,1))) -> 2020-12-01 | C179: =IF(A179>$B$30,NA(),IF($A179>$A$8,"",OFFSET(InputPriceData!$G$15,CalculationsAndCharts!$A179+$A$11,IF($C$5,8,0),1,1))) -> 5403660000 | D179: =IF(A179>$B$30,NA(),IF(A179>$A$8,"",OFFSET(InputPriceData!$C$15,CalculationsAndCharts!$A179+$A$11,IF($C$5,8,0),1,1))) -> 3645.87 | E179: =IF(A179>$B$30,NA(),IF(A179>$A$8,"",OFFSET(InputPriceData!$D$15,CalculationsAndCharts!$A179+$A$11,IF($C$5,8,0),1,1))) -> 3678.45 | F179: =IF(A179>$B$30,NA(),IF(A179>$A$8,"",OFFSET(InputPriceData!$E$15,CalculationsAndCharts!$A179+$A$11,IF($C$5,8,0),1,1))) -> 3645.87 | G179: =IF(A179>$B$30,NA(),IF(A179>$A$8,"",OFFSET(InputPriceData!$F$15,CalculationsAndCharts!$A179+$A$11,IF($C$5,8,0),1,1))) -> 3662.45 | H179: 3613.06125 | I179: 3554.395238 | J179: 1.650520214 | K179: -0.6777340816 | M179: 3615.918045 | O179: 3573.09026 | P179: 1.198620296 | Q179: 0.3289032214 | T179: TRUE | U179: FALSE | V179: 0 | W179: 0 | X179: FALSE | Y179: FALSE | Z179: FALSE | AA179: 775.59 | AB179: FALSE | AC179: FALSE | AD179: TRUE | AE179: 1973.57 | AW179: 5403660000
A180: 148 | B180: =IF(A180>$B$30,NA(),IF($A180>$A$8,"",OFFSET(InputPriceData!$B$15,$A180+$A$11,0,1,1))) -> 2020-11-30 | C180: =IF(A180>$B$30,NA(),IF($A180>$A$8,"",OFFSET(InputPriceData!$G$15,CalculationsAndCharts!$A180+$A$11,IF($C$5,8,0),1,1))) -> 6291400000 | D180: =IF(A180>$B$30,NA(),IF(A180>$A$8,"",OFFSET(InputPriceData!$C$15,CalculationsAndCharts!$A180+$A$11,IF($C$5,8,0),1,1))) -> 3634.18 | E180: =IF(A180>$B$30,NA(),IF(A180>$A$8,"",OFFSET(InputPriceData!$D$15,CalculationsAndCharts!$A180+$A$11,IF($C$5,8,0),1,1))) -> 3634.18 | F180: =IF(A180>$B$30,NA(),IF(A180>$A$8,"",OFFSET(InputPriceData!$E$15,CalculationsAndCharts!$A180+$A$11,IF($C$5,8,0),1,1))) -> 3594.39 | G180: =IF(A180>$B$30,NA(),IF(A180>$A$8,"",OFFSET(InputPriceData!$F$15,CalculationsAndCharts!$A180+$A$11,IF($C$5,8,0),1,1))) -> 3621.63 | H180: 3601.22875 | I180: 3535.705238 | J180: 1.853194978 | K180: -1.291346725 | M180: 3602.248288 | O180: 3563.045432 | P180: 1.100262571 | Q180: -0.02251812716 | T180: FALSE | U180: FALSE | V180: 0 | W180: 0 | X180: FALSE | Y180: FALSE | Z180: FALSE | AA180: 775.59 | AB180: FALSE | AC180: FALSE | AD180: TRUE | AE180: 1973.57 | AX180: 6291400000
A181: 149 | B181: =IF(A181>$B$30,NA(),IF($A181>$A$8,"",OFFSET(InputPriceData!$B$15,$A181+$A$11,0,1,1))) -> 2020-11-27 | C181: =IF(A181>$B$30,NA(),IF($A181>$A$8,"",OFFSET(InputPriceData!$G$15,CalculationsAndCharts!$A181+$A$11,IF($C$5,8,0),1,1))) -> 2778450000 | D181: =IF(A181>$B$30,NA(),IF(A181>$A$8,"",OFFSET(InputPriceData!$C$15,CalculationsAndCharts!$A181+$A$11,IF($C$5,8,0),1,1))) -> 3638.55 | E181: =IF(A181>$B$30,NA(),IF(A181>$A$8,"",OFFSET(InputPriceData!$D$15,CalculationsAndCharts!$A181+$A$11,IF($C$5,8,0),1,1))) -> 3644.31 | F181: =IF(A181>$B$30,NA(),IF(A181>$A$8,"",OFFSET(InputPriceData!$E$15,CalculationsAndCharts!$A181+$A$11,IF($C$5,8,0),1,1))) -> 3629.33 | G181: =IF(A181>$B$30,NA(),IF(A181>$A$8,"",OFFSET(InputPriceData!$F$15,CalculationsAndCharts!$A181+$A$11,IF($C$5,8,0),1,1))) -> 3638.35 | H181: 3599.71625 | I181: 3520.870952 | J181: 2.239369141 | K181: -1.570438354 | M181: 3589.908719 | O181: 3550.603659 | P181: 1.106996563 | Q181: -0.8340774839 | T181: FALSE | U181: FALSE | V181: 0 | W181: 0 | X181: FALSE | Y181: FALSE | Z181: FALSE | AA181: 775.59 | AB181: FALSE | AC181: FALSE | AD181: TRUE | AE181: 1973.57 | AX181: 2778450000
A182: 150 | B182: =IF(A182>$B$30,NA(),IF($A182>$A$8,"",OFFSET(InputPriceData!$B$15,$A182+$A$11,0,1,1))) -> 2020-11-25 | C182: =IF(A182>$B$30,NA(),IF($A182>$A$8,"",OFFSET(InputPriceData!$G$15,CalculationsAndCharts!$A182+$A$11,IF($C$5,8,0),1,1))) -> 4902560000 | D182: =IF(A182>$B$30,NA(),IF(A182>$A$8,"",OFFSET(InputPriceData!$C$15,CalculationsAndCharts!$A182+$A$11,IF($C$5,8,0),1,1))) -> 3635.5 | E182: =IF(A182>$B$30,NA(),IF(A182>$A$8,"",OFFSET(InputPriceData!$D$15,CalculationsAndCharts!$A182+$A$11,IF($C$5,8,0),1,1))) -> 3635.5 | F182: =IF(A182>$B$30,NA(),IF(A182>$A$8,"",OFFSET(InputPriceData!$E$15,CalculationsAndCharts!$A182+$A$11,IF($C$5,8,0),1,1))) -> 3617.76 | G182: =IF(A182>$B$30,NA(),IF(A182>$A$8,"",OFFSET(InputPriceData!$F$15,CalculationsAndCharts!$A182+$A$11,IF($C$5,8,0),1,1))) -> 3629.65 | H182: 3598.28625 | I182: 3503.379524 | J182: 2.709004992 | K182: -0.5865600409 | M182: 3583.434756 | O182: 3535.478624 | P182: 1.356425449 | Q182: -1.815570409 | T182: FALSE | U182: FALSE | V182: 0 | W182: 0 | X182: FALSE | Y182: FALSE | Z182: FALSE | AA182: 775.59 | AB182: FALSE | AC182: FALSE | AD182: TRUE | AE182: 1973.57 | AX182: 4902560000
A183: 151 | B183: =IF(A183>$B$30,NA(),IF($A183>$A$8,"",OFFSET(InputPriceData!$B$15,$A183+$A$11,0,1,1))) -> 2020-11-24 | C183: =IF(A183>$B$30,NA(),IF($A183>$A$8,"",OFFSET(InputPriceData!$G$15,CalculationsAndCharts!$A183+$A$11,IF($C$5,8,0),1,1))) -> 6267570000 | D183: =IF(A183>$B$30,NA(),IF(A183>$A$8,"",OFFSET(InputPriceData!$C$15,CalculationsAndCharts!$A183+$A$11,IF($C$5,8,0),1,1))) -> 3594.52 | E183: =IF(A183>$B$30,NA(),IF(A183>$A$8,"",OFFSET(InputPriceData!$D$15,CalculationsAndCharts!$A183+$A$11,IF($C$5,8,0),1,1))) -> 3642.31 | F183: =IF(A183>$B$30,NA(),IF(A183>$A$8,"",OFFSET(InputPriceData!$E$15,CalculationsAndCharts!$A183+$A$11,IF($C$5,8,0),1,1))) -> 3594.52 | G183: =IF(A183>$B$30,NA(),IF(A183>$A$8,"",OFFSET(InputPriceData!$F$15,CalculationsAndCharts!$A183+$A$11,IF($C$5,8,0),1,1))) -> 3635.41 | H183: 3592.72375 | I183: 3492 | J183: 2.884414376 | K183: 0.07821615597 | M183: 3584.609954 | O183: 3517.794117 | P183: 1.899367457 | Q183: -2.346396667 | T183: FALSE | U183: FALSE | V183: 0 | W183: 0 | X183: FALSE | Y183: FALSE | Z183: FALSE | AA183: 775.59 | AB183: FALSE | AC183: FALSE | AD183: TRUE | AE183: 1973.57 | AW183: 6267570000
A184: 152 | B184: =IF(A184>$B$30,NA(),IF($A184>$A$8,"",OFFSET(InputPriceData!$B$15,$A184+$A$11,0,1,1))) -> 2020-11-23 | C184: =IF(A184>$B$30,NA(),IF($A184>$A$8,"",OFFSET(InputPriceData!$G$15,CalculationsAndCharts!$A184+$A$11,IF($C$5,8,0),1,1))) -> 5036290000 | D184: =IF(A184>$B$30,NA(),IF(A184>$A$8,"",OFFSET(InputPriceData!$C$15,CalculationsAndCharts!$A184+$A$11,IF($C$5,8,0),1,1))) -> 3566.82 | E184: =IF(A184>$B$30,NA(),IF(A184>$A$8,"",OFFSET(InputPriceData!$D$15,CalculationsAndCharts!$A184+$A$11,IF($C$5,8,0),1,1))) -> 3589.81 | F184: =IF(A184>$B$30,NA(),IF(A184>$A$8,"",OFFSET(InputPriceData!$E$15,CalculationsAndCharts!$A184+$A$11,IF($C$5,8,0),1,1))) -> 3552.77 | G184: =IF(A184>$B$30,NA(),IF(A184>$A$8,"",OFFSET(InputPriceData!$F$15,CalculationsAndCharts!$A184+$A$11,IF($C$5,8,0),1,1))) -> 3577.59 | H184: 3580.42375 | I184: 3480.83619 | J184: 2.861024021 | K184: -0.4694784122 | M184: 3589.093305 | O184: 3498.105762 | P184: 2.601051794 | Q184: -2.214450505 | T184: FALSE | U184: FALSE | V184: 0 | W184: 0 | X184: FALSE | Y184: FALSE | Z184: FALSE | AA184: 775.59 | AB184: FALSE | AC184: FALSE | AD184: TRUE | AE184: 1973.57 | AW184: 5036290000
A185: 153 | B185: =IF(A185>$B$30,NA(),IF($A185>$A$8,"",OFFSET(InputPriceData!$B$15,$A185+$A$11,0,1,1))) -> 2020-11-20 | C185: =IF(A185>$B$30,NA(),IF($A185>$A$8,"",OFFSET(InputPriceData!$G$15,CalculationsAndCharts!$A185+$A$11,IF($C$5,8,0),1,1))) -> 4218970000 | D185: =IF(A185>$B$30,NA(),IF(A185>$A$8,"",OFFSET(InputPriceData!$C$15,CalculationsAndCharts!$A185+$A$11,IF($C$5,8,0),1,1))) -> 3579.31 | E185: =IF(A185>$B$30,NA(),IF(A185>$A$8,"",OFFSET(InputPriceData!$D$15,CalculationsAndCharts!$A185+$A$11,IF($C$5,8,0),1,1))) -> 3581.23 | F185: =IF(A185>$B$30,NA(),IF(A185>$A$8,"",OFFSET(InputPriceData!$E$15,CalculationsAndCharts!$A185+$A$11,IF($C$5,8,0),1,1))) -> 3556.85 | G185: =IF(A185>$B$30,NA(),IF(A185>$A$8,"",OFFSET(InputPriceData!$F$15,CalculationsAndCharts!$A185+$A$11,IF($C$5,8,0),1,1))) -> 3557.54 | H185: 3579.8075 | I185: 3475.493333 | J185: 3.001420422 | K185: -0.3470832284 | M185: 3590.747627 | O185: 3477.274495 | P185: 3.263277945 | Q185: -1.653802659 | T185: FALSE | U185: FALSE | V185: 0 | W185: 0 | X185: FALSE | Y185: FALSE | Z185: FALSE | AA185: 775.59 | AB185: FALSE | AC185: FALSE | AD185: TRUE | AE185: 1973.57 | AX185: 4218970000
A186: 154 | B186: =IF(A186>$B$30,NA(),IF($A186>$A$8,"",OFFSET(InputPriceData!$B$15,$A186+$A$11,0,1,1))) -> 2020-11-19 | C186: =IF(A186>$B$30,NA(),IF($A186>$A$8,"",OFFSET(InputPriceData!$G$15,CalculationsAndCharts!$A186+$A$11,IF($C$5,8,0),1,1))) -> 4347200000 | D186: =IF(A186>$B$30,NA(),IF(A186>$A$8,"",OFFSET(InputPriceData!$C$15,CalculationsAndCharts!$A186+$A$11,IF($C$5,8,0),1,1))) -> 3559.41 | E186: =IF(A186>$B$30,NA(),IF(A186>$A$8,"",OFFSET(InputPriceData!$D$15,CalculationsAndCharts!$A186+$A$11,IF($C$5,8,0),1,1))) -> 3585.22 | F186: =IF(A186>$B$30,NA(),IF(A186>$A$8,"",OFFSET(InputPriceData!$E$15,CalculationsAndCharts!$A186+$A$11,IF($C$5,8,0),1,1))) -> 3543.84 | G186: =IF(A186>$B$30,NA(),IF(A186>$A$8,"",OFFSET(InputPriceData!$F$15,CalculationsAndCharts!$A186+$A$11,IF($C$5,8,0),1,1))) -> 3581.87 | H186: 3578.30625 | I186: 3470.538571 | J186: 3.105214835 | K186: -0.3149568752 | M186: 3586.334252 | O186: 3456.446399 | P186: 3.757843692 | Q186: -1.059991755 | T186: FALSE | U186: FALSE | V186: 0 | W186: 0 | X186: FALSE | Y186: FALSE | Z186: FALSE | AA186: 775.59 | AB186: FALSE | AC186: FALSE | AD186: TRUE | AE186: 1973.57 | AW186: 4347200000
A187: 155 | B187: =IF(A187>$B$30,NA(),IF($A187>$A$8,"",OFFSET(InputPriceData!$B$15,$A187+$A$11,0,1,1))) -> 2020-11-18 | C187: =IF(A187>$B$30,NA(),IF($A187>$A$8,"",OFFSET(InputPriceData!$G$15,CalculationsAndCharts!$A187+$A$11,IF($C$5,8,0),1,1))) -> 5274450000 | D187: =IF(A187>$B$30,NA(),IF(A187>$A$8,"",OFFSET(InputPriceData!$C$15,CalculationsAndCharts!$A187+$A$11,IF($C$5,8,0),1,1))) -> 3612.09 | E187: =IF(A187>$B$30,NA(),IF(A187>$A$8,"",OFFSET(InputPriceData!$D$15,CalculationsAndCharts!$A187+$A$11,IF($C$5,8,0),1,1))) -> 3619.09 | F187: =IF(A187>$B$30,NA(),IF(A187>$A$8,"",OFFSET(InputPriceData!$E$15,CalculationsAndCharts!$A187+$A$11,IF($C$5,8,0),1,1))) -> 3567.33 | G187: =IF(A187>$B$30,NA(),IF(A187>$A$8,"",OFFSET(InputPriceData!$F$15,CalculationsAndCharts!$A187+$A$11,IF($C$5,8,0),1,1))) -> 3567.79 | H187: 3574.385 | I187: 3463.571429 | J187: 3.199401939 | K187: 0.1128770204 | M187: 3576.901841 | O187: 3436.855753 | P187: 4.074831703 | Q187: -0.5715821146 | T187: FALSE | U187: FALSE | V187: 0 | W187: 3612.09 | X187: FALSE | Y187: TRUE | Z187: FALSE | AA187: 775.59 | AB187: TRUE | AC187: FALSE | AD187: TRUE | AE187: 1973.57 | AX187: 5274450000
A188: 156 | B188: =IF(A188>$B$30,NA(),IF($A188>$A$8,"",OFFSET(InputPriceData!$B$15,$A188+$A$11,0,1,1))) -> 2020-11-17 | C188: =IF(A188>$B$30,NA(),IF($A188>$A$8,"",OFFSET(InputPriceData!$G$15,CalculationsAndCharts!$A188+$A$11,IF($C$5,8,0),1,1))) -> 4799570000 | D188: =IF(A188>$B$30,NA(),IF(A188>$A$8,"",OFFSET(InputPriceData!$C$15,CalculationsAndCharts!$A188+$A$11,IF($C$5,8,0),1,1))) -> 3610.31 | E188: =IF(A188>$B$30,NA(),IF(A188>$A$8,"",OFFSET(InputPriceData!$D$15,CalculationsAndCharts!$A188+$A$11,IF($C$5,8,0),1,1))) -> 3623.11 | F188: =IF(A188>$B$30,NA(),IF(A188>$A$8,"",OFFSET(InputPriceData!$E$15,CalculationsAndCharts!$A188+$A$11,IF($C$5,8,0),1,1))) -> 3588.68 | G188: =IF(A188>$B$30,NA(),IF(A188>$A$8,"",OFFSET(InputPriceData!$F$15,CalculationsAndCharts!$A188+$A$11,IF($C$5,8,0),1,1))) -> 3609.53 | H188: 3567.09125 | I188: 3457.634762 | J188: 3.165646334 | K188: 0.331008343 | M188: 3564.798095 | O188: 3419.609611 | P188: 4.245761973 | Q188: -0.2091002148 | T188: FALSE | U188: TRUE | V188: 0 | W188: 0 | X188: FALSE | Y188: FALSE | Z188: TRUE | AA188: -2836.5 | AB188: FALSE | AC188: FALSE | AD188: FALSE | AE188: -1638.52 | AX188: 4799570000
A189: 157 | B189: =IF(A189>$B$30,NA(),IF($A189>$A$8,"",OFFSET(InputPriceData!$B$15,$A189+$A$11,0,1,1))) -> 2020-11-16 | C189: =IF(A189>$B$30,NA(),IF($A189>$A$8,"",OFFSET(InputPriceData!$G$15,CalculationsAndCharts!$A189+$A$11,IF($C$5,8,0),1,1))) -> 5281980000 | D189: =IF(A189>$B$30,NA(),IF(A189>$A$8,"",OFFSET(InputPriceData!$C$15,CalculationsAndCharts!$A189+$A$11,IF($C$5,8,0),1,1))) -> 3600.16 | E189: =IF(A189>$B$30,NA(),IF(A189>$A$8,"",OFFSET(InputPriceData!$D$15,CalculationsAndCharts!$A189+$A$11,IF($C$5,8,0),1,1))) -> 3628.51 | F189: =IF(A189>$B$30,NA(),IF(A189>$A$8,"",OFFSET(InputPriceData!$E$15,CalculationsAndCharts!$A189+$A$11,IF($C$5,8,0),1,1))) -> 3600.16 | G189: =IF(A189>$B$30,NA(),IF(A189>$A$8,"",OFFSET(InputPriceData!$F$15,CalculationsAndCharts!$A189+$A$11,IF($C$5,8,0),1,1))) -> 3626.91 | H189: 3554.70625 | I189: 3448.939048 | J189: 3.066659077 | K189: 1.545669689 | M189: 3552.313114 | O189: 3405.590309 | P189: 4.308292894 | Q189: 0.2213603717 | T189: FALSE | U189: FALSE | V189: 0 | W189: 0 | X189: FALSE | Y189: FALSE | Z189: TRUE | AA189: -2836.5 | AB189: FALSE | AC189: FALSE | AD189: FALSE | AE189: -1638.52 | AW189: 5281980000
A190: 158 | B190: =IF(A190>$B$30,NA(),IF($A190>$A$8,"",OFFSET(InputPriceData!$B$15,$A190+$A$11,0,1,1))) -> 2020-11-13 | C190: =IF(A190>$B$30,NA(),IF($A190>$A$8,"",OFFSET(InputPriceData!$G$15,CalculationsAndCharts!$A190+$A$11,IF($C$5,8,0),1,1))) -> 4709670000 | D190: =IF(A190>$B$30,NA(),IF(A190>$A$8,"",OFFSET(InputPriceData!$C$15,CalculationsAndCharts!$A190+$A$11,IF($C$5,8,0),1,1))) -> 3552.57 | E190: =IF(A190>$B$30,NA(),IF(A190>$A$8,"",OFFSET(InputPriceData!$D$15,CalculationsAndCharts!$A190+$A$11,IF($C$5,8,0),1,1))) -> 3593.66 | F190: =IF(A190>$B$30,NA(),IF(A190>$A$8,"",OFFSET(InputPriceData!$E$15,CalculationsAndCharts!$A190+$A$11,IF($C$5,8,0),1,1))) -> 3552.57 | G190: =IF(A190>$B$30,NA(),IF(A190>$A$8,"",OFFSET(InputPriceData!$F$15,CalculationsAndCharts!$A190+$A$11,IF($C$5,8,0),1,1))) -> 3585.15 | H190: 3531.7725 | I190: 3442.124762 | J190: 2.604430237 | K190: 2.14263917 | M190: 3539.480681 | O190: 3395.442753 | P190: 4.242095602 | Q190: 1.183014495 | T190: FALSE | U190: FALSE | V190: 0 | W190: 0 | X190: FALSE | Y190: FALSE | Z190: TRUE | AA190: -2836.5 | AB190: FALSE | AC190: FALSE | AD190: FALSE | AE190: -1638.52 | AW190: 4709670000
A191: 159 | B191: =IF(A191>$B$30,NA(),IF($A191>$A$8,"",OFFSET(InputPriceData!$B$15,$A191+$A$11,0,1,1))) -> 2020-11-12 | C191: =IF(A191>$B$30,NA(),IF($A191>$A$8,"",OFFSET(InputPriceData!$G$15,CalculationsAndCharts!$A191+$A$11,IF($C$5,8,0),1,1))) -> 4890120000 | D191: =IF(A191>$B$30,NA(),IF(A191>$A$8,"",OFFSET(InputPriceData!$C$15,CalculationsAndCharts!$A191+$A$11,IF($C$5,8,0),1,1))) -> 3562.67 | E191: =IF(A191>$B$30,NA(),IF(A191>$A$8,"",OFFSET(InputPriceData!$D$15,CalculationsAndCharts!$A191+$A$11,IF($C$5,8,0),1,1))) -> 3569.02 | F191: =IF(A191>$B$30,NA(),IF(A191>$A$8,"",OFFSET(InputPriceData!$E$15,CalculationsAndCharts!$A191+$A$11,IF($C$5,8,0),1,1))) -> 3518.58 | G191: =IF(A191>$B$30,NA(),IF(A191>$A$8,"",OFFSET(InputPriceData!$F$15,CalculationsAndCharts!$A191+$A$11,IF($C$5,8,0),1,1))) -> 3537.01 | H191: 3504.77375 | I191: 3437.276667 | J191: 1.963679095 | K191: 2.531017435 | M191: 3521.287488 | O191: 3389.493215 | P191: 3.888317934 | Q191: 2.675886872 | T191: FALSE | U191: FALSE | V191: 0 | W191: 0 | X191: FALSE | Y191: FALSE | Z191: TRUE | AA191: -2836.5 | AB191: FALSE | AC191: FALSE | AD191: FALSE | AE191: -1638.52 | AX191: 4890120000
A192: 160 | B192: =IF(A192>$B$30,NA(),IF($A192>$A$8,"",OFFSET(InputPriceData!$B$15,$A192+$A$11,0,1,1))) -> 2020-11-11 | C192: =IF(A192>$B$30,NA(),IF($A192>$A$8,"",OFFSET(InputPriceData!$G$15,CalculationsAndCharts!$A192+$A$11,IF($C$5,8,0),1,1))) -> 4609970000 | D192: =IF(A192>$B$30,NA(),IF(A192>$A$8,"",OFFSET(InputPriceData!$C$15,CalculationsAndCharts!$A192+$A$11,IF($C$5,8,0),1,1))) -> 3563.22 | E192: =IF(A192>$B$30,NA(),IF(A192>$A$8,"",OFFSET(InputPriceData!$D$15,CalculationsAndCharts!$A192+$A$11,IF($C$5,8,0),1,1))) -> 3581.16 | F192: =IF(A192>$B$30,NA(),IF(A192>$A$8,"",OFFSET(InputPriceData!$E$15,CalculationsAndCharts!$A192+$A$11,IF($C$5,8,0),1,1))) -> 3557 | G192: =IF(A192>$B$30,NA(),IF(A192>$A$8,"",OFFSET(InputPriceData!$F$15,CalculationsAndCharts!$A192+$A$11,IF($C$5,8,0),1,1))) -> 3572.66 | H192: 3476.4275 | I192: 3434.974762 | J192: 1.206784357 | K192: 3.401421061 | M192: 3492.399802 | O192: 3387.781704 | P192: 3.088100336 | Q192: 4.2087918 | T192: FALSE | U192: FALSE | V192: 0 | W192: 0 | X192: FALSE | Y192: FALSE | Z192: TRUE | AA192: -2836.5 | AB192: FALSE | AC192: FALSE | AD192: FALSE | AE192: -1638.52 | AW192: 4609970000
A193: 161 | B193: =IF(A193>$B$30,NA(),IF($A193>$A$8,"",OFFSET(InputPriceData!$B$15,$A193+$A$11,0,1,1))) -> 2020-11-10 | C193: =IF(A193>$B$30,NA(),IF($A193>$A$8,"",OFFSET(InputPriceData!$G$15,CalculationsAndCharts!$A193+$A$11,IF($C$5,8,0),1,1))) -> 6024230000 | D193: =IF(A193>$B$30,NA(),IF(A193>$A$8,"",OFFSET(InputPriceData!$C$15,CalculationsAndCharts!$A193+$A$11,IF($C$5,8,0),1,1))) -> 3543.26 | E193: =IF(A193>$B$30,NA(),IF(A193>$A$8,"",OFFSET(InputPriceData!$D$15,CalculationsAndCharts!$A193+$A$11,IF($C$5,8,0),1,1))) -> 3557.22 | F193: =IF(A193>$B$30,NA(),IF(A193>$A$8,"",OFFSET(InputPriceData!$E$15,CalculationsAndCharts!$A193+$A$11,IF($C$5,8,0),1,1))) -> 3511.91 | G193: =IF(A193>$B$30,NA(),IF(A193>$A$8,"",OFFSET(InputPriceData!$F$15,CalculationsAndCharts!$A193+$A$11,IF($C$5,8,0),1,1))) -> 3545.53 | H193: 3438.59 | I193: 3432.082857 | J193: 0.1895974872 | K193: 2.815050091 | M193: 3452.246209 | O193: 3390.223055 | P193: 1.829471169 | Q193: 5.197568056 | T193: FALSE | U193: FALSE | V193: 0 | W193: 0 | X193: FALSE | Y193: FALSE | Z193: TRUE | AA193: -2836.5 | AB193: FALSE | AC193: FALSE | AD193: FALSE | AE193: -1638.52 | AW193: 6024230000
A194: 162 | B194: =IF(A194>$B$30,NA(),IF($A194>$A$8,"",OFFSET(InputPriceData!$B$15,$A194+$A$11,0,1,1))) -> 2020-11-09 | C194: =IF(A194>$B$30,NA(),IF($A194>$A$8,"",OFFSET(InputPriceData!$G$15,CalculationsAndCharts!$A194+$A$11,IF($C$5,8,0),1,1))) -> 8556610000 | D194: =IF(A194>$B$30,NA(),IF(A194>$A$8,"",OFFSET(InputPriceData!$C$15,CalculationsAndCharts!$A194+$A$11,IF($C$5,8,0),1,1))) -> 3583.04 | E194: =IF(A194>$B$30,NA(),IF(A194>$A$8,"",OFFSET(InputPriceData!$D$15,CalculationsAndCharts!$A194+$A$11,IF($C$5,8,0),1,1))) -> 3645.99 | F194: =IF(A194>$B$30,NA(),IF(A194>$A$8,"",OFFSET(InputPriceData!$E$15,CalculationsAndCharts!$A194+$A$11,IF($C$5,8,0),1,1))) -> 3547.48 | G194: =IF(A194>$B$30,NA(),IF(A194>$A$8,"",OFFSET(InputPriceData!$F$15,CalculationsAndCharts!$A194+$A$11,IF($C$5,8,0),1,1))) -> 3550.5 | H194: 3409.1625 | I194: 3431.544286 | J194: -0.6522365399 | K194: 3.069130066 | M194: 3405.848036 | O194: 3396.502532 | P194: 0.2751508176 | Q194: 5.334277565 | T194: FALSE | U194: FALSE | V194: 0 | W194: 0 | X194: FALSE | Y194: FALSE | Z194: TRUE | AA194: -2836.5 | AB194: FALSE | AC194: FALSE | AD194: FALSE | AE194: -1638.52 | AX194: 8556610000
A195: 163 | B195: =IF(A195>$B$30,NA(),IF($A195>$A$8,"",OFFSET(InputPriceData!$B$15,$A195+$A$11,0,1,1))) -> 2020-11-06 | C195: =IF(A195>$B$30,NA(),IF($A195>$A$8,"",OFFSET(InputPriceData!$G$15,CalculationsAndCharts!$A195+$A$11,IF($C$5,8,0),1,1))) -> 4833950000 | D195: =IF(A195>$B$30,NA(),IF(A195>$A$8,"",OFFSET(InputPriceData!$C$15,CalculationsAndCharts!$A195+$A$11,IF($C$5,8,0),1,1))) -> 3508.34 | E195: =IF(A195>$B$30,NA(),IF(A195>$A$8,"",OFFSET(InputPriceData!$D$15,CalculationsAndCharts!$A195+$A$11,IF($C$5,8,0),1,1))) -> 3521.58 | F195: =IF(A195>$B$30,NA(),IF(A195>$A$8,"",OFFSET(InputPriceData!$E$15,CalculationsAndCharts!$A195+$A$11,IF($C$5,8,0),1,1))) -> 3484.34 | G195: =IF(A195>$B$30,NA(),IF(A195>$A$8,"",OFFSET(InputPriceData!$F$15,CalculationsAndCharts!$A195+$A$11,IF($C$5,8,0),1,1))) -> 3509.44 | H195: 3374.22875 | I195: 3428.050952 | J195: -1.570052579 | K195: 1.162829201 | M195: 3360.954857 | O195: 3405.914708 | P195: -1.320052188 | Q195: 4.401989741 | T195: FALSE | U195: FALSE | V195: 0 | W195: 0 | X195: FALSE | Y195: FALSE | Z195: TRUE | AA195: -2836.5 | AB195: FALSE | AC195: FALSE | AD195: FALSE | AE195: -1638.52 | AW195: 4833950000
A196: 164 | B196: =IF(A196>$B$30,NA(),IF($A196>$A$8,"",OFFSET(InputPriceData!$B$15,$A196+$A$11,0,1,1))) -> 2020-11-05 | C196: =IF(A196>$B$30,NA(),IF($A196>$A$8,"",OFFSET(InputPriceData!$G$15,CalculationsAndCharts!$A196+$A$11,IF($C$5,8,0),1,1))) -> 4841190000 | D196: =IF(A196>$B$30,NA(),IF(A196>$A$8,"",OFFSET(InputPriceData!$C$15,CalculationsAndCharts!$A196+$A$11,IF($C$5,8,0),1,1))) -> 3485.74 | E196: =IF(A196>$B$30,NA(),IF(A196>$A$8,"",OFFSET(InputPriceData!$D$15,CalculationsAndCharts!$A196+$A$11,IF($C$5,8,0),1,1))) -> 3529.05 | F196: =IF(A196>$B$30,NA(),IF(A196>$A$8,"",OFFSET(InputPriceData!$E$15,CalculationsAndCharts!$A196+$A$11,IF($C$5,8,0),1,1))) -> 3485.74 | G196: =IF(A196>$B$30,NA(),IF(A196>$A$8,"",OFFSET(InputPriceData!$F$15,CalculationsAndCharts!$A196+$A$11,IF($C$5,8,0),1,1))) -> 3510.45 | H196: 3359.38375 | I196: 3425.069524 | J196: -1.917793883 | K196: 0.9222528285 | M196: 3327.282513 | O196: 3417.380265 | P196: -2.636456739 | Q196: 2.494204338 | T196: FALSE | U196: FALSE | V196: -3485.74 | W196: 0 | X196: TRUE | Y196: FALSE | Z196: TRUE | AA196: -2836.5 | AB196: FALSE | AC196: TRUE | AD196: FALSE | AE196: -1638.52 | AW196: 4841190000
A197: 165 | B197: =IF(A197>$B$30,NA(),IF($A197>$A$8,"",OFFSET(InputPriceData!$B$15,$A197+$A$11,0,1,1))) -> 2020-11-04 | C197: =IF(A197>$B$30,NA(),IF($A197>$A$8,"",OFFSET(InputPriceData!$G$15,CalculationsAndCharts!$A197+$A$11,IF($C$5,8,0),1,1))) -> 4783040000 | D197: =IF(A197>$B$30,NA(),IF(A197>$A$8,"",OFFSET(InputPriceData!$C$15,CalculationsAndCharts!$A197+$A$11,IF($C$5,8,0),1,1))) -> 3406.46 | E197: =IF(A197>$B$30,NA(),IF(A197>$A$8,"",OFFSET(InputPriceData!$D$15,CalculationsAndCharts!$A197+$A$11,IF($C$5,8,0),1,1))) -> 3486.25 | F197: =IF(A197>$B$30,NA(),IF(A197>$A$8,"",OFFSET(InputPriceData!$E$15,CalculationsAndCharts!$A197+$A$11,IF($C$5,8,0),1,1))) -> 3405.17 | G197: =IF(A197>$B$30,NA(),IF(A197>$A$8,"",OFFSET(InputPriceData!$F$15,CalculationsAndCharts!$A197+$A$11,IF($C$5,8,0),1,1))) -> 3443.44 | H197: 3345.69875 | I197: 3420.735714 | J197: -2.193591395 | K197: -0.6444335198 | M197: 3313.612453 | O197: 3429.61374 | P197: -3.382342608 | Q197: 0.2371522551 | T197: TRUE | U197: FALSE | V197: 0 | W197: 0 | X197: FALSE | Y197: FALSE | Z197: FALSE | AA197: 649.24 | AB197: FALSE | AC197: FALSE | AD197: TRUE | AE197: 1847.22 | AW197: 4783040000
A198: 166 | B198: =IF(A198>$B$30,NA(),IF($A198>$A$8,"",OFFSET(InputPriceData!$B$15,$A198+$A$11,0,1,1))) -> 2020-11-03 | C198: =IF(A198>$B$30,NA(),IF($A198>$A$8,"",OFFSET(InputPriceData!$G$15,CalculationsAndCharts!$A198+$A$11,IF($C$5,8,0),1,1))) -> 4220070000 | D198: =IF(A198>$B$30,NA(),IF(A198>$A$8,"",OFFSET(InputPriceData!$C$15,CalculationsAndCharts!$A198+$A$11,IF($C$5,8,0),1,1))) -> 3336.25 | E198: =IF(A198>$B$30,NA(),IF(A198>$A$8,"",OFFSET(InputPriceData!$D$15,CalculationsAndCharts!$A198+$A$11,IF($C$5,8,0),1,1))) -> 3389.49 | F198: =IF(A198>$B$30,NA(),IF(A198>$A$8,"",OFFSET(InputPriceData!$E$15,CalculationsAndCharts!$A198+$A$11,IF($C$5,8,0),1,1))) -> 3336.25 | G198: =IF(A198>$B$30,NA(),IF(A198>$A$8,"",OFFSET(InputPriceData!$F$15,CalculationsAndCharts!$A198+$A$11,IF($C$5,8,0),1,1))) -> 3369.16 | H198: 3348.4425 | I198: 3416.808571 | J198: -2.000875086 | K198: -0.8510522016 | M198: 3322.350029 | O198: 3441.183112 | P198: -3.453262425 | Q198: -1.632878428 | T198: FALSE | U198: FALSE | V198: 0 | W198: 0 | X198: FALSE | Y198: FALSE | Z198: FALSE | AA198: 649.24 | AB198: FALSE | AC198: FALSE | AD198: TRUE | AE198: 1847.22 | AW198: 4220070000
A199: 167 | B199: =IF(A199>$B$30,NA(),IF($A199>$A$8,"",OFFSET(InputPriceData!$B$15,$A199+$A$11,0,1,1))) -> 2020-11-02 | C199: =IF(A199>$B$30,NA(),IF($A199>$A$8,"",OFFSET(InputPriceData!$G$15,CalculationsAndCharts!$A199+$A$11,IF($C$5,8,0),1,1))) -> 4310590000 | D199: =IF(A199>$B$30,NA(),IF(A199>$A$8,"",OFFSET(InputPriceData!$C$15,CalculationsAndCharts!$A199+$A$11,IF($C$5,8,0),1,1))) -> 3296.2 | E199: =IF(A199>$B$30,NA(),IF(A199>$A$8,"",OFFSET(InputPriceData!$D$15,CalculationsAndCharts!$A199+$A$11,IF($C$5,8,0),1,1))) -> 3330.14 | F199: =IF(A199>$B$30,NA(),IF(A199>$A$8,"",OFFSET(InputPriceData!$E$15,CalculationsAndCharts!$A199+$A$11,IF($C$5,8,0),1,1))) -> 3279.74 | G199: =IF(A199>$B$30,NA(),IF(A199>$A$8,"",OFFSET(InputPriceData!$F$15,CalculationsAndCharts!$A199+$A$11,IF($C$5,8,0),1,1))) -> 3310.24 | H199: 3358.98375 | I199: 3418.686667 | J199: -1.746369951 | K199: -1.356803156 | M199: 3348.496744 | O199: 3450.811725 | P199: -2.964954019 | Q199: -2.582722876 | T199: FALSE | U199: FALSE | V199: 0 | W199: 0 | X199: FALSE | Y199: FALSE | Z199: FALSE | AA199: 649.24 | AB199: FALSE | AC199: FALSE | AD199: TRUE | AE199: 1847.22 | AW199: 4310590000
A200: 168 | B200: =IF(A200>$B$30,NA(),IF($A200>$A$8,"",OFFSET(InputPriceData!$B$15,$A200+$A$11,0,1,1))) -> 2020-10-30 | C200: =IF(A200>$B$30,NA(),IF($A200>$A$8,"",OFFSET(InputPriceData!$G$15,CalculationsAndCharts!$A200+$A$11,IF($C$5,8,0),1,1))) -> 4840450000 | D200: =IF(A200>$B$30,NA(),IF(A200>$A$8,"",OFFSET(InputPriceData!$C$15,CalculationsAndCharts!$A200+$A$11,IF($C$5,8,0),1,1))) -> 3293.59 | E200: =IF(A200>$B$30,NA(),IF(A200>$A$8,"",OFFSET(InputPriceData!$D$15,CalculationsAndCharts!$A200+$A$11,IF($C$5,8,0),1,1))) -> 3304.93 | F200: =IF(A200>$B$30,NA(),IF(A200>$A$8,"",OFFSET(InputPriceData!$E$15,CalculationsAndCharts!$A200+$A$11,IF($C$5,8,0),1,1))) -> 3233.94 | G200: =IF(A200>$B$30,NA(),IF(A200>$A$8,"",OFFSET(InputPriceData!$F$15,CalculationsAndCharts!$A200+$A$11,IF($C$5,8,0),1,1))) -> 3269.96 | H200: 3374.64875 | I200: 3420.504762 | J200: -1.340621198 | K200: -1.604500729 | M200: 3381.805582 | O200: 3457.617189 | P200: -2.192596892 | Q200: -2.571887793 | T200: FALSE | U200: FALSE | V200: 0 | W200: 0 | X200: FALSE | Y200: FALSE | Z200: FALSE | AA200: 649.24 | AB200: FALSE | AC200: FALSE | AD200: TRUE | AE200: 1847.22 | AX200: 4840450000
A201: 169 | B201: =IF(A201>$B$30,NA(),IF($A201>$A$8,"",OFFSET(InputPriceData!$B$15,$A201+$A$11,0,1,1))) -> 2020-10-29 | C201: =IF(A201>$B$30,NA(),IF($A201>$A$8,"",OFFSET(InputPriceData!$G$15,CalculationsAndCharts!$A201+$A$11,IF($C$5,8,0),1,1))) -> 4903070000 | D201: =IF(A201>$B$30,NA(),IF(A201>$A$8,"",OFFSET(InputPriceData!$C$15,CalculationsAndCharts!$A201+$A$11,IF($C$5,8,0),1,1))) -> 3277.17 | E201: =IF(A201>$B$30,NA(),IF(A201>$A$8,"",OFFSET(InputPriceData!$D$15,CalculationsAndCharts!$A201+$A$11,IF($C$5,8,0),1,1))) -> 3341.05 | F201: =IF(A201>$B$30,NA(),IF(A201>$A$8,"",OFFSET(InputPriceData!$E$15,CalculationsAndCharts!$A201+$A$11,IF($C$5,8,0),1,1))) -> 3259.82 | G201: =IF(A201>$B$30,NA(),IF(A201>$A$8,"",OFFSET(InputPriceData!$F$15,CalculationsAndCharts!$A201+$A$11,IF($C$5,8,0),1,1))) -> 3310.11 | H201: 3396.29375 | I201: 3425.782857 | J201: -0.8607990749 | K201: -1.180653411 | M201: 3411.871264 | O201: 3461.139897 | P201: -1.423479971 | Q201: -1.935686619 | T201: FALSE | U201: FALSE | V201: 0 | W201: 0 | X201: FALSE | Y201: FALSE | Z201: FALSE | AA201: 649.24 | AB201: FALSE | AC201: FALSE | AD201: TRUE | AE201: 1847.22 | AW201: 4903070000
... 924 more rows

Sheet Follow
A1: Stocks and Indexes I wish to follow
A3: To ease following a stock, enter a Yahoo Finance acceptable symbol in column "A" anywhere below cell "A9".
A4: Thereafter you may doubleclick the cell containing a symbol of interest to initiate data retrieval and charting for that symbol.
A7: Symbol
A8: To | B8: Description | C8: Last Trade as of most recent check
A9: Follow | C9: Date | D9: Time | E9: Open | F9: High | G9: Low | H9: Close | I9: Volume | J9: Change | K9: Retrieved @
A10: A | B10: Agilent Technologies, Inc. (A) -NYSE (Daily) | C10: 2020-03-09 | D10: 16:04:00 | E10: 72.589996 | F10: 74.190002 | G10: 70.169998 | H10: 70.75 | I10: 4591093 | J10: -7.809998 | K10: 2020-03-09T16:59:21
A11: AA | B11: Alcoa Corporation (AA) -NYSE (Daily) | C11: 2020-01-31 | D11: 16:04:00 | E11: 14.01 | F11: 14.24 | G11: 13.62 | H11: 13.95 | I11: 9931500 | J11: -0.34 | K11: 2020-02-02T15:07:13
A12: AAL | B12: American Airlines Group Inc. (AAL) -NasdaqGS (Daily) | C12: 2020-03-09 | D12: 16:00:00 | E12: 14.87 | F12: 15.79 | G12: 14.46 | H12: 14.75 | I12: 41078614 | J12: -1.22 | K12: 2020-03-09T17:00:15
A13: AAPL | B13: Apple Inc. (AAPL) -NasdaqGS (Daily) | C13: 2020-06-17 | D13: 16:00:00 | E13: 355.149994 | F13: 355.369995 | G13: 351.089996 | H13: 351.589996 | I13: 27604481 | J13: -0.489991 | K13: 2020-06-17T17:45:34
A14: ADM | B14: Archer-Daniels-Midland Company (ADM) -NYSE (Weekly) | C14: 2018-07-13 | D14: 16:00:00 | E14: 47.5 | F14: 47.84 | G14: 47.169998 | H14: 47.57 | I14: 2402809 | J14: 0
A15: ADBE | B15: Adobe Inc. (ADBE) -NasdaqGS (Daily) | C15: 2020-06-17 | D15: 16:00:00 | E15: 414 | F15: 417.425995 | G15: 411.429993 | H15: 413.48999 | I15: 2026063 | J15: 1.819977 | K15: 2020-06-17T17:42:59
A16: ALGN | B16: Align Technology, Inc. (ALGN) -NasdaqGS (Daily) | C16: 2020-01-30 | D16: 16:00:00 | E16: 248.740005 | F16: 264.450012 | G16: 248.350006 | H16: 262.890015 | I16: 1833160 | J16: 1.290009
A17: AMC | B17: AMC Entertainment Holdings, Inc. (AMC) -NYSE (Weekly) | C17: 2018-07-13 | D17: 16:02:00 | E17: 17.049999 | F17: 17.15 | G17: 16.525 | H17: 17.049999 | I17: 1442776 | J17: 0
A18: AMD | B18: Advanced Micro Devices, Inc. (AMD) -NasdaqGS (Daily) | C18: 2020-08-19 | D18: 12:40:00 | E18: 81.775703 | F18: 81.849998 | G18: 80.449997 | H18: 80.760002 | I18: 18434143 | J18: -0.900002 | K18: 2020-08-19T12:40:49
A19: BSX | B19: Boston Scientific Corporation C (BSX) -NYQ (Daily) | C19: 2015-03-13 | D19: 16:01:00 | E19: 16.84 | F19: 16.91 | G19: 16.44 | H19: 16.61 | I19: 7262460 | J19: -0.28
A20: CASY | B20: Casey's General Stores, Inc. (CASY) -NasdaqGS (Daily) | C20: 2019-04-10 | D20: 16:00:00 | E20: 128.979996 | F20: 130.330002 | G20: 128.779999 | H20: 130.179993 | I20: 351300 | J20: 1.489991
A21: CAT | B21: Caterpillar Inc. (CAT) -NYSE (Daily) | C21: 2020-03-13 | D21: 11:48:00 | E21: 98.389999 | F21: 99.910004 | G21: 90.150101 | H21: 90.269997 | I21: 3568294 | J21: -1.990005 | K21: 2020-03-13T11:48:53
A22: CSCO | B22: Cisco Systems, In (CSCO) -NasdaqNM (Daily) | C22: 2015-02-19 | D22: 16:00:00 | E22: 29.32 | F22: 29.39 | G22: 29.13 | H22: 29.31 | I22: 21469012 | J22: -0.18
A23: CVS | B23: CVS Health Corporation (CVS) -NYSE (Daily) | C23: 2020-03-09 | D23: 16:07:00 | E23: 59.75 | F23: 63 | G23: 59.599998 | H23: 61.299999 | I23: 13065424 | J23: -2.850003 | K23: 2020-03-09T17:51:54
A24: DIS | B24: The Walt Disney Company (DIS) -NYSE (Daily) | C24: 2020-03-09 | D24: 16:07:00 | E24: 108.690002 | F24: 110.43 | G24: 104.279999 | H24: 104.349998 | I24: 26101127 | J24: -10.919999 | K24: 2020-03-09T16:59:51
A25: F | B25: Ford Motor Company (F) -NYSE (Daily) | C25: 2020-01-31 | D25: 16:03:00 | E25: 8.78 | F25: 8.84 | G25: 8.74 | H25: 8.82 | I25: 59781000 | J25: -0.02 | K25: 2020-02-02T15:09:03
A26: FAS | B26: Direxion Daily Financial Bull 3X ETF (FAS) -NYSEArca (Daily) | C26: 2017-10-13 | D26: 16:00:00 | E26: 58.099998 | F26: 58.939999 | G26: 57.43 | H26: 58.450001 | I26: 1709300 | J26: 0.07
A27: FB | B27: Facebook, Inc. (FB) -NasdaqGS (Daily) | C27: 2020-02-14 | D27: 16:00:00 | E27: 214 | F27: 214.929993 | G27: 212.649994 | H27: 214.179993 | I27: 10727400 | J27: 1.039994 | K27: 2020-02-15T17:19:34
A28: GSK | B28: GlaxoSmithKline plc (GSK) -NYSE (Daily) | C28: 2021-01-15 | D28: 16:00:00 | E28: 38.41 | F28: 38.66 | G28: 38.209999 | H28: 38.470001 | I28: 3100400 | J28: 0.310001 | K28: 2021-01-17T18:07:58
A29: GDX | B29: VanEck Vectors Gold Miners ETF (GDX) -NYSEArca (Daily) | C29: 2020-01-31 | D29: 16:00:00 | E29: 28.799999 | F29: 29.24 | G29: 28.76 | H29: 28.99 | I29: 41946000 | J29: 0.26 | K29: 2020-02-02T15:11:17
A30: GOOG | B30: Alphabet Inc. (GOOG) -NasdaqGS (Daily) | C30: 2021-06-10 | D30: 16:00:00 | E30: 2494.01001 | F30: 2523.26001 | G30: 2494.01001 | H30: 2521.600098 | I30: 1390763 | J30: 30.200196 | K30: 2021-06-10T16:45:42
A31: HAL | B31: Halliburton Company (HAL) -NYSE (Daily) | C31: 2020-09-17 | D31: 11:11:00 | E31: 14.73 | F31: 14.945 | G31: 14.57 | H31: 14.91 | I31: 4265279 | J31: -0.16 | K31: 2020-09-17T11:11:52
A32: HD | B32: The Home Depot, Inc. (HD) -NYSE (Daily) | C32: 2020-03-13 | D32: 11:54:00 | E32: 200.449997 | F32: 201.179993 | G32: 192.270096 | H32: 193.449997 | I32: 3274582 | J32: 2.860001 | K32: 2020-03-13T11:54:29
A33: HSY | B33: The Hershey Company (HSY) -NYSE (Daily) | C33: 2021-01-15 | D33: 16:00:00 | E33: 147.089996 | F33: 149.490005 | G33: 146.880005 | H33: 148.460007 | I33: 1193700 | J33: 1.040009 | K33: 2021-01-17T18:06:10
A34: HTLD | B34: Heartland Express, Inc. (HTLD) -NasdaqGS (Daily) | C34: 2020-03-09 | D34: 16:00:00 | E34: 17.33 | F34: 17.690001 | G34: 16.82 | H34: 16.879999 | I34: 284762 | J34: -1.280001 | K34: 2020-03-09T17:00:56
A35: IDEX | B35: Ideanomics, Inc. (IDEX) -NasdaqGS (Daily) | C35: 2021-02-19 | D35: 10:11:00 | E35: 3.99 | F35: 4.15 | G35: 3.88 | H35: 3.92 | I35: 8623006 | J35: 0.19 | K35: 2021-02-19T10:11:40
A36: IBM | B36: International Business Machines Corporation (IBM) -NYSE (Daily) | C36: 2021-02-09 | D36: 16:00:00 | E36: 121.900002 | F36: 122.565002 | G36: 121.050003 | H36: 122.099998 | I36: 4173266 | J36: -1.510003 | K36: 2021-02-09T17:01:49
A37: INTC | B37: Intel Corporation (INTC) -NasdaqGS (Daily) | C37: 2020-02-14 | D37: 16:00:00 | E37: 67.519997 | F37: 67.860001 | G37: 66.82 | H37: 67.269997 | I37: 13402800 | J37: -0.170005 | K37: 2020-02-15T17:21:41
A38: JAH | B38: Jarden Corporation Common Stock (JAH) -NYQ (Daily) | C38: 2016-01-08 | D38: 16:02:00 | E38: 53.82 | F38: 53.88 | G38: 52.65 | H38: 52.73 | I38: 4519480 | J38: -0.81
A39: JNJ | B39: Johnson & Johnson (JNJ) -NYSE (Daily) | C39: 2019-08-14 | D39: 10:33:00 | E39: 132.529999 | F39: 132.539993 | G39: 131.419998 | H39: 131.759995 | I39: 870520 | J39: -0.169998
A40: KO | B40: The Coca-Cola Company (KO) -NYSE (Daily) | C40: 2020-03-09 | D40: 16:07:00 | E40: 52.049999 | F40: 53.580002 | G40: 51.474998 | H40: 51.860001 | I40: 27771279 | J40: -3.399997 | K40: 2020-03-09T17:05:43
A41: LOW | B41: Lowe's Companies, Inc. (LOW) -NYSE (Daily) | C41: 2020-03-09 | D41: 16:03:00 | E41: 97.82 | F41: 99.82 | G41: 93.150101 | H41: 94.220001 | I41: 8167579 | J41: -11.089997 | K41: 2020-03-09T16:57:19
A42: LMT | B42: Lockheed Martin Corporation (LMT) -NYSE (Daily) | C42: 2021-02-09 | D42: 16:04:00 | E42: 338.540009 | F42: 344.48999 | G42: 336.570007 | H42: 342.339996 | I42: 1545066 | J42: 4.5 | K42: 2021-02-09T16:56:05
A43: MCD | B43: McDonald's Corporation (MCD) -NYSE (Daily) | C43: 2020-03-09 | D43: 16:01:00 | E43: 187.669998 | F43: 194.470001 | G43: 184.100006 | H43: 186.860001 | I43: 7601343 | J43: -12 | K43: 2020-03-09T16:58:16
A44: MDT | B44: Medtronic plc (MDT) -NYSE (Daily) | C44: 2020-03-09 | D44: 16:07:00 | E44: 94.019997 | F44: 95.470001 | G44: 91.709999 | H44: 92.400002 | I44: 9000931 | J44: -6.659996 | K44: 2020-03-09T17:48:45
A45: MGM | B45: MGM Resorts International (MGM) -NYSE (Daily) | C45: 2020-03-09 | D45: 16:02:00 | E45: 18.6 | F45: 19.58 | G45: 17.530001 | H45: 17.879999 | I45: 26050818 | J45: -2.51 | K45: 2020-03-09T17:13:53
A46: MO | B46: Altria Group, Inc. (MO) -NYSE (Daily) | C46: 2020-01-31 | D46: 16:05:00 | E46: 48.25 | F46: 48.799999 | G46: 47.240002 | H46: 47.529999 | I46: 11790800 | J46: -0.470001 | K46: 2020-02-02T15:20:55
A47: MSFT | B47: Microsoft Corporation (MSFT) -NasdaqGS (Daily) | C47: 2020-03-09 | D47: 16:00:00 | E47: 151 | F47: 157.75 | G47: 150 | H47: 150.619995 | I47: 69167627 | J47: -10.950012 | K47: 2020-03-09T17:06:41
A48: NFLX | B48: Netflix, Inc. (NFLX) -NasdaqGS (Daily) | C48: 2020-03-09 | D48: 16:00:00 | E48: 343.859985 | F48: 357.470001 | G48: 341.720886 | H48: 346.48999 | I48: 6746188 | J48: -22.480011 | K48: 2020-03-09T17:23:37
A49: NUGT | B49: Direxion Daily Gold Miners Index Bull 3X Shares (NUGT) -NYSEArca (Daily) | C49: 2020-01-31 | D49: 16:00:00 | E49: 32.439999 | F49: 33.830002 | G49: 32.240002 | H49: 33.02 | I49: 11325200 | J49: 0.84 | K49: 2020-02-02T15:21:51
A50: NVS | B50: Novartis AG (NVS) -NYSE (Daily) | C50: 2020-03-06 | D50: 16:02:00 | E50: 84.330002 | F50: 85.830002 | G50: 83.970001 | H50: 85.720001 | I50: 5624700 | J50: -0.089997 | K50: 2020-03-08T16:56:35
A51: NVDA | B51: NVIDIA Corporation (NVDA) -NasdaqGS (Daily) | C51: 2020-12-14 | D51: 16:00:00 | E51: 523.515015 | F51: 535.549988 | G51: 523.099976 | H51: 532.349976 | I51: 6580666 | J51: 11.819947 | K51: 2020-12-14T18:31:17
A52: PRU | B52: Prudential Financial, Inc. (PRU) -NYSE (Daily) | C52: 2020-03-09 | D52: 16:02:00 | E52: 63.75 | F52: 65.830002 | G52: 57.375 | H52: 58.240002 | I52: 7614493 | J52: -11.569996 | K52: 2020-03-09T17:11:43
A53: PSEC | B53: Prospect Capital Corporation (PSEC) -NasdaqGS (Daily) | C53: 2020-02-14 | D53: 16:00:00 | E53: 6.53 | F53: 6.56 | G53: 6.51 | H53: 6.52 | I53: 1235500 | J53: -0.04 | K53: 2020-02-15T14:43:16
A54: RPM | B54: RPM International Inc. (RPM) -NYSE (Daily) | C54: 2020-03-09 | D54: 16:02:00 | E54: 64.470001 | F54: 66.730003 | G54: 63.5 | H54: 65.290001 | I54: 1115882 | J54: -2.919998 | K54: 2020-03-09T17:10:08
A55: RSP | B55: Invesco S&P 500 Equal Weight ETF (RSP) -NYSEArca (Daily) | C55: 2020-01-31 | D55: 16:00:00 | E55: 115.279999 | F55: 115.32 | G55: 113.230003 | H55: 113.540001 | I55: 747600 | J55: -2.309997 | K55: 2020-02-02T15:28:52
A56: SPR | B56: Spirit AeroSystems Holdings, Inc. (SPR) -NYSE (Daily) | C56: 2020-03-09 | D56: 16:06:00 | E56: 43.700001 | F56: 43.880001 | G56: 41.5 | H56: 42.139999 | I56: 2091368 | J56: -5.23 | K56: 2020-03-09T17:09:37
A57: SQ | B57: Square, Inc. (SQ) -NYSE (Daily) | C57: 2020-10-02 | D57: 16:00:00 | E57: 164.050003 | F57: 171.240005 | G57: 163.800995 | H57: 169.610001 | I57: 11150500 | J57: 1.119996 | K57: 2020-10-04T20:00:52
A58: SWKS | B58: Skyworks Solutions, Inc. (SWKS) -NasdaqGS (Daily) | C58: 2020-01-31 | D58: 16:00:00 | E58: 115.5 | F58: 115.739998 | G58: 112.720001 | H58: 113.150002 | I58: 2444600 | J58: -3.080001 | K58: 2020-02-02T15:26:46
A59: TOL | B59: Toll Brothers, Inc. (TOL) -NYSE (Daily) | C59: 2020-03-09 | D59: 16:07:00 | E59: 34.759998 | F59: 35.314999 | G59: 32.060001 | H59: 34.110001 | I59: 3127968 | J59: -2.86 | K59: 2020-03-09T17:12:09
A60: TSLA | B60: Tesla, Inc. (TSLA) -NasdaqGS (Daily) | C60: 2020-03-13 | D60: 12:08:00 | E60: 595 | F60: 607.570007 | G60: 502.01001 | H60: 510 | I60: 12224537 | J60: -50.549988 | K60: 2020-03-13T12:08:39
A61: TXN | B61: Texas Instruments Incorporated (TXN) -NasdaqGS (Daily) | C61: 2020-06-19 | D61: 11:30:00 | E61: 128.059998 | F61: 128.179993 | G61: 126.07 | H61: 126.370003 | I61: 2078988 | J61: 0.39 | K61: 2020-06-19T11:31:00
A62: UNP | B62: Union Pacific Corporation (UNP) -NYSE (Daily) | C62: 2020-03-09 | D62: 16:07:00 | E62: 145.199997 | F62: 145.580002 | G62: 133.179993 | H62: 135.839996 | I62: 9380024 | J62: -20.25 | K62: 2020-03-09T17:11:21
A63: VZ | B63: Verizon Communications Inc. (VZ) -NYSE (Daily) | C63: 2019-04-10 | D63: 16:00:00 | E63: 58.400002 | F63: 58.700001 | G63: 58.360001 | H63: 58.610001 | I63: 8022000 | J63: 0.209999
A64: WBA | B64: Walgreens Boots Alliance, Inc. (WBA) -NasdaqGS (Daily) | C64: 2020-01-31 | D64: 16:00:00 | E64: 51.709999 | F64: 51.919998 | G64: 50.66 | H64: 50.849998 | I64: 6532300 | J64: -1.100003 | K64: 2020-02-02T15:28:06
A65: WMT | B65: Walmart Inc. (WMT) -NYSE (Daily) | C65: 2020-03-09 | D65: 16:01:00 | E65: 113.82 | F65: 120.629997 | G65: 112.730003 | H65: 117.160004 | I65: 19567750 | J65: -0.069999 | K65: 2020-03-09T17:10:39
A67: ^AEX | B67: AEX-INDEX (^AEX) -Amsterdam (Daily) | C67: 2020-03-09 | D67: 18:05:00 | E67: 506.950012 | F67: 506.950012 | G67: 485.730011 | H67: 490.660004 | I67: 0 | J67: -40.629974 | K67: 2020-03-09T17:41:58
A68: ^AORD | B68: ALL ORDINARIES (^AORD) -ASX (Daily) | C68: 2020-03-09 | D68: 16:17:00 | E68: 6472.399902 | F68: 6287.299805 | G68: 5822.399902 | H68: 5822.399902 | I68: 0 | J68: -465.100098 | K68: 2020-03-09T17:45:59
A69: ^DJI | B69: Dow Jones Industrial Average (^DJI) -DJI (Daily) | C69: 2021-01-15 | D69: 17:18:00 | E69: 30926.76953 | F69: 30941.98047 | G69: 30612.66992 | H69: 30814.25977 | I69: 433000000 | J69: -177.259765 | K69: 2021-01-18T09:45:18
A70: ^FTSE | B70: FTSE 100 (^FTSE) -FTSE Index (Daily) | C70: 2020-03-09 | D70: 16:45:00 | E70: 6462.549805 | F70: 6462.549805 | G70: 5891.560059 | H70: 5965.77002 | I70: 0 | J70: -496.830078 | K70: 2020-03-09T17:43:57
A71: ^GSPC | B71: S&P 500 (^GSPC) -SNP (Daily) | C71: 2021-09-10 | D71: 16:56:00 | E71: 4506.919922 | F71: 4520.470215 | G71: 4457.660156 | H71: 4458.580078 | I71: 2851140000 | J71: -34.699707 | K71: 2021-09-12T12:40:06
A72: ^HSI | B72: HANG SENG INDEX (^HSI) -HKSE (Daily) | C72: 2020-03-09 | D72: 16:08:00 | E72: 25134.01953 | F72: 25321.2793 | G72: 24948.38086 | H72: 25040.46094 | I72: 0 | J72: -1106.208984 | K72: 2020-03-09T17:39:06
A73: ^MID | B73: S&P MID CAP 400 INDEX (^MID) -NYSE (Daily) | C73: 2020-02-14 | D73: 16:06:00 | E73: 2099.459961 | F73: 2100.51001 | G73: 2089.610107 | H73: 2096.610107 | I73: 0 | J73: -0.679932 | K73: 2020-02-14T21:04:41
A74: ^NDX | B74: NASDAQ 100 (^NDX) -Nasdaq GIDS (Daily) | C74: 2021-06-17 | D74: 17:15:00 | E74: 13946.70019 | F74: 14205.43457 | G74: 13946.52148 | H74: 14163.80859 | I74: 618547720 | J74: 180.798828 | K74: 2021-06-18T09:08:44
A75: ^NYA | B75: NYSE COMPOSITE (DJ) (^NYA) -NYSE (Weekly) | C75: 2021-01-11 | D75: 16:10:00 | E75: 14828.03027 | F75: 15129.12012 | G75: 14791.65039 | H75: 14894.16992 | I75: 24551330000 | J75: -72.660156 | K75: 2021-01-18T09:10:33
A76: ^OEX | B76: S&P 100 INDEX (^OEX) -Chicago Options (Daily) | C76: 2019-09-13 | D76: 16:56:00 | E76: 1332.27002 | F76: 1334.420044 | G76: 1328.73999 | H76: 1330.969971 | I76: 3520060000 | J76: -1.010009
A77: ^RUT | B77: Russell 2000 (^RUT) -Chicago Options (Daily) | C77: 2021-01-15 | D77: 16:00:00 | E77: 2154.689941 | F77: 2154.689941 | G77: 2102.530029 | H77: 2123.199951 | I77: 53530600 | J77: -32.150147 | K77: 2021-01-18T08:41:42
A78: ^SSEC | B78: SSE Composite Index (^SSEC) -Shanghai (Daily) | C78: 2020-03-09 | D78: 15:00:00 | E78: 3039.939453 | F78: 2989.205078 | G78: 2940.713867 | H78: 2943.290771 | I78: 2801367936 | J78: -388.231202 | K78: 2020-03-09T17:38:09
A79: ^VIX | B79: CBOE Volatility Index (^VIX) -Chicago Options (Daily) | C79: 2020-03-09 | D79: 16:14:00 | E79: 41.939999 | F79: 62.119999 | G79: 41.939999 | H79: 54.459999 | I79: 0 | J79: 12.52 | K79: 2020-03-09T17:38:36
A80: IWM | B80: iShares Russell 2000 ETF (IWM) -NYSEArca (Daily) | C80: 2021-02-19 | D80: 09:56:00 | E80: 222.460007 | F80: 223.080002 | G80: 222.169998 | H80: 222.970001 | I80: 3614630 | J80: 2.380005 | K80: 2021-02-19T09:56:07
A81: QQQ | B81: Invesco QQQ Trust (QQQ) -NasdaqGM (Daily) | C81: 2020-08-27 | D81: 15:01:00 | E81: 293.079987 | F81: 293.851013 | G81: 288.704987 | H81: 291.994995 | I81: 41822663 | J81: 0.035004 | K81: 2020-08-27T15:02:03
A82: XLE | B82: Energy Select Sector SPDR Fund (XLE) -NYSEArca (Daily) | C82: 2020-07-10 | D82: 16:00:00 | E82: 34.240002 | F82: 35.580002 | G82: 34.240002 | H82: 35.540001 | I82: 25223900 | J82: 1.100002 | K82: 2020-07-11T16:34:13
A83: SPY | B83: SPDR S&P 500 ETF Trust (SPY) -NYSEArca (Daily) | C83: 2021-07-16 | D83: 16:00:00 | E83: 436.01001 | F83: 436.059998 | G83: 430.920013 | H83: 431.339996 | I83: 75784700 | J83: -3.410004 | K83: 2021-07-17T18:35:45
A85: ACAD | B85: ACADIA Pharmaceut (ACAD) -NasdaqNM (Daily) | C85: 2014-07-21 | D85: 16:00:00 | E85: 20.13 | F85: 20.55 | G85: 19.8101 | H85: 20.31 | I85: 691016
A86: CLDX | B86: Celldex Therapeut (CLDX) -NasdaqNM (Daily) | C86: 2015-02-02 | D86: 16:00:00 | E86: 21.47 | F86: 21.69 | G86: 20.11 | H86: 21.02 | I86: 1570418 | J86: -0.4
A87: ICPT | B87: Intercept Pharmac (ICPT) -NasdaqNM (Daily) | C87: 2014-07-21 | D87: 16:00:00 | E87: 215.97 | F87: 218.43 | G87: 213.05 | H87: 218.14 | I87: 191276
A88: INO | B88: Inovio Pharmaceut (INO) -AMEX (Daily) | C88: 2014-07-21 | D88: 16:00:00 | E88: 10.3 | F88: 11.08 | G88: 10.1 | H88: 11.01 | I88: 1800796
A89: JCP | B89: J. C. Penney Company, Inc. (JCP) -NYSE (Daily) | C89: 2017-12-07 | D89: 16:01:00 | E89: 3.34 | F89: 3.4 | G89: 3.25 | H89: 3.27 | I89: 14485464 | J89: -0.07
A90: LCI | B90: Lannett Co Inc Co (LCI) -NYSE (Daily) | C90: 2014-07-21 | D90: 16:02:00 | E90: 38.09 | F90: 38.803 | G90: 36.5101 | H90: 37.76 | I90: 611367
A91: NPSP | B91: NPS Pharmaceutica (NPSP) -NasdaqNM (Daily) | C91: 2014-07-21 | D91: 15:59:00 | E91: 28.75 | F91: 29.43 | G91: 28.31 | H91: 29.29 | I91: 1126758
A92: PBYI | B92: Puma Biotechnolog (PBYI) -NYSE (Daily) | C92: 2014-07-21 | D92: 16:02:00 | E92: 58.27 | F92: 59.46 | G92: 57.39 | H92: 58.98 | I92: 348030

Sheet Transaction Summary
B1: Transaction Summary (using trade size of 1 share, no commissions, no slippage))
C2: =LogicallyAvailableRows -> 2500 | D2: Logically Available Data Bars on the "CalculationsAndCharts" tab.
C3: =CalculationsAndCharts!$V$30 -> 2477 | D3: ="Bars remain available for simulation after necessary preliminary calculations. Back Test Transaction reporting period extends from " & TEXT(OFFSET(CalculationsAndCharts!B32,C3,0,1,1),"mm/dd/yyyy") & " to "& TEXT(CalculationsAndCharts!B33,"mm/dd/yyyy") -> Bars remain available for simulation after necessary preliminary calculations. Back Test Transaction reporting period extends from 08/29/2011 to 07/01/2021
B4: Summary for LONG trades | L4: Summary for SHORT trades
B5: =COUNT(OFFSET(B15,0,0,$C$3,1)) -> 167 | C5: LONG trades opened in this time period | L5: =COUNT(OFFSET(L15,0,0,$C$3,1)) -> 167 | M5: SHORT trades opened in this time period
B6: =COUNTIF(OFFSET(H15,0,0,B5,1),">0") -> 90 | C6: Winners | D6: Biggest Win | E6: =MAX(OFFSET(H15,0,0,B5,1)) -> 280.88 | H6: Sum of Gains | I6: =SUMIF(OFFSET(H15,0,0,B5,1),">0") -> 3829.84 | L6: =COUNTIF(OFFSET(R15,0,0,L5,1),">0") -> 41 | M6: Winners | N6: Biggest Win | O6: =MAX(OFFSET(R15,0,0,L5,1)) -> 426.25 | R6: Sum of Gains | S6: =SUMIF(OFFSET(R15,0,0,L5,1),">0") -> 2241.96
B7: =COUNTIF(OFFSET(H15,0,0,B5,1),"<0") -> 77 | C7: Losers | D7: Biggest Loss | E7: =MIN(OFFSET(H15,0,0,B5,1)) -> -323.34 | H7: Sum of Losses | I7: =SUMIF(OFFSET(H15,0,0,B5,1),"<0") -> -2817.89 | L7: =COUNTIF(OFFSET(R15,0,0,L5,1),"<0") -> 126 | M7: Losers | N7: Biggest Loss | O7: =MIN(OFFSET(R15,0,0,L5,1)) -> -140 | R7: Sum of Losses | S7: =SUMIF(OFFSET(R15,0,0,L5,1),"<0") -> -4332.76
B8: =B6/B5 -> 0.5389221557 | C8: Winners | H8: NET change for Period | I8: =SUM(OFFSET(H15,0,0,B5,1)) -> 1011.95 | L8: =L6/L5 -> 0.245508982 | M8: Winners | R8: NET change for Period | S8: =SUM(OFFSET(R15,0,0,L5,1)) -> -2090.8
C10: Max Duration | D10: =MAX(OFFSET($J$15,0,0,$B$5,1)) -> 16 | H10: Largest Long Account Balance | I10: =MAX(OFFSET($I$15,0,0,$B$5,1)) -> 1011.95 | M10: Max Duration | N10: =MAX(OFFSET($T$15,0,0,$L$5,1)) -> 23 | R10: Largest Short Account Balance | S10: =MAX(OFFSET($R$15,0,0,$B$5,1)) -> 426.25
C11: Min Duration | D11: =MIN(OFFSET($J$15,0,0,$B$5,1)) -> 2 | H11: Smallest Long Account Balance | I11: =MIN(OFFSET($I$15,0,0,$B$5,1)) -> -238.83 | M11: Min Duration | N11: =MIN(OFFSET($T$15,0,0,$L$5,1)) -> 2 | R11: Smallest Short Account Balance | S11: =MIN(OFFSET($R$15,0,0,$B$5,1)) -> -140
E12: =MATCH(TRUE,OFFSET(CalculationsAndCharts!$Y$32,1,0,$C$3,1),0) -> 19 | F12: =IF($E$12>$B$15,"Open Trade; Marked to Current Bar Open $","") -> Open Trade; Marked to Current Bar Open $ | O12: =MATCH(TRUE,OFFSET(CalculationsAndCharts!$AC$32,1,0,$C$3,1),0) -> 5 | P12: =IF($O$12>$L$15,"Open Trade; Marked to Current Bar Open $","") -> 
C13: Enter Long | F13: Exit Long | H13: Trade Result | I13: Running Balance | J13: Duration in Bars | M13: Enter Short | P13: Exit Short | R13: Trade Result | S13: Running Balance | T13: Duration in Bars
B14: Rel Row | C14: Date | D14: $ | E14: Rel Row | F14: Date | G14: $ | L14: Rel Row | M14: Date | N14: $ | O14: Rel Row | P14: Date | Q14: $
B15: =MATCH(TRUE,OFFSET(CalculationsAndCharts!$X$32,1,0, $C$3,1),0) -> 5 | C15: =IF(B15="","",OFFSET(CalculationsAndCharts!$B$32, B15,0,1,1)) -> 2021-06-25 | D15: =IF(B15="","",OFFSET(CalculationsAndCharts!V$32, B15,0,1,1)) -> -4274.45 | E15: =IF($E$12>$B$15,"OPEN",$E$12) -> OPEN | F15: =IF($E$12>$B$15,CalculationsAndCharts!$B$33,OFFSET(CalculationsAndCharts!$B$32, E15,0,1,1)) -> 2021-07-01 | G15: =IF($E$12>$B$15,CalculationsAndCharts!D33,OFFSET(CalculationsAndCharts!$W$32, E15,0,1,1)) -> 4300.73 | H15: =G15+D15 -> 26.28 | I15: =H15+IF(ISNA(I16),0,I16) -> 1011.95 | J15: =IFERROR(B15-E15+1,B15) -> 5 | L15: =MATCH(TRUE,OFFSET(CalculationsAndCharts!$AB$32,1,0, $C$3,1),0) -> 19 | M15: =IF(L15="","",OFFSET(CalculationsAndCharts!$B$32, L15,0,1,1)) -> 2021-06-07 | N15: =IF(L15="","",OFFSET(CalculationsAndCharts!$W$32, L15,0,1,1)) -> 4229.34 | O15: =IF($O$12>$L$15,"OPEN",$O$12) -> 5 | P15: =IF($O$12>$L$15,CalculationsAndCharts!$B$33,OFFSET(CalculationsAndCharts!$B$32, O15,0,1,1)) -> 2021-06-25 | Q15: =IF($E$12>$L$15,CalculationsAndCharts!$V$33,OFFSET(CalculationsAndCharts!$V$32, O15,0,1,1)) -> -4274.45 | R15: =Q15+N15 -> -45.11 | S15: =R15+IF(ISNA(S16),0,S16) -> -2090.8 | T15: =IFERROR(L15-O15+1,L15) -> 15
B16: =IFERROR(MATCH(TRUE,OFFSET(CalculationsAndCharts!$X$33,B15,0, $C$3-B15,1),0)+B15,"") -> 30 | C16: =IF(B16="","",OFFSET(CalculationsAndCharts!$B$32, B16,0,1,1)) -> 2021-05-20 | D16: =IF(B16="","",OFFSET(CalculationsAndCharts!V$32, B16,0,1,1)) -> -4121.97 | E16: =IFERROR(IF($E$12>$B$15,$E$12,(MATCH(TRUE,OFFSET(CalculationsAndCharts!$Y$33,E15,0, $C$3-E15,1),0)+E15)),"") -> 19 | F16: =IFERROR(OFFSET(CalculationsAndCharts!$B$32, E16,0,1,1),"") -> 2021-06-07 | G16: =IFERROR(OFFSET(CalculationsAndCharts!$W$32, E16,0,1,1),"") -> 4229.34 | H16: =IFERROR(G16+D16,"") -> 107.37 | I16: =IFERROR(H16+IF(""=I17,0,I17),"") -> 985.67 | J16: =IFERROR(B16-E16+1,"") -> 12 | L16: =IFERROR(MATCH(TRUE,OFFSET(CalculationsAndCharts!$AB$33,L15,0, $C$3-L15,1),0)+L15,"") -> 35 | M16: =IF(L16="","",OFFSET(CalculationsAndCharts!$B$32, L16,0,1,1)) -> 2021-05-13 | N16: =IF(L16="","",OFFSET(CalculationsAndCharts!W$32, L16,0,1,1)) -> 4074.99 | O16: =IF(L16="","",IFERROR((MATCH(TRUE,OFFSET(CalculationsAndCharts!$AC$33,O15,0, $C$3-O15,1),0)+O15),"")) -> 30 | P16: =IFERROR(OFFSET(CalculationsAndCharts!$B$32, O16,0,1,1),"") -> 2021-05-20 | Q16: =IFERROR(OFFSET(CalculationsAndCharts!$V$32, O16,0,1,1),"") -> -4121.97 | R16: =IFERROR(Q16+N16,"") -> -46.98 | S16: =IFERROR(R16+IF(""=S17,0,S17),"") -> -2045.69 | T16: =IFERROR(L16-O16+1,"") -> 6
B17: =IFERROR(MATCH(TRUE,OFFSET(CalculationsAndCharts!$X$33,B16,0, $C$3-B16,1),0)+B16,"") -> 36 | C17: =IF(B17="","",OFFSET(CalculationsAndCharts!$B$32, B17,0,1,1)) -> 2021-05-12 | D17: =IF(B17="","",OFFSET(CalculationsAndCharts!V$32, B17,0,1,1)) -> -4130.55 | E17: =IF(B17="","",IFERROR((MATCH(TRUE,OFFSET(CalculationsAndCharts!$Y$33,E16,0, $C$3-E16,1),0)+E16),"")) -> 35 | F17: =IFERROR(OFFSET(CalculationsAndCharts!$B$32, E17,0,1,1),"") -> 2021-05-13 | G17: =IFERROR(OFFSET(CalculationsAndCharts!$W$32, E17,0,1,1),"") -> 4074.99 | H17: =IFERROR(G17+D17,"") -> -55.56 | I17: =IFERROR(H17+IF(""=I18,0,I18),"") -> 878.3 | J17: 2 | L17: =IFERROR(MATCH(TRUE,OFFSET(CalculationsAndCharts!$AB$33,L16,0, $C$3-L16,1),0)+L16,"") -> 42 | M17: =IF(L17="","",OFFSET(CalculationsAndCharts!$B$32, L17,0,1,1)) -> 2021-05-04 | N17: =IF(L17="","",OFFSET(CalculationsAndCharts!W$32, L17,0,1,1)) -> 4179.04 | O17: =IF(L17="","",IFERROR((MATCH(TRUE,OFFSET(CalculationsAndCharts!$AC$33,O16,0, $C$3-O16,1),0)+O16),"")) -> 36 | P17: =IFERROR(OFFSET(CalculationsAndCharts!$B$32, O17,0,1,1),"") -> 2021-05-12 | Q17: =IFERROR(OFFSET(CalculationsAndCharts!$V$32, O17,0,1,1),"") -> -4130.55 | R17: =IFERROR(Q17+N17,"") -> 48.49 | S17: =IFERROR(R17+IF(""=S18,0,S18),"") -> -1998.71 | T17: =IFERROR(L17-O17+1,"") -> 7
B18: =IFERROR(MATCH(TRUE,OFFSET(CalculationsAndCharts!$X$33,B17,0, $C$3-B17,1),0)+B17,"") -> 44 | C18: =IF(B18="","",OFFSET(CalculationsAndCharts!$B$32, B18,0,1,1)) -> 2021-04-30 | D18: =IF(B18="","",OFFSET(CalculationsAndCharts!V$32, B18,0,1,1)) -> -4198.1 | E18: =IF(B18="","",IFERROR((MATCH(TRUE,OFFSET(CalculationsAndCharts!$Y$33,E17,0, $C$3-E17,1),0)+E17),"")) -> 42 | F18: =IFERROR(OFFSET(CalculationsAndCharts!$B$32, E18,0,1,1),"") -> 2021-05-04 | G18: =IFERROR(OFFSET(CalculationsAndCharts!$W$32, E18,0,1,1),"") -> 4179.04 | H18: -19.06 | I18: 933.86 | J18: 3 | L18: =IFERROR(MATCH(TRUE,OFFSET(CalculationsAndCharts!$AB$33,L17,0, $C$3-L17,1),0)+L17,"") -> 55 | M18: =IF(L18="","",OFFSET(CalculationsAndCharts!$B$32, L18,0,1,1)) -> 2021-04-15 | N18: =IF(L18="","",OFFSET(CalculationsAndCharts!W$32, L18,0,1,1)) -> 4139.76 | O18: =IF(L18="","",IFERROR((MATCH(TRUE,OFFSET(CalculationsAndCharts!$AC$33,O17,0, $C$3-O17,1),0)+O17),"")) -> 44 | P18: =IFERROR(OFFSET(CalculationsAndCharts!$B$32, O18,0,1,1),"") -> 2021-04-30 | Q18: =IFERROR(OFFSET(CalculationsAndCharts!$V$32, O18,0,1,1),"") -> -4198.1 | R18: =IFERROR(Q18+N18,"") -> -58.34 | S18: =IFERROR(R18+IF(""=S19,0,S19),"") -> -2047.2 | T18: =IFERROR(L18-O18+1,"") -> 12
B19: =IFERROR(MATCH(TRUE,OFFSET(CalculationsAndCharts!$X$33,B18,0, $C$3-B18,1),0)+B18,"") -> 65 | C19: =IF(B19="","",OFFSET(CalculationsAndCharts!$B$32, B19,0,1,1)) -> 2021-03-31 | D19: =IF(B19="","",OFFSET(CalculationsAndCharts!V$32, B19,0,1,1)) -> -3967.25 | E19: =IF(B19="","",IFERROR((MATCH(TRUE,OFFSET(CalculationsAndCharts!$Y$33,E18,0, $C$3-E18,1),0)+E18),"")) -> 55 | F19: =IFERROR(OFFSET(CalculationsAndCharts!$B$32, E19,0,1,1),"") -> 2021-04-15 | G19: =IFERROR(OFFSET(CalculationsAndCharts!$W$32, E19,0,1,1),"") -> 4139.76 | H19: 172.51 | I19: 952.92 | J19: 11 | L19: =IFERROR(MATCH(TRUE,OFFSET(CalculationsAndCharts!$AB$33,L18,0, $C$3-L18,1),0)+L18,"") -> 72 | M19: =IF(L19="","",OFFSET(CalculationsAndCharts!$B$32, L19,0,1,1)) -> 2021-03-22 | N19: =IF(L19="","",OFFSET(CalculationsAndCharts!W$32, L19,0,1,1)) -> 3916.48 | O19: =IF(L19="","",IFERROR((MATCH(TRUE,OFFSET(CalculationsAndCharts!$AC$33,O18,0, $C$3-O18,1),0)+O18),"")) -> 65 | P19: =IFERROR(OFFSET(CalculationsAndCharts!$B$32, O19,0,1,1),"") -> 2021-03-31 | Q19: =IFERROR(OFFSET(CalculationsAndCharts!$V$32, O19,0,1,1),"") -> -3967.25 | R19: -50.77 | S19: -1988.86 | T19: 8
B20: =IFERROR(MATCH(TRUE,OFFSET(CalculationsAndCharts!$X$33,B19,0, $C$3-B19,1),0)+B19,"") -> 79 | C20: =IF(B20="","",OFFSET(CalculationsAndCharts!$B$32, B20,0,1,1)) -> 2021-03-11 | D20: =IF(B20="","",OFFSET(CalculationsAndCharts!V$32, B20,0,1,1)) -> -3915.54 | E20: =IF(B20="","",IFERROR((MATCH(TRUE,OFFSET(CalculationsAndCharts!$Y$33,E19,0, $C$3-E19,1),0)+E19),"")) -> 72 | F20: =IFERROR(OFFSET(CalculationsAndCharts!$B$32, E20,0,1,1),"") -> 2021-03-22 | G20: =IFERROR(OFFSET(CalculationsAndCharts!$W$32, E20,0,1,1),"") -> 3916.48 | H20: 0.94 | I20: 780.41 | J20: 8 | L20: =IFERROR(MATCH(TRUE,OFFSET(CalculationsAndCharts!$AB$33,L19,0, $C$3-L19,1),0)+L19,"") -> 94 | M20: =IF(L20="","",OFFSET(CalculationsAndCharts!$B$32, L20,0,1,1)) -> 2021-02-18 | N20: =IF(L20="","",OFFSET(CalculationsAndCharts!W$32, L20,0,1,1)) -> 3915.86 | O20: =IF(L20="","",IFERROR((MATCH(TRUE,OFFSET(CalculationsAndCharts!$AC$33,O19,0, $C$3-O19,1),0)+O19),"")) -> 79 | P20: =IFERROR(OFFSET(CalculationsAndCharts!$B$32, O20,0,1,1),"") -> 2021-03-11 | Q20: =IFERROR(OFFSET(CalculationsAndCharts!$V$32, O20,0,1,1),"") -> -3915.54 | R20: 0.32 | S20: -1938.09 | T20: 16
B21: =IFERROR(MATCH(TRUE,OFFSET(CalculationsAndCharts!$X$33,B20,0, $C$3-B20,1),0)+B20,"") -> 102 | C21: =IF(B21="","",OFFSET(CalculationsAndCharts!$B$32, B21,0,1,1)) -> 2021-02-05 | D21: =IF(B21="","",OFFSET(CalculationsAndCharts!V$32, B21,0,1,1)) -> -3878.3 | E21: =IF(B21="","",IFERROR((MATCH(TRUE,OFFSET(CalculationsAndCharts!$Y$33,E20,0, $C$3-E20,1),0)+E20),"")) -> 94 | F21: =IFERROR(OFFSET(CalculationsAndCharts!$B$32, E21,0,1,1),"") -> 2021-02-18 | G21: =IFERROR(OFFSET(CalculationsAndCharts!$W$32, E21,0,1,1),"") -> 3915.86 | H21: 37.56 | I21: 779.47 | J21: 9 | L21: =IFERROR(MATCH(TRUE,OFFSET(CalculationsAndCharts!$AB$33,L20,0, $C$3-L20,1),0)+L20,"") -> 107 | M21: =IF(L21="","",OFFSET(CalculationsAndCharts!$B$32, L21,0,1,1)) -> 2021-01-29 | N21: =IF(L21="","",OFFSET(CalculationsAndCharts!W$32, L21,0,1,1)) -> 3778.05 | O21: =IF(L21="","",IFERROR((MATCH(TRUE,OFFSET(CalculationsAndCharts!$AC$33,O20,0, $C$3-O20,1),0)+O20),"")) -> 102 | P21: =IFERROR(OFFSET(CalculationsAndCharts!$B$32, O21,0,1,1),"") -> 2021-02-05 | Q21: =IFERROR(OFFSET(CalculationsAndCharts!$V$32, O21,0,1,1),"") -> -3878.3 | R21: -100.25 | S21: -1938.41 | T21: 6
B22: =IFERROR(MATCH(TRUE,OFFSET(CalculationsAndCharts!$X$33,B21,0, $C$3-B21,1),0)+B21,"") -> 110 | C22: =IF(B22="","",OFFSET(CalculationsAndCharts!$B$32, B22,0,1,1)) -> 2021-01-26 | D22: =IF(B22="","",OFFSET(CalculationsAndCharts!V$32, B22,0,1,1)) -> -3862.96 | E22: =IF(B22="","",IFERROR((MATCH(TRUE,OFFSET(CalculationsAndCharts!$Y$33,E21,0, $C$3-E21,1),0)+E21),"")) -> 107 | F22: =IFERROR(OFFSET(CalculationsAndCharts!$B$32, E22,0,1,1),"") -> 2021-01-29 | G22: =IFERROR(OFFSET(CalculationsAndCharts!$W$32, E22,0,1,1),"") -> 3778.05 | H22: -84.91 | I22: 741.91 | J22: 4 | L22: =IFERROR(MATCH(TRUE,OFFSET(CalculationsAndCharts!$AB$33,L21,0, $C$3-L21,1),0)+L21,"") -> 115 | M22: =IF(L22="","",OFFSET(CalculationsAndCharts!$B$32, L22,0,1,1)) -> 2021-01-19 | N22: =IF(L22="","",OFFSET(CalculationsAndCharts!W$32, L22,0,1,1)) -> 3781.88 | O22: =IF(L22="","",IFERROR((MATCH(TRUE,OFFSET(CalculationsAndCharts!$AC$33,O21,0, $C$3-O21,1),0)+O21),"")) -> 110 | P22: =IFERROR(OFFSET(CalculationsAndCharts!$B$32, O22,0,1,1),"") -> 2021-01-26 | Q22: =IFERROR(OFFSET(CalculationsAndCharts!$V$32, O22,0,1,1),"") -> -3862.96 | R22: -81.08 | S22: -1838.16 | T22: 6
B23: =IFERROR(MATCH(TRUE,OFFSET(CalculationsAndCharts!$X$33,B22,0, $C$3-B22,1),0)+B22,"") -> 120 | C23: =IF(B23="","",OFFSET(CalculationsAndCharts!$B$32, B23,0,1,1)) -> 2021-01-11 | D23: =IF(B23="","",OFFSET(CalculationsAndCharts!V$32, B23,0,1,1)) -> -3803.14 | E23: =IF(B23="","",IFERROR((MATCH(TRUE,OFFSET(CalculationsAndCharts!$Y$33,E22,0, $C$3-E22,1),0)+E22),"")) -> 115 | F23: =IFERROR(OFFSET(CalculationsAndCharts!$B$32, E23,0,1,1),"") -> 2021-01-19 | G23: =IFERROR(OFFSET(CalculationsAndCharts!$W$32, E23,0,1,1),"") -> 3781.88 | H23: -21.26 | I23: 826.82 | J23: 6 | L23: =IFERROR(MATCH(TRUE,OFFSET(CalculationsAndCharts!$AB$33,L22,0, $C$3-L22,1),0)+L22,"") -> 122 | M23: =IF(L23="","",OFFSET(CalculationsAndCharts!$B$32, L23,0,1,1)) -> 2021-01-07 | N23: =IF(L23="","",OFFSET(CalculationsAndCharts!W$32, L23,0,1,1)) -> 3764.71 | O23: =IF(L23="","",IFERROR((MATCH(TRUE,OFFSET(CalculationsAndCharts!$AC$33,O22,0, $C$3-O22,1),0)+O22),"")) -> 120 | P23: =IFERROR(OFFSET(CalculationsAndCharts!$B$32, O23,0,1,1),"") -> 2021-01-11 | Q23: =IFERROR(OFFSET(CalculationsAndCharts!$V$32, O23,0,1,1),"") -> -3803.14 | R23: -38.43 | S23: -1757.08 | T23: 3
B24: =IFERROR(MATCH(TRUE,OFFSET(CalculationsAndCharts!$X$33,B23,0, $C$3-B23,1),0)+B23,"") -> 126 | C24: =IF(B24="","",OFFSET(CalculationsAndCharts!$B$32, B24,0,1,1)) -> 2020-12-31 | D24: =IF(B24="","",OFFSET(CalculationsAndCharts!V$32, B24,0,1,1)) -> -3733.27 | E24: =IF(B24="","",IFERROR((MATCH(TRUE,OFFSET(CalculationsAndCharts!$Y$33,E23,0, $C$3-E23,1),0)+E23),"")) -> 122 | F24: =IFERROR(OFFSET(CalculationsAndCharts!$B$32, E24,0,1,1),"") -> 2021-01-07 | G24: =IFERROR(OFFSET(CalculationsAndCharts!$W$32, E24,0,1,1),"") -> 3764.71 | H24: 31.44 | I24: 848.08 | J24: 5 | L24: =IFERROR(MATCH(TRUE,OFFSET(CalculationsAndCharts!$AB$33,L23,0, $C$3-L23,1),0)+L23,"") -> 129 | M24: =IF(L24="","",OFFSET(CalculationsAndCharts!$B$32, L24,0,1,1)) -> 2020-12-28 | N24: =IF(L24="","",OFFSET(CalculationsAndCharts!W$32, L24,0,1,1)) -> 3723.03 | O24: =IF(L24="","",IFERROR((MATCH(TRUE,OFFSET(CalculationsAndCharts!$AC$33,O23,0, $C$3-O23,1),0)+O23),"")) -> 126 | P24: =IFERROR(OFFSET(CalculationsAndCharts!$B$32, O24,0,1,1),"") -> 2020-12-31 | Q24: =IFERROR(OFFSET(CalculationsAndCharts!$V$32, O24,0,1,1),"") -> -3733.27 | R24: -10.24 | S24: -1718.65 | T24: 4
B25: =IFERROR(MATCH(TRUE,OFFSET(CalculationsAndCharts!$X$33,B24,0, $C$3-B24,1),0)+B24,"") -> 133 | C25: =IF(B25="","",OFFSET(CalculationsAndCharts!$B$32, B25,0,1,1)) -> 2020-12-21 | D25: =IF(B25="","",OFFSET(CalculationsAndCharts!V$32, B25,0,1,1)) -> -3684.28 | E25: =IF(B25="","",IFERROR((MATCH(TRUE,OFFSET(CalculationsAndCharts!$Y$33,E24,0, $C$3-E24,1),0)+E24),"")) -> 129 | F25: =IFERROR(OFFSET(CalculationsAndCharts!$B$32, E25,0,1,1),"") -> 2020-12-28 | G25: =IFERROR(OFFSET(CalculationsAndCharts!$W$32, E25,0,1,1),"") -> 3723.03 | H25: 38.75 | I25: 816.64 | J25: 5 | L25: =IFERROR(MATCH(TRUE,OFFSET(CalculationsAndCharts!$AB$33,L24,0, $C$3-L24,1),0)+L24,"") -> 139 | M25: =IF(L25="","",OFFSET(CalculationsAndCharts!$B$32, L25,0,1,1)) -> 2020-12-11 | N25: =IF(L25="","",OFFSET(CalculationsAndCharts!W$32, L25,0,1,1)) -> 3656.08 | O25: =IF(L25="","",IFERROR((MATCH(TRUE,OFFSET(CalculationsAndCharts!$AC$33,O24,0, $C$3-O24,1),0)+O24),"")) -> 133 | P25: =IFERROR(OFFSET(CalculationsAndCharts!$B$32, O25,0,1,1),"") -> 2020-12-21 | Q25: =IFERROR(OFFSET(CalculationsAndCharts!$V$32, O25,0,1,1),"") -> -3684.28 | R25: -28.2 | S25: -1708.41 | T25: 7
B26: =IFERROR(MATCH(TRUE,OFFSET(CalculationsAndCharts!$X$33,B25,0, $C$3-B25,1),0)+B25,"") -> 146 | C26: =IF(B26="","",OFFSET(CalculationsAndCharts!$B$32, B26,0,1,1)) -> 2020-12-02 | D26: =IF(B26="","",OFFSET(CalculationsAndCharts!V$32, B26,0,1,1)) -> -3653.78 | E26: =IF(B26="","",IFERROR((MATCH(TRUE,OFFSET(CalculationsAndCharts!$Y$33,E25,0, $C$3-E25,1),0)+E25),"")) -> 139 | F26: =IFERROR(OFFSET(CalculationsAndCharts!$B$32, E26,0,1,1),"") -> 2020-12-11 | G26: =IFERROR(OFFSET(CalculationsAndCharts!$W$32, E26,0,1,1),"") -> 3656.08 | H26: 2.3 | I26: 777.89 | J26: 8 | L26: =IFERROR(MATCH(TRUE,OFFSET(CalculationsAndCharts!$AB$33,L25,0, $C$3-L25,1),0)+L25,"") -> 155 | M26: =IF(L26="","",OFFSET(CalculationsAndCharts!$B$32, L26,0,1,1)) -> 2020-11-18 | N26: =IF(L26="","",OFFSET(CalculationsAndCharts!W$32, L26,0,1,1)) -> 3612.09 | O26: =IF(L26="","",IFERROR((MATCH(TRUE,OFFSET(CalculationsAndCharts!$AC$33,O25,0, $C$3-O25,1),0)+O25),"")) -> 146 | P26: =IFERROR(OFFSET(CalculationsAndCharts!$B$32, O26,0,1,1),"") -> 2020-12-02 | Q26: =IFERROR(OFFSET(CalculationsAndCharts!$V$32, O26,0,1,1),"") -> -3653.78 | R26: -41.69 | S26: -1680.21 | T26: 10
